Workbook

Sheet B1
A1: 1 | B1: =A1+1 -> 2 | C1: =B1+1 -> 3 | D1: =C1+1 -> 4 | E1: 5 | F1: 6 | G1: 7 | H1: 8 | I1: 9 | J1: 10 | K1: 11 | L1: 12 | M1: 13 | N1: 14 | O1: 15 | P1: 16 | Q1: 17 | R1: 18 | S1: 19 | T1: 20 | U1: 21 | V1: 22 | W1: 23 | X1: 24 | Y1: 25 | Z1: 26 | AA1: 27 | AB1: 28 | AC1: 29 | AD1: 30 | AE1: 31 | AF1: 32 | AG1: 33 | AH1: 34 | AI1: 35 | AJ1: 36 | AK1: 37 | AL1: 38 | AM1: 39 | AN1: 40 | AO1: 41 | AP1: 42 | AQ1: 43 | AR1: 44 | AS1: 45 | AT1: 46 | AU1: 47 | AV1: 48
A2: Tests und Spital | F2: Tests | L2: KH Normalstation besetzt | U2: KH Intensivstation besetzt | AD2: KH Normalstation frei | AM2: KH Intensivstation frei
F3: gestern | G3: gestern +- | H3: heute | I3: heute +- | J3: morgen | K3: morgen +- | L3: gestern | M3: gestern +- | N3: gestern % | O3: heute | P3: heute +- | Q3: heute % | R3: morgen | S3: morgen +- | T3: morgen % | U3: gestern | V3: gestern +- | W3: gestern % | X3: heute | Y3: heute +- | Z3: heute % | AA3: morgen | AB3: morgen +- | AC3: morgen % | AD3: gestern | AE3: gestern +- | AF3: gestern % | AG3: heute | AH3: heute +- | AI3: heute % | AJ3: morgen | AK3: morgen +- | AL3: morgen % | AM3: gestern | AN3: gestern +- | AO3: gestern % | AP3: heute | AQ3: heute +- | AR3: heute % | AS3: morgen | AT3: morgen +- | AU3: morgen %
A4: Datum | B4: Spalte3 | C4: Spalte1 | D4: Spalte2 | E4: Bundesland | F4: Tests alle g | G4: Tests alle g+- | H4: Tests alle | I4: Tests alle h+- | J4: Tests alle m | K4: Tests alle m+- | L4: KH Nor bes g | M4: KH Nor bes g+- | N4: KH Nor bes g % | O4: KH Nor h bes | P4: KH Nor h bes +- | Q4: KH Nor bes h % | R4: KH Nor bes m | S4: KH Nor bes m+- | T4: KH Nor bes m % | U4: KH Int g bes | V4: KH Int g bes+- | W4: KH Int g bes % | X4: KH Int h bes | Y4: KH Int h bes+- | Z4: KH Int h bes % | AA4: KH Int m bes | AB4: KH Int m bes+- | AC4: KH Int m bes % | AD4: KH Nor g frei | AE4: KH Nor g frei+- | AF4: KH Nor g frei % | AG4: KH Nor h frei | AH4: KH Nor h frei+- | AI4: KH Nor h frei% | AJ4: KH Nor m frei | AK4: KH Nor m frei+- | AL4: KH Nor m frei % | AM4: KH Int g frei | AN4: KH Int g frei+- | AO4: KH Int g frei % | AP4: KH Int h frei | AQ4: KH Int h frei+- | AR4: KH Int h frei % | AS4: KH Int m frei | AT4: KH Int m frei+- | AU4: KH Int m frei % | AV4: frei
A5: 2020-04-01 | E5: Burgenland | H5: 0 | J5: =H15 -> 1265 | K5: =H15-H5 -> 1265 | O5: 7 | Q5: =O5/((O5+X5)/100) -> 70 | R5: =O15 -> 10 | S5: =#REF!-#REF! ->  | T5: =Q15 -> 76.92307692 | X5: 3 | Z5: =X5/((O5+X5)/100) -> 30 | AA5: =X15 -> 3 | AB5: =Y15 -> 0 | AC5: =Z15 -> 23.07692308 | AG5: 12 | AI5: =AG5/((AG5+AP5)/100) -> 80 | AJ5: =AG15 -> 530 | AK5: =AI15 -> 93.47442681 | AL5: =AH15 -> 0 | AP5: 3 | AR5: =AP5/((AG5+AP5)/100) -> 20 | AS5: =AP15 -> 37 | AT5: =AQ15 -> 0 | AU5: =AR15 -> 6.525573192
A6: 2020-04-01 | E6: Kärnten | H6: 0 | J6: 4078 | K6: 4078 | O6: 18 | Q6: 62.06896552 | R6: 17 | S6: =#REF!-#REF! ->  | T6: 94.44444444 | X6: 11 | Z6: 37.93103448 | AA6: 1 | AB6: 0 | AC6: 5.555555556 | AG6: 1048 | AI6: 89.80291345 | AJ6: 728 | AK6: 90.66002491 | AL6: 0 | AP6: 119 | AR6: 10.19708655 | AS6: 75 | AT6: 0 | AU6: 9.339975093
A7: 2020-04-01 | E7: Niederösterreich | H7: 9395 | J7: 9982 | K7: 587 | O7: 164 | Q7: 82 | R7: 160 | S7: =#REF!-#REF! ->  | T7: 78.81773399 | X7: 36 | Z7: 18 | AA7: 43 | AB7: 0 | AC7: 21.18226601 | AG7: 3854 | AI7: 96.08576415 | AJ7: 3842 | AK7: 96.80020156 | AL7: 0 | AP7: 157 | AR7: 3.914235851 | AS7: 127 | AT7: 0 | AU7: 3.199798438
A8: 2020-04-01 | E8: Oberösterreich | H8: 0 | J8: 15740 | K8: 15740 | O8: 113 | Q8: 79.57746479 | R8: 107 | S8: =#REF!-#REF! ->  | T8: 77.53623188 | X8: 29 | Z8: 20.42253521 | AA8: 31 | AB8: 0 | AC8: 22.46376812 | AG8: 4408 | AI8: 97.43589744 | AJ8: 4421 | AK8: 96.99429574 | AL8: 0 | AP8: 116 | AR8: 2.564102564 | AS8: 137 | AT8: 0 | AU8: 3.005704256
A9: 2020-04-01 | E9: Salzburg | H9: 7439 | J9: 8046 | K9: 607 | O9: 56 | Q9: 84.84848485 | R9: 52 | S9: =#REF!-#REF! ->  | T9: 80 | X9: 10 | Z9: 15.15151515 | AA9: 13 | AB9: 0 | AC9: 20 | AG9: 1267 | AI9: 93.71301775 | AJ9: 1441 | AK9: 94.61588969 | AL9: 0 | AP9: 85 | AR9: 6.286982249 | AS9: 82 | AT9: 0 | AU9: 5.384110309
A10: 2020-04-01 | E10: Steiermark | H10: 0 | J10: 9127 | K10: 9127 | O10: 138 | Q10: 83.63636364 | R10: 121 | S10: =#REF!-#REF! ->  | T10: 81.20805369 | X10: 27 | Z10: 16.36363636 | AA10: 28 | AB10: 0 | AC10: 18.79194631 | AG10: 2924 | AI10: 94.75048607 | AJ10: 2941 | AK10: 95.1164295 | AL10: 0 | AP10: 162 | AR10: 5.249513934 | AS10: 151 | AT10: 0 | AU10: 4.883570505
A11: 2020-04-01 | E11: Tirol | H11: 0 | J11: 21051 | K11: 21051 | O11: 156 | Q11: 73.23943662 | R11: 159 | S11: =#REF!-#REF! ->  | T11: 73.95348837 | X11: 57 | Z11: 26.76056338 | AA11: 56 | AB11: 0 | AC11: 26.04651163 | AG11: 700 | AI11: 87.28179551 | AJ11: 728 | AK11: 87.39495798 | AL11: 0 | AP11: 102 | AR11: 12.71820449 | AS11: 105 | AT11: 0 | AU11: 12.60504202
A12: 2020-04-01 | E12: Vorarlberg | H12: 0 | J12: 4021 | K12: 4021 | O12: 39 | Q12: 76.47058824 | R12: 39 | S12: =#REF!-#REF! ->  | T12: 76.47058824 | X12: 12 | Z12: 23.52941176 | AA12: 12 | AB12: 0 | AC12: 23.52941176 | AG12: 500 | AI12: 85.61643836 | AJ12: 500 | AK12: 93.80863039 | AL12: 0 | AP12: 84 | AR12: 14.38356164 | AS12: 33 | AT12: 0 | AU12: 6.191369606
A13: 2020-04-01 | E13: Wien | H13: 0 | J13: 18880 | K13: 18880 | O13: 165 | Q13: 84.61538462 | R13: 158 | S13: =#REF!-#REF! ->  | T13: 83.15789474 | X13: 30 | Z13: 15.38461538 | AA13: 32 | AB13: 0 | AC13: 16.84210526 | AG13: 0 | AJ13: 0 | AL13: 0 | AP13: 0 | AS13: 0 | AT13: 0
A14: 2020-04-01 | E14: Alle | F14: 0 | G14: 0 | H14: 16834 | I14: =H14 -> 16834 | J14: 92190 | K14: 75356 | L14: 0 | M14: 0 | N14: 0 | O14: 856 | P14: 0 | Q14: 79.92530345 | R14: 823 | S14: =#REF!-#REF! ->  | T14: 78.98272553 | U14: 0 | V14: 0 | W14: 0 | X14: 215 | Y14: 0 | Z14: 20.07469655 | AA14: 219 | AB14: 4 | AC14: 21.01727447 | AD14: 0 | AE14: 0 | AF14: 0 | AG14: 14713 | AH14: 0 | AI14: 94.67215752 | AJ14: 15131 | AK14: 95.29537725 | AL14: 418 | AM14: 0 | AN14: 0 | AO14: 0 | AP14: 828 | AQ14: 0 | AR14: 5.327842481 | AS14: 747 | AT14: -81 | AU14: 4.704622748
A15: 2020-04-02 | E15: Burgenland | H15: 1265 | J15: 1375 | K15: 110 | O15: 10 | Q15: 76.92307692 | R15: 8 | S15: =#REF!-#REF! ->  | T15: 66.66666667 | X15: 3 | Z15: 23.07692308 | AA15: 4 | AB15: 0 | AC15: 33.33333333 | AG15: 530 | AI15: 93.47442681 | AJ15: 497 | AK15: 95.761079 | AL15: 0 | AP15: 37 | AR15: 6.525573192 | AS15: 22 | AT15: 0 | AU15: 4.238921002
A16: 2020-04-02 | E16: Kärnten | H16: 4078 | J16: 4303 | K16: 225 | O16: 17 | Q16: 94.44444444 | R16: 17 | S16: =#REF!-#REF! ->  | T16: 60.71428571 | X16: 1 | Z16: 5.555555556 | AA16: 11 | AB16: 0 | AC16: 39.28571429 | AG16: 728 | AI16: 90.66002491 | AJ16: 737 | AK16: 90.20807834 | AL16: 0 | AP16: 75 | AR16: 9.339975093 | AS16: 80 | AT16: 0 | AU16: 9.791921665
A17: 2020-04-02 | E17: Niederösterreich | H17: 9982 | J17: 10566 | K17: 584 | O17: 160 | Q17: 78.81773399 | R17: 160 | S17: =#REF!-#REF! ->  | T17: 78.81773399 | X17: 43 | Z17: 21.18226601 | AA17: 43 | AB17: 0 | AC17: 21.18226601 | AG17: 3842 | AI17: 96.80020156 | AJ17: 3842 | AK17: 96.80020156 | AL17: 0 | AP17: 127 | AR17: 3.199798438 | AS17: 127 | AT17: 0 | AU17: 3.199798438
A18: 2020-04-02 | E18: Oberösterreich | H18: 15740 | J18: 17287 | K18: 1547 | O18: 107 | Q18: 77.53623188 | R18: 102 | S18: =#REF!-#REF! ->  | T18: 75.55555556 | X18: 31 | Z18: 22.46376812 | AA18: 33 | AB18: 0 | AC18: 24.44444444 | AG18: 4421 | AI18: 96.99429574 | AJ18: 4496 | AK18: 97.80291494 | AL18: 0 | AP18: 137 | AR18: 3.005704256 | AS18: 101 | AT18: 0 | AU18: 2.197085055
A19: 2020-04-02 | E19: Salzburg | H19: 8046 | J19: 8783 | K19: 737 | O19: 52 | Q19: 80 | R19: 59 | S19: =#REF!-#REF! ->  | T19: 80.82191781 | X19: 13 | Z19: 20 | AA19: 14 | AB19: 0 | AC19: 19.17808219 | AG19: 1441 | AI19: 94.61588969 | AJ19: 1330 | AK19: 94.2593905 | AL19: 0 | AP19: 82 | AR19: 5.384110309 | AS19: 81 | AT19: 0 | AU19: 5.740609497
A20: 2020-04-02 | E20: Steiermark | H20: 9127 | J20: 9694 | K20: 567 | O20: 121 | Q20: 81.20805369 | R20: 134 | S20: =#REF!-#REF! ->  | T20: 81.70731707 | X20: 28 | Z20: 18.79194631 | AA20: 30 | AB20: 0 | AC20: 18.29268293 | AG20: 2941 | AI20: 95.1164295 | AJ20: 2956 | AK20: 95.14000644 | AL20: 0 | AP20: 151 | AR20: 4.883570505 | AS20: 151 | AT20: 0 | AU20: 4.859993563
A21: 2020-04-02 | E21: Tirol | H21: 21051 | J21: 22328 | K21: 1277 | O21: 159 | Q21: 73.95348837 | R21: 154 | S21: =#REF!-#REF! ->  | T21: 73.68421053 | X21: 56 | Z21: 26.04651163 | AA21: 55 | AB21: 0 | AC21: 26.31578947 | AG21: 728 | AI21: 87.39495798 | AJ21: 740 | AK21: 87.47044917 | AL21: 0 | AP21: 105 | AR21: 12.60504202 | AS21: 106 | AT21: 0 | AU21: 12.52955083
A22: 2020-04-02 | E22: Vorarlberg | H22: 4021 | J22: 4389 | K22: 368 | O22: 39 | Q22: 76.47058824 | R22: 39 | S22: =#REF!-#REF! ->  | T22: 76.47058824 | X22: 12 | Z22: 23.52941176 | AA22: 12 | AB22: 0 | AC22: 23.52941176 | AG22: 500 | AI22: 93.80863039 | AJ22: 481 | AK22: 94.68503937 | AL22: 0 | AP22: 33 | AR22: 6.191369606 | AS22: 27 | AT22: 0 | AU22: 5.31496063
A23: 2020-04-02 | E23: Wien | H23: 18880 | J23: 19618 | K23: 738 | O23: 158 | Q23: 83.15789474 | R23: 156 | S23: =#REF!-#REF! ->  | T23: 78.3919598 | X23: 32 | Z23: 16.84210526 | AA23: 43 | AB23: 0 | AC23: 21.6080402 | AG23: 0 | AJ23: 0 | AL23: 0 | AP23: 0 | AS23: 0 | AT23: 0
A24: 2020-04-02 | E24: Alle | F24: =H14 -> 16834 | G24: =H14 -> 16834 | H24: 92190 | I24: =H24-H14 -> 75356 | J24: 98343 | K24: 6153 | L24: =O14 -> 856 | M24: =O14 -> 856 | N24: =Q14 -> 79.92530345 | O24: 823 | P24: =O24-O14 -> -33 | Q24: 78.98272553 | R24: 829 | S24: =#REF!-#REF! ->  | T24: 77.18808194 | U24: =X14 -> 215 | V24: =Y14 -> 0 | W24: =Z14 -> 20.07469655 | X24: 219 | Y24: =X24-X14 -> 4 | Z24: 21.01727447 | AA24: 245 | AB24: 26 | AC24: 22.81191806 | AD24: =AG14 -> 14713 | AE24: =AH14 -> 0 | AF24: =AI14 -> 94.67215752 | AG24: 15131 | AH24: =AG24-AG14 -> 418 | AI24: 95.29537725 | AJ24: 15079 | AK24: 95.59401547 | AL24: -52 | AM24: =AP14 -> 828 | AN24: =AQ14 -> 0 | AO24: =AR14 -> 5.327842481 | AP24: 747 | AQ24: =AP24-AP14 -> -81 | AR24: 4.704622748 | AS24: 695 | AT24: -52 | AU24: 4.405984532
A25: 2020-04-03 | E25: Burgenland | H25: 1375 | J25: 1486 | K25: 111 | O25: 8 | Q25: 66.66666667 | R25: 7 | S25: =#REF!-#REF! ->  | T25: 70 | X25: 4 | Z25: 33.33333333 | AA25: 3 | AB25: 0 | AC25: 30 | AG25: 497 | AI25: 95.761079 | AJ25: 528 | AK25: 95.82577132 | AL25: 0 | AP25: 22 | AR25: 4.238921002 | AS25: 23 | AT25: 0 | AU25: 4.174228675
A26: 2020-04-03 | E26: Kärnten | H26: 4303 | J26: 4509 | K26: 206 | O26: 17 | Q26: 60.71428571 | R26: 21 | S26: =#REF!-#REF! ->  | T26: 65.625 | X26: 11 | Z26: 39.28571429 | AA26: 11 | AB26: 0 | AC26: 34.375 | AG26: 737 | AI26: 90.20807834 | AJ26: 730 | AK26: 89.90147783 | AL26: 0 | AP26: 80 | AR26: 9.791921665 | AS26: 82 | AT26: 0 | AU26: 10.09852217
A27: 2020-04-03 | E27: Niederösterreich | H27: 10566 | J27: 11086 | K27: 520 | O27: 160 | Q27: 78.81773399 | R27: 167 | S27: =#REF!-#REF! ->  | T27: 81.06796117 | X27: 43 | Z27: 21.18226601 | AA27: 39 | AB27: 0 | AC27: 18.93203883 | AG27: 3842 | AI27: 96.80020156 | AJ27: 3937 | AK27: 96.77974435 | AL27: 0 | AP27: 127 | AR27: 3.199798438 | AS27: 131 | AT27: 0 | AU27: 3.220255654
A28: 2020-04-03 | E28: Oberösterreich | H28: 17287 | J28: 18643 | K28: 1356 | O28: 102 | Q28: 75.55555556 | R28: 102 | S28: =#REF!-#REF! ->  | T28: 75.55555556 | X28: 33 | Z28: 24.44444444 | AA28: 33 | AB28: 0 | AC28: 24.44444444 | AG28: 4496 | AI28: 97.80291494 | AJ28: 4496 | AK28: 97.80291494 | AL28: 0 | AP28: 101 | AR28: 2.197085055 | AS28: 101 | AT28: 0 | AU28: 2.197085055
A29: 2020-04-03 | E29: Salzburg | H29: 8783 | J29: 9361 | K29: 578 | O29: 59 | Q29: 80.82191781 | R29: 64 | S29: =#REF!-#REF! ->  | T29: 81.01265823 | X29: 14 | Z29: 19.17808219 | AA29: 15 | AB29: 0 | AC29: 18.98734177 | AG29: 1330 | AI29: 94.2593905 | AJ29: 1325 | AK29: 94.30604982 | AL29: 0 | AP29: 81 | AR29: 5.740609497 | AS29: 80 | AT29: 0 | AU29: 5.693950178
A30: 2020-04-03 | E30: Steiermark | H30: 9694 | J30: 10262 | K30: 568 | O30: 134 | Q30: 81.70731707 | R30: 126 | S30: =#REF!-#REF! ->  | T30: 78.75 | X30: 30 | Z30: 18.29268293 | AA30: 34 | AB30: 0 | AC30: 21.25 | AG30: 2956 | AI30: 95.14000644 | AJ30: 3035 | AK30: 94.90306442 | AL30: 0 | AP30: 151 | AR30: 4.859993563 | AS30: 163 | AT30: 0 | AU30: 5.096935585
A31: 2020-04-03 | E31: Tirol | H31: 22328 | J31: 23246 | K31: 918 | O31: 154 | Q31: 73.68421053 | R31: 156 | S31: =#REF!-#REF! ->  | T31: 74.28571429 | X31: 55 | Z31: 26.31578947 | AA31: 54 | AB31: 0 | AC31: 25.71428571 | AG31: 740 | AI31: 87.47044917 | AJ31: 740 | AK31: 86.34772462 | AL31: 0 | AP31: 106 | AR31: 12.52955083 | AS31: 117 | AT31: 0 | AU31: 13.65227538
A32: 2020-04-03 | E32: Vorarlberg | H32: 4389 | J32: 4801 | K32: 412 | O32: 39 | Q32: 76.47058824 | R32: 35 | S32: =#REF!-#REF! ->  | T32: 74.46808511 | X32: 12 | Z32: 23.52941176 | AA32: 12 | AB32: 0 | AC32: 25.53191489 | AG32: 481 | AI32: 94.68503937 | AJ32: 485 | AK32: 94.7265625 | AL32: 0 | AP32: 27 | AR32: 5.31496063 | AS32: 27 | AT32: 0 | AU32: 5.2734375
A33: 2020-04-03 | E33: Wien | H33: 19618 | J33: 20740 | K33: 1122 | O33: 156 | Q33: 78.3919598 | R33: 148 | S33: =#REF!-#REF! ->  | T33: 77.08333333 | X33: 43 | Z33: 21.6080402 | AA33: 44 | AB33: 0 | AC33: 22.91666667 | AG33: 0 | AJ33: 0 | AL33: 0 | AP33: 0 | AS33: 0 | AT33: 0
A34: 2020-04-03 | E34: Alle | F34: =H24 -> 92190 | G34: =H24-H14 -> 75356 | H34: 98343 | I34: =H34-H24 -> 6153 | J34: 104134 | K34: 5791 | L34: =O24 -> 823 | M34: =Q24 -> 78.98272553 | N34: =Q24 -> 78.98272553 | O34: 829 | P34: =O34-O24 -> 6 | Q34: 77.18808194 | R34: 826 | S34: =#REF!-#REF! ->  | T34: 77.12418301 | U34: =X24 -> 219 | V34: =Y24 -> 4 | W34: =Z24 -> 21.01727447 | X34: 245 | Y34: =X34-X24 -> 26 | Z34: 22.81191806 | AA34: 245 | AB34: 0 | AC34: 22.87581699 | AD34: =AG24 -> 15131 | AE34: =AH24 -> 418 | AF34: =AI24 -> 95.29537725 | AG34: 15079 | AH34: =AG34-AG24 -> -52 | AI34: 95.59401547 | AJ34: 15276 | AK34: 95.475 | AL34: 197 | AM34: =AP24 -> 747 | AN34: =AQ24 -> -81 | AO34: =AR24 -> 4.704622748 | AP34: 695 | AQ34: =AP34-AP24 -> -52 | AR34: 4.405984532 | AS34: 724 | AT34: 29 | AU34: 4.525
A35: 2020-04-04 | E35: Burgenland | H35: 1486 | J35: 1495 | K35: 9 | O35: 7 | Q35: 70 | R35: 6 | S35: =#REF!-#REF! ->  | T35: 50 | X35: 3 | Z35: 30 | AA35: 6 | AB35: 0 | AC35: 50 | AG35: 528 | AI35: 95.82577132 | AJ35: 521 | AK35: 95.42124542 | AL35: 0 | AP35: 23 | AR35: 4.174228675 | AS35: 25 | AT35: 0 | AU35: 4.578754579
A36: 2020-04-04 | E36: Kärnten | H36: 4509 | J36: 4601 | K36: 92 | O36: 21 | Q36: 65.625 | R36: 22 | S36: =#REF!-#REF! ->  | T36: 62.85714286 | X36: 11 | Z36: 34.375 | AA36: 13 | AB36: 0 | AC36: 37.14285714 | AG36: 730 | AI36: 89.90147783 | AJ36: 721 | AK36: 90.01248439 | AL36: 0 | AP36: 82 | AR36: 10.09852217 | AS36: 80 | AT36: 0 | AU36: 9.987515605
A37: 2020-04-04 | E37: Niederösterreich | H37: 11086 | J37: 11397 | K37: 311 | O37: 167 | Q37: 81.06796117 | R37: 69 | S37: =#REF!-#REF! ->  | T37: 61.60714286 | X37: 39 | Z37: 18.93203883 | AA37: 43 | AB37: 0 | AC37: 38.39285714 | AG37: 3937 | AI37: 96.77974435 | AJ37: 4012 | AK37: 96.931626 | AL37: 0 | AP37: 131 | AR37: 3.220255654 | AS37: 127 | AT37: 0 | AU37: 3.068374003
A38: 2020-04-04 | E38: Oberösterreich | H38: 18643 | J38: 19496 | K38: 853 | O38: 102 | Q38: 75.55555556 | R38: 104 | S38: =#REF!-#REF! ->  | T38: 76.47058824 | X38: 33 | Z38: 24.44444444 | AA38: 32 | AB38: 0 | AC38: 23.52941176 | AG38: 4496 | AI38: 97.80291494 | AJ38: 4765 | AK38: 97.88414133 | AL38: 0 | AP38: 101 | AR38: 2.197085055 | AS38: 103 | AT38: 0 | AU38: 2.115858669
A39: 2020-04-04 | E39: Salzburg | H39: 9361 | J39: 9641 | K39: 280 | O39: 64 | Q39: 81.01265823 | R39: 76 | S39: =#REF!-#REF! ->  | T39: 84.44444444 | X39: 15 | Z39: 18.98734177 | AA39: 14 | AB39: 0 | AC39: 15.55555556 | AG39: 1325 | AI39: 94.30604982 | AJ39: 1330 | AK39: 94.2593905 | AL39: 0 | AP39: 80 | AR39: 5.693950178 | AS39: 81 | AT39: 0 | AU39: 5.740609497
A40: 2020-04-04 | E40: Steiermark | H40: 10262 | J40: 10715 | K40: 453 | O40: 126 | Q40: 78.75 | R40: 110 | S40: =#REF!-#REF! ->  | T40: 79.71014493 | X40: 34 | Z40: 21.25 | AA40: 28 | AB40: 0 | AC40: 20.28985507 | AG40: 3035 | AI40: 94.90306442 | AJ40: 3159 | AK40: 95.35164503 | AL40: 0 | AP40: 163 | AR40: 5.096935585 | AS40: 154 | AT40: 0 | AU40: 4.648354965
A41: 2020-04-04 | E41: Tirol | H41: 23246 | J41: 23962 | K41: 716 | O41: 156 | Q41: 74.28571429 | R41: 142 | S41: =#REF!-#REF! ->  | T41: 72.44897959 | X41: 54 | Z41: 25.71428571 | AA41: 54 | AB41: 0 | AC41: 27.55102041 | AG41: 740 | AI41: 86.34772462 | AJ41: 747 | AK41: 86.65893271 | AL41: 0 | AP41: 117 | AR41: 13.65227538 | AS41: 115 | AT41: 0 | AU41: 13.34106729
A42: 2020-04-04 | E42: Vorarlberg | H42: 4801 | J42: 4965 | K42: 164 | O42: 35 | Q42: 74.46808511 | R42: 33 | S42: =#REF!-#REF! ->  | T42: 73.33333333 | X42: 12 | Z42: 25.53191489 | AA42: 12 | AB42: 0 | AC42: 26.66666667 | AG42: 485 | AI42: 94.7265625 | AJ42: 485 | AK42: 85.38732394 | AL42: 0 | AP42: 27 | AR42: 5.2734375 | AS42: 83 | AT42: 0 | AU42: 14.61267606
A43: 2020-04-04 | E43: Wien | H43: 20740 | J43: 22144 | K43: 1404 | O43: 148 | Q43: 77.08333333 | R43: 150 | S43: =#REF!-#REF! ->  | T43: 78.125 | X43: 44 | Z43: 22.91666667 | AA43: 42 | AB43: 0 | AC43: 21.875 | AG43: 0 | AJ43: 0 | AL43: 0 | AP43: 0 | AS43: 0 | AT43: 0
A44: 2020-04-04 | E44: Alle | F44: =H34 -> 98343 | G44: =H34-H24 -> 6153 | H44: 104134 | I44: =H44-H34 -> 5791 | J44: 108416 | K44: 4282 | L44: =O34 -> 829 | M44: =Q34 -> 77.18808194 | N44: =Q34 -> 77.18808194 | O44: 826 | P44: =O44-O34 -> -3 | Q44: 77.12418301 | R44: 712 | S44: =#REF!-#REF! ->  | T44: 74.47698745 | U44: =X34 -> 245 | V44: =Y34 -> 26 | W44: =Z34 -> 22.81191806 | X44: 245 | Y44: =X44-X34 -> 0 | Z44: 22.87581699 | AA44: 244 | AB44: -1 | AC44: 25.52301255 | AD44: =AG34 -> 15079 | AE44: =AH34 -> -52 | AF44: =AI34 -> 95.59401547 | AG44: 15276 | AH44: =AG44-AG34 -> 197 | AI44: 95.475 | AJ44: 15740 | AK44: 95.3477102 | AL44: 464 | AM44: =AP34 -> 695 | AN44: =AQ34 -> -52 | AO44: =AR34 -> 4.405984532 | AP44: 724 | AQ44: =AP44-AP34 -> 29 | AR44: 4.525 | AS44: 768 | AT44: 44 | AU44: 4.652289799
A45: 2020-04-05 | E45: Burgenland | H45: 1495 | J45: 1521 | K45: 26 | O45: 6 | Q45: 50 | R45: 5 | S45: =#REF!-#REF! ->  | T45: 45.45454545 | X45: 6 | Z45: 50 | AA45: 6 | AB45: 0 | AC45: 54.54545455 | AG45: 521 | AI45: 95.42124542 | AJ45: 531 | AK45: 97.0749543 | AL45: 0 | AP45: 25 | AR45: 4.578754579 | AS45: 16 | AT45: 0 | AU45: 2.925045704
A46: 2020-04-05 | E46: Kärnten | H46: 4601 | J46: 4682 | K46: 81 | O46: 22 | Q46: 62.85714286 | R46: 22 | S46: =#REF!-#REF! ->  | T46: 64.70588235 | X46: 13 | Z46: 37.14285714 | AA46: 12 | AB46: 0 | AC46: 35.29411765 | AG46: 721 | AI46: 90.01248439 | AJ46: 726 | AK46: 90.63670412 | AL46: 0 | AP46: 80 | AR46: 9.987515605 | AS46: 75 | AT46: 0 | AU46: 9.36329588
A47: 2020-04-05 | E47: Niederösterreich | H47: 11397 | J47: 11829 | K47: 432 | O47: 69 | Q47: 61.60714286 | R47: 164 | S47: =#REF!-#REF! ->  | T47: 79.22705314 | X47: 43 | Z47: 38.39285714 | AA47: 43 | AB47: 0 | AC47: 20.77294686 | AG47: 4012 | AI47: 96.931626 | AJ47: 4276 | AK47: 97.115603 | AL47: 0 | AP47: 127 | AR47: 3.068374003 | AS47: 127 | AT47: 0 | AU47: 2.884397002
A48: 2020-04-05 | E48: Oberösterreich | H48: 19496 | J48: 20041 | K48: 545 | O48: 104 | Q48: 76.47058824 | R48: 106 | S48: =#REF!-#REF! ->  | T48: 78.51851852 | X48: 32 | Z48: 23.52941176 | AA48: 29 | AB48: 0 | AC48: 21.48148148 | AG48: 4765 | AI48: 97.88414133 | AJ48: 4619 | AK48: 97.88090697 | AL48: 0 | AP48: 103 | AR48: 2.115858669 | AS48: 100 | AT48: 0 | AU48: 2.119093028
A49: 2020-04-05 | E49: Salzburg | H49: 9641 | J49: 9799 | K49: 158 | O49: 76 | Q49: 84.44444444 | R49: 72 | S49: =#REF!-#REF! ->  | T49: 80 | X49: 14 | Z49: 15.55555556 | AA49: 18 | AB49: 0 | AC49: 20 | AG49: 1330 | AI49: 94.2593905 | AJ49: 1451 | AK49: 93.73385013 | AL49: 0 | AP49: 81 | AR49: 5.740609497 | AS49: 97 | AT49: 0 | AU49: 6.266149871
A50: 2020-04-05 | E50: Steiermark | H50: 10715 | J50: 11049 | K50: 334 | O50: 110 | Q50: 79.71014493 | R50: 125 | S50: =#REF!-#REF! ->  | T50: 80.64516129 | X50: 28 | Z50: 20.28985507 | AA50: 30 | AB50: 0 | AC50: 19.35483871 | AG50: 3159 | AI50: 95.35164503 | AJ50: 3124 | AK50: 95.01216545 | AL50: 0 | AP50: 154 | AR50: 4.648354965 | AS50: 164 | AT50: 0 | AU50: 4.98783455
A51: 2020-04-05 | E51: Tirol | H51: 23962 | J51: 24412 | K51: 450 | O51: 142 | Q51: 72.44897959 | R51: 141 | S51: =#REF!-#REF! ->  | T51: 70.5 | X51: 54 | Z51: 27.55102041 | AA51: 59 | AB51: 0 | AC51: 29.5 | AG51: 747 | AI51: 86.65893271 | AJ51: 795 | AK51: 87.45874587 | AL51: 0 | AP51: 115 | AR51: 13.34106729 | AS51: 114 | AT51: 0 | AU51: 12.54125413
A52: 2020-04-05 | E52: Vorarlberg | H52: 4965 | J52: 5165 | K52: 200 | O52: 33 | Q52: 73.33333333 | R52: 32 | S52: =#REF!-#REF! ->  | T52: 74.41860465 | X52: 12 | Z52: 26.66666667 | AA52: 11 | AB52: 0 | AC52: 25.58139535 | AG52: 485 | AI52: 85.38732394 | AJ52: 489 | AK52: 85.63922942 | AL52: 0 | AP52: 83 | AR52: 14.61267606 | AS52: 82 | AT52: 0 | AU52: 14.36077058
A53: 2020-04-05 | E53: Wien | H53: 22144 | J53: 22798 | K53: 654 | O53: 150 | Q53: 78.125 | R53: 157 | S53: =#REF!-#REF! ->  | T53: 78.89447236 | X53: 42 | Z53: 21.875 | AA53: 42 | AB53: 0 | AC53: 21.10552764 | AG53: 0 | AJ53: 0 | AL53: 0 | AP53: 0 | AS53: 0 | AT53: 0
A54: 2020-04-05 | E54: Alle | F54: =H44 -> 104134 | G54: =H44-H34 -> 5791 | H54: 108416 | I54: =H54-H44 -> 4282 | J54: 111296 | K54: 2880 | L54: =O44 -> 826 | M54: =Q44 -> 77.12418301 | N54: =Q44 -> 77.12418301 | O54: 712 | P54: =O54-O44 -> -114 | Q54: 74.47698745 | R54: 824 | S54: =#REF!-#REF! ->  | T54: 76.72253259 | U54: =X44 -> 245 | V54: =Y44 -> 0 | W54: =Z44 -> 22.87581699 | X54: 244 | Y54: =X54-X44 -> -1 | Z54: 25.52301255 | AA54: 250 | AB54: 6 | AC54: 23.27746741 | AD54: =AG44 -> 15276 | AE54: =AH44 -> 197 | AF54: =AI44 -> 95.475 | AG54: 15740 | AH54: =AG54-AG44 -> 464 | AI54: 95.3477102 | AJ54: 16011 | AK54: 95.38305731 | AL54: 271 | AM54: =AP44 -> 724 | AN54: =AQ44 -> 29 | AO54: =AR44 -> 4.525 | AP54: 768 | AQ54: =AP54-AP44 -> 44 | AR54: 4.652289799 | AS54: 775 | AT54: 7 | AU54: 4.61694269
A55: 2020-04-06 | E55: Burgenland | H55: 1521 | J55: 1639 | K55: 118 | O55: 5 | Q55: 45.45454545 | R55: 9 | S55: =#REF!-#REF! ->  | T55: 69.23076923 | X55: 6 | Z55: 54.54545455 | AA55: 4 | AB55: 0 | AC55: 30.76923077 | AG55: 531 | AI55: 97.0749543 | AJ55: 546 | AK55: 97.32620321 | AL55: 0 | AP55: 16 | AR55: 2.925045704 | AS55: 15 | AT55: 0 | AU55: 2.673796791
A56: 2020-04-06 | E56: Kärnten | H56: 4682 | J56: 4895 | K56: 213 | O56: 22 | Q56: 64.70588235 | R56: 23 | S56: =#REF!-#REF! ->  | T56: 65.71428571 | X56: 12 | Z56: 35.29411765 | AA56: 12 | AB56: 0 | AC56: 34.28571429 | AG56: 726 | AI56: 90.63670412 | AJ56: 727 | AK56: 90.53549191 | AL56: 0 | AP56: 75 | AR56: 9.36329588 | AS56: 76 | AT56: 0 | AU56: 9.464508095
A57: 2020-04-06 | E57: Niederösterreich | H57: 11829 | J57: 12393 | K57: 564 | O57: 164 | Q57: 79.22705314 | R57: 169 | S57: =#REF!-#REF! ->  | T57: 77.88018433 | X57: 43 | Z57: 20.77294686 | AA57: 48 | AB57: 0 | AC57: 22.11981567 | AG57: 4276 | AI57: 97.115603 | AJ57: 4255 | AK57: 97.21270276 | AL57: 0 | AP57: 127 | AR57: 2.884397002 | AS57: 122 | AT57: 0 | AU57: 2.787297236
A58: 2020-04-06 | E58: Oberösterreich | H58: 20041 | J58: 20853 | K58: 812 | O58: 106 | Q58: 78.51851852 | R58: 94 | S58: =#REF!-#REF! ->  | T58: 75.2 | X58: 29 | Z58: 21.48148148 | AA58: 31 | AB58: 0 | AC58: 24.8 | AG58: 4619 | AI58: 97.88090697 | AJ58: 4440 | AK58: 97.94837856 | AL58: 0 | AP58: 100 | AR58: 2.119093028 | AS58: 93 | AT58: 0 | AU58: 2.051621443
A59: 2020-04-06 | E59: Salzburg | H59: 9799 | J59: 9978 | K59: 179 | O59: 72 | Q59: 80 | R59: 79 | S59: =#REF!-#REF! ->  | T59: 83.15789474 | X59: 18 | Z59: 20 | AA59: 16 | AB59: 0 | AC59: 16.84210526 | AG59: 1451 | AI59: 93.73385013 | AJ59: 1444 | AK59: 93.58392741 | AL59: 0 | AP59: 97 | AR59: 6.266149871 | AS59: 99 | AT59: 0 | AU59: 6.416072586
A60: 2020-04-06 | E60: Steiermark | H60: 11049 | J60: 11522 | K60: 473 | O60: 125 | Q60: 80.64516129 | R60: 137 | S60: =#REF!-#REF! ->  | T60: 82.53012048 | X60: 30 | Z60: 19.35483871 | AA60: 29 | AB60: 0 | AC60: 17.46987952 | AG60: 3124 | AI60: 95.01216545 | AJ60: 2988 | AK60: 94.94756911 | AL60: 0 | AP60: 164 | AR60: 4.98783455 | AS60: 159 | AT60: 0 | AU60: 5.052430887
A61: 2020-04-06 | E61: Tirol | H61: 24412 | J61: 25061 | K61: 649 | O61: 141 | Q61: 70.5 | R61: 156 | S61: =#REF!-#REF! ->  | T61: 72.55813953 | X61: 59 | Z61: 29.5 | AA61: 59 | AB61: 0 | AC61: 27.44186047 | AG61: 795 | AI61: 87.45874587 | AJ61: 746 | AK61: 87.66157462 | AL61: 0 | AP61: 114 | AR61: 12.54125413 | AS61: 105 | AT61: 0 | AU61: 12.33842538
A62: 2020-04-06 | E62: Vorarlberg | H62: 5165 | J62: 5235 | K62: 70 | O62: 32 | Q62: 74.41860465 | R62: 32 | S62: =#REF!-#REF! ->  | T62: 74.41860465 | X62: 11 | Z62: 25.58139535 | AA62: 11 | AB62: 0 | AC62: 25.58139535 | AG62: 489 | AI62: 85.63922942 | AJ62: 489 | AK62: 94.4015444 | AL62: 0 | AP62: 82 | AR62: 14.36077058 | AS62: 29 | AT62: 0 | AU62: 5.598455598
A63: 2020-04-06 | E63: Wien | H63: 22798 | J63: 23659 | K63: 861 | O63: 157 | Q63: 78.89447236 | R63: 158 | S63: =#REF!-#REF! ->  | T63: 82.72251309 | X63: 42 | Z63: 21.10552764 | AA63: 33 | AB63: 0 | AC63: 17.27748691 | AG63: 0 | AJ63: 3301 | AK63: 93.24858757 | AL63: 0 | AP63: 0 | AS63: 239 | AT63: 0 | AU63: 6.751412429
A64: 2020-04-06 | E64: Alle | F64: =H54 -> 108416 | G64: =H54-H44 -> 4282 | H64: 111296 | I64: =H64-H54 -> 2880 | J64: 115235 | K64: 3939 | L64: =O54 -> 712 | M64: =Q54 -> 74.47698745 | N64: =Q54 -> 74.47698745 | O64: 824 | P64: =O64-O54 -> 112 | Q64: 76.72253259 | R64: 857 | S64: =#REF!-#REF! ->  | T64: 77.90909091 | U64: =X54 -> 244 | V64: =Y54 -> -1 | W64: =Z54 -> 25.52301255 | X64: 250 | Y64: =X64-X54 -> 6 | Z64: 23.27746741 | AA64: 243 | AB64: -7 | AC64: 22.09090909 | AD64: =AG54 -> 15740 | AE64: =AH54 -> 464 | AF64: =AI54 -> 95.3477102 | AG64: 16011 | AH64: =AG64-AG54 -> 271 | AI64: 95.38305731 | AJ64: 18936 | AK64: 95.28506013 | AL64: 2925 | AM64: =AP54 -> 768 | AN64: =AQ54 -> 44 | AO64: =AR54 -> 4.652289799 | AP64: 775 | AQ64: =AP64-AP54 -> 7 | AR64: 4.61694269 | AS64: 937 | AT64: 162 | AU64: 4.714939868
A65: 2020-04-07 | E65: Burgenland | H65: 1639 | J65: 1609 | K65: -30 | O65: 9 | Q65: 69.23076923 | R65: 10 | S65: =#REF!-#REF! ->  | T65: 83.33333333 | X65: 4 | Z65: 30.76923077 | AA65: 2 | AB65: 0 | AC65: 16.66666667 | AG65: 546 | AI65: 97.32620321 | AJ65: 553 | AK65: 97.5308642 | AL65: 0 | AP65: 15 | AR65: 2.673796791 | AS65: 14 | AT65: 0 | AU65: 2.469135802
A66: 2020-04-07 | E66: Kärnten | H66: 4895 | J66: 5199 | K66: 304 | O66: 23 | Q66: 65.71428571 | R66: 21 | S66: =#REF!-#REF! ->  | T66: 63.63636364 | X66: 12 | Z66: 34.28571429 | AA66: 12 | AB66: 0 | AC66: 36.36363636 | AG66: 727 | AI66: 90.53549191 | AJ66: 729 | AK66: 89.77832512 | AL66: 0 | AP66: 76 | AR66: 9.464508095 | AS66: 83 | AT66: 0 | AU66: 10.22167488
A67: 2020-04-07 | E67: Niederösterreich | H67: 12393 | J67: 12911 | K67: 518 | O67: 169 | Q67: 77.88018433 | R67: 153 | S67: =#REF!-#REF! ->  | T67: 73.55769231 | X67: 48 | Z67: 22.11981567 | AA67: 55 | AB67: 0 | AC67: 26.44230769 | AG67: 4255 | AI67: 97.21270276 | AJ67: 3724 | AK67: 97.00442824 | AL67: 0 | AP67: 122 | AR67: 2.787297236 | AS67: 115 | AT67: 0 | AU67: 2.995571763
A68: 2020-04-07 | E68: Oberösterreich | H68: 20853 | J68: 21846 | K68: 993 | O68: 94 | Q68: 75.2 | R68: 119 | S68: =#REF!-#REF! ->  | T68: 78.28947368 | X68: 31 | Z68: 24.8 | AA68: 33 | AB68: 0 | AC68: 21.71052632 | AG68: 4440 | AI68: 97.94837856 | AJ68: 4357 | AK68: 97.95413669 | AL68: 0 | AP68: 93 | AR68: 2.051621443 | AS68: 91 | AT68: 0 | AU68: 2.045863309
A69: 2020-04-07 | E69: Salzburg | H69: 9978 | J69: =H79 -> 10605 | K69: =H79-H69 -> 627 | O69: 79 | Q69: =O69/((O69+X69)/100) -> 83.15789474 | R69: =O79 -> 69 | S69: =#REF!-#REF! ->  | T69: =Q79 -> 76.66666667 | X69: 16 | Z69: =X69/((O69+X69)/100) -> 16.84210526 | AA69: =X79 -> 21 | AB69: =Y79 -> 0 | AC69: =Z79 -> 23.33333333 | AG69: 1444 | AI69: =AG69/((AG69+AP69)/100) -> 93.58392741 | AJ69: =AG79 -> 1454 | AK69: =AI79 -> 93.92764858 | AL69: =AH79 -> 0 | AP69: 99 | AR69: =AP69/((AG69+AP69)/100) -> 6.416072586 | AS69: =AP79 -> 94 | AT69: =AQ79 -> 0 | AU69: =AR79 -> 6.072351421
A70: 2020-04-07 | E70: Steiermark | H70: 11522 | J70: 12184 | K70: 662 | O70: 137 | Q70: 82.53012048 | R70: 143 | S70: =#REF!-#REF! ->  | T70: 81.25 | X70: 29 | Z70: 17.46987952 | AA70: 33 | AB70: 0 | AC70: 18.75 | AG70: 2988 | AI70: 94.94756911 | AJ70: 2915 | AK70: 94.95114007 | AL70: 0 | AP70: 159 | AR70: 5.052430887 | AS70: 155 | AT70: 0 | AU70: 5.048859935
A71: 2020-04-07 | E71: Tirol | H71: 25061 | J71: 26141 | K71: 1080 | O71: 156 | Q71: 72.55813953 | R71: 132 | S71: =#REF!-#REF! ->  | T71: 67.00507614 | X71: 59 | Z71: 27.44186047 | AA71: 65 | AB71: 0 | AC71: 32.99492386 | AG71: 746 | AI71: 87.66157462 | AJ71: 758 | AK71: 87.02640643 | AL71: 0 | AP71: 105 | AR71: 12.33842538 | AS71: 113 | AT71: 0 | AU71: 12.97359357
A72: 2020-04-07 | E72: Vorarlberg | H72: 5235 | J72: 5391 | K72: 156 | O72: 32 | Q72: 74.41860465 | R72: 29 | S72: =#REF!-#REF! ->  | T72: 72.5 | X72: 11 | Z72: 25.58139535 | AA72: 11 | AB72: 0 | AC72: 27.5 | AG72: 489 | AI72: 94.4015444 | AJ72: 492 | AK72: 94.61538462 | AL72: 0 | AP72: 29 | AR72: 5.598455598 | AS72: 28 | AT72: 0 | AU72: 5.384615385
A73: 2020-04-07 | E73: Wien | H73: 23659 | J73: 24869 | K73: 1210 | O73: 158 | Q73: 82.72251309 | R73: 153 | S73: =#REF!-#REF! ->  | T73: 81.38297872 | X73: 33 | Z73: 17.27748691 | AA73: 35 | AB73: 0 | AC73: 18.61702128 | AG73: 3301 | AI73: 93.24858757 | AJ73: 3575 | AK73: 92.37726098 | AL73: 0 | AP73: 239 | AR73: 6.751412429 | AS73: 295 | AT73: 0 | AU73: 7.622739018
A74: 2020-04-07 | E74: Alle | F74: =H64 -> 111296 | G74: =H64-H54 -> 2880 | H74: 115235 | I74: =H74-H64 -> 3939 | J74: 120755 | K74: 5520 | L74: =O64 -> 824 | M74: =Q64 -> 76.72253259 | N74: =Q64 -> 76.72253259 | O74: 857 | P74: =O74-O64 -> 33 | Q74: 77.90909091 | R74: 829 | S74: =#REF!-#REF! ->  | T74: 75.63868613 | U74: =X64 -> 250 | V74: =Y64 -> 6 | W74: =Z64 -> 23.27746741 | X74: 243 | Y74: =X74-X64 -> -7 | Z74: 22.09090909 | AA74: 267 | AB74: 24 | AC74: 24.36131387 | AD74: =AG64 -> 16011 | AE74: =AH64 -> 271 | AF74: =AI64 -> 95.38305731 | AG74: 18936 | AH74: =AG74-AG64 -> 2925 | AI74: 95.28506013 | AJ74: 18557 | AK74: 94.94499872 | AL74: -379 | AM74: =AP64 -> 775 | AN74: =AQ64 -> 7 | AO74: =AR64 -> 4.61694269 | AP74: 937 | AQ74: =AP74-AP64 -> 162 | AR74: 4.714939868 | AS74: 988 | AT74: 51 | AU74: 5.055001279
A75: 2020-04-08 | E75: Burgenland | H75: 1609 | J75: 1667 | K75: 58 | O75: 10 | Q75: 83.33333333 | R75: 11 | S75: =#REF!-#REF! ->  | T75: 73.33333333 | X75: 2 | Z75: 16.66666667 | AA75: 4 | AB75: 0 | AC75: 26.66666667 | AG75: 553 | AI75: 97.5308642 | AJ75: 567 | AK75: 97.92746114 | AL75: 0 | AP75: 14 | AR75: 2.469135802 | AS75: 12 | AT75: 0 | AU75: 2.07253886
A76: 2020-04-08 | E76: Kärnten | H76: 5199 | J76: 5573 | K76: 374 | O76: 21 | Q76: 63.63636364 | R76: 19 | S76: =#REF!-#REF! ->  | T76: 59.375 | X76: 12 | Z76: 36.36363636 | AA76: 13 | AB76: 0 | AC76: 40.625 | AG76: 729 | AI76: 89.77832512 | AJ76: 728 | AK76: 89.43488943 | AL76: 0 | AP76: 83 | AR76: 10.22167488 | AS76: 86 | AT76: 0 | AU76: 10.56511057
A77: 2020-04-08 | E77: Niederösterreich | H77: 12911 | J77: 13457 | K77: 546 | O77: 153 | Q77: 73.55769231 | R77: 154 | S77: =#REF!-#REF! ->  | T77: 74.03846154 | X77: 55 | Z77: 26.44230769 | AA77: 54 | AB77: 0 | AC77: 25.96153846 | AG77: 3724 | AI77: 97.00442824 | AJ77: 3659 | AK77: 96.92715232 | AL77: 0 | AP77: 115 | AR77: 2.995571763 | AS77: 116 | AT77: 0 | AU77: 3.072847682
A78: 2020-04-08 | E78: Oberösterreich | H78: 21846 | J78: 22839 | K78: 993 | O78: 119 | Q78: 78.28947368 | R78: 117 | S78: =#REF!-#REF! ->  | T78: 80.1369863 | X78: 33 | Z78: 21.71052632 | AA78: 29 | AB78: 0 | AC78: 19.8630137 | AG78: 4357 | AI78: 97.95413669 | AJ78: 4327 | AK78: 97.65290002 | AL78: 0 | AP78: 91 | AR78: 2.045863309 | AS78: 104 | AT78: 0 | AU78: 2.347099977
A79: 2020-04-08 | E79: Salzburg | H79: 10605 | J79: 11101 | K79: 496 | O79: 69 | Q79: 76.66666667 | R79: 75 | S79: =#REF!-#REF! ->  | T79: 79.78723404 | X79: 21 | Z79: 23.33333333 | AA79: 19 | AB79: 0 | AC79: 20.21276596 | AG79: 1454 | AI79: 93.92764858 | AJ79: 1448 | AK79: 94.02597403 | AL79: 0 | AP79: 94 | AR79: 6.072351421 | AS79: 92 | AT79: 0 | AU79: 5.974025974
A80: 2020-04-08 | E80: Steiermark | H80: 12184 | J80: 12753 | K80: 569 | O80: 143 | Q80: 81.25 | R80: 141 | S80: =#REF!-#REF! ->  | T80: 81.97674419 | X80: 33 | Z80: 18.75 | AA80: 31 | AB80: 0 | AC80: 18.02325581 | AG80: 2915 | AI80: 94.95114007 | AJ80: 2768 | AK80: 95.05494505 | AL80: 0 | AP80: 155 | AR80: 5.048859935 | AS80: 144 | AT80: 0 | AU80: 4.945054945
A81: 2020-04-08 | E81: Tirol | H81: 26141 | J81: 27174 | K81: 1033 | O81: 132 | Q81: 67.00507614 | R81: 123 | S81: =#REF!-#REF! ->  | T81: 65.42553191 | X81: 65 | Z81: 32.99492386 | AA81: 65 | AB81: 0 | AC81: 34.57446809 | AG81: 758 | AI81: 87.02640643 | AJ81: 747 | AK81: 87.77908343 | AL81: 0 | AP81: 113 | AR81: 12.97359357 | AS81: 104 | AT81: 0 | AU81: 12.22091657
A82: 2020-04-08 | E82: Vorarlberg | H82: 5391 | J82: 5609 | K82: 218 | O82: 29 | Q82: 72.5 | R82: 29 | S82: =#REF!-#REF! ->  | T82: 72.5 | X82: 11 | Z82: 27.5 | AA82: 11 | AB82: 0 | AC82: 27.5 | AG82: 492 | AI82: 94.61538462 | AJ82: 492 | AK82: 85.86387435 | AL82: 0 | AP82: 28 | AR82: 5.384615385 | AS82: 81 | AT82: 0 | AU82: 14.13612565
A83: 2020-04-08 | E83: Wien | H83: 24869 | J83: 26114 | K83: 1245 | O83: 153 | Q83: 81.38297872 | R83: 151 | S83: =#REF!-#REF! ->  | T83: 79.05759162 | X83: 35 | Z83: 18.61702128 | AA83: 40 | AB83: 0 | AC83: 20.94240838 | AG83: 3575 | AI83: 92.37726098 | AJ83: 3664 | AK83: 93.16043733 | AL83: 0 | AP83: 295 | AR83: 7.622739018 | AS83: 269 | AT83: 0 | AU83: 6.839562675
A84: 2020-04-08 | E84: Alle | F84: =H74 -> 115235 | G84: =H74-H64 -> 3939 | H84: 120755 | I84: =H84-H74 -> 5520 | J84: 126287 | K84: 5532 | L84: =O74 -> 857 | M84: =Q74 -> 77.90909091 | N84: =Q74 -> 77.90909091 | O84: 829 | P84: =O84-O74 -> -28 | Q84: 75.63868613 | R84: 820 | S84: =#REF!-#REF! ->  | T84: 75.50644567 | U84: =X74 -> 243 | V84: =Y74 -> -7 | W84: =Z74 -> 22.09090909 | X84: 267 | Y84: =X84-X74 -> 24 | Z84: 24.36131387 | AA84: 266 | AB84: -1 | AC84: 24.49355433 | AD84: =AG74 -> 18936 | AE84: =AH74 -> 2925 | AF84: =AI74 -> 95.28506013 | AG84: 18557 | AH84: =AG84-AG74 -> -379 | AI84: 94.94499872 | AJ84: 18400 | AK84: 94.80626546 | AL84: -157 | AM84: =AP74 -> 937 | AN84: =AQ74 -> 162 | AO84: =AR74 -> 4.714939868 | AP84: 988 | AQ84: =AP84-AP74 -> 51 | AR84: 5.055001279 | AS84: 1008 | AT84: 20 | AU84: 5.193734542
A85: 2020-04-09 | E85: Burgenland | H85: 1667 | J85: 1736 | K85: 69 | O85: 11 | Q85: 73.33333333 | R85: 8 | S85: =#REF!-#REF! ->  | T85: 66.66666667 | X85: 4 | Z85: 26.66666667 | AA85: 4 | AB85: 0 | AC85: 33.33333333 | AG85: 567 | AI85: 97.92746114 | AJ85: 648 | AK85: 98.0332829 | AL85: 0 | AP85: 12 | AR85: 2.07253886 | AS85: 13 | AT85: 0 | AU85: 1.966717095
A86: 2020-04-09 | E86: Kärnten | H86: 5573 | J86: 5891 | K86: 318 | O86: 19 | Q86: 59.375 | R86: 18 | S86: =#REF!-#REF! ->  | T86: 60 | X86: 13 | Z86: 40.625 | AA86: 12 | AB86: 0 | AC86: 40 | AG86: 728 | AI86: 89.43488943 | AJ86: 730 | AK86: 89.68058968 | AL86: 0 | AP86: 86 | AR86: 10.56511057 | AS86: 84 | AT86: 0 | AU86: 10.31941032
A87: 2020-04-09 | E87: Niederösterreich | H87: 13457 | J87: 14061 | K87: 604 | O87: 154 | Q87: 74.03846154 | R87: 152 | S87: =#REF!-#REF! ->  | T87: 74.14634146 | X87: 54 | Z87: 25.96153846 | AA87: 53 | AB87: 0 | AC87: 25.85365854 | AG87: 3659 | AI87: 96.92715232 | AJ87: 3616 | AK87: 96.86579159 | AL87: 0 | AP87: 116 | AR87: 3.072847682 | AS87: 117 | AT87: 0 | AU87: 3.134208411
A88: 2020-04-09 | E88: Oberösterreich | H88: 22839 | J88: 23638 | K88: 799 | O88: 117 | Q88: 80.1369863 | R88: 92 | S88: =#REF!-#REF! ->  | T88: 76.66666667 | X88: 29 | Z88: 19.8630137 | AA88: 28 | AB88: 0 | AC88: 23.33333333 | AG88: 4327 | AI88: 97.65290002 | AJ88: 4406 | AK88: 97.84588052 | AL88: 0 | AP88: 104 | AR88: 2.347099977 | AS88: 97 | AT88: 0 | AU88: 2.154119476
A89: 2020-04-09 | E89: Salzburg | H89: 11101 | J89: 11521 | K89: 420 | O89: 75 | Q89: 79.78723404 | R89: 74 | S89: =#REF!-#REF! ->  | T89: 79.56989247 | X89: 19 | Z89: 20.21276596 | AA89: 19 | AB89: 0 | AC89: 20.43010753 | AG89: 1448 | AI89: 94.02597403 | AJ89: 1449 | AK89: 94.02985075 | AL89: 0 | AP89: 92 | AR89: 5.974025974 | AS89: 92 | AT89: 0 | AU89: 5.970149254
A90: 2020-04-09 | E90: Steiermark | H90: 12753 | J90: 13390 | K90: 637 | O90: 141 | Q90: 81.97674419 | R90: 131 | S90: =#REF!-#REF! ->  | T90: 80.36809816 | X90: 31 | Z90: 18.02325581 | AA90: 32 | AB90: 0 | AC90: 19.63190184 | AG90: 2768 | AI90: 95.05494505 | AJ90: 2782 | AK90: 95.17618885 | AL90: 0 | AP90: 144 | AR90: 4.945054945 | AS90: 141 | AT90: 0 | AU90: 4.823811153
A91: 2020-04-09 | E91: Tirol | H91: 27174 | J91: 30904 | K91: 3730 | O91: 123 | Q91: 65.42553191 | R91: 122 | S91: =#REF!-#REF! ->  | T91: 66.66666667 | X91: 65 | Z91: 34.57446809 | AA91: 61 | AB91: 0 | AC91: 33.33333333 | AG91: 747 | AI91: 87.77908343 | AJ91: 712 | AK91: 88.22800496 | AL91: 0 | AP91: 104 | AR91: 12.22091657 | AS91: 95 | AT91: 0 | AU91: 11.77199504
A92: 2020-04-09 | E92: Vorarlberg | H92: 5609 | J92: 5958 | K92: 349 | O92: 29 | Q92: 72.5 | R92: 27 | S92: =#REF!-#REF! ->  | T92: 71.05263158 | X92: 11 | Z92: 27.5 | AA92: 11 | AB92: 0 | AC92: 28.94736842 | AG92: 492 | AI92: 85.86387435 | AJ92: 494 | AK92: 86.06271777 | AL92: 0 | AP92: 81 | AR92: 14.13612565 | AS92: 80 | AT92: 0 | AU92: 13.93728223
A93: 2020-04-09 | E93: Wien | H93: 26114 | J93: 27644 | K93: 1530 | O93: 151 | Q93: 79.05759162 | R93: 147 | S93: =#REF!-#REF! ->  | T93: 78.19148936 | X93: 40 | Z93: 20.94240838 | AA93: 41 | AB93: 0 | AC93: 21.80851064 | AG93: 3664 | AI93: 93.16043733 | AJ93: 3681 | AK93: 93.21347177 | AL93: 0 | AP93: 269 | AR93: 6.839562675 | AS93: 268 | AT93: 0 | AU93: 6.786528235
A94: 2020-04-09 | E94: Alle | F94: =H84 -> 120755 | G94: =H84-H74 -> 5520 | H94: 126287 | I94: =H94-H84 -> 5532 | J94: 134743 | K94: 8456 | L94: =O84 -> 829 | M94: =Q84 -> 75.63868613 | N94: =Q84 -> 75.63868613 | O94: 820 | P94: =O94-O84 -> -9 | Q94: 75.50644567 | R94: 771 | S94: =#REF!-#REF! ->  | T94: 74.70930233 | U94: =X84 -> 267 | V94: =Y84 -> 24 | W94: =Z84 -> 24.36131387 | X94: 266 | Y94: =X94-X84 -> -1 | Z94: 24.49355433 | AA94: 261 | AB94: -5 | AC94: 25.29069767 | AD94: =AG84 -> 18557 | AE94: =AH84 -> -379 | AF94: =AI84 -> 94.94499872 | AG94: 18400 | AH94: =AG94-AG84 -> -157 | AI94: 94.80626546 | AJ94: 18518 | AK94: 94.93975904 | AL94: 118 | AM94: =AP84 -> 988 | AN94: =AQ84 -> 51 | AO94: =AR84 -> 5.055001279 | AP94: 1008 | AQ94: =AP94-AP84 -> 20 | AR94: 5.193734542 | AS94: 987 | AT94: -21 | AU94: 5.060240964
A95: 2020-04-10 | E95: Burgenland | H95: 1736 | J95: 1768 | K95: 32 | O95: 8 | Q95: 66.66666667 | R95: 11 | S95: =#REF!-#REF! ->  | T95: 78.57142857 | X95: 4 | Z95: 33.33333333 | AA95: 3 | AB95: 0 | AC95: 21.42857143 | AG95: 648 | AI95: 98.0332829 | AJ95: 573 | AK95: 97.94871795 | AL95: 0 | AP95: 13 | AR95: 1.966717095 | AS95: 12 | AT95: 0 | AU95: 2.051282051
A96: 2020-04-10 | E96: Kärnten | H96: 5891 | J96: 6082 | K96: 191 | O96: 18 | Q96: 60 | R96: 19 | S96: =#REF!-#REF! ->  | T96: 65.51724138 | X96: 12 | Z96: 40 | AA96: 10 | AB96: 0 | AC96: 34.48275862 | AG96: 730 | AI96: 89.68058968 | AJ96: 729 | AK96: 89.77832512 | AL96: 0 | AP96: 84 | AR96: 10.31941032 | AS96: 83 | AT96: 0 | AU96: 10.22167488
A97: 2020-04-10 | E97: Niederösterreich | H97: 14061 | J97: 14544 | K97: 483 | O97: 152 | Q97: 74.14634146 | R97: 194 | S97: =#REF!-#REF! ->  | T97: 82.20338983 | X97: 53 | Z97: 25.85365854 | AA97: 42 | AB97: 0 | AC97: 17.79661017 | AG97: 3616 | AI97: 96.86579159 | AJ97: 3616 | AK97: 96.86579159 | AL97: 0 | AP97: 117 | AR97: 3.134208411 | AS97: 117 | AT97: 0 | AU97: 3.134208411
A98: 2020-04-10 | E98: Oberösterreich | H98: 23638 | J98: 24818 | K98: 1180 | O98: 92 | Q98: 76.66666667 | R98: 87 | S98: =#REF!-#REF! ->  | T98: 75 | X98: 28 | Z98: 23.33333333 | AA98: 29 | AB98: 0 | AC98: 25 | AG98: 4406 | AI98: 97.84588052 | AJ98: 4718 | AK98: 97.9854621 | AL98: 0 | AP98: 97 | AR98: 2.154119476 | AS98: 97 | AT98: 0 | AU98: 2.014537902
A99: 2020-04-10 | E99: Salzburg | H99: 11521 | J99: 11864 | K99: 343 | O99: 74 | Q99: 79.56989247 | R99: 70 | S99: =#REF!-#REF! ->  | T99: 79.54545455 | X99: 19 | Z99: 20.43010753 | AA99: 18 | AB99: 0 | AC99: 20.45454545 | AG99: 1449 | AI99: 94.02985075 | AJ99: 1453 | AK99: 93.98447607 | AL99: 0 | AP99: 92 | AR99: 5.970149254 | AS99: 93 | AT99: 0 | AU99: 6.015523933
A100: 2020-04-10 | E100: Steiermark | H100: 13390 | J100: 13954 | K100: 564 | O100: 131 | Q100: 80.36809816 | R100: 116 | S100: =#REF!-#REF! ->  | T100: 77.85234899 | X100: 32 | Z100: 19.63190184 | AA100: 33 | AB100: 0 | AC100: 22.14765101 | AG100: 2782 | AI100: 95.17618885 | AJ100: 2800 | AK100: 95.66108644 | AL100: 0 | AP100: 141 | AR100: 4.823811153 | AS100: 127 | AT100: 0 | AU100: 4.338913563
A101: 2020-04-10 | E101: Tirol | H101: 30904 | J101: 32951 | K101: 2047 | O101: 122 | Q101: 66.66666667 | R101: 116 | S101: =#REF!-#REF! ->  | T101: 64.80446927 | X101: 61 | Z101: 33.33333333 | AA101: 63 | AB101: 0 | AC101: 35.19553073 | AG101: 712 | AI101: 88.22800496 | AJ101: 692 | AK101: 88.37803321 | AL101: 0 | AP101: 95 | AR101: 11.77199504 | AS101: 91 | AT101: 0 | AU101: 11.62196679
A102: 2020-04-10 | E102: Vorarlberg | H102: 5958 | J102: 6082 | K102: 124 | O102: 27 | Q102: 71.05263158 | R102: 27 | S102: =#REF!-#REF! ->  | T102: 72.97297297 | X102: 11 | Z102: 28.94736842 | AA102: 10 | AB102: 0 | AC102: 27.02702703 | AG102: 494 | AI102: 86.06271777 | AJ102: 495 | AK102: 94.82758621 | AL102: 0 | AP102: 80 | AR102: 13.93728223 | AS102: 27 | AT102: 0 | AU102: 5.172413793
A103: 2020-04-10 | E103: Wien | H103: 27644 | J103: 28912 | K103: 1268 | O103: 147 | Q103: 78.19148936 | R103: 150 | S103: =#REF!-#REF! ->  | T103: 80.21390374 | X103: 41 | Z103: 21.80851064 | AA103: 37 | AB103: 0 | AC103: 19.78609626 | AG103: 3681 | AI103: 93.21347177 | AJ103: 3838 | AK103: 94.50874169 | AL103: 0 | AP103: 268 | AR103: 6.786528235 | AS103: 223 | AT103: 0 | AU103: 5.491258311
A104: 2020-04-10 | E104: Alle | F104: =H94 -> 126287 | G104: =H94-H84 -> 5532 | H104: 134743 | I104: =H104-H94 -> 8456 | J104: 140975 | K104: 6232 | L104: =O94 -> 820 | M104: =Q94 -> 75.50644567 | N104: =Q94 -> 75.50644567 | O104: 771 | P104: =O104-O94 -> -49 | Q104: 74.70930233 | R104: 790 | S104: =#REF!-#REF! ->  | T104: 76.32850242 | U104: =X94 -> 266 | V104: =Y94 -> -1 | W104: =Z94 -> 24.49355433 | X104: 261 | Y104: =X104-X94 -> -5 | Z104: 25.29069767 | AA104: 245 | AB104: -16 | AC104: 23.67149758 | AD104: =AG94 -> 18400 | AE104: =AH94 -> -157 | AF104: =AI94 -> 94.80626546 | AG104: 18518 | AH104: =AG104-AG94 -> 118 | AI104: 94.93975904 | AJ104: 18914 | AK104: 95.60250708 | AL104: 396 | AM104: =AP94 -> 1008 | AN104: =AQ94 -> 20 | AO104: =AR94 -> 5.193734542 | AP104: 987 | AQ104: =AP104-AP94 -> -21 | AR104: 5.060240964 | AS104: 870 | AT104: -117 | AU104: 4.397492924
A105: 2020-04-11 | E105: Burgenland | H105: 1768 | J105: 1799 | K105: 31 | O105: 11 | Q105: 78.57142857 | R105: 14 | S105: =#REF!-#REF! ->  | T105: 82.35294118 | X105: 3 | Z105: 21.42857143 | AA105: 3 | AB105: 0 | AC105: 17.64705882 | AG105: 573 | AI105: 97.94871795 | AJ105: 577 | AK105: 97.79661017 | AL105: 0 | AP105: 12 | AR105: 2.051282051 | AS105: 13 | AT105: 0 | AU105: 2.203389831
A106: 2020-04-11 | E106: Kärnten | H106: 6082 | J106: 6156 | K106: 74 | O106: 19 | Q106: 65.51724138 | R106: 17 | S106: =#REF!-#REF! ->  | T106: 62.96296296 | X106: 10 | Z106: 34.48275862 | AA106: 10 | AB106: 0 | AC106: 37.03703704 | AG106: 729 | AI106: 89.77832512 | AJ106: 726 | AK106: 89.62962963 | AL106: 0 | AP106: 83 | AR106: 10.22167488 | AS106: 84 | AT106: 0 | AU106: 10.37037037
A107: 2020-04-11 | E107: Niederösterreich | H107: 14544 | J107: 15267 | K107: 723 | O107: 194 | Q107: 82.20338983 | R107: 189 | S107: =#REF!-#REF! ->  | T107: 81.81818182 | X107: 42 | Z107: 17.79661017 | AA107: 42 | AB107: 0 | AC107: 18.18181818 | AG107: 3616 | AI107: 96.86579159 | AJ107: 3616 | AK107: 96.86579159 | AL107: 0 | AP107: 117 | AR107: 3.134208411 | AS107: 117 | AT107: 0 | AU107: 3.134208411
A108: 2020-04-11 | E108: Oberösterreich | H108: 24818 | J108: 25257 | K108: 439 | O108: 87 | Q108: 75 | R108: 86 | S108: =#REF!-#REF! ->  | T108: 74.7826087 | X108: 29 | Z108: 25 | AA108: 29 | AB108: 0 | AC108: 25.2173913 | AG108: 4718 | AI108: 97.9854621 | AJ108: 4837 | AK108: 97.87535411 | AL108: 0 | AP108: 97 | AR108: 2.014537902 | AS108: 105 | AT108: 0 | AU108: 2.124645892
A109: 2020-04-11 | E109: Salzburg | H109: 11864 | J109: 12215 | K109: 351 | O109: 70 | Q109: 79.54545455 | R109: 68 | S109: =#REF!-#REF! ->  | T109: 76.40449438 | X109: 18 | Z109: 20.45454545 | AA109: 21 | AB109: 0 | AC109: 23.59550562 | AG109: 1453 | AI109: 93.98447607 | AJ109: 1455 | AK109: 94.17475728 | AL109: 0 | AP109: 93 | AR109: 6.015523933 | AS109: 90 | AT109: 0 | AU109: 5.825242718
A110: 2020-04-11 | E110: Steiermark | H110: 13954 | J110: 14430 | K110: 476 | O110: 116 | Q110: 77.85234899 | R110: 122 | S110: =#REF!-#REF! ->  | T110: 79.22077922 | X110: 33 | Z110: 22.14765101 | AA110: 32 | AB110: 0 | AC110: 20.77922078 | AG110: 2800 | AI110: 95.66108644 | AJ110: 2939 | AK110: 95.48408057 | AL110: 0 | AP110: 127 | AR110: 4.338913563 | AS110: 139 | AT110: 0 | AU110: 4.515919428
A111: 2020-04-11 | E111: Tirol | H111: 32951 | J111: 33473 | K111: 522 | O111: 116 | Q111: 64.80446927 | R111: 113 | S111: =#REF!-#REF! ->  | T111: 64.94252874 | X111: 63 | Z111: 35.19553073 | AA111: 61 | AB111: 0 | AC111: 35.05747126 | AG111: 692 | AI111: 88.37803321 | AJ111: 422 | AK111: 80.99808061 | AL111: 0 | AP111: 91 | AR111: 11.62196679 | AS111: 99 | AT111: 0 | AU111: 19.00191939
A112: 2020-04-11 | E112: Vorarlberg | H112: 6082 | J112: 6355 | K112: 273 | O112: 27 | Q112: 72.97297297 | R112: 27 | S112: =#REF!-#REF! ->  | T112: 72.97297297 | X112: 10 | Z112: 27.02702703 | AA112: 10 | AB112: 0 | AC112: 27.02702703 | AG112: 495 | AI112: 94.82758621 | AJ112: 495 | AK112: 94.82758621 | AL112: 0 | AP112: 27 | AR112: 5.172413793 | AS112: 27 | AT112: 0 | AU112: 5.172413793
A113: 2020-04-11 | E113: Wien | H113: 28912 | J113: 29925 | K113: 1013 | O113: 150 | Q113: 80.21390374 | R113: 156 | S113: =#REF!-#REF! ->  | T113: 81.67539267 | X113: 37 | Z113: 19.78609626 | AA113: 35 | AB113: 0 | AC113: 18.32460733 | AG113: 3838 | AI113: 94.50874169 | AJ113: 3673 | AK113: 94.68935293 | AL113: 0 | AP113: 223 | AR113: 5.491258311 | AS113: 206 | AT113: 0 | AU113: 5.310647074
A114: 2020-04-11 | E114: Alle | F114: =H104 -> 134743 | G114: =H104-H94 -> 8456 | H114: 140975 | I114: =H114-H104 -> 6232 | J114: 144877 | K114: 3902 | L114: =O104 -> 771 | M114: =Q104 -> 74.70930233 | N114: =Q104 -> 74.70930233 | O114: 790 | P114: =O114-O104 -> 19 | Q114: 76.32850242 | R114: 792 | S114: =#REF!-#REF! ->  | T114: 76.52173913 | U114: =X104 -> 261 | V114: =Y104 -> -5 | W114: =Z104 -> 25.29069767 | X114: 245 | Y114: =X114-X104 -> -16 | Z114: 23.67149758 | AA114: 243 | AB114: -2 | AC114: 23.47826087 | AD114: =AG104 -> 18518 | AE114: =AH104 -> 118 | AF114: =AI104 -> 94.93975904 | AG114: 18914 | AH114: =AG114-AG104 -> 396 | AI114: 95.60250708 | AJ114: 18740 | AK114: 95.51478084 | AL114: -174 | AM114: =AP104 -> 987 | AN114: =AQ104 -> -21 | AO114: =AR104 -> 5.060240964 | AP114: 870 | AQ114: =AP114-AP104 -> -117 | AR114: 4.397492924 | AS114: 880 | AT114: 10 | AU114: 4.485219164
A115: 2020-04-12 | E115: Burgenland | H115: 1799 | J115: 1823 | K115: 24 | O115: 14 | Q115: 82.35294118 | R115: 9 | S115: =#REF!-#REF! ->  | T115: 75 | X115: 3 | Z115: 17.64705882 | AA115: 3 | AB115: 0 | AC115: 25 | AG115: 577 | AI115: 97.79661017 | AJ115: 551 | AK115: 97.69503546 | AL115: 0 | AP115: 13 | AR115: 2.203389831 | AS115: 13 | AT115: 0 | AU115: 2.304964539
A116: 2020-04-12 | E116: Kärnten | H116: 6156 | J116: 6250 | K116: 94 | O116: 17 | Q116: 62.96296296 | R116: 17 | S116: =#REF!-#REF! ->  | T116: 62.96296296 | X116: 10 | Z116: 37.03703704 | AA116: 10 | AB116: 0 | AC116: 37.03703704 | AG116: 726 | AI116: 89.62962963 | AJ116: 719 | AK116: 89.09541512 | AL116: 0 | AP116: 84 | AR116: 10.37037037 | AS116: 88 | AT116: 0 | AU116: 10.90458488
A117: 2020-04-12 | E117: Niederösterreich | H117: 15267 | J117: 15483 | K117: 216 | O117: 189 | Q117: 81.81818182 | R117: 192 | S117: =#REF!-#REF! ->  | T117: 82.05128205 | X117: 42 | Z117: 18.18181818 | AA117: 42 | AB117: 0 | AC117: 17.94871795 | AG117: 3616 | AI117: 96.86579159 | AJ117: 4104 | AK117: 96.56470588 | AL117: 0 | AP117: 117 | AR117: 3.134208411 | AS117: 146 | AT117: 0 | AU117: 3.435294118
A118: 2020-04-12 | E118: Oberösterreich | H118: 25257 | J118: 25482 | K118: 225 | O118: 86 | Q118: 74.7826087 | R118: 84 | S118: =#REF!-#REF! ->  | T118: 72.4137931 | X118: 29 | Z118: 25.2173913 | AA118: 32 | AB118: 0 | AC118: 27.5862069 | AG118: 4837 | AI118: 97.87535411 | AJ118: 4787 | AK118: 97.9738027 | AL118: 0 | AP118: 105 | AR118: 2.124645892 | AS118: 99 | AT118: 0 | AU118: 2.026197298
A119: 2020-04-12 | E119: Salzburg | H119: 12215 | J119: 12450 | K119: 235 | O119: 68 | Q119: 76.40449438 | R119: 71 | S119: =#REF!-#REF! ->  | T119: 78.02197802 | X119: 21 | Z119: 23.59550562 | AA119: 20 | AB119: 0 | AC119: 21.97802198 | AG119: 1455 | AI119: 94.17475728 | AJ119: 1452 | AK119: 94.10239793 | AL119: 0 | AP119: 90 | AR119: 5.825242718 | AS119: 91 | AT119: 0 | AU119: 5.897602074
A120: 2020-04-12 | E120: Steiermark | H120: 14430 | J120: 14994 | K120: 564 | O120: 122 | Q120: 79.22077922 | R120: 115 | S120: =#REF!-#REF! ->  | T120: 78.76712329 | X120: 32 | Z120: 20.77922078 | AA120: 31 | AB120: 0 | AC120: 21.23287671 | AG120: 2939 | AI120: 95.48408057 | AJ120: 2963 | AK120: 95.45747423 | AL120: 0 | AP120: 139 | AR120: 4.515919428 | AS120: 141 | AT120: 0 | AU120: 4.542525773
A121: 2020-04-12 | E121: Tirol | H121: 33473 | J121: 35005 | K121: 1532 | O121: 113 | Q121: 64.94252874 | R121: 103 | S121: =#REF!-#REF! ->  | T121: 64.375 | X121: 61 | Z121: 35.05747126 | AA121: 57 | AB121: 0 | AC121: 35.625 | AG121: 422 | AI121: 80.99808061 | AJ121: 434 | AK121: 80.81936685 | AL121: 0 | AP121: 99 | AR121: 19.00191939 | AS121: 103 | AT121: 0 | AU121: 19.18063315
A122: 2020-04-12 | E122: Vorarlberg | H122: 6355 | J122: 6464 | K122: 109 | O122: 27 | Q122: 72.97297297 | R122: 22 | S122: =#REF!-#REF! ->  | T122: 68.75 | X122: 10 | Z122: 27.02702703 | AA122: 10 | AB122: 0 | AC122: 31.25 | AG122: 495 | AI122: 94.82758621 | AJ122: 500 | AK122: 85.76329331 | AL122: 0 | AP122: 27 | AR122: 5.172413793 | AS122: 83 | AT122: 0 | AU122: 14.23670669
A123: 2020-04-12 | E123: Wien | H123: 29925 | J123: 30461 | K123: 536 | O123: 156 | Q123: 81.67539267 | R123: 129 | S123: =#REF!-#REF! ->  | T123: 79.14110429 | X123: 35 | Z123: 18.32460733 | AA123: 34 | AB123: 0 | AC123: 20.85889571 | AG123: 3673 | AI123: 94.68935293 | AJ123: 3876 | AK123: 94.53658537 | AL123: 0 | AP123: 206 | AR123: 5.310647074 | AS123: 224 | AT123: 0 | AU123: 5.463414634
A124: 2020-04-12 | E124: Alle | F124: =H114 -> 140975 | G124: =H114-H104 -> 6232 | H124: 144877 | I124: =H124-H114 -> 3902 | J124: 148412 | K124: 3535 | L124: =O114 -> 790 | M124: =Q114 -> 76.32850242 | N124: =Q114 -> 76.32850242 | O124: 792 | P124: =O124-O114 -> 2 | Q124: 76.52173913 | R124: 742 | S124: =#REF!-#REF! ->  | T124: 75.63710499 | U124: =X114 -> 245 | V124: =Y114 -> -16 | W124: =Z114 -> 23.67149758 | X124: 243 | Y124: =X124-X114 -> -2 | Z124: 23.47826087 | AA124: 239 | AB124: -4 | AC124: 24.36289501 | AD124: =AG114 -> 18914 | AE124: =AH114 -> 396 | AF124: =AI114 -> 95.60250708 | AG124: 18740 | AH124: =AG124-AG114 -> -174 | AI124: 95.51478084 | AJ124: 19386 | AK124: 95.15068224 | AL124: 646 | AM124: =AP114 -> 870 | AN124: =AQ114 -> -117 | AO124: =AR114 -> 4.397492924 | AP124: 880 | AQ124: =AP124-AP114 -> 10 | AR124: 4.485219164 | AS124: 988 | AT124: 108 | AU124: 4.849317758
A125: 2020-04-13 | E125: Burgenland | H125: 1823 | J125: 1849 | K125: 26 | O125: 9 | Q125: 75 | R125: 11 | S125: =#REF!-#REF! ->  | T125: 73.33333333 | X125: 3 | Z125: 25 | AA125: 4 | AB125: 0 | AC125: 26.66666667 | AG125: 551 | AI125: 97.69503546 | AJ125: 534 | AK125: 97.98165138 | AL125: 0 | AP125: 13 | AR125: 2.304964539 | AS125: 11 | AT125: 0 | AU125: 2.018348624
A126: 2020-04-13 | E126: Kärnten | H126: 6250 | J126: 6365 | K126: 115 | O126: 17 | Q126: 62.96296296 | R126: 16 | S126: =#REF!-#REF! ->  | T126: 66.66666667 | X126: 10 | Z126: 37.03703704 | AA126: 8 | AB126: 0 | AC126: 33.33333333 | AG126: 719 | AI126: 89.09541512 | AJ126: 728 | AK126: 90.21065675 | AL126: 0 | AP126: 88 | AR126: 10.90458488 | AS126: 79 | AT126: 0 | AU126: 9.789343247
A127: 2020-04-13 | E127: Niederösterreich | H127: 15483 | J127: 15860 | K127: 377 | O127: 192 | Q127: 82.05128205 | R127: 193 | S127: =#REF!-#REF! ->  | T127: 81.77966102 | X127: 42 | Z127: 17.94871795 | AA127: 43 | AB127: 0 | AC127: 18.22033898 | AG127: 4104 | AI127: 96.56470588 | AJ127: 4156 | AK127: 96.58377876 | AL127: 0 | AP127: 146 | AR127: 3.435294118 | AS127: 147 | AT127: 0 | AU127: 3.416221241
A128: 2020-04-13 | E128: Oberösterreich | H128: 25482 | J128: 26023 | K128: 541 | O128: 84 | Q128: 72.4137931 | R128: 86 | S128: =#REF!-#REF! ->  | T128: 74.13793103 | X128: 32 | Z128: 27.5862069 | AA128: 30 | AB128: 0 | AC128: 25.86206897 | AG128: 4787 | AI128: 97.9738027 | AJ128: 4520 | AK128: 97.85667893 | AL128: 0 | AP128: 99 | AR128: 2.026197298 | AS128: 99 | AT128: 0 | AU128: 2.143321065
A129: 2020-04-13 | E129: Salzburg | H129: 12450 | J129: 12590 | K129: 140 | O129: 71 | Q129: 78.02197802 | R129: 81 | S129: =#REF!-#REF! ->  | T129: 80.1980198 | X129: 20 | Z129: 21.97802198 | AA129: 20 | AB129: 0 | AC129: 19.8019802 | AG129: 1452 | AI129: 94.10239793 | AJ129: 1442 | AK129: 94.06392694 | AL129: 0 | AP129: 91 | AR129: 5.897602074 | AS129: 91 | AT129: 0 | AU129: 5.936073059
A130: 2020-04-13 | E130: Steiermark | H130: 14994 | J130: 15558 | K130: 564 | O130: 115 | Q130: 78.76712329 | R130: 113 | S130: =#REF!-#REF! ->  | T130: 80.14184397 | X130: 31 | Z130: 21.23287671 | AA130: 28 | AB130: 0 | AC130: 19.85815603 | AG130: 2963 | AI130: 95.45747423 | AJ130: 2861 | AK130: 95.20798669 | AL130: 0 | AP130: 141 | AR130: 4.542525773 | AS130: 144 | AT130: 0 | AU130: 4.792013311
A131: 2020-04-13 | E131: Tirol | H131: 35005 | J131: 35629 | K131: 624 | O131: 103 | Q131: 64.375 | R131: 104 | S131: =#REF!-#REF! ->  | T131: 65 | X131: 57 | Z131: 35.625 | AA131: 56 | AB131: 0 | AC131: 35 | AG131: 434 | AI131: 80.81936685 | AJ131: 440 | AK131: 80.43875686 | AL131: 0 | AP131: 103 | AR131: 19.18063315 | AS131: 107 | AT131: 0 | AU131: 19.56124314
A132: 2020-04-13 | E132: Vorarlberg | H132: 6464 | J132: 6531 | K132: 67 | O132: 22 | Q132: 68.75 | R132: 23 | S132: =#REF!-#REF! ->  | T132: 69.6969697 | X132: 10 | Z132: 31.25 | AA132: 10 | AB132: 0 | AC132: 30.3030303 | AG132: 500 | AI132: 85.76329331 | AJ132: 499 | AK132: 85.73883162 | AL132: 0 | AP132: 83 | AR132: 14.23670669 | AS132: 83 | AT132: 0 | AU132: 14.26116838
A133: 2020-04-13 | E133: Wien | H133: 30461 | J133: =H143 -> 31391 | K133: =H143-H133 -> 930 | O133: 129 | Q133: =O133/((O133+X133)/100) -> 79.14110429 | R133: =O143 -> 132 | S133: =#REF!-#REF! ->  | T133: =Q143 -> 75 | X133: 34 | Z133: =X133/((O133+X133)/100) -> 20.85889571 | AA133: =X143 -> 44 | AB133: =Y143 -> 0 | AC133: =Z143 -> 25 | AG133: 3876 | AI133: =AG133/((AG133+AP133)/100) -> 94.53658537 | AJ133: =AG143 -> 3868 | AK133: =AI143 -> 94.59525556 | AL133: =AH143 -> 0 | AP133: 224 | AR133: =AP133/((AG133+AP133)/100) -> 5.463414634 | AS133: =AP143 -> 221 | AT133: =AQ143 -> 0 | AU133: =AR143 -> 5.404744436
A134: 2020-04-13 | E134: Alle | F134: =H124 -> 144877 | G134: =H124-H114 -> 3902 | H134: 148412 | I134: =H134-H124 -> 3535 | J134: 151796 | K134: 3384 | L134: =O124 -> 792 | M134: =Q124 -> 76.52173913 | N134: =Q124 -> 76.52173913 | O134: 742 | P134: =O134-O124 -> -50 | Q134: 75.63710499 | R134: 759 | S134: =#REF!-#REF! ->  | T134: 75.74850299 | U134: =X124 -> 243 | V134: =Y124 -> -2 | W134: =Z124 -> 23.47826087 | X134: 239 | Y134: =X134-X124 -> -4 | Z134: 24.36289501 | AA134: 243 | AB134: 4 | AC134: 24.25149701 | AD134: =AG124 -> 18740 | AE134: =AH124 -> -174 | AF134: =AI124 -> 95.51478084 | AG134: 19386 | AH134: =AG134-AG124 -> 646 | AI134: 95.15068224 | AJ134: 19048 | AK134: 95.09735397 | AL134: -338 | AM134: =AP124 -> 880 | AN134: =AQ124 -> 10 | AO134: =AR124 -> 4.485219164 | AP134: 988 | AQ134: =AP134-AP124 -> 108 | AR134: 4.849317758 | AS134: 982 | AT134: -6 | AU134: 4.902646031
A135: 2020-04-14 | E135: Burgenland | H135: 1849 | J135: 1938 | K135: 89 | O135: 11 | Q135: 73.33333333 | R135: 16 | S135: =#REF!-#REF! ->  | T135: 80 | X135: 4 | Z135: 26.66666667 | AA135: 4 | AB135: 0 | AC135: 20 | AG135: 534 | AI135: 97.98165138 | AJ135: 547 | AK135: 97.85330948 | AL135: 0 | AP135: 11 | AR135: 2.018348624 | AS135: 12 | AT135: 0 | AU135: 2.146690519
A136: 2020-04-14 | E136: Kärnten | H136: 6365 | J136: 6549 | K136: 184 | O136: 16 | Q136: 66.66666667 | R136: 15 | S136: =#REF!-#REF! ->  | T136: 60 | X136: 8 | Z136: 33.33333333 | AA136: 10 | AB136: 0 | AC136: 40 | AG136: 728 | AI136: 90.21065675 | AJ136: 733 | AK136: 89.93865031 | AL136: 0 | AP136: 79 | AR136: 9.789343247 | AS136: 82 | AT136: 0 | AU136: 10.06134969
A137: 2020-04-14 | E137: Niederösterreich | H137: 15860 | J137: 16188 | K137: 328 | O137: 193 | Q137: 81.77966102 | R137: 193 | S137: =#REF!-#REF! ->  | T137: 82.12765957 | X137: 43 | Z137: 18.22033898 | AA137: 42 | AB137: 0 | AC137: 17.87234043 | AG137: 4156 | AI137: 96.58377876 | AJ137: 4156 | AK137: 96.58377876 | AL137: 0 | AP137: 147 | AR137: 3.416221241 | AS137: 147 | AT137: 0 | AU137: 3.416221241
A138: 2020-04-14 | E138: Oberösterreich | H138: 26023 | J138: 26579 | K138: 556 | O138: 86 | Q138: 74.13793103 | R138: 87 | S138: =#REF!-#REF! ->  | T138: 74.35897436 | X138: 30 | Z138: 25.86206897 | AA138: 30 | AB138: 0 | AC138: 25.64102564 | AG138: 4520 | AI138: 97.85667893 | AJ138: 4153 | AK138: 97.556965 | AL138: 0 | AP138: 99 | AR138: 2.143321065 | AS138: 104 | AT138: 0 | AU138: 2.443035001
A139: 2020-04-14 | E139: Salzburg | H139: 12590 | J139: 12837 | K139: 247 | O139: 81 | Q139: 80.1980198 | R139: 78 | S139: =#REF!-#REF! ->  | T139: 80.41237113 | X139: 20 | Z139: 19.8019802 | AA139: 19 | AB139: 0 | AC139: 19.58762887 | AG139: 1442 | AI139: 94.06392694 | AJ139: 1445 | AK139: 94.0143136 | AL139: 0 | AP139: 91 | AR139: 5.936073059 | AS139: 92 | AT139: 0 | AU139: 5.985686402
A140: 2020-04-14 | E140: Steiermark | H140: 15558 | J140: 16225 | K140: 667 | O140: 113 | Q140: 80.14184397 | R140: 118 | S140: =#REF!-#REF! ->  | T140: 83.09859155 | X140: 28 | Z140: 19.85815603 | AA140: 24 | AB140: 0 | AC140: 16.90140845 | AG140: 2861 | AI140: 95.20798669 | AJ140: 2655 | AK140: 95.16129032 | AL140: 0 | AP140: 144 | AR140: 4.792013311 | AS140: 135 | AT140: 0 | AU140: 4.838709677
A141: 2020-04-14 | E141: Tirol | H141: 35629 | J141: 37091 | K141: 1462 | O141: 104 | Q141: 65 | R141: 109 | S141: =#REF!-#REF! ->  | T141: 66.46341463 | X141: 56 | Z141: 35 | AA141: 55 | AB141: 0 | AC141: 33.53658537 | AG141: 440 | AI141: 80.43875686 | AJ141: 423 | AK141: 80.57142857 | AL141: 0 | AP141: 107 | AR141: 19.56124314 | AS141: 102 | AT141: 0 | AU141: 19.42857143
A142: 2020-04-14 | E142: Vorarlberg | H142: 6531 | J142: 6734 | K142: 203 | O142: 23 | Q142: 69.6969697 | R142: 23 | S142: =#REF!-#REF! ->  | T142: 69.6969697 | X142: 10 | Z142: 30.3030303 | AA142: 10 | AB142: 0 | AC142: 30.3030303 | AG142: 499 | AI142: 85.73883162 | AJ142: 499 | AK142: 94.1509434 | AL142: 0 | AP142: 83 | AR142: 14.26116838 | AS142: 31 | AT142: 0 | AU142: 5.849056604
A143: 2020-04-14 | E143: Wien | H143: 31391 | J143: 32660 | K143: 1269 | O143: 132 | Q143: 75 | R143: 130 | S143: =#REF!-#REF! ->  | T143: 77.38095238 | X143: 44 | Z143: 25 | AA143: 38 | AB143: 0 | AC143: 22.61904762 | AG143: 3868 | AI143: 94.59525556 | AJ143: 3782 | AK143: 94.38482655 | AL143: 0 | AP143: 221 | AR143: 5.404744436 | AS143: 225 | AT143: 0 | AU143: 5.615173446
A144: 2020-04-14 | E144: Alle | F144: =H134 -> 148412 | G144: =H134-H124 -> 3535 | H144: 151796 | I144: =H144-H134 -> 3384 | J144: 156801 | K144: 5005 | L144: =O134 -> 742 | M144: =Q134 -> 75.63710499 | N144: =Q134 -> 75.63710499 | O144: 759 | P144: =O144-O134 -> 17 | Q144: 75.74850299 | R144: 769 | S144: =#REF!-#REF! ->  | T144: 76.82317682 | U144: =X134 -> 239 | V144: =Y134 -> -4 | W144: =Z134 -> 24.36289501 | X144: 243 | Y144: =X144-X134 -> 4 | Z144: 24.25149701 | AA144: 232 | AB144: -11 | AC144: 23.17682318 | AD144: =AG134 -> 19386 | AE144: =AH134 -> 646 | AF144: =AI134 -> 95.15068224 | AG144: 19048 | AH144: =AG144-AG134 -> -338 | AI144: 95.09735397 | AJ144: 18393 | AK144: 95.18708275 | AL144: -655 | AM144: =AP134 -> 988 | AN144: =AQ134 -> 108 | AO144: =AR134 -> 4.849317758 | AP144: 982 | AQ144: =AP144-AP134 -> -6 | AR144: 4.902646031 | AS144: 930 | AT144: -52 | AU144: 4.812917249
A145: 2020-04-15 | E145: Burgenland | H145: 1938 | J145: 2020 | K145: 82 | O145: 16 | Q145: 80 | R145: 13 | S145: =#REF!-#REF! ->  | T145: 76.47058824 | X145: 4 | Z145: 20 | AA145: 4 | AB145: 0 | AC145: 23.52941176 | AG145: 547 | AI145: 97.85330948 | AJ145: 493 | AK145: 96.47749511 | AL145: 0 | AP145: 12 | AR145: 2.146690519 | AS145: 18 | AT145: 0 | AU145: 3.522504892
A146: 2020-04-15 | E146: Kärnten | H146: 6549 | J146: 6887 | K146: 338 | O146: 15 | Q146: 60 | R146: 13 | S146: =#REF!-#REF! ->  | T146: 56.52173913 | X146: 10 | Z146: 40 | AA146: 10 | AB146: 0 | AC146: 43.47826087 | AG146: 733 | AI146: 89.93865031 | AJ146: 737 | AK146: 89.44174757 | AL146: 0 | AP146: 82 | AR146: 10.06134969 | AS146: 87 | AT146: 0 | AU146: 10.55825243
A147: 2020-04-15 | E147: Niederösterreich | H147: 16188 | J147: 17410 | K147: 1222 | O147: 193 | Q147: 82.12765957 | R147: 190 | S147: =#REF!-#REF! ->  | T147: 80.50847458 | X147: 42 | Z147: 17.87234043 | AA147: 46 | AB147: 0 | AC147: 19.49152542 | AG147: 4156 | AI147: 96.58377876 | AJ147: 3896 | AK147: 96.60302504 | AL147: 0 | AP147: 147 | AR147: 3.416221241 | AS147: 137 | AT147: 0 | AU147: 3.396974957
A148: 2020-04-15 | E148: Oberösterreich | H148: 26579 | J148: 27453 | K148: 874 | O148: 87 | Q148: 74.35897436 | R148: 78 | S148: =#REF!-#REF! ->  | T148: 71.55963303 | X148: 30 | Z148: 25.64102564 | AA148: 31 | AB148: 0 | AC148: 28.44036697 | AG148: 4153 | AI148: 97.556965 | AJ148: 4025 | AK148: 97.48123032 | AL148: 0 | AP148: 104 | AR148: 2.443035001 | AS148: 104 | AT148: 0 | AU148: 2.518769678
A149: 2020-04-15 | E149: Salzburg | H149: 12837 | J149: 13288 | K149: 451 | O149: 78 | Q149: 80.41237113 | R149: 73 | S149: =#REF!-#REF! ->  | T149: 82.95454545 | X149: 19 | Z149: 19.58762887 | AA149: 15 | AB149: 0 | AC149: 17.04545455 | AG149: 1445 | AI149: 94.0143136 | AJ149: 1450 | AK149: 93.79042691 | AL149: 0 | AP149: 92 | AR149: 5.985686402 | AS149: 96 | AT149: 0 | AU149: 6.209573092
A150: 2020-04-15 | E150: Steiermark | H150: 16225 | J150: 16996 | K150: 771 | O150: 118 | Q150: 83.09859155 | R150: 120 | S150: =#REF!-#REF! ->  | T150: 85.10638298 | X150: 24 | Z150: 16.90140845 | AA150: 21 | AB150: 0 | AC150: 14.89361702 | AG150: 2655 | AI150: 95.16129032 | AJ150: 2545 | AK150: 94.96268657 | AL150: 0 | AP150: 135 | AR150: 4.838709677 | AS150: 135 | AT150: 0 | AU150: 5.037313433
A151: 2020-04-15 | E151: Tirol | H151: 37091 | J151: 38388 | K151: 1297 | O151: 109 | Q151: 66.46341463 | R151: 90 | S151: =#REF!-#REF! ->  | T151: 62.5 | X151: 55 | Z151: 33.53658537 | AA151: 54 | AB151: 0 | AC151: 37.5 | AG151: 423 | AI151: 80.57142857 | AJ151: 401 | AK151: 81.01010101 | AL151: 0 | AP151: 102 | AR151: 19.42857143 | AS151: 94 | AT151: 0 | AU151: 18.98989899
A152: 2020-04-15 | E152: Vorarlberg | H152: 6734 | J152: 6767 | K152: 33 | O152: 23 | Q152: 69.6969697 | R152: 18 | S152: =#REF!-#REF! ->  | T152: 62.06896552 | X152: 10 | Z152: 30.3030303 | AA152: 11 | AB152: 0 | AC152: 37.93103448 | AG152: 499 | AI152: 94.1509434 | AJ152: 503 | AK152: 95.26515152 | AL152: 0 | AP152: 31 | AR152: 5.849056604 | AS152: 25 | AT152: 0 | AU152: 4.734848485
A153: 2020-04-15 | E153: Wien | H153: 32660 | J153: 33607 | K153: 947 | O153: 130 | Q153: 77.38095238 | R153: 134 | S153: =#REF!-#REF! ->  | T153: 74.44444444 | X153: 38 | Z153: 22.61904762 | AA153: 46 | AB153: 0 | AC153: 25.55555556 | AG153: 3782 | AI153: 94.38482655 | AJ153: 3727 | AK153: 94.4979716 | AL153: 0 | AP153: 225 | AR153: 5.615173446 | AS153: 217 | AT153: 0 | AU153: 5.502028398
A154: 2020-04-15 | E154: Alle | F154: =H144 -> 151796 | G154: =H144-H134 -> 3384 | H154: 156801 | I154: =H154-H144 -> 5005 | J154: 162816 | K154: 6015 | L154: =O144 -> 759 | M154: =Q144 -> 75.74850299 | N154: =Q144 -> 75.74850299 | O154: 769 | P154: =O154-O144 -> 10 | Q154: 76.82317682 | R154: 729 | S154: =#REF!-#REF! ->  | T154: 75.38779731 | U154: =X144 -> 243 | V154: =Y144 -> 4 | W154: =Z144 -> 24.25149701 | X154: 232 | Y154: =X154-X144 -> -11 | Z154: 23.17682318 | AA154: 238 | AB154: 6 | AC154: 24.61220269 | AD154: =AG144 -> 19048 | AE154: =AH144 -> -338 | AF154: =AI144 -> 95.09735397 | AG154: 18393 | AH154: =AG154-AG144 -> -655 | AI154: 95.18708275 | AJ154: 17777 | AK154: 95.11503478 | AL154: -616 | AM154: =AP144 -> 982 | AN154: =AQ144 -> -6 | AO154: =AR144 -> 4.902646031 | AP154: 930 | AQ154: =AP154-AP144 -> -52 | AR154: 4.812917249 | AS154: 913 | AT154: -17 | AU154: 4.884965222
A155: 2020-04-16 | E155: Burgenland | H155: 2020 | J155: 2209 | K155: 189 | O155: 13 | Q155: 76.47058824 | R155: 13 | S155: =#REF!-#REF! ->  | T155: 72.22222222 | X155: 4 | Z155: 23.52941176 | AA155: 5 | AB155: 0 | AC155: 27.77777778 | AG155: 493 | AI155: 96.47749511 | AJ155: 492 | AK155: 97.04142012 | AL155: 0 | AP155: 18 | AR155: 3.522504892 | AS155: 15 | AT155: 0 | AU155: 2.958579882
A156: 2020-04-16 | E156: Kärnten | H156: 6887 | J156: 6956 | K156: 69 | O156: 13 | Q156: 56.52173913 | R156: 10 | S156: =#REF!-#REF! ->  | T156: 55.55555556 | X156: 10 | Z156: 43.47826087 | AA156: 8 | AB156: 0 | AC156: 44.44444444 | AG156: 737 | AI156: 89.44174757 | AJ156: 727 | AK156: 89.31203931 | AL156: 0 | AP156: 87 | AR156: 10.55825243 | AS156: 87 | AT156: 0 | AU156: 10.68796069
A157: 2020-04-16 | E157: Niederösterreich | H157: 17410 | J157: 18269 | K157: 859 | O157: 190 | Q157: 80.50847458 | R157: 179 | S157: =#REF!-#REF! ->  | T157: 81.73515982 | X157: 46 | Z157: 19.49152542 | AA157: 40 | AB157: 0 | AC157: 18.26484018 | AG157: 3896 | AI157: 96.60302504 | AJ157: 3896 | AK157: 96.60302504 | AL157: 0 | AP157: 137 | AR157: 3.396974957 | AS157: 137 | AT157: 0 | AU157: 3.396974957
A158: 2020-04-16 | E158: Oberösterreich | H158: 27453 | J158: 27858 | K158: 405 | O158: 78 | Q158: 71.55963303 | R158: 71 | S158: =#REF!-#REF! ->  | T158: 70.2970297 | X158: 31 | Z158: 28.44036697 | AA158: 30 | AB158: 0 | AC158: 29.7029703 | AG158: 4025 | AI158: 97.48123032 | AJ158: 3936 | AK158: 97.32937685 | AL158: 0 | AP158: 104 | AR158: 2.518769678 | AS158: 108 | AT158: 0 | AU158: 2.670623145
A159: 2020-04-16 | E159: Salzburg | H159: 13288 | J159: 13659 | K159: 371 | O159: 73 | Q159: 82.95454545 | R159: 77 | S159: =#REF!-#REF! ->  | T159: 80.20833333 | X159: 15 | Z159: 17.04545455 | AA159: 19 | AB159: 0 | AC159: 19.79166667 | AG159: 1450 | AI159: 93.79042691 | AJ159: 1446 | AK159: 94.01820546 | AL159: 0 | AP159: 96 | AR159: 6.209573092 | AS159: 92 | AT159: 0 | AU159: 5.981794538
A160: 2020-04-16 | E160: Steiermark | H160: 16996 | J160: 17998 | K160: 1002 | O160: 120 | Q160: 85.10638298 | R160: 112 | S160: =#REF!-#REF! ->  | T160: 83.58208955 | X160: 21 | Z160: 14.89361702 | AA160: 22 | AB160: 0 | AC160: 16.41791045 | AG160: 2545 | AI160: 94.96268657 | AJ160: 2510 | AK160: 94.46744449 | AL160: 0 | AP160: 135 | AR160: 5.037313433 | AS160: 147 | AT160: 0 | AU160: 5.532555514
A161: 2020-04-16 | E161: Tirol | H161: 38388 | J161: 39722 | K161: 1334 | O161: 90 | Q161: 62.5 | R161: 81 | S161: =#REF!-#REF! ->  | T161: 60 | X161: 54 | Z161: 37.5 | AA161: 54 | AB161: 0 | AC161: 40 | AG161: 401 | AI161: 81.01010101 | AJ161: 357 | AK161: 81.32118451 | AL161: 0 | AP161: 94 | AR161: 18.98989899 | AS161: 82 | AT161: 0 | AU161: 18.67881549
A162: 2020-04-16 | E162: Vorarlberg | H162: 6767 | J162: 6998 | K162: 231 | O162: 18 | Q162: 62.06896552 | R162: 13 | S162: =#REF!-#REF! ->  | T162: 56.52173913 | X162: 11 | Z162: 37.93103448 | AA162: 10 | AB162: 0 | AC162: 43.47826087 | AG162: 503 | AI162: 95.26515152 | AJ162: 509 | AK162: 86.86006826 | AL162: 0 | AP162: 25 | AR162: 4.734848485 | AS162: 77 | AT162: 0 | AU162: 13.13993174
A163: 2020-04-16 | E163: Wien | H163: 33607 | J163: 35603 | K163: 1996 | O163: 134 | Q163: 74.44444444 | R163: 126 | S163: =#REF!-#REF! ->  | T163: 76.36363636 | X163: 46 | Z163: 25.55555556 | AA163: 39 | AB163: 0 | AC163: 23.63636364 | AG163: 3727 | AI163: 94.4979716 | AJ163: 3671 | AK163: 94.27324088 | AL163: 0 | AP163: 217 | AR163: 5.502028398 | AS163: 223 | AT163: 0 | AU163: 5.726759117
A164: 2020-04-16 | E164: Alle | F164: =H154 -> 156801 | G164: =H154-H144 -> 5005 | H164: 162816 | I164: =H164-H154 -> 6015 | J164: 169272 | K164: 6456 | L164: =O154 -> 769 | M164: =Q154 -> 76.82317682 | N164: =Q154 -> 76.82317682 | O164: 729 | P164: =O164-O154 -> -40 | Q164: 75.38779731 | R164: 682 | S164: =#REF!-#REF! ->  | T164: 75.02750275 | U164: =X154 -> 232 | V164: =Y154 -> -11 | W164: =Z154 -> 23.17682318 | X164: 238 | Y164: =X164-X154 -> 6 | Z164: 24.61220269 | AA164: 227 | AB164: -11 | AC164: 24.97249725 | AD164: =AG154 -> 18393 | AE164: =AH154 -> -655 | AF164: =AI154 -> 95.18708275 | AG164: 17777 | AH164: =AG164-AG154 -> -616 | AI164: 95.11503478 | AJ164: 17544 | AK164: 94.77095938 | AL164: -233 | AM164: =AP154 -> 930 | AN164: =AQ154 -> -52 | AO164: =AR154 -> 4.812917249 | AP164: 913 | AQ164: =AP164-AP154 -> -17 | AR164: 4.884965222 | AS164: 968 | AT164: 55 | AU164: 5.229040622
A165: 2020-04-17 | E165: Burgenland | H165: 2209 | J165: 2301 | K165: 92 | O165: 13 | Q165: 72.22222222 | R165: 12 | S165: =#REF!-#REF! ->  | T165: 70.58823529 | X165: 5 | Z165: 27.77777778 | AA165: 5 | AB165: 0 | AC165: 29.41176471 | AG165: 492 | AI165: 97.04142012 | AJ165: 486 | AK165: 97.00598802 | AL165: 0 | AP165: 15 | AR165: 2.958579882 | AS165: 15 | AT165: 0 | AU165: 2.994011976
A166: 2020-04-17 | E166: Kärnten | H166: 6956 | J166: 7156 | K166: 200 | O166: 10 | Q166: 55.55555556 | R166: 7 | S166: =#REF!-#REF! ->  | T166: 43.75 | X166: 8 | Z166: 44.44444444 | AA166: 9 | AB166: 0 | AC166: 56.25 | AG166: 727 | AI166: 89.31203931 | AJ166: 739 | AK166: 89.68446602 | AL166: 0 | AP166: 87 | AR166: 10.68796069 | AS166: 85 | AT166: 0 | AU166: 10.31553398
A167: 2020-04-17 | E167: Niederösterreich | H167: 18269 | J167: 18831 | K167: 562 | O167: 179 | Q167: 81.73515982 | R167: 166 | S167: =#REF!-#REF! ->  | T167: 80.19323671 | X167: 40 | Z167: 18.26484018 | AA167: 41 | AB167: 0 | AC167: 19.80676329 | AG167: 3896 | AI167: 96.60302504 | AJ167: 3896 | AK167: 96.60302504 | AL167: 0 | AP167: 137 | AR167: 3.396974957 | AS167: 137 | AT167: 0 | AU167: 3.396974957
A168: 2020-04-17 | E168: Oberösterreich | H168: 27858 | J168: 29190 | K168: 1332 | O168: 71 | Q168: 70.2970297 | R168: 72 | S168: =#REF!-#REF! ->  | T168: 74.22680412 | X168: 30 | Z168: 29.7029703 | AA168: 25 | AB168: 0 | AC168: 25.77319588 | AG168: 3936 | AI168: 97.32937685 | AJ168: 4268 | AK168: 97.77777778 | AL168: 0 | AP168: 108 | AR168: 2.670623145 | AS168: 97 | AT168: 0 | AU168: 2.222222222
A169: 2020-04-17 | E169: Salzburg | H169: 13659 | J169: 14085 | K169: 426 | O169: 77 | Q169: 80.20833333 | R169: 74 | S169: =#REF!-#REF! ->  | T169: 81.31868132 | X169: 19 | Z169: 19.79166667 | AA169: 17 | AB169: 0 | AC169: 18.68131868 | AG169: 1446 | AI169: 94.01820546 | AJ169: 1449 | AK169: 93.90797148 | AL169: 0 | AP169: 92 | AR169: 5.981794538 | AS169: 94 | AT169: 0 | AU169: 6.092028516
A170: 2020-04-17 | E170: Steiermark | H170: 17998 | J170: 19036 | K170: 1038 | O170: 112 | Q170: 83.58208955 | R170: 98 | S170: =#REF!-#REF! ->  | T170: 83.05084746 | X170: 22 | Z170: 16.41791045 | AA170: 20 | AB170: 0 | AC170: 16.94915254 | AG170: 2510 | AI170: 94.46744449 | AJ170: 2537 | AK170: 94.55833023 | AL170: 0 | AP170: 147 | AR170: 5.532555514 | AS170: 146 | AT170: 0 | AU170: 5.441669773
A171: 2020-04-17 | E171: Tirol | H171: 39722 | J171: 40884 | K171: 1162 | O171: 81 | Q171: 60 | R171: 74 | S171: =#REF!-#REF! ->  | T171: 59.2 | X171: 54 | Z171: 40 | AA171: 51 | AB171: 0 | AC171: 40.8 | AG171: 357 | AI171: 81.32118451 | AJ171: 350 | AK171: 80.83140878 | AL171: 0 | AP171: 82 | AR171: 18.67881549 | AS171: 83 | AT171: 0 | AU171: 19.16859122
A172: 2020-04-17 | E172: Vorarlberg | H172: 6998 | J172: 7193 | K172: 195 | O172: 13 | Q172: 56.52173913 | R172: 15 | S172: =#REF!-#REF! ->  | T172: 65.2173913 | X172: 10 | Z172: 43.47826087 | AA172: 8 | AB172: 0 | AC172: 34.7826087 | AG172: 509 | AI172: 86.86006826 | AJ172: 509 | AK172: 86.56462585 | AL172: 0 | AP172: 77 | AR172: 13.13993174 | AS172: 79 | AT172: 0 | AU172: 13.43537415
A173: 2020-04-17 | E173: Wien | H173: 35603 | J173: 37256 | K173: 1653 | O173: 126 | Q173: 76.36363636 | R173: 129 | S173: =#REF!-#REF! ->  | T173: 80.1242236 | X173: 39 | Z173: 23.63636364 | AA173: 32 | AB173: 0 | AC173: 19.8757764 | AG173: 3671 | AI173: 94.27324088 | AJ173: 3731 | AK173: 94.5514445 | AL173: 0 | AP173: 223 | AR173: 5.726759117 | AS173: 215 | AT173: 0 | AU173: 5.448555499
A174: 2020-04-17 | E174: Alle | F174: =H164 -> 162816 | G174: =H164-H154 -> 6015 | H174: 169272 | I174: =H174-H164 -> 6456 | J174: 175932 | K174: 6660 | L174: =O164 -> 729 | M174: =Q164 -> 75.38779731 | N174: =Q164 -> 75.38779731 | O174: 682 | P174: =O174-O164 -> -47 | Q174: 75.02750275 | R174: 647 | S174: =#REF!-#REF! ->  | T174: 75.67251462 | U174: =X164 -> 238 | V174: =Y164 -> 6 | W174: =Z164 -> 24.61220269 | X174: 227 | Y174: =X174-X164 -> -11 | Z174: 24.97249725 | AA174: 208 | AB174: -19 | AC174: 24.32748538 | AD174: =AG164 -> 17777 | AE174: =AH164 -> -616 | AF174: =AI164 -> 95.11503478 | AG174: 17544 | AH174: =AG174-AG164 -> -233 | AI174: 94.77095938 | AJ174: 17965 | AK174: 94.97251004 | AL174: 421 | AM174: =AP164 -> 913 | AN174: =AQ164 -> -17 | AO174: =AR164 -> 4.884965222 | AP174: 968 | AQ174: =AP174-AP164 -> 55 | AR174: 5.229040622 | AS174: 951 | AT174: -17 | AU174: 5.027489956
A175: 2020-04-18 | E175: Burgenland | H175: 2301 | J175: 2357 | K175: 56 | O175: 12 | Q175: 70.58823529 | R175: 11 | S175: =#REF!-#REF! ->  | T175: 68.75 | X175: 5 | Z175: 29.41176471 | AA175: 5 | AB175: 0 | AC175: 31.25 | AG175: 486 | AI175: 97.00598802 | AJ175: 479 | AK175: 96.18473896 | AL175: 0 | AP175: 15 | AR175: 2.994011976 | AS175: 19 | AT175: 0 | AU175: 3.815261044
A176: 2020-04-18 | E176: Kärnten | H176: 7156 | J176: 7269 | K176: 113 | O176: 7 | Q176: 43.75 | R176: 6 | S176: =#REF!-#REF! ->  | T176: 40 | X176: 9 | Z176: 56.25 | AA176: 9 | AB176: 0 | AC176: 60 | AG176: 739 | AI176: 89.68446602 | AJ176: 727 | AK176: 89.86402967 | AL176: 0 | AP176: 85 | AR176: 10.31553398 | AS176: 82 | AT176: 0 | AU176: 10.13597033
A177: 2020-04-18 | E177: Niederösterreich | H177: 18831 | J177: 19112 | K177: 281 | O177: 166 | Q177: 80.19323671 | R177: 156 | S177: =#REF!-#REF! ->  | T177: 79.59183673 | X177: 41 | Z177: 19.80676329 | AA177: 40 | AB177: 0 | AC177: 20.40816327 | AG177: 3896 | AI177: 96.60302504 | AJ177: 3896 | AK177: 96.60302504 | AL177: 0 | AP177: 137 | AR177: 3.396974957 | AS177: 137 | AT177: 0 | AU177: 3.396974957
A178: 2020-04-18 | E178: Oberösterreich | H178: 29190 | J178: 29696 | K178: 506 | O178: 72 | Q178: 74.22680412 | R178: 66 | S178: =#REF!-#REF! ->  | T178: 69.47368421 | X178: 25 | Z178: 25.77319588 | AA178: 29 | AB178: 0 | AC178: 30.52631579 | AG178: 4268 | AI178: 97.77777778 | AJ178: 4353 | AK178: 97.86420863 | AL178: 0 | AP178: 97 | AR178: 2.222222222 | AS178: 95 | AT178: 0 | AU178: 2.135791367
A179: 2020-04-18 | E179: Salzburg | H179: 14085 | J179: 14386 | K179: 301 | O179: 74 | Q179: 81.31868132 | R179: 72 | S179: =#REF!-#REF! ->  | T179: 81.81818182 | X179: 17 | Z179: 18.68131868 | AA179: 16 | AB179: 0 | AC179: 18.18181818 | AG179: 1449 | AI179: 93.90797148 | AJ179: 1451 | AK179: 92.06852792 | AL179: 0 | AP179: 94 | AR179: 6.092028516 | AS179: 125 | AT179: 0 | AU179: 7.931472081
A180: 2020-04-18 | E180: Steiermark | H180: 19036 | J180: 19749 | K180: 713 | O180: 98 | Q180: 83.05084746 | R180: 99 | S180: =#REF!-#REF! ->  | T180: 84.61538462 | X180: 20 | Z180: 16.94915254 | AA180: 18 | AB180: 0 | AC180: 15.38461538 | AG180: 2537 | AI180: 94.55833023 | AJ180: 2716 | AK180: 94.30555556 | AL180: 0 | AP180: 146 | AR180: 5.441669773 | AS180: 164 | AT180: 0 | AU180: 5.694444444
A181: 2020-04-18 | E181: Tirol | H181: 40884 | J181: 42019 | K181: 1135 | O181: 74 | Q181: 59.2 | R181: 63 | S181: =#REF!-#REF! ->  | T181: 56.25 | X181: 51 | Z181: 40.8 | AA181: 49 | AB181: 0 | AC181: 43.75 | AG181: 350 | AI181: 80.83140878 | AJ181: 370 | AK181: 82.03991131 | AL181: 0 | AP181: 83 | AR181: 19.16859122 | AS181: 81 | AT181: 0 | AU181: 17.96008869
A182: 2020-04-18 | E182: Vorarlberg | H182: 7193 | J182: 7400 | K182: 207 | O182: 15 | Q182: 65.2173913 | R182: 12 | S182: =#REF!-#REF! ->  | T182: 63.15789474 | X182: 8 | Z182: 34.7826087 | AA182: 7 | AB182: 0 | AC182: 36.84210526 | AG182: 509 | AI182: 86.56462585 | AJ182: 513 | AK182: 95.53072626 | AL182: 0 | AP182: 79 | AR182: 13.43537415 | AS182: 24 | AT182: 0 | AU182: 4.469273743
A183: 2020-04-18 | E183: Wien | H183: 37256 | J183: 37256 | K183: 0 | O183: 129 | Q183: 80.1242236 | R183: 128 | S183: =#REF!-#REF! ->  | T183: 80.50314465 | X183: 32 | Z183: 19.8757764 | AA183: 31 | AB183: 0 | AC183: 19.49685535 | AG183: 3731 | AI183: 94.5514445 | AJ183: 3716 | AK183: 92.30004968 | AL183: 0 | AP183: 215 | AR183: 5.448555499 | AS183: 310 | AT183: 0 | AU183: 7.699950323
A184: 2020-04-18 | E184: Alle | F184: =H174 -> 169272 | G184: =H174-H164 -> 6456 | H184: 175932 | I184: =H184-H174 -> 6660 | J184: 179244 | K184: 3312 | L184: =O174 -> 682 | M184: =Q174 -> 75.02750275 | N184: =Q174 -> 75.02750275 | O184: 647 | P184: =O184-O174 -> -35 | Q184: 75.67251462 | R184: 613 | S184: =#REF!-#REF! ->  | T184: 75.03059976 | U184: =X174 -> 227 | V184: =Y174 -> -11 | W184: =Z174 -> 24.97249725 | X184: 208 | Y184: =X184-X174 -> -19 | Z184: 24.32748538 | AA184: 204 | AB184: -4 | AC184: 24.96940024 | AD184: =AG174 -> 17544 | AE184: =AH174 -> -233 | AF184: =AI174 -> 94.77095938 | AG184: 17965 | AH184: =AG184-AG174 -> 421 | AI184: 94.97251004 | AJ184: 18221 | AK184: 94.61522484 | AL184: 256 | AM184: =AP174 -> 968 | AN184: =AQ174 -> 55 | AO184: =AR174 -> 5.229040622 | AP184: 951 | AQ184: =AP184-AP174 -> -17 | AR184: 5.027489956 | AS184: 1037 | AT184: 86 | AU184: 5.384775158
A185: 2020-04-19 | E185: Burgenland | H185: 2357 | J185: 2386 | K185: 29 | O185: 11 | Q185: 68.75 | R185: 12 | S185: =#REF!-#REF! ->  | T185: 75 | X185: 5 | Z185: 31.25 | AA185: 4 | AB185: 0 | AC185: 25 | AG185: 479 | AI185: 96.18473896 | AJ185: 468 | AK185: 96.2962963 | AL185: 0 | AP185: 19 | AR185: 3.815261044 | AS185: 18 | AT185: 0 | AU185: 3.703703704
A186: 2020-04-19 | E186: Kärnten | H186: 7269 | J186: 7624 | K186: 355 | O186: 6 | Q186: 40 | R186: 6 | S186: =#REF!-#REF! ->  | T186: 40 | X186: 9 | Z186: 60 | AA186: 9 | AB186: 0 | AC186: 60 | AG186: 727 | AI186: 89.86402967 | AJ186: 739 | AK186: 90.34229829 | AL186: 0 | AP186: 82 | AR186: 10.13597033 | AS186: 79 | AT186: 0 | AU186: 9.657701711
A187: 2020-04-19 | E187: Niederösterreich | H187: 19112 | J187: 19588 | K187: 476 | O187: 156 | Q187: 79.59183673 | R187: 156 | S187: =#REF!-#REF! ->  | T187: 80.82901554 | X187: 40 | Z187: 20.40816327 | AA187: 37 | AB187: 0 | AC187: 19.17098446 | AG187: 3896 | AI187: 96.60302504 | AJ187: 3896 | AK187: 96.60302504 | AL187: 0 | AP187: 137 | AR187: 3.396974957 | AS187: 137 | AT187: 0 | AU187: 3.396974957
A188: 2020-04-19 | E188: Oberösterreich | H188: 29696 | J188: 30373 | K188: 677 | O188: 66 | Q188: 69.47368421 | R188: 63 | S188: =#REF!-#REF! ->  | T188: 70 | X188: 29 | Z188: 30.52631579 | AA188: 27 | AB188: 0 | AC188: 30 | AG188: 4353 | AI188: 97.86420863 | AJ188: 4188 | AK188: 97.82761037 | AL188: 0 | AP188: 95 | AR188: 2.135791367 | AS188: 93 | AT188: 0 | AU188: 2.172389629
A189: 2020-04-19 | E189: Salzburg | H189: 14386 | J189: 14691 | K189: 305 | O189: 72 | Q189: 81.81818182 | R189: 75 | S189: =#REF!-#REF! ->  | T189: 81.52173913 | X189: 16 | Z189: 18.18181818 | AA189: 17 | AB189: 0 | AC189: 18.47826087 | AG189: 1451 | AI189: 92.06852792 | AJ189: 1452 | AK189: 92.1319797 | AL189: 0 | AP189: 125 | AR189: 7.931472081 | AS189: 124 | AT189: 0 | AU189: 7.868020305
A190: 2020-04-19 | E190: Steiermark | H190: 19749 | J190: 20098 | K190: 349 | O190: 99 | Q190: 84.61538462 | R190: 91 | S190: =#REF!-#REF! ->  | T190: 84.25925926 | X190: 18 | Z190: 15.38461538 | AA190: 17 | AB190: 0 | AC190: 15.74074074 | AG190: 2716 | AI190: 94.30555556 | AJ190: 2683 | AK190: 94.90626105 | AL190: 0 | AP190: 164 | AR190: 5.694444444 | AS190: 144 | AT190: 0 | AU190: 5.093738946
A191: 2020-04-19 | E191: Tirol | H191: 42019 | J191: 42813 | K191: 794 | O191: 63 | Q191: 56.25 | R191: 70 | S191: =#REF!-#REF! ->  | T191: 61.40350877 | X191: 49 | Z191: 43.75 | AA191: 44 | AB191: 0 | AC191: 38.59649123 | AG191: 370 | AI191: 82.03991131 | AJ191: 349 | AK191: 80.04587156 | AL191: 0 | AP191: 81 | AR191: 17.96008869 | AS191: 87 | AT191: 0 | AU191: 19.95412844
A192: 2020-04-19 | E192: Vorarlberg | H192: 7400 | J192: 7626 | K192: 226 | O192: 12 | Q192: 63.15789474 | R192: 11 | S192: =#REF!-#REF! ->  | T192: 61.11111111 | X192: 7 | Z192: 36.84210526 | AA192: 7 | AB192: 0 | AC192: 38.88888889 | AG192: 513 | AI192: 95.53072626 | AJ192: 514 | AK192: 95.00924214 | AL192: 0 | AP192: 24 | AR192: 4.469273743 | AS192: 27 | AT192: 0 | AU192: 4.990757856
A193: 2020-04-19 | E193: Wien | H193: 37256 | J193: 37750 | K193: 494 | O193: 128 | Q193: 80.50314465 | R193: 127 | S193: =#REF!-#REF! ->  | T193: 79.87421384 | X193: 31 | Z193: 19.49685535 | AA193: 32 | AB193: 0 | AC193: 20.12578616 | AG193: 3716 | AI193: 92.30004968 | AJ193: 3794 | AK193: 93.86442355 | AL193: 0 | AP193: 310 | AR193: 7.699950323 | AS193: 248 | AT193: 0 | AU193: 6.135576447
A194: 2020-04-19 | E194: Alle | F194: =H184 -> 175932 | G194: =H184-H174 -> 6660 | H194: 179244 | I194: =H194-H184 -> 3312 | J194: 182949 | K194: 3705 | L194: =O184 -> 647 | M194: =Q184 -> 75.67251462 | N194: =Q184 -> 75.67251462 | O194: 613 | P194: =O194-O184 -> -34 | Q194: 75.03059976 | R194: 611 | S194: =#REF!-#REF! ->  | T194: 75.90062112 | U194: =X184 -> 208 | V194: =Y184 -> -19 | W194: =Z184 -> 24.32748538 | X194: 204 | Y194: =X194-X184 -> -4 | Z194: 24.96940024 | AA194: 194 | AB194: -10 | AC194: 24.09937888 | AD194: =AG184 -> 17965 | AE194: =AH184 -> 421 | AF194: =AI184 -> 94.97251004 | AG194: 18221 | AH194: =AG194-AG184 -> 256 | AI194: 94.61522484 | AJ194: 18083 | AK194: 94.9737395 | AL194: -138 | AM194: =AP184 -> 951 | AN194: =AQ184 -> -17 | AO194: =AR184 -> 5.027489956 | AP194: 1037 | AQ194: =AP194-AP184 -> 86 | AR194: 5.384775158 | AS194: 957 | AT194: -80 | AU194: 5.026260504
A195: 2020-04-20 | E195: Burgenland | H195: 2386 | J195: 2534 | K195: 148 | O195: 12 | Q195: 75 | R195: 13 | S195: =#REF!-#REF! ->  | T195: 76.47058824 | X195: 4 | Z195: 25 | AA195: 4 | AB195: 0 | AC195: 23.52941176 | AG195: 468 | AI195: 96.2962963 | AJ195: 472 | AK195: 96.72131148 | AL195: 0 | AP195: 18 | AR195: 3.703703704 | AS195: 16 | AT195: 0 | AU195: 3.278688525
A196: 2020-04-20 | E196: Kärnten | H196: 7624 | J196: 7914 | K196: 290 | O196: 6 | Q196: 40 | R196: 8 | S196: =#REF!-#REF! ->  | T196: 47.05882353 | X196: 9 | Z196: 60 | AA196: 9 | AB196: 0 | AC196: 52.94117647 | AG196: 739 | AI196: 90.34229829 | AJ196: 717 | AK196: 89.84962406 | AL196: 0 | AP196: 79 | AR196: 9.657701711 | AS196: 81 | AT196: 0 | AU196: 10.15037594
A197: 2020-04-20 | E197: Niederösterreich | H197: 19588 | J197: =H207 -> 20218 | K197: =H207-H197 -> 630 | O197: 156 | Q197: =O197/((O197+X197)/100) -> 80.82901554 | R197: =O207 -> 109 | S197: =#REF!-#REF! ->  | T197: =Q207 -> 72.18543046 | X197: 37 | Z197: =X197/((O197+X197)/100) -> 19.17098446 | AA197: =X207 -> 42 | AB197: =Y207 -> 0 | AC197: =Z207 -> 27.81456954 | AG197: 3896 | AI197: =AG197/((AG197+AP197)/100) -> 96.60302504 | AJ197: =AG207 -> 3696 | AK197: =AI207 -> 96.65271967 | AL197: =AH207 -> 0 | AP197: 137 | AR197: =AP197/((AG197+AP197)/100) -> 3.396974957 | AS197: =AP207 -> 128 | AT197: =AQ207 -> 0 | AU197: =AR207 -> 3.347280335
A198: 2020-04-20 | E198: Oberösterreich | H198: 30373 | J198: 31046 | K198: 673 | O198: 63 | Q198: 70 | R198: 60 | S198: =#REF!-#REF! ->  | T198: 66.66666667 | X198: 27 | Z198: 30 | AA198: 30 | AB198: 0 | AC198: 33.33333333 | AG198: 4188 | AI198: 97.82761037 | AJ198: 3809 | AK198: 97.69171582 | AL198: 0 | AP198: 93 | AR198: 2.172389629 | AS198: 90 | AT198: 0 | AU198: 2.308284175
A199: 2020-04-20 | E199: Salzburg | H199: 14691 | J199: 14944 | K199: 253 | O199: 75 | Q199: 81.52173913 | R199: 79 | S199: =#REF!-#REF! ->  | T199: 84.04255319 | X199: 17 | Z199: 18.47826087 | AA199: 15 | AB199: 0 | AC199: 15.95744681 | AG199: 1452 | AI199: 92.1319797 | AJ199: 1448 | AK199: 91.99491741 | AL199: 0 | AP199: 124 | AR199: 7.868020305 | AS199: 126 | AT199: 0 | AU199: 8.005082592
A200: 2020-04-20 | E200: Steiermark | H200: 20098 | J200: 20792 | K200: 694 | O200: 91 | Q200: 84.25925926 | R200: 86 | S200: =#REF!-#REF! ->  | T200: 83.49514563 | X200: 17 | Z200: 15.74074074 | AA200: 17 | AB200: 0 | AC200: 16.50485437 | AG200: 2683 | AI200: 94.90626105 | AJ200: 2469 | AK200: 94.63395937 | AL200: 0 | AP200: 144 | AR200: 5.093738946 | AS200: 140 | AT200: 0 | AU200: 5.366040629
... 925 more rows

Sheet öb1
A1: Österreich | B1: Parameter | C1: =A3+1 -> 1 | D1: =C1+1 -> 2 | E1: =D1+1 -> 3 | F1: =E1+1 -> 4 | G1: 5 | H1: 6 | I1: 7 | J1: 8 | K1: 9 | L1: 10 | M1: 11 | N1: 12 | O1: 13 | P1: 14 | Q1: 15 | R1: 16 | S1: 17 | T1: 18 | U1: 19 | V1: 20 | W1: 21 | X1: 22 | Y1: 23 | Z1: 24 | AA1: 25 | AB1: 26 | AC1: 27 | AD1: 28 | AE1: 29 | AF1: 30 | AG1: 31 | AH1: 32 | AI1: 33 | AJ1: 34 | AK1: 35 | AL1: 36 | AM1: 37 | AN1: 38 | AO1: 39 | AP1: 40 | AQ1: 41 | AR1: =AP1+1 -> 41
A2: Tests und Spital | C2: Tests | I2: KH Normalstation besetzt | R2: KH Intensivstation besetzt | AA2: KH Normalstation frei | AJ2: KH Intensivstation frei
A3: 0 | B3: 41 | C3: gestern | D3: gestern +- | E3: heute | F3: heute +- | G3: morgen | H3: morgen +- | I3: gestern | J3: gestern +- | K3: gestern % | L3: heute | M3: heute +- | N3: heute % | O3: morgen | P3: morgen +- | Q3: morgen % | R3: gestern | S3: gestern +- | T3: gestern % | U3: heute | V3: heute + | W3: heute % | X3: morgen | Y3: morgen +- | Z3: morgen % | AA3: gestern | AB3: gestern +- | AC3: gestern % | AD3: heute | AE3: heute +- | AF3: heute % | AG3: morgen | AH3: morgen +- | AI3: morgen % | AJ3: gestern | AK3: gestern +- | AL3: gestern % | AM3: heute | AN3: heute +- | AO3: heute % | AP3: morgen | AQ3: morgen +- | AR3: morgen %
A4: Datum | B4: Spalte3 | C4: Spalte1 | D4: Spalte2 | E4: Bundesland | F4: Tests alle g | G4: Tests alle g+- | H4: Tests alle | I4: Tests alle h+- | J4: Tests alle m | K4: Tests alle m+- | L4: KH Nor bes g | M4: KH Nor bes g+- | N4: KH Nor bes g % | O4: KH Nor h bes | P4: KH Nor h bes +- | Q4: KH Nor bes h % | R4: KH Nor bes m | S4: KH Nor bes m+- | T4: KH Nor bes m % | U4: KH Int g bes | V4: KH Int g bes+- | W4: KH Int g bes % | X4: KH Int h bes | Y4: KH Int h bes+- | Z4: KH Int h bes % | AA4: KH Int m bes | AB4: KH Int m bes+- | AC4: KH Int m bes % | AD4: KH Nor g frei | AE4: KH Nor g frei+- | AF4: KH Nor g frei % | AG4: KH Nor h frei | AH4: KH Nor h frei+- | AI4: KH Nor h frei% | AJ4: KH Nor m frei | AK4: KH Nor m frei+- | AL4: KH Nor m frei % | AM4: KH Int g frei | AN4: KH Int g frei+- | AO4: KH Int g frei % | AP4: KH Int h frei | AQ4: KH Int h frei+- | AR4: KH Int h frei % | AS4: KH Int m frei | AT4: KH Int m frei+- | AU4: KH Int m frei % | AV4: frei
A5: 2020-04-01 | E5: Alle | F5: 0 | G5: 0 | H5: 16834 | I5: 16834 | J5: 92190 | K5: 75356 | L5: 0 | M5: 0 | N5: 0 | O5: 856 | P5: 0 | Q5: 79.92530345 | R5: 823 | T5: 78.98272553 | U5: 0 | V5: 0 | W5: 0 | X5: 215 | Y5: 0 | Z5: 20.07469655 | AA5: 219 | AB5: 4 | AC5: 21.01727447 | AD5: 0 | AE5: 0 | AF5: 0 | AG5: 14713 | AH5: 0 | AI5: 94.67215752 | AJ5: 15131 | AK5: 95.29537725 | AL5: 418 | AM5: 0 | AN5: 0 | AO5: 0 | AP5: 828 | AQ5: 0 | AR5: 5.327842481 | AS5: 747 | AT5: -81 | AU5: 4.704622748
A6: 2020-04-02 | E6: Alle | F6: 16834 | G6: 16834 | H6: 92190 | I6: 75356 | J6: 98343 | K6: 6153 | L6: 856 | M6: 856 | N6: 79.92530345 | O6: 823 | P6: -33 | Q6: 78.98272553 | R6: 829 | T6: 77.18808194 | U6: 215 | V6: 0 | W6: 20.07469655 | X6: 219 | Y6: 4 | Z6: 21.01727447 | AA6: 245 | AB6: 26 | AC6: 22.81191806 | AD6: 14713 | AE6: 0 | AF6: 94.67215752 | AG6: 15131 | AH6: 418 | AI6: 95.29537725 | AJ6: 15079 | AK6: 95.59401547 | AL6: -52 | AM6: 828 | AN6: 0 | AO6: 5.327842481 | AP6: 747 | AQ6: -81 | AR6: 4.704622748 | AS6: 695 | AT6: -52 | AU6: 4.405984532
A7: 2020-04-03 | E7: Alle | F7: 92190 | G7: 75356 | H7: 98343 | I7: 6153 | J7: 104134 | K7: 5791 | L7: 823 | M7: 78.98272553 | N7: 78.98272553 | O7: 829 | P7: 6 | Q7: 77.18808194 | R7: 826 | T7: 77.12418301 | U7: 219 | V7: 4 | W7: 21.01727447 | X7: 245 | Y7: 26 | Z7: 22.81191806 | AA7: 245 | AB7: 0 | AC7: 22.87581699 | AD7: 15131 | AE7: 418 | AF7: 95.29537725 | AG7: 15079 | AH7: -52 | AI7: 95.59401547 | AJ7: 15276 | AK7: 95.475 | AL7: 197 | AM7: 747 | AN7: -81 | AO7: 4.704622748 | AP7: 695 | AQ7: -52 | AR7: 4.405984532 | AS7: 724 | AT7: 29 | AU7: 4.525
A8: 2020-04-04 | E8: Alle | F8: 98343 | G8: 6153 | H8: 104134 | I8: 5791 | J8: 108416 | K8: 4282 | L8: 829 | M8: 77.18808194 | N8: 77.18808194 | O8: 826 | P8: -3 | Q8: 77.12418301 | R8: 712 | T8: 74.47698745 | U8: 245 | V8: 26 | W8: 22.81191806 | X8: 245 | Y8: 0 | Z8: 22.87581699 | AA8: 244 | AB8: -1 | AC8: 25.52301255 | AD8: 15079 | AE8: -52 | AF8: 95.59401547 | AG8: 15276 | AH8: 197 | AI8: 95.475 | AJ8: 15740 | AK8: 95.3477102 | AL8: 464 | AM8: 695 | AN8: -52 | AO8: 4.405984532 | AP8: 724 | AQ8: 29 | AR8: 4.525 | AS8: 768 | AT8: 44 | AU8: 4.652289799
A9: 2020-04-05 | E9: Alle | F9: 104134 | G9: 5791 | H9: 108416 | I9: 4282 | J9: 111296 | K9: 2880 | L9: 826 | M9: 77.12418301 | N9: 77.12418301 | O9: 712 | P9: -114 | Q9: 74.47698745 | R9: 824 | T9: 76.72253259 | U9: 245 | V9: 0 | W9: 22.87581699 | X9: 244 | Y9: -1 | Z9: 25.52301255 | AA9: 250 | AB9: 6 | AC9: 23.27746741 | AD9: 15276 | AE9: 197 | AF9: 95.475 | AG9: 15740 | AH9: 464 | AI9: 95.3477102 | AJ9: 16011 | AK9: 95.38305731 | AL9: 271 | AM9: 724 | AN9: 29 | AO9: 4.525 | AP9: 768 | AQ9: 44 | AR9: 4.652289799 | AS9: 775 | AT9: 7 | AU9: 4.61694269
A10: 2020-04-06 | E10: Alle | F10: 108416 | G10: 4282 | H10: 111296 | I10: 2880 | J10: 115235 | K10: 3939 | L10: 712 | M10: 74.47698745 | N10: 74.47698745 | O10: 824 | P10: 112 | Q10: 76.72253259 | R10: 857 | T10: 77.90909091 | U10: 244 | V10: -1 | W10: 25.52301255 | X10: 250 | Y10: 6 | Z10: 23.27746741 | AA10: 243 | AB10: -7 | AC10: 22.09090909 | AD10: 15740 | AE10: 464 | AF10: 95.3477102 | AG10: 16011 | AH10: 271 | AI10: 95.38305731 | AJ10: 18936 | AK10: 95.28506013 | AL10: 2925 | AM10: 768 | AN10: 44 | AO10: 4.652289799 | AP10: 775 | AQ10: 7 | AR10: 4.61694269 | AS10: 937 | AT10: 162 | AU10: 4.714939868
A11: 2020-04-07 | E11: Alle | F11: 111296 | G11: 2880 | H11: 115235 | I11: 3939 | J11: 120755 | K11: 5520 | L11: 824 | M11: 76.72253259 | N11: 76.72253259 | O11: 857 | P11: 33 | Q11: 77.90909091 | R11: 829 | T11: 75.63868613 | U11: 250 | V11: 6 | W11: 23.27746741 | X11: 243 | Y11: -7 | Z11: 22.09090909 | AA11: 267 | AB11: 24 | AC11: 24.36131387 | AD11: 16011 | AE11: 271 | AF11: 95.38305731 | AG11: 18936 | AH11: 2925 | AI11: 95.28506013 | AJ11: 18557 | AK11: 94.94499872 | AL11: -379 | AM11: 775 | AN11: 7 | AO11: 4.61694269 | AP11: 937 | AQ11: 162 | AR11: 4.714939868 | AS11: 988 | AT11: 51 | AU11: 5.055001279
A12: 2020-04-08 | E12: Alle | F12: 115235 | G12: 3939 | H12: 120755 | I12: 5520 | J12: 126287 | K12: 5532 | L12: 857 | M12: 77.90909091 | N12: 77.90909091 | O12: 829 | P12: -28 | Q12: 75.63868613 | R12: 820 | T12: 75.50644567 | U12: 243 | V12: -7 | W12: 22.09090909 | X12: 267 | Y12: 24 | Z12: 24.36131387 | AA12: 266 | AB12: -1 | AC12: 24.49355433 | AD12: 18936 | AE12: 2925 | AF12: 95.28506013 | AG12: 18557 | AH12: -379 | AI12: 94.94499872 | AJ12: 18400 | AK12: 94.80626546 | AL12: -157 | AM12: 937 | AN12: 162 | AO12: 4.714939868 | AP12: 988 | AQ12: 51 | AR12: 5.055001279 | AS12: 1008 | AT12: 20 | AU12: 5.193734542
A13: 2020-04-09 | E13: Alle | F13: 120755 | G13: 5520 | H13: 126287 | I13: 5532 | J13: 134743 | K13: 8456 | L13: 829 | M13: 75.63868613 | N13: 75.63868613 | O13: 820 | P13: -9 | Q13: 75.50644567 | R13: 771 | T13: 74.70930233 | U13: 267 | V13: 24 | W13: 24.36131387 | X13: 266 | Y13: -1 | Z13: 24.49355433 | AA13: 261 | AB13: -5 | AC13: 25.29069767 | AD13: 18557 | AE13: -379 | AF13: 94.94499872 | AG13: 18400 | AH13: -157 | AI13: 94.80626546 | AJ13: 18518 | AK13: 94.93975904 | AL13: 118 | AM13: 988 | AN13: 51 | AO13: 5.055001279 | AP13: 1008 | AQ13: 20 | AR13: 5.193734542 | AS13: 987 | AT13: -21 | AU13: 5.060240964
A14: 2020-04-10 | E14: Alle | F14: 126287 | G14: 5532 | H14: 134743 | I14: 8456 | J14: 140975 | K14: 6232 | L14: 820 | M14: 75.50644567 | N14: 75.50644567 | O14: 771 | P14: -49 | Q14: 74.70930233 | R14: 790 | T14: 76.32850242 | U14: 266 | V14: -1 | W14: 24.49355433 | X14: 261 | Y14: -5 | Z14: 25.29069767 | AA14: 245 | AB14: -16 | AC14: 23.67149758 | AD14: 18400 | AE14: -157 | AF14: 94.80626546 | AG14: 18518 | AH14: 118 | AI14: 94.93975904 | AJ14: 18914 | AK14: 95.60250708 | AL14: 396 | AM14: 1008 | AN14: 20 | AO14: 5.193734542 | AP14: 987 | AQ14: -21 | AR14: 5.060240964 | AS14: 870 | AT14: -117 | AU14: 4.397492924
A15: 2020-04-11 | E15: Alle | F15: 134743 | G15: 8456 | H15: 140975 | I15: 6232 | J15: 144877 | K15: 3902 | L15: 771 | M15: 74.70930233 | N15: 74.70930233 | O15: 790 | P15: 19 | Q15: 76.32850242 | R15: 792 | T15: 76.52173913 | U15: 261 | V15: -5 | W15: 25.29069767 | X15: 245 | Y15: -16 | Z15: 23.67149758 | AA15: 243 | AB15: -2 | AC15: 23.47826087 | AD15: 18518 | AE15: 118 | AF15: 94.93975904 | AG15: 18914 | AH15: 396 | AI15: 95.60250708 | AJ15: 18740 | AK15: 95.51478084 | AL15: -174 | AM15: 987 | AN15: -21 | AO15: 5.060240964 | AP15: 870 | AQ15: -117 | AR15: 4.397492924 | AS15: 880 | AT15: 10 | AU15: 4.485219164
A16: 2020-04-12 | E16: Alle | F16: 140975 | G16: 6232 | H16: 144877 | I16: 3902 | J16: 148412 | K16: 3535 | L16: 790 | M16: 76.32850242 | N16: 76.32850242 | O16: 792 | P16: 2 | Q16: 76.52173913 | R16: 742 | T16: 75.63710499 | U16: 245 | V16: -16 | W16: 23.67149758 | X16: 243 | Y16: -2 | Z16: 23.47826087 | AA16: 239 | AB16: -4 | AC16: 24.36289501 | AD16: 18914 | AE16: 396 | AF16: 95.60250708 | AG16: 18740 | AH16: -174 | AI16: 95.51478084 | AJ16: 19386 | AK16: 95.15068224 | AL16: 646 | AM16: 870 | AN16: -117 | AO16: 4.397492924 | AP16: 880 | AQ16: 10 | AR16: 4.485219164 | AS16: 988 | AT16: 108 | AU16: 4.849317758
A17: 2020-04-13 | E17: Alle | F17: 144877 | G17: 3902 | H17: 148412 | I17: 3535 | J17: 151796 | K17: 3384 | L17: 792 | M17: 76.52173913 | N17: 76.52173913 | O17: 742 | P17: -50 | Q17: 75.63710499 | R17: 759 | T17: 75.74850299 | U17: 243 | V17: -2 | W17: 23.47826087 | X17: 239 | Y17: -4 | Z17: 24.36289501 | AA17: 243 | AB17: 4 | AC17: 24.25149701 | AD17: 18740 | AE17: -174 | AF17: 95.51478084 | AG17: 19386 | AH17: 646 | AI17: 95.15068224 | AJ17: 19048 | AK17: 95.09735397 | AL17: -338 | AM17: 880 | AN17: 10 | AO17: 4.485219164 | AP17: 988 | AQ17: 108 | AR17: 4.849317758 | AS17: 982 | AT17: -6 | AU17: 4.902646031
A18: 2020-04-14 | E18: Alle | F18: 148412 | G18: 3535 | H18: 151796 | I18: 3384 | J18: 156801 | K18: 5005 | L18: 742 | M18: 75.63710499 | N18: 75.63710499 | O18: 759 | P18: 17 | Q18: 75.74850299 | R18: 769 | T18: 76.82317682 | U18: 239 | V18: -4 | W18: 24.36289501 | X18: 243 | Y18: 4 | Z18: 24.25149701 | AA18: 232 | AB18: -11 | AC18: 23.17682318 | AD18: 19386 | AE18: 646 | AF18: 95.15068224 | AG18: 19048 | AH18: -338 | AI18: 95.09735397 | AJ18: 18393 | AK18: 95.18708275 | AL18: -655 | AM18: 988 | AN18: 108 | AO18: 4.849317758 | AP18: 982 | AQ18: -6 | AR18: 4.902646031 | AS18: 930 | AT18: -52 | AU18: 4.812917249
A19: 2020-04-15 | E19: Alle | F19: 151796 | G19: 3384 | H19: 156801 | I19: 5005 | J19: 162816 | K19: 6015 | L19: 759 | M19: 75.74850299 | N19: 75.74850299 | O19: 769 | P19: 10 | Q19: 76.82317682 | R19: 729 | T19: 75.38779731 | U19: 243 | V19: 4 | W19: 24.25149701 | X19: 232 | Y19: -11 | Z19: 23.17682318 | AA19: 238 | AB19: 6 | AC19: 24.61220269 | AD19: 19048 | AE19: -338 | AF19: 95.09735397 | AG19: 18393 | AH19: -655 | AI19: 95.18708275 | AJ19: 17777 | AK19: 95.11503478 | AL19: -616 | AM19: 982 | AN19: -6 | AO19: 4.902646031 | AP19: 930 | AQ19: -52 | AR19: 4.812917249 | AS19: 913 | AT19: -17 | AU19: 4.884965222
A20: 2020-04-16 | E20: Alle | F20: 156801 | G20: 5005 | H20: 162816 | I20: 6015 | J20: 169272 | K20: 6456 | L20: 769 | M20: 76.82317682 | N20: 76.82317682 | O20: 729 | P20: -40 | Q20: 75.38779731 | R20: 682 | T20: 75.02750275 | U20: 232 | V20: -11 | W20: 23.17682318 | X20: 238 | Y20: 6 | Z20: 24.61220269 | AA20: 227 | AB20: -11 | AC20: 24.97249725 | AD20: 18393 | AE20: -655 | AF20: 95.18708275 | AG20: 17777 | AH20: -616 | AI20: 95.11503478 | AJ20: 17544 | AK20: 94.77095938 | AL20: -233 | AM20: 930 | AN20: -52 | AO20: 4.812917249 | AP20: 913 | AQ20: -17 | AR20: 4.884965222 | AS20: 968 | AT20: 55 | AU20: 5.229040622
A21: 2020-04-17 | E21: Alle | F21: 162816 | G21: 6015 | H21: 169272 | I21: 6456 | J21: 175932 | K21: 6660 | L21: 729 | M21: 75.38779731 | N21: 75.38779731 | O21: 682 | P21: -47 | Q21: 75.02750275 | R21: 647 | T21: 75.67251462 | U21: 238 | V21: 6 | W21: 24.61220269 | X21: 227 | Y21: -11 | Z21: 24.97249725 | AA21: 208 | AB21: -19 | AC21: 24.32748538 | AD21: 17777 | AE21: -616 | AF21: 95.11503478 | AG21: 17544 | AH21: -233 | AI21: 94.77095938 | AJ21: 17965 | AK21: 94.97251004 | AL21: 421 | AM21: 913 | AN21: -17 | AO21: 4.884965222 | AP21: 968 | AQ21: 55 | AR21: 5.229040622 | AS21: 951 | AT21: -17 | AU21: 5.027489956
A22: 2020-04-18 | E22: Alle | F22: 169272 | G22: 6456 | H22: 175932 | I22: 6660 | J22: 179244 | K22: 3312 | L22: 682 | M22: 75.02750275 | N22: 75.02750275 | O22: 647 | P22: -35 | Q22: 75.67251462 | R22: 613 | T22: 75.03059976 | U22: 227 | V22: -11 | W22: 24.97249725 | X22: 208 | Y22: -19 | Z22: 24.32748538 | AA22: 204 | AB22: -4 | AC22: 24.96940024 | AD22: 17544 | AE22: -233 | AF22: 94.77095938 | AG22: 17965 | AH22: 421 | AI22: 94.97251004 | AJ22: 18221 | AK22: 94.61522484 | AL22: 256 | AM22: 968 | AN22: 55 | AO22: 5.229040622 | AP22: 951 | AQ22: -17 | AR22: 5.027489956 | AS22: 1037 | AT22: 86 | AU22: 5.384775158
A23: 2020-04-19 | E23: Alle | F23: 175932 | G23: 6660 | H23: 179244 | I23: 3312 | J23: 182949 | K23: 3705 | L23: 647 | M23: 75.67251462 | N23: 75.67251462 | O23: 613 | P23: -34 | Q23: 75.03059976 | R23: 611 | T23: 75.90062112 | U23: 208 | V23: -19 | W23: 24.32748538 | X23: 204 | Y23: -4 | Z23: 24.96940024 | AA23: 194 | AB23: -10 | AC23: 24.09937888 | AD23: 17965 | AE23: 421 | AF23: 94.97251004 | AG23: 18221 | AH23: 256 | AI23: 94.61522484 | AJ23: 18083 | AK23: 94.9737395 | AL23: -138 | AM23: 951 | AN23: -17 | AO23: 5.027489956 | AP23: 1037 | AQ23: 86 | AR23: 5.384775158 | AS23: 957 | AT23: -80 | AU23: 5.026260504
A24: 2020-04-20 | E24: Alle | F24: 179244 | G24: 3312 | H24: 182949 | I24: 3705 | J24: 189018 | K24: 6069 | L24: 613 | M24: 75.03059976 | N24: 75.03059976 | O24: 611 | P24: -2 | Q24: 75.90062112 | R24: 560 | T24: 74.07407407 | U24: 204 | V24: -4 | W24: 24.96940024 | X24: 194 | Y24: -10 | Z24: 24.09937888 | AA24: 196 | AB24: 2 | AC24: 25.92592593 | AD24: 18221 | AE24: 256 | AF24: 94.61522484 | AG24: 18083 | AH24: -138 | AI24: 94.9737395 | AJ24: 16629 | AK24: 94.40785739 | AL24: -1454 | AM24: 1037 | AN24: 86 | AO24: 5.384775158 | AP24: 957 | AQ24: -80 | AR24: 5.026260504 | AS24: 985 | AT24: 28 | AU24: 5.592142614
A25: 2020-04-21 | E25: Alle | F25: 182949 | G25: 3705 | H25: 189018 | I25: 6069 | J25: 201794 | K25: 12776 | L25: 611 | M25: 75.90062112 | N25: 75.90062112 | O25: 560 | P25: -51 | Q25: 74.07407407 | R25: 524 | T25: 74.85714286 | U25: 194 | V25: -10 | W25: 24.09937888 | X25: 196 | Y25: 2 | Z25: 25.92592593 | AA25: 176 | AB25: -20 | AC25: 25.14285714 | AD25: 18083 | AE25: -138 | AF25: 94.9737395 | AG25: 16629 | AH25: -1454 | AI25: 94.40785739 | AJ25: 15974 | AK25: 93.69464485 | AL25: -655 | AM25: 957 | AN25: -80 | AO25: 5.026260504 | AP25: 985 | AQ25: 28 | AR25: 5.592142614 | AS25: 1075 | AT25: 90 | AU25: 6.305355153
A26: 2020-04-22 | E26: Alle | F26: 189018 | G26: 6069 | H26: 201794 | I26: 12776 | J26: 205835 | K26: 4041 | L26: 560 | M26: 74.07407407 | N26: 74.07407407 | O26: 524 | P26: -36 | Q26: 74.85714286 | R26: 508 | T26: 75.03692762 | U26: 196 | V26: 2 | W26: 25.92592593 | X26: 176 | Y26: -20 | Z26: 25.14285714 | AA26: 169 | AB26: -7 | AC26: 24.96307238 | AD26: 16629 | AE26: -1454 | AF26: 94.40785739 | AG26: 15974 | AH26: -655 | AI26: 93.69464485 | AJ26: 15817 | AK26: 94.13760267 | AL26: -157 | AM26: 985 | AN26: 28 | AO26: 5.592142614 | AP26: 1075 | AQ26: 90 | AR26: 6.305355153 | AS26: 985 | AT26: -90 | AU26: 5.862397334
A27: 2020-04-23 | E27: Alle | F27: 201794 | G27: 12776 | H27: 205835 | I27: 4041 | J27: 212686 | K27: 6851 | L27: 524 | M27: 74.85714286 | N27: 74.85714286 | O27: 508 | P27: -16 | Q27: 75.03692762 | R27: 495 | T27: 76.03686636 | U27: 176 | V27: -20 | W27: 25.14285714 | X27: 169 | Y27: -7 | Z27: 24.96307238 | AA27: 156 | AB27: -13 | AC27: 23.96313364 | AD27: 15974 | AE27: -655 | AF27: 93.69464485 | AG27: 15817 | AH27: -157 | AI27: 94.13760267 | AJ27: 15868 | AK27: 93.75480059 | AL27: 51 | AM27: 1075 | AN27: 90 | AO27: 6.305355153 | AP27: 985 | AQ27: -90 | AR27: 5.862397334 | AS27: 1057 | AT27: 72 | AU27: 6.245199409
A28: 2020-04-24 | E28: Alle | F28: 205835 | G28: 4041 | H28: 212686 | I28: 6851 | J28: 221089 | K28: 8403 | L28: 508 | M28: 75.03692762 | N28: 75.03692762 | O28: 495 | P28: -13 | Q28: 76.03686636 | R28: 460 | T28: 75.65789474 | U28: 169 | V28: -7 | W28: 24.96307238 | X28: 156 | Y28: -13 | Z28: 23.96313364 | AA28: 148 | AB28: -8 | AC28: 24.34210526 | AD28: 15817 | AE28: -157 | AF28: 94.13760267 | AG28: 15868 | AH28: 51 | AI28: 93.75480059 | AJ28: 16334 | AK28: 93.94915449 | AL28: 466 | AM28: 985 | AN28: -90 | AO28: 5.862397334 | AP28: 1057 | AQ28: 72 | AR28: 6.245199409 | AS28: 1052 | AT28: -5 | AU28: 6.050845508
A29: 2020-04-25 | E29: Alle | F29: 212686 | G29: 6851 | H29: 221089 | I29: 8403 | J29: 227631 | K29: 6542 | L29: 495 | M29: 76.03686636 | N29: 76.03686636 | O29: 460 | P29: -35 | Q29: 75.65789474 | R29: 449 | T29: 75.58922559 | U29: 156 | V29: -13 | W29: 23.96313364 | X29: 148 | Y29: -8 | Z29: 24.34210526 | AA29: 145 | AB29: -3 | AC29: 24.41077441 | AD29: 15868 | AE29: 51 | AF29: 93.75480059 | AG29: 16334 | AH29: 466 | AI29: 93.94915449 | AJ29: 16641 | AK29: 93.94794783 | AL29: 307 | AM29: 1057 | AN29: 72 | AO29: 6.245199409 | AP29: 1052 | AQ29: -5 | AR29: 6.050845508 | AS29: 1072 | AT29: 20 | AU29: 6.052052165
A30: 2020-04-26 | E30: Alle | F30: 221089 | G30: 8403 | H30: 227631 | I30: 6542 | J30: 232537 | K30: 4906 | L30: 460 | M30: 75.65789474 | N30: 75.65789474 | O30: 449 | P30: -11 | Q30: 75.58922559 | R30: 439 | T30: 75.82037997 | U30: 148 | V30: -8 | W30: 24.34210526 | X30: 145 | Y30: -3 | Z30: 24.41077441 | AA30: 140 | AB30: -5 | AC30: 24.17962003 | AD30: 16334 | AE30: 466 | AF30: 93.94915449 | AG30: 16641 | AH30: 307 | AI30: 93.94794783 | AJ30: 16663 | AK30: 93.95015787 | AL30: 22 | AM30: 1052 | AN30: -5 | AO30: 6.050845508 | AP30: 1072 | AQ30: 20 | AR30: 6.052052165 | AS30: 1073 | AT30: 1 | AU30: 6.049842129
A31: 2020-04-27 | E31: Alle | F31: 227631 | G31: 6542 | H31: 232537 | I31: 4906 | J31: 239578 | K31: 7041 | L31: 449 | M31: 75.58922559 | N31: 75.58922559 | O31: 439 | P31: -10 | Q31: 75.82037997 | R31: 425 | T31: 75.75757576 | U31: 145 | V31: -3 | W31: 24.41077441 | X31: 140 | Y31: -5 | Z31: 24.17962003 | AA31: 136 | AB31: -4 | AC31: 24.24242424 | AD31: 16641 | AE31: 307 | AF31: 93.94794783 | AG31: 16663 | AH31: 22 | AI31: 93.95015787 | AJ31: 16064 | AK31: 93.83725685 | AL31: -599 | AM31: 1072 | AN31: 20 | AO31: 6.052052165 | AP31: 1073 | AQ31: 1 | AR31: 6.049842129 | AS31: 1055 | AT31: -18 | AU31: 6.162743151
A32: 2020-04-28 | E32: Alle | F32: 232537 | G32: 4906 | H32: 239578 | I32: 7041 | J32: 247754 | K32: 8176 | L32: 439 | M32: 75.82037997 | N32: 75.82037997 | O32: 425 | P32: -14 | Q32: 75.75757576 | R32: 386 | T32: 74.6615087 | U32: 140 | V32: -5 | W32: 24.17962003 | X32: 136 | Y32: -4 | Z32: 24.24242424 | AA32: 131 | AB32: -5 | AC32: 25.3384913 | AD32: 16663 | AE32: 22 | AF32: 93.95015787 | AG32: 16064 | AH32: -599 | AI32: 93.83725685 | AJ32: 15258 | AK32: 93.74539199 | AL32: -806 | AM32: 1073 | AN32: 1 | AO32: 6.049842129 | AP32: 1055 | AQ32: -18 | AR32: 6.162743151 | AS32: 1018 | AT32: -37 | AU32: 6.254608012
A33: 2020-04-29 | E33: Alle | F33: 239578 | G33: 7041 | H33: 247754 | I33: 8176 | J33: 256399 | K33: 8645 | L33: 425 | M33: 75.75757576 | N33: 75.75757576 | O33: 386 | P33: -39 | Q33: 74.6615087 | R33: 372 | T33: 74.4 | U33: 136 | V33: -4 | W33: 24.24242424 | X33: 131 | Y33: -5 | Z33: 25.3384913 | AA33: 128 | AB33: -3 | AC33: 25.6 | AD33: 16064 | AE33: -599 | AF33: 93.83725685 | AG33: 15258 | AH33: -806 | AI33: 93.74539199 | AJ33: 15081 | AK33: 93.71155161 | AL33: -177 | AM33: 1055 | AN33: -18 | AO33: 6.162743151 | AP33: 1018 | AQ33: -37 | AR33: 6.254608012 | AS33: 1012 | AT33: -6 | AU33: 6.288448394
A34: 2020-04-30 | E34: Alle | F34: 247754 | G34: 8176 | H34: 256399 | I34: 8645 | J34: 264079 | K34: 7680 | L34: 386 | M34: 74.6615087 | N34: 74.6615087 | O34: 372 | P34: -14 | Q34: 74.4 | R34: 348 | T34: 73.72881356 | U34: 131 | V34: -5 | W34: 25.3384913 | X34: 128 | Y34: -3 | Z34: 25.6 | AA34: 124 | AB34: -4 | AC34: 26.27118644 | AD34: 15258 | AE34: -806 | AF34: 93.74539199 | AG34: 15081 | AH34: -177 | AI34: 93.71155161 | AJ34: 16203 | AK34: 94.14328046 | AL34: 1122 | AM34: 1018 | AN34: -37 | AO34: 6.254608012 | AP34: 1012 | AQ34: -6 | AR34: 6.288448394 | AS34: 1008 | AT34: -4 | AU34: 5.85671954
A35: 2020-05-01 | E35: Alle | F35: 256399 | G35: 8645 | H35: 264079 | I35: 7680 | J35: 269619 | K35: 5540 | L35: 372 | M35: 74.4 | N35: 74.4 | O35: 348 | P35: -24 | Q35: 73.72881356 | R35: 314 | T35: 73.36448598 | U35: 128 | V35: -3 | W35: 25.6 | X35: 124 | Y35: -4 | Z35: 26.27118644 | AA35: 114 | AB35: -10 | AC35: 26.63551402 | AD35: 15081 | AE35: -177 | AF35: 93.71155161 | AG35: 16203 | AH35: 1122 | AI35: 94.14328046 | AJ35: 16814 | AK35: 94.14333707 | AL35: 611 | AM35: 1012 | AN35: -6 | AO35: 6.288448394 | AP35: 1008 | AQ35: -4 | AR35: 5.85671954 | AS35: 1046 | AT35: 38 | AU35: 5.856662934
A36: 2020-05-02 | E36: Alle | F36: 264079 | G36: 7680 | H36: 269619 | I36: 5540 | J36: 274355 | K36: 4736 | L36: 348 | M36: 73.72881356 | N36: 73.72881356 | O36: 314 | P36: -34 | Q36: 73.36448598 | R36: 308 | T36: 72.98578199 | U36: 124 | V36: -4 | W36: 26.27118644 | X36: 114 | Y36: -10 | Z36: 26.63551402 | AA36: 114 | AB36: 0 | AC36: 27.01421801 | AD36: 16203 | AE36: 1122 | AF36: 94.14328046 | AG36: 16814 | AH36: 611 | AI36: 94.14333707 | AJ36: 17092 | AK36: 94.18636689 | AL36: 278 | AM36: 1008 | AN36: -4 | AO36: 5.85671954 | AP36: 1046 | AQ36: 38 | AR36: 5.856662934 | AS36: 1055 | AT36: 9 | AU36: 5.813633107
A37: 2020-05-03 | E37: Alle | F37: 269619 | G37: 5540 | H37: 274355 | I37: 4736 | J37: 279071 | K37: 4716 | L37: 314 | M37: 73.36448598 | N37: 73.36448598 | O37: 308 | P37: -6 | Q37: 72.98578199 | R37: 309 | T37: 73.57142857 | U37: 114 | V37: -10 | W37: 26.63551402 | X37: 114 | Y37: 0 | Z37: 27.01421801 | AA37: 111 | AB37: -3 | AC37: 26.42857143 | AD37: 16814 | AE37: 611 | AF37: 94.14333707 | AG37: 17092 | AH37: 278 | AI37: 94.18636689 | AJ37: 16979 | AK37: 94.1447186 | AL37: -113 | AM37: 1046 | AN37: 38 | AO37: 5.856662934 | AP37: 1055 | AQ37: 9 | AR37: 5.813633107 | AS37: 1056 | AT37: 1 | AU37: 5.855281397
A38: 2020-05-04 | E38: Alle | F38: 274355 | G38: 4736 | H38: 279071 | I38: 4716 | J38: 285883 | K38: 6812 | L38: 308 | M38: 72.98578199 | N38: 72.98578199 | O38: 309 | P38: 1 | Q38: 73.57142857 | R38: 314 | T38: 75.11961722 | U38: 114 | V38: 0 | W38: 27.01421801 | X38: 111 | Y38: -3 | Z38: 26.42857143 | AA38: 104 | AB38: -7 | AC38: 24.88038278 | AD38: 17092 | AE38: 278 | AF38: 94.18636689 | AG38: 16979 | AH38: -113 | AI38: 94.1447186 | AJ38: 15640 | AK38: 93.75374655 | AL38: -1339 | AM38: 1055 | AN38: 9 | AO38: 5.813633107 | AP38: 1056 | AQ38: 1 | AR38: 5.855281397 | AS38: 1042 | AT38: -14 | AU38: 6.246253447
A39: 2020-05-05 | E39: Alle | F39: 279071 | G39: 4716 | H39: 285883 | I39: 6812 | J39: 292254 | K39: 6371 | L39: 309 | M39: 73.57142857 | N39: 73.57142857 | O39: 314 | P39: 5 | Q39: 75.11961722 | R39: 321 | T39: 76.79425837 | U39: 111 | V39: -3 | W39: 26.42857143 | X39: 104 | Y39: -7 | Z39: 24.88038278 | AA39: 97 | AB39: -7 | AC39: 23.20574163 | AD39: 16979 | AE39: -113 | AF39: 94.1447186 | AG39: 15640 | AH39: -1339 | AI39: 93.75374655 | AJ39: 14287 | AK39: 93.43404617 | AL39: -1353 | AM39: 1056 | AN39: 1 | AO39: 5.855281397 | AP39: 1042 | AQ39: -14 | AR39: 6.246253447 | AS39: 1004 | AT39: -38 | AU39: 6.565953829
A40: 2020-05-06 | E40: Alle | F40: 285883 | G40: 6812 | H40: 292254 | I40: 6371 | J40: 297894 | K40: 5640 | L40: 314 | M40: 75.11961722 | N40: 75.11961722 | O40: 321 | P40: 7 | Q40: 76.79425837 | R40: 268 | T40: 74.44444444 | U40: 104 | V40: -7 | W40: 24.88038278 | X40: 97 | Y40: -7 | Z40: 23.20574163 | AA40: 92 | AB40: -5 | AC40: 25.55555556 | AD40: 15640 | AE40: -1339 | AF40: 93.75374655 | AG40: 14287 | AH40: -1353 | AI40: 93.43404617 | AJ40: 14065 | AK40: 93.30016584 | AL40: -222 | AM40: 1042 | AN40: -14 | AO40: 6.246253447 | AP40: 1004 | AQ40: -38 | AR40: 6.565953829 | AS40: 1010 | AT40: 6 | AU40: 6.699834163
A41: 2020-05-07 | E41: Alle | F41: 292254 | G41: 6371 | H41: 297894 | I41: 5640 | J41: 304069 | K41: 6175 | L41: 321 | M41: 76.79425837 | N41: 76.79425837 | O41: 268 | P41: -53 | Q41: 74.44444444 | R41: 258 | T41: 76.10619469 | U41: 97 | V41: -7 | W41: 23.20574163 | X41: 92 | Y41: -5 | Z41: 25.55555556 | AA41: 81 | AB41: -11 | AC41: 23.89380531 | AD41: 14287 | AE41: -1353 | AF41: 93.43404617 | AG41: 14065 | AH41: -222 | AI41: 93.30016584 | AJ41: 13870 | AK41: 93.28132356 | AL41: -195 | AM41: 1004 | AN41: -38 | AO41: 6.565953829 | AP41: 1010 | AQ41: 6 | AR41: 6.699834163 | AS41: 999 | AT41: -11 | AU41: 6.718676441
A42: 2020-05-08 | E42: Alle | F42: 297894 | G42: 5640 | H42: 304069 | I42: 6175 | J42: 311690 | K42: 7621 | L42: 268 | M42: 74.44444444 | N42: 74.44444444 | O42: 258 | P42: -10 | Q42: 76.10619469 | R42: 230 | T42: 74.43365696 | U42: 92 | V42: -5 | W42: 25.55555556 | X42: 81 | Y42: -11 | Z42: 23.89380531 | AA42: 79 | AB42: -2 | AC42: 25.56634304 | AD42: 14065 | AE42: -222 | AF42: 93.30016584 | AG42: 13870 | AH42: -195 | AI42: 93.28132356 | AJ42: 14553 | AK42: 93.40821566 | AL42: 683 | AM42: 1010 | AN42: 6 | AO42: 6.699834163 | AP42: 999 | AQ42: -11 | AR42: 6.718676441 | AS42: 1027 | AT42: 28 | AU42: 6.591784339
A43: 2020-05-09 | E43: Alle | F43: 304069 | G43: 6175 | H43: 311690 | I43: 7621 | J43: 316508 | K43: 4818 | L43: 258 | M43: 76.10619469 | N43: 76.10619469 | O43: 230 | P43: -28 | Q43: 74.43365696 | R43: 219 | T43: 75.25773196 | U43: 81 | V43: -11 | W43: 23.89380531 | X43: 79 | Y43: -2 | Z43: 25.56634304 | AA43: 72 | AB43: -7 | AC43: 24.74226804 | AD43: 13870 | AE43: -195 | AF43: 93.28132356 | AG43: 14553 | AH43: 683 | AI43: 93.40821566 | AJ43: 15360 | AK43: 93.68709973 | AL43: 807 | AM43: 999 | AN43: -11 | AO43: 6.718676441 | AP43: 1027 | AQ43: 28 | AR43: 6.591784339 | AS43: 1035 | AT43: 8 | AU43: 6.312900274
A44: 2020-05-10 | E44: Alle | F44: 311690 | G44: 7621 | H44: 316508 | I44: 4818 | J44: 319484 | K44: 2976 | L44: 230 | M44: 74.43365696 | N44: 74.43365696 | O44: 219 | P44: -11 | Q44: 75.25773196 | R44: 211 | T44: 75.62724014 | U44: 79 | V44: -2 | W44: 25.56634304 | X44: 72 | Y44: -7 | Z44: 24.74226804 | AA44: 68 | AB44: -4 | AC44: 24.37275986 | AD44: 14553 | AE44: 683 | AF44: 93.40821566 | AG44: 15360 | AH44: 807 | AI44: 93.68709973 | AJ44: 15555 | AK44: 93.66532185 | AL44: 195 | AM44: 1027 | AN44: 28 | AO44: 6.591784339 | AP44: 1035 | AQ44: 8 | AR44: 6.312900274 | AS44: 1052 | AT44: 17 | AU44: 6.334678148
A45: 2020-05-11 | E45: Alle | F45: 316508 | G45: 4818 | H45: 319484 | I45: 2976 | J45: 329314 | K45: 9830 | L45: 219 | M45: 75.25773196 | N45: 75.25773196 | O45: 211 | P45: -8 | Q45: 75.62724014 | R45: 205 | T45: 77.65151515 | U45: 72 | V45: -7 | W45: 24.74226804 | X45: 68 | Y45: -4 | Z45: 24.37275986 | AA45: 59 | AB45: -9 | AC45: 22.34848485 | AD45: 15360 | AE45: 807 | AF45: 93.68709973 | AG45: 15555 | AH45: 195 | AI45: 93.66532185 | AJ45: 14564 | AK45: 93.47281946 | AL45: -991 | AM45: 1035 | AN45: 8 | AO45: 6.312900274 | AP45: 1052 | AQ45: 17 | AR45: 6.334678148 | AS45: 1017 | AT45: -35 | AU45: 6.52718054
A46: 2020-05-12 | E46: Alle | F46: 319484 | G46: 2976 | H46: 329314 | I46: 9830 | J46: 336252 | K46: 6938 | L46: 211 | M46: 75.62724014 | N46: 75.62724014 | O46: 205 | P46: -6 | Q46: 77.65151515 | R46: 188 | T46: 77.36625514 | U46: 68 | V46: -4 | W46: 24.37275986 | X46: 59 | Y46: -9 | Z46: 22.34848485 | AA46: 55 | AB46: -4 | AC46: 22.63374486 | AD46: 15555 | AE46: 195 | AF46: 93.66532185 | AG46: 14564 | AH46: -991 | AI46: 93.47281946 | AJ46: 13498 | AK46: 93.23754922 | AL46: -1066 | AM46: 1052 | AN46: 17 | AO46: 6.334678148 | AP46: 1017 | AQ46: -35 | AR46: 6.52718054 | AS46: 979 | AT46: -38 | AU46: 6.762450784
A47: 2020-05-13 | E47: Alle | F47: 329314 | G47: 9830 | H47: 336252 | I47: 6938 | J47: 344606 | K47: 8354 | L47: 205 | M47: 77.65151515 | N47: 77.65151515 | O47: 188 | P47: -17 | Q47: 77.36625514 | R47: 180 | T47: 76.92307692 | U47: 59 | V47: -9 | W47: 22.34848485 | X47: 55 | Y47: -4 | Z47: 22.63374486 | AA47: 54 | AB47: -1 | AC47: 23.07692308 | AD47: 14564 | AE47: -991 | AF47: 93.47281946 | AG47: 13498 | AH47: -1066 | AI47: 93.23754922 | AJ47: 13068 | AK47: 93.05041299 | AL47: -430 | AM47: 1017 | AN47: -35 | AO47: 6.52718054 | AP47: 979 | AQ47: -38 | AR47: 6.762450784 | AS47: 976 | AT47: -3 | AU47: 6.949587012
A48: 2020-05-14 | E48: Alle | F48: 336252 | G48: 6938 | H48: 344606 | I48: 8354 | J48: 351351 | K48: 6745 | L48: 188 | M48: 77.36625514 | N48: 77.36625514 | O48: 180 | P48: -8 | Q48: 76.92307692 | R48: 165 | T48: 77.83018868 | U48: 55 | V48: -4 | W48: 22.63374486 | X48: 54 | Y48: -1 | Z48: 23.07692308 | AA48: 47 | AB48: -7 | AC48: 22.16981132 | AD48: 13498 | AE48: -1066 | AF48: 93.23754922 | AG48: 13068 | AH48: -430 | AI48: 93.05041299 | AJ48: 12918 | AK48: 93.04235091 | AL48: -150 | AM48: 979 | AN48: -38 | AO48: 6.762450784 | AP48: 976 | AQ48: -3 | AR48: 6.949587012 | AS48: 966 | AT48: -10 | AU48: 6.957649092
A49: 2020-05-15 | E49: Alle | F49: 344606 | G49: 8354 | H49: 351351 | I49: 6745 | J49: 357393 | K49: 6042 | L49: 180 | M49: 76.92307692 | N49: 76.92307692 | O49: 165 | P49: -15 | Q49: 77.83018868 | R49: 158 | T49: 75.96153846 | U49: 54 | V49: -1 | W49: 23.07692308 | X49: 47 | Y49: -7 | Z49: 22.16981132 | AA49: 50 | AB49: 3 | AC49: 24.03846154 | AD49: 13068 | AE49: -430 | AF49: 93.05041299 | AG49: 12918 | AH49: -150 | AI49: 93.04235091 | AJ49: 12579 | AK49: 93.67041477 | AL49: -339 | AM49: 976 | AN49: -3 | AO49: 6.949587012 | AP49: 966 | AQ49: -10 | AR49: 6.957649092 | AS49: 850 | AT49: -116 | AU49: 6.329585226
A50: 2020-05-16 | E50: Alle | F50: 351351 | G50: 6745 | H50: 357393 | I50: 6042 | J50: 362509 | K50: 5116 | L50: 165 | M50: 77.83018868 | N50: 77.83018868 | O50: 158 | P50: -7 | Q50: 75.96153846 | R50: 149 | T50: 75.63451777 | U50: 47 | V50: -7 | W50: 22.16981132 | X50: 50 | Y50: 3 | Z50: 24.03846154 | AA50: 48 | AB50: -2 | AC50: 24.36548223 | AD50: 12918 | AE50: -150 | AF50: 93.04235091 | AG50: 12579 | AH50: -339 | AI50: 93.67041477 | AJ50: 13482 | AK50: 93.80740328 | AL50: 903 | AM50: 966 | AN50: -10 | AO50: 6.957649092 | AP50: 850 | AQ50: -116 | AR50: 6.329585226 | AS50: 890 | AT50: 40 | AU50: 6.192596716
A51: 2020-05-17 | E51: Alle | F51: 357393 | G51: 6042 | H51: 362509 | I51: 5116 | J51: 366069 | K51: 3560 | L51: 158 | M51: 75.96153846 | N51: 75.96153846 | O51: 149 | P51: -9 | Q51: 75.63451777 | R51: 151 | T51: 77.04081633 | U51: 50 | V51: 3 | W51: 24.03846154 | X51: 48 | Y51: -2 | Z51: 24.36548223 | AA51: 45 | AB51: -3 | AC51: 22.95918367 | AD51: 12579 | AE51: -339 | AF51: 93.67041477 | AG51: 13482 | AH51: 903 | AI51: 93.80740328 | AJ51: 13663 | AK51: 93.73627881 | AL51: 181 | AM51: 850 | AN51: -116 | AO51: 6.329585226 | AP51: 890 | AQ51: 40 | AR51: 6.192596716 | AS51: 913 | AT51: 23 | AU51: 6.263721186
A52: 2020-05-18 | E52: Alle | F52: 362509 | G52: 5116 | H52: 366069 | I52: 3560 | J52: 372435 | K52: 6366 | L52: 149 | M52: 75.63451777 | N52: 75.63451777 | O52: 151 | P52: 2 | Q52: 77.04081633 | R52: 143 | T52: 78.57142857 | U52: 48 | V52: -2 | W52: 24.36548223 | X52: 45 | Y52: -3 | Z52: 22.95918367 | AA52: 39 | AB52: -6 | AC52: 21.42857143 | AD52: 13482 | AE52: 903 | AF52: 93.80740328 | AG52: 13663 | AH52: 181 | AI52: 93.73627881 | AJ52: 12532 | AK52: 93.4387116 | AL52: -1131 | AM52: 890 | AN52: 40 | AO52: 6.192596716 | AP52: 913 | AQ52: 23 | AR52: 6.263721186 | AS52: 880 | AT52: -33 | AU52: 6.561288398
A53: 2020-05-19 | E53: Alle | F53: 366069 | G53: 3560 | H53: 372435 | I53: 6366 | J53: 379592 | K53: 7157 | L53: 151 | M53: 77.04081633 | N53: 77.04081633 | O53: 143 | P53: -8 | Q53: 78.57142857 | R53: 137 | T53: 78.73563218 | U53: 45 | V53: -3 | W53: 22.95918367 | X53: 39 | Y53: -6 | Z53: 21.42857143 | AA53: 37 | AB53: -2 | AC53: 21.26436782 | AD53: 13663 | AE53: 181 | AF53: 93.73627881 | AG53: 12532 | AH53: -1131 | AI53: 93.4387116 | AJ53: 11481 | AK53: 92.87332147 | AL53: -1051 | AM53: 913 | AN53: 23 | AO53: 6.263721186 | AP53: 880 | AQ53: -33 | AR53: 6.561288398 | AS53: 881 | AT53: 1 | AU53: 7.126678531
A54: 2020-05-20 | E54: Alle | F54: 372435 | G54: 6366 | H54: 379592 | I54: 7157 | J54: 385637 | K54: 6045 | L54: 143 | M54: 78.57142857 | N54: 78.57142857 | O54: 137 | P54: -6 | Q54: 78.73563218 | R54: 156 | T54: 82.9787234 | U54: 39 | V54: -6 | W54: 21.42857143 | X54: 37 | Y54: -2 | Z54: 21.26436782 | AA54: 32 | AB54: -5 | AC54: 17.0212766 | AD54: 12532 | AE54: -1131 | AF54: 93.4387116 | AG54: 11481 | AH54: -1051 | AI54: 92.87332147 | AJ54: 11958 | AK54: 93.22522803 | AL54: 477 | AM54: 880 | AN54: -33 | AO54: 6.561288398 | AP54: 881 | AQ54: 1 | AR54: 7.126678531 | AS54: 869 | AT54: -12 | AU54: 6.774771965
A55: 2020-05-21 | E55: Alle | F55: 379592 | G55: 7157 | H55: 385637 | I55: 6045 | J55: 390488 | K55: 4851 | L55: 137 | M55: 78.73563218 | N55: 78.73563218 | O55: 156 | P55: 19 | Q55: 82.9787234 | R55: 128 | T55: 80.50314465 | U55: 37 | V55: -2 | W55: 21.26436782 | X55: 32 | Y55: -5 | Z55: 17.0212766 | AA55: 31 | AB55: -1 | AC55: 19.49685535 | AD55: 11481 | AE55: -1051 | AF55: 92.87332147 | AG55: 11958 | AH55: 477 | AI55: 93.22522803 | AJ55: 12306 | AK55: 93.34749298 | AL55: 348 | AM55: 881 | AN55: 1 | AO55: 7.126678531 | AP55: 869 | AQ55: -12 | AR55: 6.774771965 | AS55: 877 | AT55: 8 | AU55: 6.652507017
A56: 2020-05-22 | E56: Alle | F56: 385637 | G56: 6045 | H56: 390488 | I56: 4851 | J56: 396363 | K56: 5875 | L56: 156 | M56: 82.9787234 | N56: 82.9787234 | O56: 128 | P56: -28 | Q56: 80.50314465 | R56: 116 | T56: 80.55555556 | U56: 32 | V56: -5 | W56: 17.0212766 | X56: 31 | Y56: -1 | Z56: 19.49685535 | AA56: 28 | AB56: -3 | AC56: 19.44444444 | AD56: 11958 | AE56: 477 | AF56: 93.22522803 | AG56: 12306 | AH56: 348 | AI56: 93.34749298 | AJ56: 13124 | AK56: 93.58910362 | AL56: 818 | AM56: 869 | AN56: -12 | AO56: 6.774771965 | AP56: 877 | AQ56: 8 | AR56: 6.652507017 | AS56: 899 | AT56: 22 | AU56: 6.410896385
A57: 2020-05-23 | E57: Alle | F57: 390488 | G57: 4851 | H57: 396363 | I57: 5875 | J57: 401857 | K57: 5494 | L57: 128 | M57: 80.50314465 | N57: 80.50314465 | O57: 116 | P57: -12 | Q57: 80.55555556 | R57: 108 | T57: 78.83211679 | U57: 31 | V57: -1 | W57: 19.49685535 | X57: 28 | Y57: -3 | Z57: 19.44444444 | AA57: 29 | AB57: 1 | AC57: 21.16788321 | AD57: 12306 | AE57: 348 | AF57: 93.34749298 | AG57: 13124 | AH57: 818 | AI57: 93.58910362 | AJ57: 13367 | AK57: 93.65891256 | AL57: 243 | AM57: 877 | AN57: 8 | AO57: 6.652507017 | AP57: 899 | AQ57: 22 | AR57: 6.410896385 | AS57: 905 | AT57: 6 | AU57: 6.341087444
A58: 2020-05-24 | E58: Alle | F58: 396363 | G58: 5875 | H58: 401857 | I58: 5494 | J58: 405341 | K58: 3484 | L58: 116 | M58: 80.55555556 | N58: 80.55555556 | O58: 108 | P58: -8 | Q58: 78.83211679 | R58: 108 | T58: 77.69784173 | U58: 28 | V58: -3 | W58: 19.44444444 | X58: 29 | Y58: 1 | Z58: 21.16788321 | AA58: 31 | AB58: 2 | AC58: 22.30215827 | AD58: 13124 | AE58: 818 | AF58: 93.58910362 | AG58: 13367 | AH58: 243 | AI58: 93.65891256 | AJ58: 13486 | AK58: 93.61377204 | AL58: 119 | AM58: 899 | AN58: 22 | AO58: 6.410896385 | AP58: 905 | AQ58: 6 | AR58: 6.341087444 | AS58: 920 | AT58: 15 | AU58: 6.386227961
A59: 2020-05-25 | E59: Alle | F59: 401857 | G59: 5494 | H59: 405341 | I59: 3484 | J59: 411185 | K59: 5844 | L59: 108 | M59: 78.83211679 | N59: 78.83211679 | O59: 108 | P59: 0 | Q59: 77.69784173 | R59: 95 | T59: 74.80314961 | U59: 29 | V59: 1 | W59: 21.16788321 | X59: 31 | Y59: 2 | Z59: 22.30215827 | AA59: 32 | AB59: 1 | AC59: 25.19685039 | AD59: 13367 | AE59: 243 | AF59: 93.65891256 | AG59: 13486 | AH59: 119 | AI59: 93.61377204 | AJ59: 12140 | AK59: 93.21968824 | AL59: -1346 | AM59: 905 | AN59: 6 | AO59: 6.341087444 | AP59: 920 | AQ59: 15 | AR59: 6.386227961 | AS59: 883 | AT59: -37 | AU59: 6.780311756
A60: 2020-05-26 | E60: Alle | F60: 405341 | G60: 3484 | H60: 411185 | I60: 5844 | J60: 418706 | K60: 7521 | L60: 108 | M60: 77.69784173 | N60: 77.69784173 | O60: 95 | P60: -13 | Q60: 74.80314961 | R60: 84 | T60: 72.4137931 | U60: 31 | V60: 2 | W60: 22.30215827 | X60: 32 | Y60: 1 | Z60: 25.19685039 | AA60: 32 | AB60: 0 | AC60: 27.5862069 | AD60: 13486 | AE60: 119 | AF60: 93.61377204 | AG60: 12140 | AH60: -1346 | AI60: 93.21968824 | AJ60: 10901 | AK60: 92.56963315 | AL60: -1239 | AM60: 920 | AN60: 15 | AO60: 6.386227961 | AP60: 883 | AQ60: -37 | AR60: 6.780311756 | AS60: 875 | AT60: -8 | AU60: 7.430366848
A61: 2020-05-27 | E61: Alle | F61: 411185 | G61: 5844 | H61: 418706 | I61: 7521 | J61: 427372 | K61: 8666 | L61: 95 | M61: 74.80314961 | N61: 74.80314961 | O61: 84 | P61: -11 | Q61: 72.4137931 | R61: 77 | T61: 71.96261682 | U61: 32 | V61: 1 | W61: 25.19685039 | X61: 32 | Y61: 0 | Z61: 27.5862069 | AA61: 30 | AB61: -2 | AC61: 28.03738318 | AD61: 12140 | AE61: -1346 | AF61: 93.21968824 | AG61: 10901 | AH61: -1239 | AI61: 92.56963315 | AJ61: 10547 | AK61: 92.51754386 | AL61: -354 | AM61: 883 | AN61: -37 | AO61: 6.780311756 | AP61: 875 | AQ61: -8 | AR61: 7.430366848 | AS61: 853 | AT61: -22 | AU61: 7.48245614
A62: 2020-05-28 | E62: Alle | F62: 418706 | G62: 7521 | H62: 427372 | I62: 8666 | J62: 434302 | K62: 6930 | L62: 84 | M62: 72.4137931 | N62: 72.4137931 | O62: 77 | P62: -7 | Q62: 71.96261682 | R62: 78 | T62: 75.72815534 | U62: 32 | V62: 0 | W62: 27.5862069 | X62: 30 | Y62: -2 | Z62: 28.03738318 | AA62: 25 | AB62: -5 | AC62: 24.27184466 | AD62: 10901 | AE62: -1239 | AF62: 92.56963315 | AG62: 10547 | AH62: -354 | AI62: 92.51754386 | AJ62: 10486 | AK62: 92.55075022 | AL62: -61 | AM62: 875 | AN62: -8 | AO62: 7.430366848 | AP62: 853 | AQ62: -22 | AR62: 7.48245614 | AS62: 844 | AT62: -9 | AU62: 7.449249779
A63: 2020-05-29 | E63: Alle | F63: 427372 | G63: 8666 | H63: 434302 | I63: 6930 | J63: 442143 | K63: 7841 | L63: 77 | M63: 71.96261682 | N63: 71.96261682 | O63: 78 | P63: 1 | Q63: 75.72815534 | R63: 75 | T63: 76.53061224 | U63: 30 | V63: -2 | W63: 28.03738318 | X63: 25 | Y63: -5 | Z63: 24.27184466 | AA63: 23 | AB63: -2 | AC63: 23.46938776 | AD63: 10547 | AE63: -354 | AF63: 92.51754386 | AG63: 10486 | AH63: -61 | AI63: 92.55075022 | AJ63: 10298 | AK63: 92.59958637 | AL63: -188 | AM63: 853 | AN63: -22 | AO63: 7.48245614 | AP63: 844 | AQ63: -9 | AR63: 7.449249779 | AS63: 823 | AT63: -21 | AU63: 7.400413632
A64: 2020-05-30 | E64: Alle | F64: 434302 | G64: 6930 | H64: 442143 | I64: 7841 | J64: 448534 | K64: 6391 | L64: 78 | M64: 75.72815534 | N64: 75.72815534 | O64: 75 | P64: -3 | Q64: 76.53061224 | R64: 70 | T64: 72.16494845 | U64: 25 | V64: -5 | W64: 24.27184466 | X64: 23 | Y64: -2 | Z64: 23.46938776 | AA64: 27 | AB64: 4 | AC64: 27.83505155 | AD64: 10486 | AE64: -61 | AF64: 92.55075022 | AG64: 10298 | AH64: -188 | AI64: 92.59958637 | AJ64: 10828 | AK64: 92.848568 | AL64: 530 | AM64: 844 | AN64: -9 | AO64: 7.449249779 | AP64: 823 | AQ64: -21 | AR64: 7.400413632 | AS64: 834 | AT64: 11 | AU64: 7.151432001
A65: 2020-05-31 | E65: Alle | F65: 442143 | G65: 7841 | H65: 448534 | I65: 6391 | J65: 451820 | K65: 3286 | L65: 75 | M65: 76.53061224 | N65: 76.53061224 | O65: 70 | P65: -5 | Q65: 72.16494845 | R65: 68 | T65: 70.10309278 | U65: 23 | V65: -2 | W65: 23.46938776 | X65: 27 | Y65: 4 | Z65: 27.83505155 | AA65: 29 | AB65: 2 | AC65: 29.89690722 | AD65: 10298 | AE65: -188 | AF65: 92.59958637 | AG65: 10828 | AH65: 530 | AI65: 92.848568 | AJ65: 12000 | AK65: 93.40702109 | AL65: 1172 | AM65: 823 | AN65: -21 | AO65: 7.400413632 | AP65: 834 | AQ65: 11 | AR65: 7.151432001 | AS65: 847 | AT65: 13 | AU65: 6.592978906
A66: 2020-06-01 | E66: Alle | F66: 448534 | G66: 6391 | H66: 451820 | I66: 3286 | J66: 456378 | K66: 4558 | L66: 70 | M66: 72.16494845 | N66: 72.16494845 | O66: 68 | P66: -2 | Q66: 70.10309278 | R66: 62 | T66: 70.45454545 | U66: 27 | V66: 4 | W66: 27.83505155 | X66: 29 | Y66: 2 | Z66: 29.89690722 | AA66: 26 | AB66: -3 | AC66: 29.54545455 | AD66: 10828 | AE66: 530 | AF66: 92.848568 | AG66: 12000 | AH66: 1172 | AI66: 93.40702109 | AJ66: 12854 | AK66: 93.91393293 | AL66: 854 | AM66: 834 | AN66: 11 | AO66: 7.151432001 | AP66: 847 | AQ66: 13 | AR66: 6.592978906 | AS66: 833 | AT66: -14 | AU66: 6.086067071
A67: 2020-06-02 | E67: Alle | F67: 451820 | G67: 3286 | H67: 456378 | I67: 4558 | J67: 462958 | K67: 6580 | L67: 68 | M67: 70.10309278 | N67: 70.10309278 | O67: 62 | P67: -6 | Q67: 70.45454545 | R67: 66 | T67: 75.86206897 | U67: 29 | V67: 2 | W67: 29.89690722 | X67: 26 | Y67: -3 | Z67: 29.54545455 | AA67: 21 | AB67: -5 | AC67: 24.13793103 | AD67: 12000 | AE67: 1172 | AF67: 93.40702109 | AG67: 12854 | AH67: 854 | AI67: 93.91393293 | AJ67: 10892 | AK67: 92.84800955 | AL67: -1962 | AM67: 847 | AN67: 13 | AO67: 6.592978906 | AP67: 833 | AQ67: -14 | AR67: 6.086067071 | AS67: 839 | AT67: 6 | AU67: 7.151990453
A68: 2020-06-03 | E68: Alle | F68: 456378 | G68: 4558 | H68: 462958 | I68: 6580 | J68: 471466 | K68: 8508 | L68: 62 | M68: 70.45454545 | N68: 70.45454545 | O68: 66 | P68: 4 | Q68: 75.86206897 | R68: 65 | T68: 74.71264368 | U68: 26 | V68: -3 | W68: 29.54545455 | X68: 21 | Y68: -5 | Z68: 24.13793103 | AA68: 22 | AB68: 1 | AC68: 25.28735632 | AD68: 12854 | AE68: 854 | AF68: 93.91393293 | AG68: 10892 | AH68: -1962 | AI68: 92.84800955 | AJ68: 9415 | AK68: 92.44893951 | AL68: -1477 | AM68: 833 | AN68: -14 | AO68: 6.086067071 | AP68: 839 | AQ68: 6 | AR68: 7.151990453 | AS68: 769 | AT68: -70 | AU68: 7.551060487
A69: 2020-06-04 | E69: Alle | F69: 462958 | G69: 6580 | H69: 471466 | I69: 8508 | J69: 479449 | K69: 7983 | L69: 66 | M69: 75.86206897 | N69: 75.86206897 | O69: 65 | P69: -1 | Q69: 74.71264368 | R69: 55 | T69: 73.33333333 | U69: 21 | V69: -5 | W69: 24.13793103 | X69: 22 | Y69: 1 | Z69: 25.28735632 | AA69: 20 | AB69: -2 | AC69: 26.66666667 | AD69: 10892 | AE69: -1962 | AF69: 92.84800955 | AG69: 9415 | AH69: -1477 | AI69: 92.44893951 | AJ69: 8674 | AK69: 91.74952401 | AL69: -741 | AM69: 839 | AN69: 6 | AO69: 7.151990453 | AP69: 769 | AQ69: -70 | AR69: 7.551060487 | AS69: 780 | AT69: 11 | AU69: 8.250475989
A70: 2020-06-05 | E70: Alle | F70: 471466 | G70: 8508 | H70: 479449 | I70: 7983 | J70: 485912 | K70: 6463 | L70: 65 | M70: 74.71264368 | N70: 74.71264368 | O70: 55 | P70: -10 | Q70: 73.33333333 | R70: 55 | T70: 76.38888889 | U70: 22 | V70: 1 | W70: 25.28735632 | X70: 20 | Y70: -2 | Z70: 26.66666667 | AA70: 17 | AB70: -3 | AC70: 23.61111111 | AD70: 9415 | AE70: -1477 | AF70: 92.44893951 | AG70: 8674 | AH70: -741 | AI70: 91.74952401 | AJ70: 8948 | AK70: 91.83087028 | AL70: 274 | AM70: 769 | AN70: -70 | AO70: 7.551060487 | AP70: 780 | AQ70: 11 | AR70: 8.250475989 | AS70: 796 | AT70: 16 | AU70: 8.169129721
A71: 2020-06-06 | E71: Alle | F71: 479449 | G71: 7983 | H71: 485912 | I71: 6463 | J71: 489597 | K71: 3685 | L71: 55 | M71: 73.33333333 | N71: 73.33333333 | O71: 55 | P71: 0 | Q71: 76.38888889 | R71: 52 | T71: 75.36231884 | U71: 20 | V71: -2 | W71: 26.66666667 | X71: 17 | Y71: -3 | Z71: 23.61111111 | AA71: 17 | AB71: 0 | AC71: 24.63768116 | AD71: 8674 | AE71: -741 | AF71: 91.74952401 | AG71: 8948 | AH71: 274 | AI71: 91.83087028 | AJ71: 9489 | AK71: 92.2336703 | AL71: 541 | AM71: 780 | AN71: 11 | AO71: 8.250475989 | AP71: 796 | AQ71: 16 | AR71: 8.169129721 | AS71: 799 | AT71: 3 | AU71: 7.766329705
A72: 2020-06-07 | E72: Alle | F72: 485912 | G72: 6463 | H72: 489597 | I72: 3685 | J72: 494761 | K72: 5164 | L72: 55 | M72: 76.38888889 | N72: 76.38888889 | O72: 52 | P72: -3 | Q72: 75.36231884 | R72: 65 | T72: 79.26829268 | U72: 17 | V72: -3 | W72: 23.61111111 | X72: 17 | Y72: 0 | Z72: 24.63768116 | AA72: 17 | AB72: 0 | AC72: 20.73170732 | AD72: 8948 | AE72: 274 | AF72: 91.83087028 | AG72: 9489 | AH72: 541 | AI72: 92.2336703 | AJ72: 11014 | AK72: 93.1731664 | AL72: 1525 | AM72: 796 | AN72: 16 | AO72: 8.169129721 | AP72: 799 | AQ72: 3 | AR72: 7.766329705 | AS72: 807 | AT72: 8 | AU72: 6.826833601
A73: 2020-06-08 | E73: Alle | F73: 489597 | G73: 3685 | H73: 494761 | I73: 5164 | J73: 500921 | K73: 6160 | L73: 52 | M73: 75.36231884 | N73: 75.36231884 | O73: 65 | P73: 13 | Q73: 79.26829268 | R73: 65 | T73: 77.38095238 | U73: 17 | V73: 0 | W73: 24.63768116 | X73: 17 | Y73: 0 | Z73: 20.73170732 | AA73: 19 | AB73: 2 | AC73: 22.61904762 | AD73: 9489 | AE73: 541 | AF73: 92.2336703 | AG73: 11014 | AH73: 1525 | AI73: 93.1731664 | AJ73: 9938 | AK73: 92.35201189 | AL73: -1076 | AM73: 799 | AN73: 3 | AO73: 7.766329705 | AP73: 807 | AQ73: 8 | AR73: 6.826833601 | AS73: 823 | AT73: 16 | AU73: 7.647988105
A74: 2020-06-09 | E74: Alle | F74: 494761 | G74: 5164 | H74: 500921 | I74: 6160 | J74: 506344 | K74: 5423 | L74: 65 | M74: 79.26829268 | N74: 79.26829268 | O74: 65 | P74: 0 | Q74: 77.38095238 | R74: 63 | T74: 78.75 | U74: 17 | V74: 0 | W74: 20.73170732 | X74: 19 | Y74: 2 | Z74: 22.61904762 | AA74: 17 | AB74: -2 | AC74: 21.25 | AD74: 11014 | AE74: 1525 | AF74: 93.1731664 | AG74: 9938 | AH74: -1076 | AI74: 92.35201189 | AJ74: 8317 | AK74: 91.74848318 | AL74: -1621 | AM74: 807 | AN74: 8 | AO74: 6.826833601 | AP74: 823 | AQ74: 16 | AR74: 7.647988105 | AS74: 748 | AT74: -75 | AU74: 8.251516823
A75: 2020-06-10 | E75: Alle | F75: 500921 | G75: 6160 | H75: 506344 | I75: 5423 | J75: 510311 | K75: 3967 | L75: 65 | M75: 77.38095238 | N75: 77.38095238 | O75: 63 | P75: -2 | Q75: 78.75 | R75: 67 | T75: 82.71604938 | U75: 19 | V75: 2 | W75: 22.61904762 | X75: 17 | Y75: -2 | Z75: 21.25 | AA75: 14 | AB75: -3 | AC75: 17.28395062 | AD75: 9938 | AE75: -1076 | AF75: 92.35201189 | AG75: 8317 | AH75: -1621 | AI75: 91.74848318 | AJ75: 8200 | AK75: 91.81502631 | AL75: -117 | AM75: 823 | AN75: 16 | AO75: 7.647988105 | AP75: 748 | AQ75: -75 | AR75: 8.251516823 | AS75: 731 | AT75: -17 | AU75: 8.184973687
A76: 2020-06-11 | E76: Alle | F76: 506344 | G76: 5423 | H76: 510311 | I76: 3967 | J76: 516581 | K76: 6270 | L76: 63 | M76: 78.75 | N76: 78.75 | O76: 67 | P76: 4 | Q76: 82.71604938 | R76: 60 | T76: 86.95652174 | U76: 17 | V76: -2 | W76: 21.25 | X76: 14 | Y76: -3 | Z76: 17.28395062 | AA76: 9 | AB76: -5 | AC76: 13.04347826 | AD76: 8317 | AE76: -1621 | AF76: 91.74848318 | AG76: 8200 | AH76: -117 | AI76: 91.81502631 | AJ76: 8916 | AK76: 92.25993377 | AL76: 716 | AM76: 748 | AN76: -75 | AO76: 8.251516823 | AP76: 731 | AQ76: -17 | AR76: 8.184973687 | AS76: 748 | AT76: 17 | AU76: 7.740066225
A77: 2020-06-12 | E77: Alle | F77: 510311 | G77: 3967 | H77: 516581 | I77: 6270 | J77: 520976 | K77: 4395 | L77: 67 | M77: 82.71604938 | N77: 82.71604938 | O77: 60 | P77: -7 | Q77: 86.95652174 | R77: 62 | T77: 86.11111111 | U77: 14 | V77: -3 | W77: 17.28395062 | X77: 9 | Y77: -5 | Z77: 13.04347826 | AA77: 10 | AB77: 1 | AC77: 13.88888889 | AD77: 8200 | AE77: -117 | AF77: 91.81502631 | AG77: 8916 | AH77: 716 | AI77: 92.25993377 | AJ77: 10042 | AK77: 92.13689329 | AL77: 1126 | AM77: 731 | AN77: -17 | AO77: 8.184973687 | AP77: 748 | AQ77: 17 | AR77: 7.740066225 | AS77: 857 | AT77: 109 | AU77: 7.863106707
A78: 2020-06-13 | E78: Alle | F78: 516581 | G78: 6270 | H78: 520976 | I78: 4395 | J78: 524840 | K78: 3864 | L78: 60 | M78: 86.95652174 | N78: 86.95652174 | O78: 62 | P78: 2 | Q78: 86.11111111 | R78: 57 | T78: 82.60869565 | U78: 9 | V78: -5 | W78: 13.04347826 | X78: 10 | Y78: 1 | Z78: 13.88888889 | AA78: 12 | AB78: 2 | AC78: 17.39130435 | AD78: 8916 | AE78: 716 | AF78: 92.25993377 | AG78: 10042 | AH78: 1126 | AI78: 92.13689329 | AJ78: 10236 | AK78: 92.42437923 | AL78: 194 | AM78: 748 | AN78: 17 | AO78: 7.740066225 | AP78: 857 | AQ78: 109 | AR78: 7.863106707 | AS78: 839 | AT78: -18 | AU78: 7.575620767
A79: 2020-06-14 | E79: Alle | F79: 520976 | G79: 4395 | H79: 524840 | I79: 3864 | J79: 527670 | K79: 2830 | L79: 62 | M79: 86.11111111 | N79: 86.11111111 | O79: 57 | P79: -5 | Q79: 82.60869565 | R79: 64 | T79: 81.01265823 | U79: 10 | V79: 1 | W79: 13.88888889 | X79: 12 | Y79: 2 | Z79: 17.39130435 | AA79: 15 | AB79: 3 | AC79: 18.98734177 | AD79: 10042 | AE79: 1126 | AF79: 92.13689329 | AG79: 10236 | AH79: 194 | AI79: 92.42437923 | AJ79: 10997 | AK79: 92.95857988 | AL79: 761 | AM79: 857 | AN79: 109 | AO79: 7.863106707 | AP79: 839 | AQ79: -18 | AR79: 7.575620767 | AS79: 833 | AT79: -6 | AU79: 7.041420118
A80: 2020-06-15 | E80: Alle | F80: 524840 | G80: 3864 | H80: 527670 | I80: 2830 | J80: 532700 | K80: 5030 | L80: 57 | M80: 82.60869565 | N80: 82.60869565 | O80: 64 | P80: 7 | Q80: 81.01265823 | R80: 66 | T80: 84.61538462 | U80: 12 | V80: 2 | W80: 17.39130435 | X80: 15 | Y80: 3 | Z80: 18.98734177 | AA80: 12 | AB80: -3 | AC80: 15.38461538 | AD80: 10236 | AE80: 194 | AF80: 92.42437923 | AG80: 10997 | AH80: 761 | AI80: 92.95857988 | AJ80: 9834 | AK80: 92.19086904 | AL80: -1163 | AM80: 839 | AN80: -18 | AO80: 7.575620767 | AP80: 833 | AQ80: -6 | AR80: 7.041420118 | AS80: 833 | AT80: 0 | AU80: 7.809130965
A81: 2020-06-16 | E81: Alle | F81: 527670 | G81: 2830 | H81: 532700 | I81: 5030 | J81: 540615 | K81: 7915 | L81: 64 | M81: 81.01265823 | N81: 81.01265823 | O81: 66 | P81: 2 | Q81: 84.61538462 | R81: 60 | T81: 84.50704225 | U81: 15 | V81: 3 | W81: 18.98734177 | X81: 12 | Y81: -3 | Z81: 15.38461538 | AA81: 11 | AB81: -1 | AC81: 15.49295775 | AD81: 10997 | AE81: 761 | AF81: 92.95857988 | AG81: 9834 | AH81: -1163 | AI81: 92.19086904 | AJ81: 8461 | AK81: 91.30247113 | AL81: -1373 | AM81: 833 | AN81: -6 | AO81: 7.041420118 | AP81: 833 | AQ81: 0 | AR81: 7.809130965 | AS81: 806 | AT81: -27 | AU81: 8.697528866
A82: 2020-06-17 | E82: Alle | F82: 532700 | G82: 5030 | H82: 540615 | I82: 7915 | J82: 545927 | K82: 5312 | L82: 66 | M82: 84.61538462 | N82: 84.61538462 | O82: 60 | P82: -6 | Q82: 84.50704225 | R82: 64 | T82: 88.88888889 | U82: 12 | V82: -3 | W82: 15.38461538 | X82: 11 | Y82: -1 | Z82: 15.49295775 | AA82: 8 | AB82: -3 | AC82: 11.11111111 | AD82: 9834 | AE82: -1163 | AF82: 92.19086904 | AG82: 8461 | AH82: -1373 | AI82: 91.30247113 | AJ82: 7876 | AK82: 91.29477223 | AL82: -585 | AM82: 833 | AN82: 0 | AO82: 7.809130965 | AP82: 806 | AQ82: -27 | AR82: 8.697528866 | AS82: 751 | AT82: -55 | AU82: 8.705227773
A83: 2020-06-18 | E83: Alle | F83: 540615 | G83: 7915 | H83: 545927 | I83: 5312 | J83: 552130 | K83: 6203 | L83: 60 | M83: 84.50704225 | N83: 84.50704225 | O83: 64 | P83: 4 | Q83: 88.88888889 | R83: 68 | T83: 90.66666667 | U83: 11 | V83: -1 | W83: 15.49295775 | X83: 8 | Y83: -3 | Z83: 11.11111111 | AA83: 7 | AB83: -1 | AC83: 9.333333333 | AD83: 8461 | AE83: -1373 | AF83: 91.30247113 | AG83: 7876 | AH83: -585 | AI83: 91.29477223 | AJ83: 7607 | AK83: 91.02548762 | AL83: -269 | AM83: 806 | AN83: -27 | AO83: 8.697528866 | AP83: 751 | AQ83: -55 | AR83: 8.705227773 | AS83: 750 | AT83: -1 | AU83: 8.974512385
A84: 2020-06-19 | E84: Alle | F84: 545927 | G84: 5312 | H84: 552130 | I84: 6203 | J84: 558208 | K84: 6078 | L84: 64 | M84: 88.88888889 | N84: 88.88888889 | O84: 68 | P84: 4 | Q84: 90.66666667 | R84: 66 | T84: 89.18918919 | U84: 8 | V84: -3 | W84: 11.11111111 | X84: 7 | Y84: -1 | Z84: 9.333333333 | AA84: 8 | AB84: 1 | AC84: 10.81081081 | AD84: 7876 | AE84: -585 | AF84: 91.29477223 | AG84: 7607 | AH84: -269 | AI84: 91.02548762 | AJ84: 8052 | AK84: 91.04477612 | AL84: 445 | AM84: 751 | AN84: -55 | AO84: 8.705227773 | AP84: 750 | AQ84: -1 | AR84: 8.974512385 | AS84: 792 | AT84: 42 | AU84: 8.955223881
A85: 2020-06-20 | E85: Alle | F85: 552130 | G85: 6203 | H85: 558208 | I85: 6078 | J85: 560584 | K85: 2376 | L85: 68 | M85: 90.66666667 | N85: 90.66666667 | O85: 66 | P85: -2 | Q85: 89.18918919 | R85: 61 | T85: 88.4057971 | U85: 7 | V85: -1 | W85: 9.333333333 | X85: 8 | Y85: 1 | Z85: 10.81081081 | AA85: 8 | AB85: 0 | AC85: 11.5942029 | AD85: 7607 | AE85: -269 | AF85: 91.02548762 | AG85: 8052 | AH85: 445 | AI85: 91.04477612 | AJ85: 8933 | AK85: 91.85604113 | AL85: 881 | AM85: 750 | AN85: -1 | AO85: 8.974512385 | AP85: 792 | AQ85: 42 | AR85: 8.955223881 | AS85: 792 | AT85: 0 | AU85: 8.143958869
A86: 2020-06-21 | E86: Alle | F86: 558208 | G86: 6078 | H86: 560584 | I86: 2376 | J86: 565800 | K86: 5216 | L86: 66 | M86: 89.18918919 | N86: 89.18918919 | O86: 61 | P86: -5 | Q86: 88.4057971 | R86: 59 | T86: 85.50724638 | U86: 8 | V86: 1 | W86: 10.81081081 | X86: 8 | Y86: 0 | Z86: 11.5942029 | AA86: 10 | AB86: 2 | AC86: 14.49275362 | AD86: 8052 | AE86: 445 | AF86: 91.04477612 | AG86: 8933 | AH86: 881 | AI86: 91.85604113 | AJ86: 10383 | AK86: 92.76333423 | AL86: 1450 | AM86: 792 | AN86: 42 | AO86: 8.955223881 | AP86: 792 | AQ86: 0 | AR86: 8.143958869 | AS86: 810 | AT86: 18 | AU86: 7.236665773
A87: 2020-06-22 | E87: Alle | F87: 560584 | G87: 2376 | H87: 565800 | I87: 5216 | J87: 572473 | K87: 6673 | L87: 61 | M87: 88.4057971 | N87: 88.4057971 | O87: 59 | P87: -2 | Q87: 85.50724638 | R87: 57 | T87: 83.82352941 | U87: 8 | V87: 0 | W87: 11.5942029 | X87: 10 | Y87: 2 | Z87: 14.49275362 | AA87: 11 | AB87: 1 | AC87: 16.17647059 | AD87: 8933 | AE87: 881 | AF87: 91.85604113 | AG87: 10383 | AH87: 1450 | AI87: 92.76333423 | AJ87: 9288 | AK87: 91.76052164 | AL87: -1095 | AM87: 792 | AN87: 0 | AO87: 8.143958869 | AP87: 810 | AQ87: 18 | AR87: 7.236665773 | AS87: 834 | AT87: 24 | AU87: 8.239478364
A88: 2020-06-23 | E88: Alle | F88: 565800 | G88: 5216 | H88: 572473 | I88: 6673 | J88: 578584 | K88: 6111 | L88: 59 | M88: 85.50724638 | N88: 85.50724638 | O88: 57 | P88: -2 | Q88: 83.82352941 | R88: 59 | T88: 84.28571429 | U88: 10 | V88: 2 | W88: 14.49275362 | X88: 11 | Y88: 1 | Z88: 16.17647059 | AA88: 11 | AB88: 0 | AC88: 15.71428571 | AD88: 10383 | AE88: 1450 | AF88: 92.76333423 | AG88: 9288 | AH88: -1095 | AI88: 91.76052164 | AJ88: 7739 | AK88: 90.95075802 | AL88: -1549 | AM88: 810 | AN88: 18 | AO88: 7.236665773 | AP88: 834 | AQ88: 24 | AR88: 8.239478364 | AS88: 770 | AT88: -64 | AU88: 9.049241979
A89: 2020-06-24 | E89: Alle | F89: 572473 | G89: 6673 | H89: 578584 | I89: 6111 | J89: 584243 | K89: 5659 | L89: 57 | M89: 83.82352941 | N89: 83.82352941 | O89: 59 | P89: 2 | Q89: 84.28571429 | R89: 60 | T89: 84.50704225 | U89: 11 | V89: 1 | W89: 16.17647059 | X89: 11 | Y89: 0 | Z89: 15.71428571 | AA89: 11 | AB89: 0 | AC89: 15.49295775 | AD89: 9288 | AE89: -1095 | AF89: 91.76052164 | AG89: 7739 | AH89: -1549 | AI89: 90.95075802 | AJ89: 7291 | AK89: 90.87623084 | AL89: -448 | AM89: 834 | AN89: 24 | AO89: 8.239478364 | AP89: 770 | AQ89: -64 | AR89: 9.049241979 | AS89: 732 | AT89: -38 | AU89: 9.123769164
A90: 2020-06-25 | E90: Alle | F90: 578584 | G90: 6111 | H90: 584243 | I90: 5659 | J90: 590442 | K90: 6199 | L90: 59 | M90: 84.28571429 | N90: 84.28571429 | O90: 60 | P90: 1 | Q90: 84.50704225 | R90: 60 | T90: 85.71428571 | U90: 11 | V90: 0 | W90: 15.71428571 | X90: 11 | Y90: 0 | Z90: 15.49295775 | AA90: 10 | AB90: -1 | AC90: 14.28571429 | AD90: 7739 | AE90: -1549 | AF90: 90.95075802 | AG90: 7291 | AH90: -448 | AI90: 90.87623084 | AJ90: 7451 | AK90: 91.43453184 | AL90: 160 | AM90: 770 | AN90: -64 | AO90: 9.049241979 | AP90: 732 | AQ90: -38 | AR90: 9.123769164 | AS90: 698 | AT90: -34 | AU90: 8.565468156
A91: 2020-06-26 | E91: Alle | F91: 584243 | G91: 5659 | H91: 590442 | I91: 6199 | J91: 597495 | K91: 7053 | L91: 60 | M91: 84.50704225 | N91: 84.50704225 | O91: 60 | P91: 0 | Q91: 85.71428571 | R91: 61 | T91: 85.91549296 | U91: 11 | V91: 0 | W91: 15.49295775 | X91: 10 | Y91: -1 | Z91: 14.28571429 | AA91: 10 | AB91: 0 | AC91: 14.08450704 | AD91: 7291 | AE91: -448 | AF91: 90.87623084 | AG91: 7451 | AH91: 160 | AI91: 91.43453184 | AJ91: 7843 | AK91: 91.52759949 | AL91: 392 | AM91: 732 | AN91: -38 | AO91: 9.123769164 | AP91: 698 | AQ91: -34 | AR91: 8.565468156 | AS91: 726 | AT91: 28 | AU91: 8.472400513
A92: 2020-06-27 | E92: Alle | F92: 590442 | G92: 6199 | H92: 597495 | I92: 7053 | J92: 602520 | K92: 5025 | L92: 60 | M92: 85.71428571 | N92: 85.71428571 | O92: 61 | P92: 1 | Q92: 85.91549296 | R92: 62 | T92: 87.32394366 | U92: 10 | V92: -1 | W92: 14.28571429 | X92: 10 | Y92: 0 | Z92: 14.08450704 | AA92: 9 | AB92: -1 | AC92: 12.67605634 | AD92: 7451 | AE92: 160 | AF92: 91.43453184 | AG92: 7843 | AH92: 392 | AI92: 91.52759949 | AJ92: 8782 | AK92: 92.34490011 | AL92: 939 | AM92: 698 | AN92: -34 | AO92: 8.565468156 | AP92: 726 | AQ92: 28 | AR92: 8.472400513 | AS92: 728 | AT92: 2 | AU92: 7.655099895
A93: 2020-06-28 | E93: Alle | F93: 597495 | G93: 7053 | H93: 602520 | I93: 5025 | J93: 606375 | K93: 3855 | L93: 61 | M93: 85.91549296 | N93: 85.91549296 | O93: 62 | P93: 1 | Q93: 87.32394366 | R93: 66 | T93: 89.18918919 | U93: 10 | V93: 0 | W93: 14.08450704 | X93: 9 | Y93: -1 | Z93: 12.67605634 | AA93: 8 | AB93: -1 | AC93: 10.81081081 | AD93: 7843 | AE93: 392 | AF93: 91.52759949 | AG93: 8782 | AH93: 939 | AI93: 92.34490011 | AJ93: 10415 | AK93: 93.14076194 | AL93: 1633 | AM93: 726 | AN93: 28 | AO93: 8.472400513 | AP93: 728 | AQ93: 2 | AR93: 7.655099895 | AS93: 767 | AT93: 39 | AU93: 6.859238061
A94: 2020-06-29 | E94: Alle | F94: 602520 | G94: 5025 | H94: 606375 | I94: 3855 | J94: 612756 | K94: 6381 | L94: 62 | M94: 87.32394366 | N94: 87.32394366 | O94: 66 | P94: 4 | Q94: 89.18918919 | R94: 58 | T94: 90.625 | U94: 9 | V94: -1 | W94: 12.67605634 | X94: 8 | Y94: -1 | Z94: 10.81081081 | AA94: 6 | AB94: -2 | AC94: 9.375 | AD94: 8782 | AE94: 939 | AF94: 92.34490011 | AG94: 10415 | AH94: 1633 | AI94: 93.14076194 | AJ94: 8969 | AK94: 92.54978846 | AL94: -1446 | AM94: 728 | AN94: 2 | AO94: 7.655099895 | AP94: 767 | AQ94: 39 | AR94: 6.859238061 | AS94: 722 | AT94: -45 | AU94: 7.450211536
A95: 2020-06-30 | E95: Alle | F95: 606375 | G95: 3855 | H95: 612756 | I95: 6381 | J95: 620866 | K95: 8110 | L95: 66 | M95: 89.18918919 | N95: 89.18918919 | O95: 58 | P95: -8 | Q95: 90.625 | R95: 65 | T95: 87.83783784 | U95: 8 | V95: -1 | W95: 10.81081081 | X95: 6 | Y95: -2 | Z95: 9.375 | AA95: 9 | AB95: 3 | AC95: 12.16216216 | AD95: 10415 | AE95: 1633 | AF95: 93.14076194 | AG95: 8969 | AH95: -1446 | AI95: 92.54978846 | AJ95: 7886 | AK95: 91.35773865 | AL95: -1083 | AM95: 767 | AN95: 39 | AO95: 6.859238061 | AP95: 722 | AQ95: -45 | AR95: 7.450211536 | AS95: 746 | AT95: 24 | AU95: 8.642261353
A96: 2020-07-01 | E96: Alle | F96: 612756 | G96: 6381 | H96: 620866 | I96: 8110 | J96: 628700 | K96: 7834 | L96: 58 | M96: 90.625 | N96: 90.625 | O96: 65 | P96: 7 | Q96: 87.83783784 | R96: 62 | T96: 89.85507246 | U96: 6 | V96: -2 | W96: 9.375 | X96: 9 | Y96: 3 | Z96: 12.16216216 | AA96: 7 | AB96: -2 | AC96: 10.14492754 | AD96: 8969 | AE96: -1446 | AF96: 92.54978846 | AG96: 7886 | AH96: -1083 | AI96: 91.35773865 | AJ96: 7274 | AK96: 91.0387985 | AL96: -612 | AM96: 722 | AN96: -45 | AO96: 7.450211536 | AP96: 746 | AQ96: 24 | AR96: 8.642261353 | AS96: 716 | AT96: -30 | AU96: 8.961201502
A97: 2020-07-02 | E97: Alle | F97: 620866 | G97: 8110 | H97: 628700 | I97: 7834 | J97: 635505 | K97: 6805 | L97: 65 | M97: 87.83783784 | N97: 87.83783784 | O97: 62 | P97: -3 | Q97: 89.85507246 | R97: 65 | T97: 90.27777778 | U97: 9 | V97: 3 | W97: 12.16216216 | X97: 7 | Y97: -2 | Z97: 10.14492754 | AA97: 7 | AB97: 0 | AC97: 9.722222222 | AD97: 7886 | AE97: -1083 | AF97: 91.35773865 | AG97: 7274 | AH97: -612 | AI97: 91.0387985 | AJ97: 7269 | AK97: 91.2388603 | AL97: -5 | AM97: 746 | AN97: 24 | AO97: 8.642261353 | AP97: 716 | AQ97: -30 | AR97: 8.961201502 | AS97: 698 | AT97: -18 | AU97: 8.761139701
A98: 2020-07-03 | E98: Alle | F98: 628700 | G98: 7834 | H98: 635505 | I98: 6805 | J98: 642679 | K98: 7174 | L98: 62 | M98: 89.85507246 | N98: 89.85507246 | O98: 65 | P98: 3 | Q98: 90.27777778 | R98: 60 | T98: 88.23529412 | U98: 7 | V98: -2 | W98: 10.14492754 | X98: 7 | Y98: 0 | Z98: 9.722222222 | AA98: 8 | AB98: 1 | AC98: 11.76470588 | AD98: 7274 | AE98: -612 | AF98: 91.0387985 | AG98: 7269 | AH98: -5 | AI98: 91.2388603 | AJ98: 7622 | AK98: 91.65464165 | AL98: 353 | AM98: 716 | AN98: -30 | AO98: 8.961201502 | AP98: 698 | AQ98: -18 | AR98: 8.761139701 | AS98: 694 | AT98: -4 | AU98: 8.345358345
A99: 2020-07-04 | E99: Alle | F99: 635505 | G99: 6805 | H99: 642679 | I99: 7174 | J99: 647804 | K99: 5125 | L99: 65 | M99: 90.27777778 | N99: 90.27777778 | O99: 60 | P99: -5 | Q99: 88.23529412 | R99: 62 | T99: 86.11111111 | U99: 7 | V99: 0 | W99: 9.722222222 | X99: 8 | Y99: 1 | Z99: 11.76470588 | AA99: 10 | AB99: 2 | AC99: 13.88888889 | AD99: 7269 | AE99: -5 | AF99: 91.2388603 | AG99: 7622 | AH99: 353 | AI99: 91.65464165 | AJ99: 8522 | AK99: 92.35938008 | AL99: 900 | AM99: 698 | AN99: -18 | AO99: 8.761139701 | AP99: 694 | AQ99: -4 | AR99: 8.345358345 | AS99: 705 | AT99: 11 | AU99: 7.64061992
A100: 2020-07-05 | E100: Alle | F100: 642679 | G100: 7174 | H100: 647804 | I100: 5125 | J100: 654105 | K100: 6301 | L100: 60 | M100: 88.23529412 | N100: 88.23529412 | O100: 62 | P100: 2 | Q100: 86.11111111 | R100: 67 | T100: 85.8974359 | U100: 8 | V100: 1 | W100: 11.76470588 | X100: 10 | Y100: 2 | Z100: 13.88888889 | AA100: 11 | AB100: 1 | AC100: 14.1025641 | AD100: 7622 | AE100: 353 | AF100: 91.65464165 | AG100: 8522 | AH100: 900 | AI100: 92.35938008 | AJ100: 10109 | AK100: 93.22205828 | AL100: 1587 | AM100: 694 | AN100: -4 | AO100: 8.345358345 | AP100: 705 | AQ100: 11 | AR100: 7.64061992 | AS100: 735 | AT100: 30 | AU100: 6.777941719
A101: 2020-07-06 | E101: Alle | F101: 647804 | G101: 5125 | H101: 654105 | I101: 6301 | J101: 660149 | K101: 6044 | L101: 62 | M101: 86.11111111 | N101: 86.11111111 | O101: 67 | P101: 5 | Q101: 85.8974359 | R101: 81 | T101: 89.01098901 | U101: 10 | V101: 2 | W101: 13.88888889 | X101: 11 | Y101: 1 | Z101: 14.1025641 | AA101: 10 | AB101: -1 | AC101: 10.98901099 | AD101: 8522 | AE101: 900 | AF101: 92.35938008 | AG101: 10109 | AH101: 1587 | AI101: 93.22205828 | AJ101: 8986 | AK101: 92.51518583 | AL101: -1123 | AM101: 705 | AN101: 11 | AO101: 7.64061992 | AP101: 735 | AQ101: 30 | AR101: 6.777941719 | AS101: 727 | AT101: -8 | AU101: 7.484814167
A102: 2020-07-07 | E102: Alle | F102: 654105 | G102: 6301 | H102: 660149 | I102: 6044 | J102: 668220 | K102: 8071 | L102: 67 | M102: 85.8974359 | N102: 85.8974359 | O102: 81 | P102: 14 | Q102: 89.01098901 | R102: 66 | T102: 85.71428571 | U102: 11 | V102: 1 | W102: 14.1025641 | X102: 10 | Y102: -1 | Z102: 10.98901099 | AA102: 11 | AB102: 1 | AC102: 14.28571429 | AD102: 10109 | AE102: 1587 | AF102: 93.22205828 | AG102: 8986 | AH102: -1123 | AI102: 92.51518583 | AJ102: 7689 | AK102: 91.69946333 | AL102: -1297 | AM102: 735 | AN102: 30 | AO102: 6.777941719 | AP102: 727 | AQ102: -8 | AR102: 7.484814167 | AS102: 696 | AT102: -31 | AU102: 8.300536673
A103: 2020-07-08 | E103: Alle | F103: 660149 | G103: 6044 | H103: 668220 | I103: 8071 | J103: 675727 | K103: 7507 | L103: 81 | M103: 89.01098901 | N103: 89.01098901 | O103: 66 | P103: -15 | Q103: 85.71428571 | R103: 66 | T103: 84.61538462 | U103: 10 | V103: -1 | W103: 10.98901099 | X103: 11 | Y103: 1 | Z103: 14.28571429 | AA103: 12 | AB103: 1 | AC103: 15.38461538 | AD103: 8986 | AE103: -1123 | AF103: 92.51518583 | AG103: 7689 | AH103: -1297 | AI103: 91.69946333 | AJ103: 7160 | AK103: 91.43149023 | AL103: -529 | AM103: 727 | AN103: -8 | AO103: 7.484814167 | AP103: 696 | AQ103: -31 | AR103: 8.300536673 | AS103: 671 | AT103: -25 | AU103: 8.568509769
A104: 2020-07-09 | E104: Alle | F104: 668220 | G104: 8071 | H104: 675727 | I104: 7507 | J104: 683484 | K104: 7757 | L104: 66 | M104: 85.71428571 | N104: 85.71428571 | O104: 66 | P104: 0 | Q104: 84.61538462 | R104: 71 | T104: 88.75 | U104: 11 | V104: 1 | W104: 14.28571429 | X104: 12 | Y104: 1 | Z104: 15.38461538 | AA104: 9 | AB104: -3 | AC104: 11.25 | AD104: 7689 | AE104: -1297 | AF104: 91.69946333 | AG104: 7160 | AH104: -529 | AI104: 91.43149023 | AJ104: 7234 | AK104: 91.25772676 | AL104: 74 | AM104: 696 | AN104: -31 | AO104: 8.300536673 | AP104: 671 | AQ104: -25 | AR104: 8.568509769 | AS104: 693 | AT104: 22 | AU104: 8.742273243
A105: 2020-07-10 | E105: Alle | F105: 675727 | G105: 7507 | H105: 683484 | I105: 7757 | J105: 691709 | K105: 8225 | L105: 66 | M105: 84.61538462 | N105: 84.61538462 | O105: 71 | P105: 5 | Q105: 88.75 | R105: 68 | T105: 88.31168831 | U105: 12 | V105: 1 | W105: 15.38461538 | X105: 9 | Y105: -3 | Z105: 11.25 | AA105: 9 | AB105: 0 | AC105: 11.68831169 | AD105: 7160 | AE105: -529 | AF105: 91.43149023 | AG105: 7234 | AH105: 74 | AI105: 91.25772676 | AJ105: 7730 | AK105: 91.79432371 | AL105: 496 | AM105: 671 | AN105: -25 | AO105: 8.568509769 | AP105: 693 | AQ105: 22 | AR105: 8.742273243 | AS105: 691 | AT105: -2 | AU105: 8.205676285
A106: 2020-07-11 | E106: Alle | F106: 683484 | G106: 7757 | H106: 691709 | I106: 8225 | J106: 696740 | K106: 5031 | L106: 71 | M106: 88.75 | N106: 88.75 | O106: 68 | P106: -3 | Q106: 88.31168831 | R106: 73 | T106: 87.95180723 | U106: 9 | V106: -3 | W106: 11.25 | X106: 9 | Y106: 0 | Z106: 11.68831169 | AA106: 10 | AB106: 1 | AC106: 12.04819277 | AD106: 7234 | AE106: 74 | AF106: 91.25772676 | AG106: 7730 | AH106: 496 | AI106: 91.79432371 | AJ106: 8449 | AK106: 92.18767049 | AL106: 719 | AM106: 693 | AN106: 22 | AO106: 8.742273243 | AP106: 691 | AQ106: -2 | AR106: 8.205676285 | AS106: 716 | AT106: 25 | AU106: 7.812329514
A107: 2020-07-12 | E107: Alle | F107: 691709 | G107: 8225 | H107: 696740 | I107: 5031 | J107: 700616 | K107: 3876 | L107: 68 | M107: 88.31168831 | N107: 88.31168831 | O107: 73 | P107: 5 | Q107: 87.95180723 | R107: 74 | T107: 90.24390244 | U107: 9 | V107: 0 | W107: 11.68831169 | X107: 10 | Y107: 1 | Z107: 12.04819277 | AA107: 8 | AB107: -2 | AC107: 9.756097561 | AD107: 7730 | AE107: 496 | AF107: 91.79432371 | AG107: 8449 | AH107: 719 | AI107: 92.18767049 | AJ107: 10106 | AK107: 93.49616061 | AL107: 1657 | AM107: 691 | AN107: -2 | AO107: 8.205676285 | AP107: 716 | AQ107: 25 | AR107: 7.812329514 | AS107: 703 | AT107: -13 | AU107: 6.503839393
A108: 2020-07-13 | E108: Alle | F108: 696740 | G108: 5031 | H108: 700616 | I108: 3876 | J108: 708128 | K108: 7512 | L108: 73 | M108: 87.95180723 | N108: 87.95180723 | O108: 74 | P108: 1 | Q108: 90.24390244 | R108: 74 | T108: 89.15662651 | U108: 10 | V108: 1 | W108: 12.04819277 | X108: 8 | Y108: -2 | Z108: 9.756097561 | AA108: 9 | AB108: 1 | AC108: 10.84337349 | AD108: 8449 | AE108: 719 | AF108: 92.18767049 | AG108: 10106 | AH108: 1657 | AI108: 93.49616061 | AJ108: 9071 | AK108: 92.41976566 | AL108: -1035 | AM108: 716 | AN108: 25 | AO108: 7.812329514 | AP108: 703 | AQ108: -13 | AR108: 6.503839393 | AS108: 744 | AT108: 41 | AU108: 7.580234335
A109: 2020-07-14 | E109: Alle | F109: 700616 | G109: 3876 | H109: 708128 | I109: 7512 | J109: 716293 | K109: 8165 | L109: 74 | M109: 90.24390244 | N109: 90.24390244 | O109: 74 | P109: 0 | Q109: 89.15662651 | R109: 86 | T109: 89.58333333 | U109: 8 | V109: -2 | W109: 9.756097561 | X109: 9 | Y109: 1 | Z109: 10.84337349 | AA109: 10 | AB109: 1 | AC109: 10.41666667 | AD109: 10106 | AE109: 1657 | AF109: 93.49616061 | AG109: 9071 | AH109: -1035 | AI109: 92.41976566 | AJ109: 7769 | AK109: 91.56157926 | AL109: -1302 | AM109: 703 | AN109: -13 | AO109: 6.503839393 | AP109: 744 | AQ109: 41 | AR109: 7.580234335 | AS109: 716 | AT109: -28 | AU109: 8.438420742
A110: 2020-07-15 | E110: Alle | F110: 708128 | G110: 7512 | H110: 716293 | I110: 8165 | J110: 726345 | K110: 10052 | L110: 74 | M110: 89.15662651 | N110: 89.15662651 | O110: 86 | P110: 12 | Q110: 89.58333333 | R110: 83 | T110: 88.29787234 | U110: 9 | V110: 1 | W110: 10.84337349 | X110: 10 | Y110: 1 | Z110: 10.41666667 | AA110: 11 | AB110: 1 | AC110: 11.70212766 | AD110: 9071 | AE110: -1035 | AF110: 92.41976566 | AG110: 7769 | AH110: -1302 | AI110: 91.56157926 | AJ110: 7221 | AK110: 90.99042339 | AL110: -548 | AM110: 744 | AN110: 41 | AO110: 7.580234335 | AP110: 716 | AQ110: -28 | AR110: 8.438420742 | AS110: 715 | AT110: -1 | AU110: 9.009576613
A111: 2020-07-16 | E111: Alle | F111: 716293 | G111: 8165 | H111: 726345 | I111: 10052 | J111: 734413 | K111: 8068 | L111: 86 | M111: 89.58333333 | N111: 89.58333333 | O111: 83 | P111: -3 | Q111: 88.29787234 | R111: 88 | T111: 88.88888889 | U111: 10 | V111: 1 | W111: 10.41666667 | X111: 11 | Y111: 1 | Z111: 11.70212766 | AA111: 11 | AB111: 0 | AC111: 11.11111111 | AD111: 7769 | AE111: -1302 | AF111: 91.56157926 | AG111: 7221 | AH111: -548 | AI111: 90.99042339 | AJ111: 7138 | AK111: 90.7334435 | AL111: -83 | AM111: 716 | AN111: -28 | AO111: 8.438420742 | AP111: 715 | AQ111: -1 | AR111: 9.009576613 | AS111: 729 | AT111: 14 | AU111: 9.266556502
A112: 2020-07-17 | E112: Alle | F112: 726345 | G112: 10052 | H112: 734413 | I112: 8068 | J112: 743090 | K112: 8677 | L112: 83 | M112: 88.29787234 | N112: 88.29787234 | O112: 88 | P112: 5 | Q112: 88.88888889 | R112: 87 | T112: 88.7755102 | U112: 11 | V112: 1 | W112: 11.70212766 | X112: 11 | Y112: 0 | Z112: 11.11111111 | AA112: 11 | AB112: 0 | AC112: 11.2244898 | AD112: 7221 | AE112: -548 | AF112: 90.99042339 | AG112: 7138 | AH112: -83 | AI112: 90.7334435 | AJ112: 7588 | AK112: 90.90691266 | AL112: 450 | AM112: 715 | AN112: -1 | AO112: 9.009576613 | AP112: 729 | AQ112: 14 | AR112: 9.266556502 | AS112: 759 | AT112: 30 | AU112: 9.093087337
A113: 2020-07-18 | E113: Alle | F113: 734413 | G113: 8068 | H113: 743090 | I113: 8677 | J113: 748669 | K113: 5579 | L113: 88 | M113: 88.88888889 | N113: 88.88888889 | O113: 87 | P113: -1 | Q113: 88.7755102 | R113: 85 | T113: 85.85858586 | U113: 11 | V113: 0 | W113: 11.11111111 | X113: 11 | Y113: 0 | Z113: 11.2244898 | AA113: 14 | AB113: 3 | AC113: 14.14141414 | AD113: 7138 | AE113: -83 | AF113: 90.7334435 | AG113: 7588 | AH113: 450 | AI113: 90.90691266 | AJ113: 8273 | AK113: 91.43457118 | AL113: 685 | AM113: 729 | AN113: 14 | AO113: 9.266556502 | AP113: 759 | AQ113: 30 | AR113: 9.093087337 | AS113: 775 | AT113: 16 | AU113: 8.565428824
A114: 2020-07-19 | E114: Alle | F114: 743090 | G114: 8677 | H114: 748669 | I114: 5579 | J114: 798436 | K114: 49767 | L114: 87 | M114: 88.7755102 | N114: 88.7755102 | O114: 85 | P114: -2 | Q114: 85.85858586 | R114: 96 | T114: 85.71428571 | U114: 11 | V114: 0 | W114: 11.2244898 | X114: 14 | Y114: 3 | Z114: 14.14141414 | AA114: 16 | AB114: 2 | AC114: 14.28571429 | AD114: 7588 | AE114: 450 | AF114: 90.90691266 | AG114: 8273 | AH114: 685 | AI114: 91.43457118 | AJ114: 9750 | AK114: 92.54864737 | AL114: 1477 | AM114: 759 | AN114: 30 | AO114: 9.093087337 | AP114: 775 | AQ114: 16 | AR114: 8.565428824 | AS114: 785 | AT114: 10 | AU114: 7.451352634
A115: 2020-07-20 | E115: Alle | F115: 748669 | G115: 5579 | H115: 798436 | I115: 49767 | J115: 805600 | K115: 7164 | L115: 85 | M115: 85.85858586 | N115: 85.85858586 | O115: 96 | P115: 11 | Q115: 85.71428571 | R115: 96 | T115: 84.21052632 | U115: 14 | V115: 3 | W115: 14.14141414 | X115: 16 | Y115: 2 | Z115: 14.28571429 | AA115: 18 | AB115: 2 | AC115: 15.78947368 | AD115: 8273 | AE115: 685 | AF115: 91.43457118 | AG115: 9750 | AH115: 1477 | AI115: 92.54864737 | AJ115: 8752 | AK115: 91.89416212 | AL115: -998 | AM115: 775 | AN115: 16 | AO115: 8.565428824 | AP115: 785 | AQ115: 10 | AR115: 7.451352634 | AS115: 772 | AT115: -13 | AU115: 8.105837883
A116: 2020-07-21 | E116: Alle | F116: 798436 | G116: 49767 | H116: 805600 | I116: 7164 | J116: 814681 | K116: 9081 | L116: 96 | M116: 85.71428571 | N116: 85.71428571 | O116: 96 | P116: 0 | Q116: 84.21052632 | R116: 93 | T116: 83.78378378 | U116: 16 | V116: 2 | W116: 14.28571429 | X116: 18 | Y116: 2 | Z116: 15.78947368 | AA116: 18 | AB116: 0 | AC116: 16.21621622 | AD116: 9750 | AE116: 1477 | AF116: 92.54864737 | AG116: 8752 | AH116: -998 | AI116: 91.89416212 | AJ116: 7452 | AK116: 90.8226691 | AL116: -1300 | AM116: 785 | AN116: 10 | AO116: 7.451352634 | AP116: 772 | AQ116: -13 | AR116: 8.105837883 | AS116: 753 | AT116: -19 | AU116: 9.177330896
A117: 2020-07-22 | E117: Alle | F117: 805600 | G117: 7164 | H117: 814681 | I117: 9081 | J117: 826031 | K117: 11350 | L117: 96 | M117: 84.21052632 | N117: 84.21052632 | O117: 93 | P117: -3 | Q117: 83.78378378 | R117: 87 | T117: 85.29411765 | U117: 18 | V117: 2 | W117: 15.78947368 | X117: 18 | Y117: 0 | Z117: 16.21621622 | AA117: 15 | AB117: -3 | AC117: 14.70588235 | AD117: 8752 | AE117: -998 | AF117: 91.89416212 | AG117: 7452 | AH117: -1300 | AI117: 90.8226691 | AJ117: 7143 | AK117: 90.6127109 | AL117: -309 | AM117: 772 | AN117: -13 | AO117: 8.105837883 | AP117: 753 | AQ117: -19 | AR117: 9.177330896 | AS117: 740 | AT117: -13 | AU117: 9.387289103
A118: 2020-07-23 | E118: Alle | F118: 814681 | G118: 9081 | H118: 826031 | I118: 11350 | J118: 833841 | K118: 7810 | L118: 93 | M118: 83.78378378 | N118: 83.78378378 | O118: 87 | P118: -6 | Q118: 85.29411765 | R118: 86 | T118: 83.49514563 | U118: 18 | V118: 0 | W118: 16.21621622 | X118: 15 | Y118: -3 | Z118: 14.70588235 | AA118: 17 | AB118: 2 | AC118: 16.50485437 | AD118: 7452 | AE118: -1300 | AF118: 90.8226691 | AG118: 7143 | AH118: -309 | AI118: 90.6127109 | AJ118: 7029 | AK118: 90.39351852 | AL118: -114 | AM118: 753 | AN118: -19 | AO118: 9.177330896 | AP118: 740 | AQ118: -13 | AR118: 9.387289103 | AS118: 747 | AT118: 7 | AU118: 9.606481481
A119: 2020-07-24 | E119: Alle | F119: 826031 | G119: 11350 | H119: 833841 | I119: 7810 | J119: 840890 | K119: 7049 | L119: 87 | M119: 85.29411765 | N119: 85.29411765 | O119: 86 | P119: -1 | Q119: 83.49514563 | R119: 85 | T119: 84.15841584 | U119: 15 | V119: -3 | W119: 14.70588235 | X119: 17 | Y119: 2 | Z119: 16.50485437 | AA119: 16 | AB119: -1 | AC119: 15.84158416 | AD119: 7143 | AE119: -309 | AF119: 90.6127109 | AG119: 7029 | AH119: -114 | AI119: 90.39351852 | AJ119: 7447 | AK119: 90.87248322 | AL119: 418 | AM119: 740 | AN119: -13 | AO119: 9.387289103 | AP119: 747 | AQ119: 7 | AR119: 9.606481481 | AS119: 748 | AT119: 1 | AU119: 9.127516779
A120: 2020-07-25 | E120: Alle | F120: 833841 | G120: 7810 | H120: 840890 | I120: 7049 | J120: 847898 | K120: 7008 | L120: 86 | M120: 83.49514563 | N120: 83.49514563 | O120: 85 | P120: -1 | Q120: 84.15841584 | R120: 82 | T120: 84.53608247 | U120: 17 | V120: 2 | W120: 16.50485437 | X120: 16 | Y120: -1 | Z120: 15.84158416 | AA120: 15 | AB120: -1 | AC120: 15.46391753 | AD120: 7029 | AE120: -114 | AF120: 90.39351852 | AG120: 7447 | AH120: 418 | AI120: 90.87248322 | AJ120: 8356 | AK120: 91.41231813 | AL120: 909 | AM120: 747 | AN120: 7 | AO120: 9.606481481 | AP120: 748 | AQ120: 1 | AR120: 9.127516779 | AS120: 785 | AT120: 37 | AU120: 8.587681873
A121: 2020-07-26 | E121: Alle | F121: 840890 | G121: 7049 | H121: 847898 | I121: 7008 | J121: 853169 | K121: 5271 | L121: 85 | M121: 84.15841584 | N121: 84.15841584 | O121: 82 | P121: -3 | Q121: 84.53608247 | R121: 79 | T121: 83.15789474 | U121: 16 | V121: -1 | W121: 15.84158416 | X121: 15 | Y121: -1 | Z121: 15.46391753 | AA121: 16 | AB121: 1 | AC121: 16.84210526 | AD121: 7447 | AE121: 418 | AF121: 90.87248322 | AG121: 8356 | AH121: 909 | AI121: 91.41231813 | AJ121: 10662 | AK121: 93.14230803 | AL121: 2306 | AM121: 748 | AN121: 1 | AO121: 9.127516779 | AP121: 785 | AQ121: 37 | AR121: 8.587681873 | AS121: 785 | AT121: 0 | AU121: 6.857691972
A122: 2020-07-27 | E122: Alle | F122: 847898 | G122: 7008 | H122: 853169 | I122: 5271 | J122: 861206 | K122: 8037 | L122: 82 | M122: 84.53608247 | N122: 84.53608247 | O122: 79 | P122: -3 | Q122: 83.15789474 | R122: 74 | T122: 83.14606742 | U122: 15 | V122: -1 | W122: 15.46391753 | X122: 16 | Y122: 1 | Z122: 16.84210526 | AA122: 15 | AB122: -1 | AC122: 16.85393258 | AD122: 8356 | AE122: 909 | AF122: 91.41231813 | AG122: 10662 | AH122: 2306 | AI122: 93.14230803 | AJ122: 9384 | AK122: 92.47142294 | AL122: -1278 | AM122: 785 | AN122: 37 | AO122: 8.587681873 | AP122: 785 | AQ122: 0 | AR122: 6.857691972 | AS122: 764 | AT122: -21 | AU122: 7.52857706
A123: 2020-07-28 | E123: Alle | F123: 853169 | G123: 5271 | H123: 861206 | I123: 8037 | J123: 870602 | K123: 9396 | L123: 79 | M123: 83.15789474 | N123: 83.15789474 | O123: 74 | P123: -5 | Q123: 83.14606742 | R123: 74 | T123: 78.72340426 | U123: 16 | V123: 1 | W123: 16.84210526 | X123: 15 | Y123: -1 | Z123: 16.85393258 | AA123: 20 | AB123: 5 | AC123: 21.27659574 | AD123: 10662 | AE123: 2306 | AF123: 93.14230803 | AG123: 9384 | AH123: -1278 | AI123: 92.47142294 | AJ123: 7559 | AK123: 91.01745936 | AL123: -1825 | AM123: 785 | AN123: 0 | AO123: 6.857691972 | AP123: 764 | AQ123: -21 | AR123: 7.52857706 | AS123: 746 | AT123: -18 | AU123: 8.982540638
A124: 2020-07-29 | E124: Alle | F124: 861206 | G124: 8037 | H124: 870602 | I124: 9396 | J124: 880036 | K124: 9434 | L124: 74 | M124: 83.14606742 | N124: 83.14606742 | O124: 74 | P124: 0 | Q124: 78.72340426 | R124: 87 | T124: 82.85714286 | U124: 15 | V124: -1 | W124: 16.85393258 | X124: 20 | Y124: 5 | Z124: 21.27659574 | AA124: 18 | AB124: -2 | AC124: 17.14285714 | AD124: 9384 | AE124: -1278 | AF124: 92.47142294 | AG124: 7559 | AH124: -1825 | AI124: 91.01745936 | AJ124: 7265 | AK124: 91.02869315 | AL124: -294 | AM124: 764 | AN124: -21 | AO124: 7.52857706 | AP124: 746 | AQ124: -18 | AR124: 8.982540638 | AS124: 716 | AT124: -30 | AU124: 8.971306854
A125: 2020-07-30 | E125: Alle | F125: 870602 | G125: 9396 | H125: 880036 | I125: 9434 | J125: 890461 | K125: 10425 | L125: 74 | M125: 78.72340426 | N125: 78.72340426 | O125: 87 | P125: 13 | Q125: 82.85714286 | R125: 84 | T125: 84 | U125: 20 | V125: 5 | W125: 21.27659574 | X125: 18 | Y125: -2 | Z125: 17.14285714 | AA125: 16 | AB125: -2 | AC125: 16 | AD125: 7559 | AE125: -1825 | AF125: 91.01745936 | AG125: 7265 | AH125: -294 | AI125: 91.02869315 | AJ125: 7342 | AK125: 90.87758386 | AL125: 77 | AM125: 746 | AN125: -18 | AO125: 8.982540638 | AP125: 716 | AQ125: -30 | AR125: 8.971306854 | AS125: 737 | AT125: 21 | AU125: 9.122416141
A126: 2020-07-31 | E126: Alle | F126: 880036 | G126: 9434 | H126: 890461 | I126: 10425 | J126: 897819 | K126: 7358 | L126: 87 | M126: 82.85714286 | N126: 82.85714286 | O126: 84 | P126: -3 | Q126: 84 | R126: 70 | T126: 78.65168539 | U126: 18 | V126: -2 | W126: 17.14285714 | X126: 16 | Y126: -2 | Z126: 16 | AA126: 19 | AB126: 3 | AC126: 21.34831461 | AD126: 7265 | AE126: -294 | AF126: 91.02869315 | AG126: 7342 | AH126: 77 | AI126: 90.87758386 | AJ126: 7878 | AK126: 91.28621089 | AL126: 536 | AM126: 716 | AN126: -30 | AO126: 8.971306854 | AP126: 737 | AQ126: 21 | AR126: 9.122416141 | AS126: 752 | AT126: 15 | AU126: 8.713789108
A127: 2020-08-01 | E127: Alle | F127: 890461 | G127: 10425 | H127: 897819 | I127: 7358 | J127: 905314 | K127: 7495 | L127: 84 | M127: 84 | N127: 84 | O127: 70 | P127: -14 | Q127: 78.65168539 | R127: 73 | T127: 78.49462366 | U127: 16 | V127: -2 | W127: 16 | X127: 19 | Y127: 3 | Z127: 21.34831461 | AA127: 20 | AB127: 1 | AC127: 21.50537634 | AD127: 7342 | AE127: 77 | AF127: 90.87758386 | AG127: 7878 | AH127: 536 | AI127: 91.28621089 | AJ127: 8594 | AK127: 92.05227078 | AL127: 716 | AM127: 737 | AN127: 21 | AO127: 9.122416141 | AP127: 752 | AQ127: 15 | AR127: 8.713789108 | AS127: 742 | AT127: -10 | AU127: 7.94772922
A128: 2020-08-02 | E128: Alle | F128: 897819 | G128: 7358 | H128: 905314 | I128: 7495 | J128: 910437 | K128: 5123 | L128: 70 | M128: 78.65168539 | N128: 78.65168539 | O128: 73 | P128: 3 | Q128: 78.49462366 | R128: 92 | T128: 81.4159292 | U128: 19 | V128: 3 | W128: 21.34831461 | X128: 20 | Y128: 1 | Z128: 21.50537634 | AA128: 21 | AB128: 1 | AC128: 18.5840708 | AD128: 7878 | AE128: 536 | AF128: 91.28621089 | AG128: 8594 | AH128: 716 | AI128: 92.05227078 | AJ128: 10247 | AK128: 92.80862241 | AL128: 1653 | AM128: 752 | AN128: 15 | AO128: 8.713789108 | AP128: 742 | AQ128: -10 | AR128: 7.94772922 | AS128: 794 | AT128: 52 | AU128: 7.191377593
A129: 2020-08-03 | E129: Alle | F129: 905314 | G129: 7495 | H129: 910437 | I129: 5123 | J129: 916778 | K129: 6341 | L129: 73 | M129: 78.49462366 | N129: 78.49462366 | O129: 92 | P129: 19 | Q129: 81.4159292 | R129: 84 | T129: 78.5046729 | U129: 20 | V129: 1 | W129: 21.50537634 | X129: 21 | Y129: 1 | Z129: 18.5840708 | AA129: 23 | AB129: 2 | AC129: 21.4953271 | AD129: 8594 | AE129: 716 | AF129: 92.05227078 | AG129: 10247 | AH129: 1653 | AI129: 92.80862241 | AJ129: 8985 | AK129: 91.83360589 | AL129: -1262 | AM129: 742 | AN129: -10 | AO129: 7.94772922 | AP129: 794 | AQ129: 52 | AR129: 7.191377593 | AS129: 799 | AT129: 5 | AU129: 8.166394113
A130: 2020-08-04 | E130: Alle | F130: 910437 | G130: 5123 | H130: 916778 | I130: 6341 | J130: 923902 | K130: 7124 | L130: 92 | M130: 81.4159292 | N130: 81.4159292 | O130: 84 | P130: -8 | Q130: 78.5046729 | R130: 90 | T130: 78.26086957 | U130: 21 | V130: 1 | W130: 18.5840708 | X130: 23 | Y130: 2 | Z130: 21.4953271 | AA130: 25 | AB130: 2 | AC130: 21.73913043 | AD130: 10247 | AE130: 1653 | AF130: 92.80862241 | AG130: 8985 | AH130: -1262 | AI130: 91.83360589 | AJ130: 7925 | AK130: 91.69269929 | AL130: -1060 | AM130: 794 | AN130: 52 | AO130: 7.191377593 | AP130: 799 | AQ130: 5 | AR130: 8.166394113 | AS130: 718 | AT130: -81 | AU130: 8.307300706
A131: 2020-08-05 | E131: Alle | F131: 916778 | G131: 6341 | H131: 923902 | I131: 7124 | J131: 937275 | K131: 13373 | L131: 84 | M131: 78.5046729 | N131: 78.5046729 | O131: 90 | P131: 6 | Q131: 78.26086957 | R131: 92 | T131: 78.63247863 | U131: 23 | V131: 2 | W131: 21.4953271 | X131: 25 | Y131: 2 | Z131: 21.73913043 | AA131: 25 | AB131: 0 | AC131: 21.36752137 | AD131: 8985 | AE131: -1262 | AF131: 91.83360589 | AG131: 7925 | AH131: -1060 | AI131: 91.69269929 | AJ131: 7309 | AK131: 90.72740814 | AL131: -616 | AM131: 799 | AN131: 5 | AO131: 8.166394113 | AP131: 718 | AQ131: -81 | AR131: 8.307300706 | AS131: 747 | AT131: 29 | AU131: 9.272591857
A132: 2020-08-06 | E132: Alle | F132: 923902 | G132: 7124 | H132: 937275 | I132: 13373 | J132: 947305 | K132: 10030 | L132: 90 | M132: 78.26086957 | N132: 78.26086957 | O132: 92 | P132: 2 | Q132: 78.63247863 | R132: 93 | T132: 78.81355932 | U132: 25 | V132: 2 | W132: 21.73913043 | X132: 25 | Y132: 0 | Z132: 21.36752137 | AA132: 25 | AB132: 0 | AC132: 21.18644068 | AD132: 7925 | AE132: -1060 | AF132: 91.69269929 | AG132: 7309 | AH132: -616 | AI132: 90.72740814 | AJ132: 7350 | AK132: 90.84167594 | AL132: 41 | AM132: 718 | AN132: -81 | AO132: 8.307300706 | AP132: 747 | AQ132: 29 | AR132: 9.272591857 | AS132: 741 | AT132: -6 | AU132: 9.158324064
A133: 2020-08-07 | E133: Alle | F133: 937275 | G133: 13373 | H133: 947305 | I133: 10030 | J133: 955239 | K133: 7934 | L133: 92 | M133: 78.63247863 | N133: 78.63247863 | O133: 93 | P133: 1 | Q133: 78.81355932 | R133: 96 | T133: 80 | U133: 25 | V133: 0 | W133: 21.36752137 | X133: 25 | Y133: 0 | Z133: 21.18644068 | AA133: 24 | AB133: -1 | AC133: 20 | AD133: 7309 | AE133: -616 | AF133: 90.72740814 | AG133: 7350 | AH133: 41 | AI133: 90.84167594 | AJ133: 7656 | AK133: 90.90477321 | AL133: 306 | AM133: 747 | AN133: 29 | AO133: 9.272591857 | AP133: 741 | AQ133: -6 | AR133: 9.158324064 | AS133: 766 | AT133: 25 | AU133: 9.095226787
A134: 2020-08-08 | E134: Alle | F134: 947305 | G134: 10030 | H134: 955239 | I134: 7934 | J134: 961868 | K134: 6629 | L134: 93 | M134: 78.81355932 | N134: 78.81355932 | O134: 96 | P134: 3 | Q134: 80 | R134: 99 | T134: 81.81818182 | U134: 25 | V134: 0 | W134: 21.18644068 | X134: 24 | Y134: -1 | Z134: 20 | AA134: 22 | AB134: -2 | AC134: 18.18181818 | AD134: 7350 | AE134: 41 | AF134: 90.84167594 | AG134: 7656 | AH134: 306 | AI134: 90.90477321 | AJ134: 8411 | AK134: 91.41397674 | AL134: 755 | AM134: 741 | AN134: -6 | AO134: 9.158324064 | AP134: 766 | AQ134: 25 | AR134: 9.095226787 | AS134: 790 | AT134: 24 | AU134: 8.586023258
A135: 2020-08-09 | E135: Alle | F135: 955239 | G135: 7934 | H135: 961868 | I135: 6629 | J135: 965758 | K135: 3890 | L135: 96 | M135: 80 | N135: 80 | O135: 99 | P135: 3 | Q135: 81.81818182 | R135: 92 | T135: 79.31034483 | U135: 24 | V135: -1 | W135: 20 | X135: 22 | Y135: -2 | Z135: 18.18181818 | AA135: 24 | AB135: 2 | AC135: 20.68965517 | AD135: 7656 | AE135: 306 | AF135: 90.90477321 | AG135: 8411 | AH135: 755 | AI135: 91.41397674 | AJ135: 9941 | AK135: 92.45721726 | AL135: 1530 | AM135: 766 | AN135: 25 | AO135: 9.095226787 | AP135: 790 | AQ135: 24 | AR135: 8.586023258 | AS135: 811 | AT135: 21 | AU135: 7.542782738
A136: 2020-08-10 | E136: Alle | F136: 961868 | G136: 6629 | H136: 965758 | I136: 3890 | J136: 974508 | K136: 8750 | L136: 99 | M136: 81.81818182 | N136: 81.81818182 | O136: 92 | P136: -7 | Q136: 79.31034483 | R136: 94 | T136: 78.99159664 | U136: 22 | V136: -2 | W136: 18.18181818 | X136: 24 | Y136: 2 | Z136: 20.68965517 | AA136: 25 | AB136: 1 | AC136: 21.00840336 | AD136: 8411 | AE136: 755 | AF136: 91.41397674 | AG136: 9941 | AH136: 1530 | AI136: 92.45721726 | AJ136: 9091 | AK136: 92.07940849 | AL136: -850 | AM136: 790 | AN136: 24 | AO136: 8.586023258 | AP136: 811 | AQ136: 21 | AR136: 7.542782738 | AS136: 782 | AT136: -29 | AU136: 7.920591512
A137: 2020-08-11 | E137: Alle | F137: 965758 | G137: 3890 | H137: 974508 | I137: 8750 | J137: 983018 | K137: 8510 | L137: 92 | M137: 79.31034483 | N137: 79.31034483 | O137: 94 | P137: 2 | Q137: 78.99159664 | R137: 93 | T137: 78.81355932 | U137: 24 | V137: 2 | W137: 20.68965517 | X137: 25 | Y137: 1 | Z137: 21.00840336 | AA137: 25 | AB137: 0 | AC137: 21.18644068 | AD137: 9941 | AE137: 1530 | AF137: 92.45721726 | AG137: 9091 | AH137: -850 | AI137: 92.07940849 | AJ137: 7792 | AK137: 91.35889319 | AL137: -1299 | AM137: 811 | AN137: 21 | AO137: 7.542782738 | AP137: 782 | AQ137: -29 | AR137: 7.920591512 | AS137: 737 | AT137: -45 | AU137: 8.641106812
A138: 2020-08-12 | E138: Alle | F138: 974508 | G138: 8750 | H138: 983018 | I138: 8510 | J138: 991508 | K138: 8490 | L138: 94 | M138: 78.99159664 | N138: 78.99159664 | O138: 93 | P138: -1 | Q138: 78.81355932 | R138: 92 | T138: 80.70175439 | U138: 25 | V138: 1 | W138: 21.00840336 | X138: 25 | Y138: 0 | Z138: 21.18644068 | AA138: 22 | AB138: -3 | AC138: 19.29824561 | AD138: 9091 | AE138: -850 | AF138: 92.07940849 | AG138: 7792 | AH138: -1299 | AI138: 91.35889319 | AJ138: 7437 | AK138: 90.88353904 | AL138: -355 | AM138: 782 | AN138: -29 | AO138: 7.920591512 | AP138: 737 | AQ138: -45 | AR138: 8.641106812 | AS138: 746 | AT138: 9 | AU138: 9.116460956
A139: 2020-08-13 | E139: Alle | F139: 983018 | G139: 8510 | H139: 991508 | I139: 8490 | J139: 1003432 | K139: 11924 | L139: 93 | M139: 78.81355932 | N139: 78.81355932 | O139: 92 | P139: -1 | Q139: 80.70175439 | R139: 91 | T139: 82.72727273 | U139: 25 | V139: 0 | W139: 21.18644068 | X139: 22 | Y139: -3 | Z139: 19.29824561 | AA139: 19 | AB139: -3 | AC139: 17.27272727 | AD139: 7792 | AE139: -1299 | AF139: 91.35889319 | AG139: 7437 | AH139: -355 | AI139: 90.88353904 | AJ139: 7277 | AK139: 90.74697593 | AL139: -160 | AM139: 737 | AN139: -45 | AO139: 8.641106812 | AP139: 746 | AQ139: 9 | AR139: 9.116460956 | AS139: 742 | AT139: -4 | AU139: 9.253024068
A140: 2020-08-14 | E140: Alle | F140: 991508 | G140: 8490 | H140: 1003432 | I140: 11924 | J140: 1009354 | K140: 5922 | L140: 92 | M140: 80.70175439 | N140: 80.70175439 | O140: 91 | P140: -1 | Q140: 82.72727273 | R140: 83 | T140: 79.80769231 | U140: 22 | V140: -3 | W140: 19.29824561 | X140: 19 | Y140: -3 | Z140: 17.27272727 | AA140: 21 | AB140: 2 | AC140: 20.19230769 | AD140: 7437 | AE140: -355 | AF140: 90.88353904 | AG140: 7277 | AH140: -160 | AI140: 90.74697593 | AJ140: 7603 | AK140: 91.04298886 | AL140: 326 | AM140: 746 | AN140: 9 | AO140: 9.116460956 | AP140: 742 | AQ140: -4 | AR140: 9.253024068 | AS140: 748 | AT140: 6 | AU140: 8.957011136
A141: 2020-08-15 | E141: Alle | F141: 1003432 | G141: 11924 | H141: 1009354 | I141: 5922 | J141: 1018490 | K141: 9136 | L141: 91 | M141: 82.72727273 | N141: 82.72727273 | O141: 83 | P141: -8 | Q141: 79.80769231 | R141: 65 | T141: 77.38095238 | U141: 19 | V141: -3 | W141: 17.27272727 | X141: 21 | Y141: 2 | Z141: 20.19230769 | AA141: 19 | AB141: -2 | AC141: 22.61904762 | AD141: 7277 | AE141: -160 | AF141: 90.74697593 | AG141: 7603 | AH141: 326 | AI141: 91.04298886 | AJ141: 8469 | AK141: 91.84470231 | AL141: 866 | AM141: 742 | AN141: -4 | AO141: 9.253024068 | AP141: 748 | AQ141: 6 | AR141: 8.957011136 | AS141: 752 | AT141: 4 | AU141: 8.15529769
A142: 2020-08-16 | E142: Alle | F142: 1009354 | G142: 5922 | H142: 1018490 | I142: 9136 | J142: 1024067 | K142: 5577 | L142: 83 | M142: 79.80769231 | N142: 79.80769231 | O142: 65 | P142: -18 | Q142: 77.38095238 | R142: 91 | T142: 79.8245614 | U142: 21 | V142: 2 | W142: 20.19230769 | X142: 19 | Y142: -2 | Z142: 22.61904762 | AA142: 23 | AB142: 4 | AC142: 20.1754386 | AD142: 7603 | AE142: 326 | AF142: 91.04298886 | AG142: 8469 | AH142: 866 | AI142: 91.84470231 | AJ142: 9932 | AK142: 92.83978314 | AL142: 1463 | AM142: 748 | AN142: 6 | AO142: 8.957011136 | AP142: 752 | AQ142: 4 | AR142: 8.15529769 | AS142: 766 | AT142: 14 | AU142: 7.160216863
A143: 2020-08-17 | E143: Alle | F143: 1018490 | G143: 9136 | H143: 1024067 | I143: 5577 | J143: 1037888 | K143: 13821 | L143: 65 | M143: 77.38095238 | N143: 77.38095238 | O143: 91 | P143: 26 | Q143: 79.8245614 | R143: 97 | T143: 83.62068966 | U143: 19 | V143: -2 | W143: 22.61904762 | X143: 23 | Y143: 4 | Z143: 20.1754386 | AA143: 19 | AB143: -4 | AC143: 16.37931034 | AD143: 8469 | AE143: 866 | AF143: 91.84470231 | AG143: 9932 | AH143: 1463 | AI143: 92.83978314 | AJ143: 7812 | AK143: 90.85833915 | AL143: -2120 | AM143: 752 | AN143: 4 | AO143: 8.15529769 | AP143: 766 | AQ143: 14 | AR143: 7.160216863 | AS143: 786 | AT143: 20 | AU143: 9.141660851
A144: 2020-08-18 | E144: Alle | F144: 1024067 | G144: 5577 | H144: 1037888 | I144: 13821 | J144: 1049171 | K144: 11283 | L144: 91 | M144: 79.8245614 | N144: 79.8245614 | O144: 97 | P144: 6 | Q144: 83.62068966 | R144: 101 | T144: 83.47107438 | U144: 23 | V144: 4 | W144: 20.1754386 | X144: 19 | Y144: -4 | Z144: 16.37931034 | AA144: 20 | AB144: 1 | AC144: 16.52892562 | AD144: 9932 | AE144: 1463 | AF144: 92.83978314 | AG144: 7812 | AH144: -2120 | AI144: 90.85833915 | AJ144: 7613 | AK144: 91.03192634 | AL144: -199 | AM144: 766 | AN144: 14 | AO144: 7.160216863 | AP144: 786 | AQ144: 20 | AR144: 9.141660851 | AS144: 750 | AT144: -36 | AU144: 8.968073658
A145: 2020-08-19 | E145: Alle | F145: 1037888 | G145: 13821 | H145: 1049171 | I145: 11283 | J145: 1061437 | K145: 12266 | L145: 97 | M145: 83.62068966 | N145: 83.62068966 | O145: 101 | P145: 4 | Q145: 83.47107438 | R145: 95 | T145: 81.89655172 | U145: 19 | V145: -4 | W145: 16.37931034 | X145: 20 | Y145: 1 | Z145: 16.52892562 | AA145: 21 | AB145: 1 | AC145: 18.10344828 | AD145: 7812 | AE145: -2120 | AF145: 90.85833915 | AG145: 7613 | AH145: -199 | AI145: 91.03192634 | AJ145: 7269 | AK145: 90.88522131 | AL145: -344 | AM145: 786 | AN145: 20 | AO145: 9.141660851 | AP145: 750 | AQ145: -36 | AR145: 8.968073658 | AS145: 729 | AT145: -21 | AU145: 9.114778695
A146: 2020-08-20 | E146: Alle | F146: 1049171 | G146: 11283 | H146: 1061437 | I146: 12266 | J146: 1075409 | K146: 13972 | L146: 101 | M146: 83.47107438 | N146: 83.47107438 | O146: 95 | P146: -6 | Q146: 81.89655172 | R146: 90 | T146: 80.35714286 | U146: 20 | V146: 1 | W146: 16.52892562 | X146: 21 | Y146: 1 | Z146: 18.10344828 | AA146: 22 | AB146: 1 | AC146: 19.64285714 | AD146: 7613 | AE146: -199 | AF146: 91.03192634 | AG146: 7269 | AH146: -344 | AI146: 90.88522131 | AJ146: 7373 | AK146: 91.02469136 | AL146: 104 | AM146: 750 | AN146: -36 | AO146: 8.968073658 | AP146: 729 | AQ146: -21 | AR146: 9.114778695 | AS146: 727 | AT146: -2 | AU146: 8.975308642
A147: 2020-08-21 | E147: Alle | F147: 1061437 | G147: 12266 | H147: 1075409 | I147: 13972 | J147: 1087155 | K147: 11746 | L147: 95 | M147: 81.89655172 | N147: 81.89655172 | O147: 90 | P147: -5 | Q147: 80.35714286 | R147: 94 | T147: 81.03448276 | U147: 21 | V147: 1 | W147: 18.10344828 | X147: 22 | Y147: 1 | Z147: 19.64285714 | AA147: 22 | AB147: 0 | AC147: 18.96551724 | AD147: 7269 | AE147: -344 | AF147: 90.88522131 | AG147: 7373 | AH147: 104 | AI147: 91.02469136 | AJ147: 7758 | AK147: 91.35657089 | AL147: 385 | AM147: 729 | AN147: -21 | AO147: 9.114778695 | AP147: 727 | AQ147: -2 | AR147: 8.975308642 | AS147: 734 | AT147: 7 | AU147: 8.64342911
A148: 2020-08-22 | E148: Alle | F148: 1075409 | G148: 13972 | H148: 1087155 | I148: 11746 | J148: 1094987 | K148: 7832 | L148: 90 | M148: 80.35714286 | N148: 80.35714286 | O148: 94 | P148: 4 | Q148: 81.03448276 | R148: 93 | T148: 80.17241379 | U148: 22 | V148: 1 | W148: 19.64285714 | X148: 22 | Y148: 0 | Z148: 18.96551724 | AA148: 23 | AB148: 1 | AC148: 19.82758621 | AD148: 7373 | AE148: 104 | AF148: 91.02469136 | AG148: 7758 | AH148: 385 | AI148: 91.35657089 | AJ148: 8558 | AK148: 92.16024122 | AL148: 800 | AM148: 727 | AN148: -2 | AO148: 8.975308642 | AP148: 734 | AQ148: 7 | AR148: 8.64342911 | AS148: 728 | AT148: -6 | AU148: 7.839758777
A149: 2020-08-23 | E149: Alle | F149: 1087155 | G149: 11746 | H149: 1094987 | I149: 7832 | J149: 1101206 | K149: 6219 | L149: 94 | M149: 81.03448276 | N149: 81.03448276 | O149: 93 | P149: -1 | Q149: 80.17241379 | R149: 112 | T149: 82.96296296 | U149: 22 | V149: 0 | W149: 18.96551724 | X149: 23 | Y149: 1 | Z149: 19.82758621 | AA149: 23 | AB149: 0 | AC149: 17.03703704 | AD149: 7758 | AE149: 385 | AF149: 91.35657089 | AG149: 8558 | AH149: 800 | AI149: 92.16024122 | AJ149: 10465 | AK149: 93.07186055 | AL149: 1907 | AM149: 734 | AN149: 7 | AO149: 8.64342911 | AP149: 728 | AQ149: -6 | AR149: 7.839758777 | AS149: 779 | AT149: 51 | AU149: 6.928139452
A150: 2020-08-24 | E150: Alle | F150: 1094987 | G150: 7832 | H150: 1101206 | I150: 6219 | J150: 1110089 | K150: 8883 | L150: 93 | M150: 80.17241379 | N150: 80.17241379 | O150: 112 | P150: 19 | Q150: 82.96296296 | R150: 114 | T150: 83.21167883 | U150: 23 | V150: 1 | W150: 19.82758621 | X150: 23 | Y150: 0 | Z150: 17.03703704 | AA150: 23 | AB150: 0 | AC150: 16.78832117 | AD150: 8558 | AE150: 800 | AF150: 92.16024122 | AG150: 10465 | AH150: 1907 | AI150: 93.07186055 | AJ150: 8931 | AK150: 92.18620974 | AL150: -1534 | AM150: 728 | AN150: -6 | AO150: 7.839758777 | AP150: 779 | AQ150: 51 | AR150: 6.928139452 | AS150: 757 | AT150: -22 | AU150: 7.813790256
A151: 2020-08-25 | E151: Alle | F151: 1101206 | G151: 6219 | H151: 1110089 | I151: 8883 | J151: 1119199 | K151: 9110 | L151: 112 | M151: 82.96296296 | N151: 82.96296296 | O151: 114 | P151: 2 | Q151: 83.21167883 | R151: 118 | T151: 83.68794326 | U151: 23 | V151: 0 | W151: 17.03703704 | X151: 23 | Y151: 0 | Z151: 16.78832117 | AA151: 23 | AB151: 0 | AC151: 16.31205674 | AD151: 10465 | AE151: 1907 | AF151: 93.07186055 | AG151: 8931 | AH151: -1534 | AI151: 92.18620974 | AJ151: 7634 | AK151: 91.0326735 | AL151: -1297 | AM151: 779 | AN151: 51 | AO151: 6.928139452 | AP151: 757 | AQ151: -22 | AR151: 7.813790256 | AS151: 752 | AT151: -5 | AU151: 8.967326497
A152: 2020-08-26 | E152: Alle | F152: 1110089 | G152: 8883 | H152: 1119199 | I152: 9110 | J152: 1133243 | K152: 14044 | L152: 114 | M152: 83.21167883 | N152: 83.21167883 | O152: 118 | P152: 4 | Q152: 83.68794326 | R152: 121 | T152: 83.44827586 | U152: 23 | V152: 0 | W152: 16.78832117 | X152: 23 | Y152: 0 | Z152: 16.31205674 | AA152: 24 | AB152: 1 | AC152: 16.55172414 | AD152: 8931 | AE152: -1534 | AF152: 92.18620974 | AG152: 7634 | AH152: -1297 | AI152: 91.0326735 | AJ152: 7253 | AK152: 90.85556808 | AL152: -381 | AM152: 757 | AN152: -22 | AO152: 7.813790256 | AP152: 752 | AQ152: -5 | AR152: 8.967326497 | AS152: 730 | AT152: -22 | AU152: 9.144431918
A153: 2020-08-27 | E153: Alle | F153: 1119199 | G153: 9110 | H153: 1133243 | I153: 14044 | J153: 1147944 | K153: 14701 | L153: 118 | M153: 83.68794326 | N153: 83.68794326 | O153: 121 | P153: 3 | Q153: 83.44827586 | R153: 119 | T153: 81.50684932 | U153: 23 | V153: 0 | W153: 16.31205674 | X153: 24 | Y153: 1 | Z153: 16.55172414 | AA153: 27 | AB153: 3 | AC153: 18.49315068 | AD153: 7634 | AE153: -1297 | AF153: 91.0326735 | AG153: 7253 | AH153: -381 | AI153: 90.85556808 | AJ153: 7123 | AK153: 90.72729589 | AL153: -130 | AM153: 752 | AN153: -5 | AO153: 8.967326497 | AP153: 730 | AQ153: -22 | AR153: 9.144431918 | AS153: 728 | AT153: -2 | AU153: 9.272704114
A154: 2020-08-28 | E154: Alle | F154: 1133243 | G154: 14044 | H154: 1147944 | I154: 14701 | J154: 1160743 | K154: 12799 | L154: 121 | M154: 83.44827586 | N154: 83.44827586 | O154: 119 | P154: -2 | Q154: 81.50684932 | R154: 114 | T154: 79.16666667 | U154: 24 | V154: 1 | W154: 16.55172414 | X154: 27 | Y154: 3 | Z154: 18.49315068 | AA154: 30 | AB154: 3 | AC154: 20.83333333 | AD154: 7253 | AE154: -381 | AF154: 90.85556808 | AG154: 7123 | AH154: -130 | AI154: 90.72729589 | AJ154: 7324 | AK154: 90.86848635 | AL154: 201 | AM154: 730 | AN154: -22 | AO154: 9.144431918 | AP154: 728 | AQ154: -2 | AR154: 9.272704114 | AS154: 736 | AT154: 8 | AU154: 9.131513648
A155: 2020-08-29 | E155: Alle | F155: 1147944 | G155: 14701 | H155: 1160743 | I155: 12799 | J155: 1172092 | K155: 11349 | L155: 119 | M155: 81.50684932 | N155: 81.50684932 | O155: 114 | P155: -5 | Q155: 79.16666667 | R155: 110 | T155: 78.57142857 | U155: 27 | V155: 3 | W155: 18.49315068 | X155: 30 | Y155: 3 | Z155: 20.83333333 | AA155: 30 | AB155: 0 | AC155: 21.42857143 | AD155: 7123 | AE155: -130 | AF155: 90.72729589 | AG155: 7324 | AH155: 201 | AI155: 90.86848635 | AJ155: 8176 | AK155: 91.69003028 | AL155: 852 | AM155: 728 | AN155: -2 | AO155: 9.272704114 | AP155: 736 | AQ155: 8 | AR155: 9.131513648 | AS155: 741 | AT155: 5 | AU155: 8.309969721
A156: 2020-08-30 | E156: Alle | F156: 1160743 | G156: 12799 | H156: 1172092 | I156: 11349 | J156: 1180711 | K156: 8619 | L156: 114 | M156: 79.16666667 | N156: 79.16666667 | O156: 110 | P156: -4 | Q156: 78.57142857 | R156: 123 | T156: 79.87012987 | U156: 30 | V156: 3 | W156: 20.83333333 | X156: 30 | Y156: 0 | Z156: 21.42857143 | AA156: 31 | AB156: 1 | AC156: 20.12987013 | AD156: 7324 | AE156: 201 | AF156: 90.86848635 | AG156: 8176 | AH156: 852 | AI156: 91.69003028 | AJ156: 9757 | AK156: 92.94151267 | AL156: 1581 | AM156: 736 | AN156: 8 | AO156: 9.131513648 | AP156: 741 | AQ156: 5 | AR156: 8.309969721 | AS156: 741 | AT156: 0 | AU156: 7.058487331
A157: 2020-08-31 | E157: Alle | F157: 1172092 | G157: 11349 | H157: 1180711 | I157: 8619 | J157: 1193127 | K157: 12416 | L157: 110 | M157: 78.57142857 | N157: 78.57142857 | O157: 123 | P157: 13 | Q157: 79.87012987 | R157: 119 | T157: 79.86577181 | U157: 30 | V157: 0 | W157: 21.42857143 | X157: 31 | Y157: 1 | Z157: 20.12987013 | AA157: 30 | AB157: -1 | AC157: 20.13422819 | AD157: 8176 | AE157: 852 | AF157: 91.69003028 | AG157: 9757 | AH157: 1581 | AI157: 92.94151267 | AJ157: 9049 | AK157: 92.48773508 | AL157: -708 | AM157: 741 | AN157: 5 | AO157: 8.309969721 | AP157: 741 | AQ157: 0 | AR157: 7.058487331 | AS157: 735 | AT157: -6 | AU157: 7.512264922
A158: 2020-09-01 | E158: Alle | F158: 1180711 | G158: 8619 | H158: 1193127 | I158: 12416 | J158: 1210568 | K158: 17441 | L158: 123 | M158: 79.87012987 | N158: 79.87012987 | O158: 119 | P158: -4 | Q158: 79.86577181 | R158: 127 | T158: 80.89171975 | U158: 31 | V158: 1 | W158: 20.12987013 | X158: 30 | Y158: -1 | Z158: 20.13422819 | AA158: 30 | AB158: 0 | AC158: 19.10828025 | AD158: 9757 | AE158: 1581 | AF158: 92.94151267 | AG158: 9049 | AH158: -708 | AI158: 92.48773508 | AJ158: 7995 | AK158: 91.65424739 | AL158: -1054 | AM158: 741 | AN158: 0 | AO158: 7.058487331 | AP158: 735 | AQ158: -6 | AR158: 7.512264922 | AS158: 728 | AT158: -7 | AU158: 8.345752608
A159: 2020-09-02 | E159: Alle | F159: 1193127 | G159: 12416 | H159: 1210568 | I159: 17441 | J159: 1222257 | K159: 11689 | L159: 119 | M159: 79.86577181 | N159: 79.86577181 | O159: 127 | P159: 8 | Q159: 80.89171975 | R159: 132 | T159: 81.98757764 | U159: 30 | V159: -1 | W159: 20.13422819 | X159: 30 | Y159: 0 | Z159: 19.10828025 | AA159: 29 | AB159: -1 | AC159: 18.01242236 | AD159: 9049 | AE159: -708 | AF159: 92.48773508 | AG159: 7995 | AH159: -1054 | AI159: 91.65424739 | AJ159: 7837 | AK159: 91.59654044 | AL159: -158 | AM159: 735 | AN159: -6 | AO159: 7.512264922 | AP159: 728 | AQ159: -7 | AR159: 8.345752608 | AS159: 719 | AT159: -9 | AU159: 8.403459561
A160: 2020-09-03 | E160: Alle | F160: 1210568 | G160: 17441 | H160: 1222257 | I160: 11689 | J160: 1236489 | K160: 14232 | L160: 127 | M160: 80.89171975 | N160: 80.89171975 | O160: 132 | P160: 5 | Q160: 81.98757764 | R160: 128 | T160: 82.05128205 | U160: 30 | V160: 0 | W160: 19.10828025 | X160: 29 | Y160: -1 | Z160: 18.01242236 | AA160: 28 | AB160: -1 | AC160: 17.94871795 | AD160: 7995 | AE160: -1054 | AF160: 91.65424739 | AG160: 7837 | AH160: -158 | AI160: 91.59654044 | AJ160: 7493 | AK160: 91.92737087 | AL160: -344 | AM160: 728 | AN160: -7 | AO160: 8.345752608 | AP160: 719 | AQ160: -9 | AR160: 8.403459561 | AS160: 658 | AT160: -61 | AU160: 8.072629125
A161: 2020-09-04 | E161: Alle | F161: 1222257 | G161: 11689 | H161: 1236489 | I161: 14232 | J161: 1247807 | K161: 11318 | L161: 132 | M161: 81.98757764 | N161: 81.98757764 | O161: 128 | P161: -4 | Q161: 82.05128205 | R161: 129 | T161: 82.1656051 | U161: 29 | V161: -1 | W161: 18.01242236 | X161: 28 | Y161: -1 | Z161: 17.94871795 | AA161: 28 | AB161: 0 | AC161: 17.8343949 | AD161: 7837 | AE161: -158 | AF161: 91.59654044 | AG161: 7493 | AH161: -344 | AI161: 91.92737087 | AJ161: 7811 | AK161: 91.87250059 | AL161: 318 | AM161: 719 | AN161: -9 | AO161: 8.403459561 | AP161: 658 | AQ161: -61 | AR161: 8.072629125 | AS161: 691 | AT161: 33 | AU161: 8.127499412
A162: 2020-09-05 | E162: Alle | F162: 1236489 | G162: 14232 | H162: 1247807 | I162: 11318 | J162: 1255825 | K162: 8018 | L162: 128 | M162: 82.05128205 | N162: 82.05128205 | O162: 129 | P162: 1 | Q162: 82.1656051 | R162: 115 | T162: 80.41958042 | U162: 28 | V162: -1 | W162: 17.94871795 | X162: 28 | Y162: 0 | Z162: 17.8343949 | AA162: 28 | AB162: 0 | AC162: 19.58041958 | AD162: 7493 | AE162: -344 | AF162: 91.92737087 | AG162: 7811 | AH162: 318 | AI162: 91.87250059 | AJ162: 8445 | AK162: 92.39606127 | AL162: 634 | AM162: 658 | AN162: -61 | AO162: 8.072629125 | AP162: 691 | AQ162: 33 | AR162: 8.127499412 | AS162: 695 | AT162: 4 | AU162: 7.603938731
A163: 2020-09-06 | E163: Alle | F163: 1247807 | G163: 11318 | H163: 1255825 | I163: 8018 | J163: 1266223 | K163: 10398 | L163: 129 | M163: 82.1656051 | N163: 82.1656051 | O163: 115 | P163: -14 | Q163: 80.41958042 | R163: 134 | T163: 82.20858896 | U163: 28 | V163: 0 | W163: 17.8343949 | X163: 28 | Y163: 0 | Z163: 19.58041958 | AA163: 29 | AB163: 1 | AC163: 17.79141104 | AD163: 7811 | AE163: 318 | AF163: 91.87250059 | AG163: 8445 | AH163: 634 | AI163: 92.39606127 | AJ163: 10215 | AK163: 93.6812179 | AL163: 1770 | AM163: 691 | AN163: 33 | AO163: 8.127499412 | AP163: 695 | AQ163: 4 | AR163: 7.603938731 | AS163: 689 | AT163: -6 | AU163: 6.318782098
A164: 2020-09-07 | E164: Alle | F164: 1255825 | G164: 8018 | H164: 1266223 | I164: 10398 | J164: 1276477 | K164: 10254 | L164: 115 | M164: 80.41958042 | N164: 80.41958042 | O164: 134 | P164: 19 | Q164: 82.20858896 | R164: 142 | T164: 83.52941176 | U164: 28 | V164: 0 | W164: 19.58041958 | X164: 29 | Y164: 1 | Z164: 17.79141104 | AA164: 28 | AB164: -1 | AC164: 16.47058824 | AD164: 8445 | AE164: 634 | AF164: 92.39606127 | AG164: 10215 | AH164: 1770 | AI164: 93.6812179 | AJ164: 9097 | AK164: 92.86443446 | AL164: -1118 | AM164: 695 | AN164: 4 | AO164: 7.603938731 | AP164: 689 | AQ164: -6 | AR164: 6.318782098 | AS164: 699 | AT164: 10 | AU164: 7.135565537
A165: 2020-09-08 | E165: Alle | F165: 1266223 | G165: 10398 | H165: 1276477 | I165: 10254 | J165: 1288059 | K165: 11582 | L165: 134 | M165: 82.20858896 | N165: 82.20858896 | O165: 142 | P165: 8 | Q165: 83.52941176 | R165: 161 | T165: 81.72588832 | U165: 29 | V165: 1 | W165: 17.79141104 | X165: 28 | Y165: -1 | Z165: 16.47058824 | AA165: 36 | AB165: 8 | AC165: 18.27411168 | AD165: 10215 | AE165: 1770 | AF165: 93.6812179 | AG165: 9097 | AH165: -1118 | AI165: 92.86443446 | AJ165: 7909 | AK165: 92.04003258 | AL165: -1188 | AM165: 689 | AN165: -6 | AO165: 6.318782098 | AP165: 699 | AQ165: 10 | AR165: 7.135565537 | AS165: 684 | AT165: -15 | AU165: 7.959967415
A166: 2020-09-09 | E166: Alle | F166: 1276477 | G166: 10254 | H166: 1288059 | I166: 11582 | J166: 1303030 | K166: 14971 | L166: 142 | M166: 83.52941176 | N166: 83.52941176 | O166: 161 | P166: 19 | Q166: 81.72588832 | R166: 166 | T166: 80.97560976 | U166: 28 | V166: -1 | W166: 16.47058824 | X166: 36 | Y166: 8 | Z166: 18.27411168 | AA166: 39 | AB166: 3 | AC166: 19.02439024 | AD166: 9097 | AE166: -1118 | AF166: 92.86443446 | AG166: 7909 | AH166: -1188 | AI166: 92.04003258 | AJ166: 7237 | AK166: 91.5149216 | AL166: -672 | AM166: 699 | AN166: 10 | AO166: 7.135565537 | AP166: 684 | AQ166: -15 | AR166: 7.959967415 | AS166: 671 | AT166: -13 | AU166: 8.485078402
A167: 2020-09-10 | E167: Alle | F167: 1288059 | G167: 11582 | H167: 1303030 | I167: 14971 | J167: 1316819 | K167: 13789 | L167: 161 | M167: 81.72588832 | N167: 81.72588832 | O167: 166 | P167: 5 | Q167: 80.97560976 | R167: 163 | T167: 79.90196078 | U167: 36 | V167: 8 | W167: 18.27411168 | X167: 39 | Y167: 3 | Z167: 19.02439024 | AA167: 41 | AB167: 2 | AC167: 20.09803922 | AD167: 7909 | AE167: -1188 | AF167: 92.04003258 | AG167: 7237 | AH167: -672 | AI167: 91.5149216 | AJ167: 7213 | AK167: 91.52391828 | AL167: -24 | AM167: 684 | AN167: -15 | AO167: 7.959967415 | AP167: 671 | AQ167: -13 | AR167: 8.485078402 | AS167: 668 | AT167: -3 | AU167: 8.476081716
A168: 2020-09-11 | E168: Alle | F168: 1303030 | G168: 14971 | H168: 1316819 | I168: 13789 | J168: 1331493 | K168: 14674 | L168: 166 | M168: 80.97560976 | N168: 80.97560976 | O168: 163 | P168: -3 | Q168: 79.90196078 | R168: 167 | T168: 79.90430622 | U168: 39 | V168: 3 | W168: 19.02439024 | X168: 41 | Y168: 2 | Z168: 20.09803922 | AA168: 42 | AB168: 1 | AC168: 20.09569378 | AD168: 7237 | AE168: -672 | AF168: 91.5149216 | AG168: 7213 | AH168: -24 | AI168: 91.52391828 | AJ168: 7608 | AK168: 91.8507787 | AL168: 395 | AM168: 671 | AN168: -13 | AO168: 8.485078402 | AP168: 668 | AQ168: -3 | AR168: 8.476081716 | AS168: 675 | AT168: 7 | AU168: 8.149221297
A169: 2020-09-12 | E169: Alle | F169: 1316819 | G169: 13789 | H169: 1331493 | I169: 14674 | J169: 1342066 | K169: 10573 | L169: 163 | M169: 79.90196078 | N169: 79.90196078 | O169: 167 | P169: 4 | Q169: 79.90430622 | R169: 182 | T169: 80.53097345 | U169: 41 | V169: 2 | W169: 20.09803922 | X169: 42 | Y169: 1 | Z169: 20.09569378 | AA169: 44 | AB169: 2 | AC169: 19.46902655 | AD169: 7213 | AE169: -24 | AF169: 91.52391828 | AG169: 7608 | AH169: 395 | AI169: 91.8507787 | AJ169: 8433 | AK169: 92.55844583 | AL169: 825 | AM169: 668 | AN169: -3 | AO169: 8.476081716 | AP169: 675 | AQ169: 7 | AR169: 8.149221297 | AS169: 678 | AT169: 3 | AU169: 7.441554165
A170: 2020-09-13 | E170: Alle | F170: 1331493 | G170: 14674 | H170: 1342066 | I170: 10573 | J170: 1351408 | K170: 9342 | L170: 167 | M170: 79.90430622 | N170: 79.90430622 | O170: 182 | P170: 15 | Q170: 80.53097345 | R170: 208 | T170: 81.56862745 | U170: 42 | V170: 1 | W170: 20.09569378 | X170: 44 | Y170: 2 | Z170: 19.46902655 | AA170: 47 | AB170: 3 | AC170: 18.43137255 | AD170: 7608 | AE170: 395 | AF170: 91.8507787 | AG170: 8433 | AH170: 825 | AI170: 92.55844583 | AJ170: 10004 | AK170: 93.19918018 | AL170: 1571 | AM170: 675 | AN170: 7 | AO170: 8.149221297 | AP170: 678 | AQ170: 3 | AR170: 7.441554165 | AS170: 730 | AT170: 52 | AU170: 6.800819825
A171: 2020-09-14 | E171: Alle | F171: 1342066 | G171: 10573 | H171: 1351408 | I171: 9342 | J171: 1364508 | K171: 13100 | L171: 182 | M171: 80.53097345 | N171: 80.53097345 | O171: 208 | P171: 26 | Q171: 81.56862745 | R171: 244 | T171: 83.27645051 | U171: 44 | V171: 2 | W171: 19.46902655 | X171: 47 | Y171: 3 | Z171: 18.43137255 | AA171: 49 | AB171: 2 | AC171: 16.72354949 | AD171: 8433 | AE171: 825 | AF171: 92.55844583 | AG171: 10004 | AH171: 1571 | AI171: 93.19918018 | AJ171: 8631 | AK171: 92.23124599 | AL171: -1373 | AM171: 678 | AN171: 3 | AO171: 7.441554165 | AP171: 730 | AQ171: 52 | AR171: 6.800819825 | AS171: 727 | AT171: -3 | AU171: 7.768754007
A172: 2020-09-15 | E172: Alle | F172: 1351408 | G172: 9342 | H172: 1364508 | I172: 13100 | J172: 1379839 | K172: 15331 | L172: 208 | M172: 81.56862745 | N172: 81.56862745 | O172: 244 | P172: 36 | Q172: 83.27645051 | R172: 267 | T172: 83.17757009 | U172: 47 | V172: 3 | W172: 18.43137255 | X172: 49 | Y172: 2 | Z172: 16.72354949 | AA172: 54 | AB172: 5 | AC172: 16.82242991 | AD172: 10004 | AE172: 1571 | AF172: 93.19918018 | AG172: 8631 | AH172: -1373 | AI172: 92.23124599 | AJ172: 7216 | AK172: 91.68996188 | AL172: -1415 | AM172: 730 | AN172: 52 | AO172: 6.800819825 | AP172: 727 | AQ172: -3 | AR172: 7.768754007 | AS172: 654 | AT172: -73 | AU172: 8.310038119
A173: 2020-09-16 | E173: Alle | F173: 1364508 | G173: 13100 | H173: 1379839 | I173: 15331 | J173: 1395111 | K173: 15272 | L173: 244 | M173: 83.27645051 | N173: 83.27645051 | O173: 267 | P173: 23 | Q173: 83.17757009 | R173: 264 | T173: 82.75862069 | U173: 49 | V173: 2 | W173: 16.72354949 | X173: 54 | Y173: 5 | Z173: 16.82242991 | AA173: 55 | AB173: 1 | AC173: 17.24137931 | AD173: 8631 | AE173: -1373 | AF173: 92.23124599 | AG173: 7216 | AH173: -1415 | AI173: 91.68996188 | AJ173: 6835 | AK173: 90.56578773 | AL173: -381 | AM173: 727 | AN173: -3 | AO173: 7.768754007 | AP173: 654 | AQ173: -73 | AR173: 8.310038119 | AS173: 712 | AT173: 58 | AU173: 9.43421227
A174: 2020-09-17 | E174: Alle | F174: 1379839 | G174: 15331 | H174: 1395111 | I174: 15272 | J174: 1413965 | K174: 18854 | L174: 267 | M174: 83.17757009 | N174: 83.17757009 | O174: 264 | P174: -3 | Q174: 82.75862069 | R174: 272 | T174: 81.43712575 | U174: 54 | V174: 5 | W174: 16.82242991 | X174: 55 | Y174: 1 | Z174: 17.24137931 | AA174: 62 | AB174: 7 | AC174: 18.56287425 | AD174: 7216 | AE174: -1415 | AF174: 91.68996188 | AG174: 6835 | AH174: -381 | AI174: 90.56578773 | AJ174: 6722 | AK174: 90.39806347 | AL174: -113 | AM174: 654 | AN174: -73 | AO174: 8.310038119 | AP174: 712 | AQ174: 58 | AR174: 9.43421227 | AS174: 714 | AT174: 2 | AU174: 9.601936525
A175: 2020-09-18 | E175: Alle | F175: 1395111 | G175: 15272 | H175: 1413965 | I175: 18854 | J175: 1432099 | K175: 18134 | L175: 264 | M175: 82.75862069 | N175: 82.75862069 | O175: 272 | P175: 8 | Q175: 81.43712575 | R175: 265 | T175: 75.93123209 | U175: 55 | V175: 1 | W175: 17.24137931 | X175: 62 | Y175: 7 | Z175: 18.56287425 | AA175: 84 | AB175: 22 | AC175: 24.06876791 | AD175: 6835 | AE175: -381 | AF175: 90.56578773 | AG175: 6722 | AH175: -113 | AI175: 90.39806347 | AJ175: 7271 | AK175: 91.25251004 | AL175: 549 | AM175: 712 | AN175: 58 | AO175: 9.43421227 | AP175: 714 | AQ175: 2 | AR175: 9.601936525 | AS175: 697 | AT175: -17 | AU175: 8.74748996
A176: 2020-09-19 | E176: Alle | F176: 1413965 | G176: 18854 | H176: 1432099 | I176: 18134 | J176: 1444683 | K176: 12584 | L176: 272 | M176: 81.43712575 | N176: 81.43712575 | O176: 265 | P176: -7 | Q176: 75.93123209 | R176: 273 | T176: 80.05865103 | U176: 62 | V176: 7 | W176: 18.56287425 | X176: 84 | Y176: 22 | Z176: 24.06876791 | AA176: 68 | AB176: -16 | AC176: 19.94134897 | AD176: 6722 | AE176: -113 | AF176: 90.39806347 | AG176: 7271 | AH176: 549 | AI176: 91.25251004 | AJ176: 8005 | AK176: 91.85312679 | AL176: 734 | AM176: 714 | AN176: 2 | AO176: 9.601936525 | AP176: 697 | AQ176: -17 | AR176: 8.74748996 | AS176: 710 | AT176: 13 | AU176: 8.146873207
A177: 2020-09-20 | E177: Alle | F177: 1432099 | G177: 18134 | H177: 1444683 | I177: 12584 | J177: 1458095 | K177: 13412 | L177: 265 | M177: 75.93123209 | N177: 75.93123209 | O177: 273 | P177: 8 | Q177: 80.05865103 | R177: 297 | T177: 81.59340659 | U177: 84 | V177: 22 | W177: 24.06876791 | X177: 68 | Y177: -16 | Z177: 19.94134897 | AA177: 67 | AB177: -1 | AC177: 18.40659341 | AD177: 7271 | AE177: 549 | AF177: 91.25251004 | AG177: 8005 | AH177: 734 | AI177: 91.85312679 | AJ177: 9436 | AK177: 92.96551724 | AL177: 1431 | AM177: 697 | AN177: -17 | AO177: 8.74748996 | AP177: 710 | AQ177: 13 | AR177: 8.146873207 | AS177: 714 | AT177: 4 | AU177: 7.034482759
A178: 2020-09-21 | E178: Alle | F178: 1444683 | G178: 12584 | H178: 1458095 | I178: 13412 | J178: 1472647 | K178: 14552 | L178: 273 | M178: 80.05865103 | N178: 80.05865103 | O178: 297 | P178: 24 | Q178: 81.59340659 | R178: 315 | T178: 80.76923077 | U178: 68 | V178: -16 | W178: 19.94134897 | X178: 67 | Y178: -1 | Z178: 18.40659341 | AA178: 75 | AB178: 8 | AC178: 19.23076923 | AD178: 8005 | AE178: 734 | AF178: 91.85312679 | AG178: 9436 | AH178: 1431 | AI178: 92.96551724 | AJ178: 8406 | AK178: 92.62809917 | AL178: -1030 | AM178: 710 | AN178: 13 | AO178: 8.146873207 | AP178: 714 | AQ178: 4 | AR178: 7.034482759 | AS178: 669 | AT178: -45 | AU178: 7.371900826
A179: 2020-09-22 | E179: Alle | F179: 1458095 | G179: 13412 | H179: 1472647 | I179: 14552 | J179: 1489264 | K179: 16617 | L179: 297 | M179: 81.59340659 | N179: 81.59340659 | O179: 315 | P179: 18 | Q179: 80.76923077 | R179: 336 | T179: 81.3559322 | U179: 67 | V179: -1 | W179: 18.40659341 | X179: 75 | Y179: 8 | Z179: 19.23076923 | AA179: 77 | AB179: 2 | AC179: 18.6440678 | AD179: 9436 | AE179: 1431 | AF179: 92.96551724 | AG179: 8406 | AH179: -1030 | AI179: 92.62809917 | AJ179: 7253 | AK179: 92.04314721 | AL179: -1153 | AM179: 714 | AN179: 4 | AO179: 7.034482759 | AP179: 669 | AQ179: -45 | AR179: 7.371900826 | AS179: 627 | AT179: -42 | AU179: 7.956852792
A180: 2020-09-23 | E180: Alle | F180: 1472647 | G180: 14552 | H180: 1489264 | I180: 16617 | J180: 1507782 | K180: 18518 | L180: 315 | M180: 80.76923077 | N180: 80.76923077 | O180: 336 | P180: 21 | Q180: 81.3559322 | R180: 344 | T180: 81.51658768 | U180: 75 | V180: 8 | W180: 19.23076923 | X180: 77 | Y180: 2 | Z180: 18.6440678 | AA180: 78 | AB180: 1 | AC180: 18.48341232 | AD180: 8406 | AE180: -1030 | AF180: 92.62809917 | AG180: 7253 | AH180: -1153 | AI180: 92.04314721 | AJ180: 6749 | AK180: 91.32611637 | AL180: -504 | AM180: 669 | AN180: -45 | AO180: 7.371900826 | AP180: 627 | AQ180: -42 | AR180: 7.956852792 | AS180: 641 | AT180: 14 | AU180: 8.673883627
A181: 2020-09-24 | E181: Alle | F181: 1489264 | G181: 16617 | H181: 1507782 | I181: 18518 | J181: 1528191 | K181: 20409 | L181: 336 | M181: 81.3559322 | N181: 81.3559322 | O181: 344 | P181: 8 | Q181: 81.51658768 | R181: 333 | T181: 81.02189781 | U181: 77 | V181: 2 | W181: 18.6440678 | X181: 78 | Y181: 1 | Z181: 18.48341232 | AA181: 78 | AB181: 0 | AC181: 18.97810219 | AD181: 7253 | AE181: -1153 | AF181: 92.04314721 | AG181: 6749 | AH181: -504 | AI181: 91.32611637 | AJ181: 6254 | AK181: 90.5065123 | AL181: -495 | AM181: 627 | AN181: -42 | AO181: 7.956852792 | AP181: 641 | AQ181: 14 | AR181: 8.673883627 | AS181: 656 | AT181: 15 | AU181: 9.493487699
A182: 2020-09-25 | E182: Alle | F182: 1507782 | G182: 18518 | H182: 1528191 | I182: 20409 | J182: 1545634 | K182: 17443 | L182: 344 | M182: 81.51658768 | N182: 81.51658768 | O182: 333 | P182: -11 | Q182: 81.02189781 | R182: 343 | T182: 81.08747045 | U182: 78 | V182: 1 | W182: 18.48341232 | X182: 78 | Y182: 0 | Z182: 18.97810219 | AA182: 80 | AB182: 2 | AC182: 18.91252955 | AD182: 6749 | AE182: -504 | AF182: 91.32611637 | AG182: 6254 | AH182: -495 | AI182: 90.5065123 | AJ182: 7037 | AK182: 91.50845254 | AL182: 783 | AM182: 641 | AN182: 14 | AO182: 8.673883627 | AP182: 656 | AQ182: 15 | AR182: 9.493487699 | AS182: 653 | AT182: -3 | AU182: 8.491547464
A183: 2020-09-26 | E183: Alle | F183: 1528191 | G183: 20409 | H183: 1545634 | I183: 17443 | J183: 1555499 | K183: 9865 | L183: 333 | M183: 81.02189781 | N183: 81.02189781 | O183: 343 | P183: 10 | Q183: 81.08747045 | R183: 362 | T183: 81.16591928 | U183: 78 | V183: 0 | W183: 18.97810219 | X183: 80 | Y183: 2 | Z183: 18.91252955 | AA183: 84 | AB183: 4 | AC183: 18.83408072 | AD183: 6254 | AE183: -495 | AF183: 90.5065123 | AG183: 7037 | AH183: 783 | AI183: 91.50845254 | AJ183: 7800 | AK183: 92.24219489 | AL183: 763 | AM183: 656 | AN183: 15 | AO183: 9.493487699 | AP183: 653 | AQ183: -3 | AR183: 8.491547464 | AS183: 656 | AT183: 3 | AU183: 7.757805109
A184: 2020-09-27 | E184: Alle | F184: 1545634 | G184: 17443 | H184: 1555499 | I184: 9865 | J184: 1569992 | K184: 14493 | L184: 343 | M184: 81.08747045 | N184: 81.08747045 | O184: 362 | P184: 19 | Q184: 81.16591928 | R184: 381 | T184: 81.23667377 | U184: 80 | V184: 2 | W184: 18.91252955 | X184: 84 | Y184: 4 | Z184: 18.83408072 | AA184: 88 | AB184: 4 | AC184: 18.76332623 | AD184: 7037 | AE184: 783 | AF184: 91.50845254 | AG184: 7800 | AH184: 763 | AI184: 92.24219489 | AJ184: 9488 | AK184: 93.35826036 | AL184: 1688 | AM184: 653 | AN184: -3 | AO184: 8.491547464 | AP184: 656 | AQ184: 3 | AR184: 7.757805109 | AS184: 675 | AT184: 19 | AU184: 6.641739644
A185: 2020-09-28 | E185: Alle | F185: 1555499 | G185: 9865 | H185: 1569992 | I185: 14493 | J185: 1586578 | K185: 16586 | L185: 362 | M185: 81.16591928 | N185: 81.16591928 | O185: 381 | P185: 19 | Q185: 81.23667377 | R185: 401 | T185: 81.6700611 | U185: 84 | V185: 4 | W185: 18.83408072 | X185: 88 | Y185: 4 | Z185: 18.76332623 | AA185: 90 | AB185: 2 | AC185: 18.3299389 | AD185: 7800 | AE185: 763 | AF185: 92.24219489 | AG185: 9488 | AH185: 1688 | AI185: 93.35826036 | AJ185: 8354 | AK185: 92.80159964 | AL185: -1134 | AM185: 656 | AN185: 3 | AO185: 7.757805109 | AP185: 675 | AQ185: 19 | AR185: 6.641739644 | AS185: 648 | AT185: -27 | AU185: 7.198400355
A186: 2020-09-29 | E186: Alle | F186: 1569992 | G186: 14493 | H186: 1586578 | I186: 16586 | J186: 1617987 | K186: 31409 | L186: 381 | M186: 81.23667377 | N186: 81.23667377 | O186: 401 | P186: 20 | Q186: 81.6700611 | R186: 406 | T186: 81.85483871 | U186: 88 | V186: 4 | W186: 18.76332623 | X186: 90 | Y186: 2 | Z186: 18.3299389 | AA186: 90 | AB186: 0 | AC186: 18.14516129 | AD186: 9488 | AE186: 1688 | AF186: 93.35826036 | AG186: 8354 | AH186: -1134 | AI186: 92.80159964 | AJ186: 7221 | AK186: 91.85854217 | AL186: -1133 | AM186: 675 | AN186: 19 | AO186: 6.641739644 | AP186: 648 | AQ186: -27 | AR186: 7.198400355 | AS186: 640 | AT186: -8 | AU186: 8.14145783
A187: 2020-09-30 | E187: Alle | F187: 1586578 | G187: 16586 | H187: 1617987 | I187: 31409 | J187: 1636573 | K187: 18586 | L187: 401 | M187: 81.6700611 | N187: 81.6700611 | O187: 406 | P187: 5 | Q187: 81.85483871 | R187: 395 | T187: 80.12170385 | U187: 90 | V187: 2 | W187: 18.3299389 | X187: 90 | Y187: 0 | Z187: 18.14516129 | AA187: 98 | AB187: 8 | AC187: 19.87829615 | AD187: 8354 | AE187: -1134 | AF187: 92.80159964 | AG187: 7221 | AH187: -1133 | AI187: 91.85854217 | AJ187: 7061 | AK187: 91.57048372 | AL187: -160 | AM187: 648 | AN187: -27 | AO187: 7.198400355 | AP187: 640 | AQ187: -8 | AR187: 8.14145783 | AS187: 650 | AT187: 10 | AU187: 8.429516275
A188: 2020-10-01 | E188: Alle | F188: 1617987 | G188: 31409 | H188: 1636573 | I188: 18586 | J188: 1658412 | K188: 21839 | L188: 406 | M188: 81.85483871 | N188: 81.85483871 | O188: 395 | P188: -11 | Q188: 80.12170385 | R188: 372 | T188: 78.81355932 | U188: 90 | V188: 0 | W188: 18.14516129 | X188: 98 | Y188: 8 | Z188: 19.87829615 | AA188: 100 | AB188: 2 | AC188: 21.18644068 | AD188: 7221 | AE188: -1133 | AF188: 91.85854217 | AG188: 7061 | AH188: -160 | AI188: 91.57048372 | AJ188: 6661 | AK188: 91.35920998 | AL188: -400 | AM188: 640 | AN188: -8 | AO188: 8.14145783 | AP188: 650 | AQ188: 10 | AR188: 8.429516275 | AS188: 630 | AT188: -20 | AU188: 8.640790015
A189: 2020-10-02 | E189: Alle | F189: 1636573 | G189: 18586 | H189: 1658412 | I189: 21839 | J189: 1673868 | K189: 15456 | L189: 395 | M189: 80.12170385 | N189: 80.12170385 | O189: 372 | P189: -23 | Q189: 78.81355932 | R189: 397 | T189: 80.36437247 | U189: 98 | V189: 8 | W189: 19.87829615 | X189: 100 | Y189: 2 | Z189: 21.18644068 | AA189: 97 | AB189: -3 | AC189: 19.63562753 | AD189: 7061 | AE189: -160 | AF189: 91.57048372 | AG189: 6661 | AH189: -400 | AI189: 91.35920998 | AJ189: 7184 | AK189: 91.43438972 | AL189: 523 | AM189: 650 | AN189: 10 | AO189: 8.429516275 | AP189: 630 | AQ189: -20 | AR189: 8.640790015 | AS189: 673 | AT189: 43 | AU189: 8.565610284
A190: 2020-10-03 | E190: Alle | F190: 1658412 | G190: 21839 | H190: 1673868 | I190: 15456 | J190: 1686373 | K190: 12505 | L190: 372 | M190: 78.81355932 | N190: 78.81355932 | O190: 397 | P190: 25 | Q190: 80.36437247 | R190: 373 | T190: 78.36134454 | U190: 100 | V190: 2 | W190: 21.18644068 | X190: 97 | Y190: -3 | Z190: 19.63562753 | AA190: 103 | AB190: 6 | AC190: 21.63865546 | AD190: 6661 | AE190: -400 | AF190: 91.35920998 | AG190: 7184 | AH190: 523 | AI190: 91.43438972 | AJ190: 7879 | AK190: 92.11972407 | AL190: 695 | AM190: 630 | AN190: -20 | AO190: 8.640790015 | AP190: 673 | AQ190: 43 | AR190: 8.565610284 | AS190: 674 | AT190: 1 | AU190: 7.880275927
A191: 2020-10-04 | E191: Alle | F191: 1673868 | G191: 15456 | H191: 1686373 | I191: 12505 | J191: 1698268 | K191: 11895 | L191: 397 | M191: 80.36437247 | N191: 80.36437247 | O191: 373 | P191: -24 | Q191: 78.36134454 | R191: 387 | T191: 79.30327869 | U191: 97 | V191: -3 | W191: 19.63562753 | X191: 103 | Y191: 6 | Z191: 21.63865546 | AA191: 101 | AB191: -2 | AC191: 20.69672131 | AD191: 7184 | AE191: 523 | AF191: 91.43438972 | AG191: 7879 | AH191: 695 | AI191: 92.11972407 | AJ191: 9569 | AK191: 92.8758614 | AL191: 1690 | AM191: 673 | AN191: 43 | AO191: 8.565610284 | AP191: 674 | AQ191: 1 | AR191: 7.880275927 | AS191: 734 | AT191: 60 | AU191: 7.1241386
A192: 2020-10-05 | E192: Alle | F192: 1686373 | G192: 12505 | H192: 1698268 | I192: 11895 | J192: 1716505 | K192: 18237 | L192: 373 | M192: 78.36134454 | N192: 78.36134454 | O192: 387 | P192: 14 | Q192: 79.30327869 | R192: 397 | T192: 79.7188755 | U192: 103 | V192: 6 | W192: 21.63865546 | X192: 101 | Y192: -2 | Z192: 20.69672131 | AA192: 101 | AB192: 0 | AC192: 20.2811245 | AD192: 7879 | AE192: 695 | AF192: 92.11972407 | AG192: 9569 | AH192: 1690 | AI192: 92.8758614 | AJ192: 8356 | AK192: 92.00616604 | AL192: -1213 | AM192: 674 | AN192: 1 | AO192: 7.880275927 | AP192: 734 | AQ192: 60 | AR192: 7.1241386 | AS192: 726 | AT192: -8 | AU192: 7.993833957
A193: 2020-10-06 | E193: Alle | F193: 1698268 | G193: 11895 | H193: 1716505 | I193: 18237 | J193: 1735094 | K193: 18589 | L193: 387 | M193: 79.30327869 | N193: 79.30327869 | O193: 397 | P193: 10 | Q193: 79.7188755 | R193: 425 | T193: 80.95238095 | U193: 101 | V193: -2 | W193: 20.69672131 | X193: 101 | Y193: 0 | Z193: 20.2811245 | AA193: 100 | AB193: -1 | AC193: 19.04761905 | AD193: 9569 | AE193: 1690 | AF193: 92.8758614 | AG193: 8356 | AH193: -1213 | AI193: 92.00616604 | AJ193: 7087 | AK193: 91.94343539 | AL193: -1269 | AM193: 734 | AN193: 60 | AO193: 7.1241386 | AP193: 726 | AQ193: -8 | AR193: 7.993833957 | AS193: 621 | AT193: -105 | AU193: 8.056564608
A194: 2020-10-07 | E194: Alle | F194: 1716505 | G194: 18237 | H194: 1735094 | I194: 18589 | J194: 1756856 | K194: 21762 | L194: 397 | M194: 79.7188755 | N194: 79.7188755 | O194: 425 | P194: 28 | Q194: 80.95238095 | R194: 399 | T194: 78.85375494 | U194: 101 | V194: 0 | W194: 20.2811245 | X194: 100 | Y194: -1 | Z194: 19.04761905 | AA194: 107 | AB194: 7 | AC194: 21.14624506 | AD194: 8356 | AE194: -1213 | AF194: 92.00616604 | AG194: 7087 | AH194: -1269 | AI194: 91.94343539 | AJ194: 6788 | AK194: 91.07741849 | AL194: -299 | AM194: 726 | AN194: -8 | AO194: 7.993833957 | AP194: 621 | AQ194: -105 | AR194: 8.056564608 | AS194: 665 | AT194: 44 | AU194: 8.922581511
A195: 2020-10-08 | E195: Alle | F195: 1735094 | G195: 18589 | H195: 1756856 | I195: 21762 | J195: 1775431 | K195: 18575 | L195: 425 | M195: 80.95238095 | N195: 80.95238095 | O195: 399 | P195: -26 | Q195: 78.85375494 | R195: 405 | T195: 79.72440945 | U195: 100 | V195: -1 | W195: 19.04761905 | X195: 107 | Y195: 7 | Z195: 21.14624506 | AA195: 103 | AB195: -4 | AC195: 20.27559055 | AD195: 7087 | AE195: -1269 | AF195: 91.94343539 | AG195: 6788 | AH195: -299 | AI195: 91.07741849 | AJ195: 6627 | AK195: 91.35649297 | AL195: -161 | AM195: 621 | AN195: -105 | AO195: 8.056564608 | AP195: 665 | AQ195: 44 | AR195: 8.922581511 | AS195: 627 | AT195: -38 | AU195: 8.643507031
A196: 2020-10-09 | E196: Alle | F196: 1756856 | G196: 21762 | H196: 1775431 | I196: 18575 | J196: 1795387 | K196: 19956 | L196: 399 | M196: 78.85375494 | N196: 78.85375494 | O196: 405 | P196: 6 | Q196: 79.72440945 | R196: 410 | T196: 80.55009823 | U196: 107 | V196: 7 | W196: 21.14624506 | X196: 103 | Y196: -4 | Z196: 20.27559055 | AA196: 99 | AB196: -4 | AC196: 19.44990177 | AD196: 6788 | AE196: -299 | AF196: 91.07741849 | AG196: 6627 | AH196: -161 | AI196: 91.35649297 | AJ196: 6849 | AK196: 90.72724864 | AL196: 222 | AM196: 665 | AN196: 44 | AO196: 8.922581511 | AP196: 627 | AQ196: -38 | AR196: 8.643507031 | AS196: 700 | AT196: 73 | AU196: 9.272751358
A197: 2020-10-10 | E197: Alle | F197: 1775431 | G197: 18575 | H197: 1795387 | I197: 19956 | J197: 1809263 | K197: 13876 | L197: 405 | M197: 79.72440945 | N197: 79.72440945 | O197: 410 | P197: 5 | Q197: 80.55009823 | R197: 431 | T197: 81.78368121 | U197: 103 | V197: -4 | W197: 20.27559055 | X197: 99 | Y197: -4 | Z197: 19.44990177 | AA197: 96 | AB197: -3 | AC197: 18.21631879 | AD197: 6627 | AE197: -161 | AF197: 91.35649297 | AG197: 6849 | AH197: 222 | AI197: 90.72724864 | AJ197: 7750 | AK197: 91.46701286 | AL197: 901 | AM197: 627 | AN197: -38 | AO197: 8.643507031 | AP197: 700 | AQ197: 73 | AR197: 9.272751358 | AS197: 723 | AT197: 23 | AU197: 8.532987136
A198: 2020-10-11 | E198: Alle | F198: 1795387 | G198: 19956 | H198: 1809263 | I198: 13876 | J198: 1822931 | K198: 13668 | L198: 410 | M198: 80.55009823 | N198: 80.55009823 | O198: 431 | P198: 21 | Q198: 81.78368121 | R198: 464 | T198: 82.70944742 | U198: 99 | V198: -4 | W198: 19.44990177 | X198: 96 | Y198: -3 | Z198: 18.21631879 | AA198: 97 | AB198: 1 | AC198: 17.29055258 | AD198: 6849 | AE198: 222 | AF198: 90.72724864 | AG198: 7750 | AH198: 901 | AI198: 91.46701286 | AJ198: 9510 | AK198: 93.02553067 | AL198: 1760 | AM198: 700 | AN198: 73 | AO198: 9.272751358 | AP198: 723 | AQ198: 23 | AR198: 8.532987136 | AS198: 713 | AT198: -10 | AU198: 6.974469334
A199: 2020-10-12 | E199: Alle | F199: 1809263 | G199: 13876 | H199: 1822931 | I199: 13668 | J199: 1844639 | K199: 21708 | L199: 431 | M199: 81.78368121 | N199: 81.78368121 | O199: 464 | P199: 33 | Q199: 82.70944742 | R199: 504 | T199: 82.48772504 | U199: 96 | V199: -3 | W199: 18.21631879 | X199: 97 | Y199: 1 | Z199: 17.29055258 | AA199: 107 | AB199: 10 | AC199: 17.51227496 | AD199: 7750 | AE199: 901 | AF199: 91.46701286 | AG199: 9510 | AH199: 1760 | AI199: 93.02553067 | AJ199: 8483 | AK199: 92.38727946 | AL199: -1027 | AM199: 723 | AN199: 23 | AO199: 8.532987136 | AP199: 713 | AQ199: -10 | AR199: 6.974469334 | AS199: 699 | AT199: -14 | AU199: 7.61272054
A200: 2020-10-13 | E200: Alle | F200: 1822931 | G200: 13668 | H200: 1844639 | I200: 21708 | J200: 1861672 | K200: 17033 | L200: 464 | M200: 82.70944742 | N200: 82.70944742 | O200: 504 | P200: 40 | Q200: 82.48772504 | R200: 542 | T200: 82.87461774 | U200: 97 | V200: 1 | W200: 17.29055258 | X200: 107 | Y200: 10 | Z200: 17.51227496 | AA200: 112 | AB200: 5 | AC200: 17.12538226 | AD200: 9510 | AE200: 1760 | AF200: 93.02553067 | AG200: 8483 | AH200: -1027 | AI200: 92.38727946 | AJ200: 7104 | AK200: 91.24068842 | AL200: -1379 | AM200: 713 | AN200: -10 | AO200: 6.974469334 | AP200: 699 | AQ200: -14 | AR200: 7.61272054 | AS200: 682 | AT200: -17 | AU200: 8.759311585
... 184 more rows

Sheet A1
A1: 1 | B1: =A1+1 -> 2 | C1: =B1+1 -> 3 | D1: =C1+1 -> 4 | E1: =D1+1 -> 5 | F1: 6 | G1: 7 | H1: 8 | I1: 9 | J1: 10 | K1: 11 | L1: 12 | M1: 13 | N1: 14 | O1: 15 | P1: 16 | Q1: 17 | R1: 18 | S1: 19 | T1: 20 | U1: 21 | V1: 22 | W1: 23 | X1: 24 | Y1: 25 | Z1: 26 | AA1: 27 | AB1: 28 | AC1: 29 | AD1: 30 | AE1: 31 | AF1: 32 | AG1: 33 | AH1: 34 | AI1: 35 | AJ1: 36 | AK1: 37 | AL1: 38
A2: 1900-01-02 | F2: Fälle pro Tag | M2: 7 Tages Zahl täglicher Durchschnitt | S2: 7 Tage Inzidens - Wert | Y2: Tote pro Tag | AF2: Genesene
A3: 3 | B3: wota | C3: coroatag | D3: Bundesland | E3: Bewohner | F3: gestern | G3: gestern +- | H3: heute | I3: heute +- | J3: morgen | K3: morgen +- | L3: heute Summe | M3: gestern | N3: gestern +- | O3: heute | P3: heute +- | Q3: morgen | R3: morgen +- | S3: gestern | T3: gestern +- | U3: heute | V3: heute +- | W3: morgen | X3: morgen +- | Y3: gestern | Z3: gestern +- | AA3: heute | AB3: heute +- | AC3: morgen | AD3: morgen +- | AE3: heute Summe | AF3: gestern | AG3: gestern +- | AH3: heute | AI3: heute +- | AJ3: morgen | AK3: morgen +- | AL3: heute Summe
A4: Datum | B4: Spalte1 | C4: Spalte2 | D4: Bundesland | E4: Einwohner | F4: F T g | G4: F T g +- | H4: Fälle T h | I4: F T h +- | J4: F T m | K4: F T m +- | L4: Fälle Sum h | M4: 7d Z g | N4: 7d Z g +- | O4: 7Tage Fälle h | P4: 7d Z h +- | Q4: 7d Z m | R4: 7d Z m +- | S4: 7d W g | T4: 7d W g +- | U4: 7Tage Wert h | V4: 7d W h | W4: 7d W m | X4: 7d W m +- | Y4: Tote T g | Z4: Tote T g+- | AA4: Tote T h | AB4: Tote T h+- | AC4: Tote T m | AD4: Tote T m+-2 | AE4: Tote Sum h | AF4: Gen T g | AG4: Gen T g+- | AH4: Gen T h | AI4: Gen T h+- | AJ4: Gen T m | AK4: Gen T m+- | AL4: Gen Sum h
A5: 2020-02-26 | D5: Burgenland | E5: 294436 | F5: 0 | G5: F T g +- | H5: 0 | I5: 0 | J5: 0 | K5: 0 | L5: 0 | M5: 0 | N5: 0 | O5: 0 | P5: 0 | Q5: 0 | R5: 0 | S5: 0 | T5: 0 | U5: 0 | V5: 0 | W5: 0 | X5: 0 | Y5: 0 | Z5: 0 | AA5: 0 | AB5: 0 | AC5: 0 | AD5: 0 | AE5: 0 | AF5: 0 | AG5: 0 | AH5: 0 | AI5: 0 | AJ5: 0 | AK5: 0 | AL5: 0
A6: 2020-02-26 | D6: Kärnten | E6: 561293 | F6: 0 | G6: 0 | H6: 0 | I6: 0 | J6: 0 | K6: 0 | L6: 0 | M6: 0 | N6: 0 | O6: 0 | P6: 0 | Q6: 0 | R6: 0 | U6: 0 | AA6: 0 | AE6: 0 | AH6: 0 | AL6: 0
A7: 2020-02-26 | D7: Niederösterreich | E7: 1684287 | F7: 0 | G7: 0 | H7: 0 | I7: 0 | J7: 0 | K7: 0 | L7: 0 | M7: 0 | N7: 0 | O7: 0 | P7: 0 | Q7: 0 | R7: 0 | U7: 0 | AA7: 0 | AE7: 0 | AH7: 0 | AL7: 0
A8: 2020-02-26 | D8: Oberösterreich | E8: 1490279 | F8: 0 | G8: 0 | H8: 0 | I8: 0 | J8: 0 | K8: 0 | L8: 0 | M8: 0 | N8: 0 | O8: 0 | P8: 0 | Q8: 0 | R8: 0 | U8: 0 | AA8: 0 | AE8: 0 | AH8: 0 | AL8: 0
A9: 2020-02-26 | D9: Salzburg | E9: 558410 | F9: 0 | G9: 0 | H9: 0 | I9: 0 | J9: 0 | K9: 0 | L9: 0 | M9: 0 | N9: 0 | O9: 0 | P9: 0 | Q9: 0 | R9: 0 | U9: 0 | AA9: 0 | AE9: 0 | AH9: 0 | AL9: 0
A10: 2020-02-26 | D10: Steiermark | E10: 1246395 | F10: 0 | G10: 0 | H10: 0 | I10: 0 | J10: 0 | K10: 0 | L10: 0 | M10: 0 | N10: 0 | O10: 0 | P10: 0 | Q10: 0 | R10: 0 | U10: 0 | AA10: 0 | AE10: 0 | AH10: 0 | AL10: 0
A11: 2020-02-26 | D11: Tirol | E11: 757634 | F11: 0 | G11: 0 | H11: 0 | I11: 0 | J11: 0 | K11: 0 | L11: 0 | M11: 0 | N11: 0 | O11: 0 | P11: 0 | Q11: 0 | R11: 0 | U11: 0 | AA11: 0 | AE11: 0 | AH11: 0 | AL11: 0
A12: 2020-02-26 | D12: Vorarlberg | E12: 397139 | F12: 0 | G12: 0 | H12: 0 | I12: 0 | J12: 0 | K12: 0 | L12: 0 | M12: 0 | N12: 0 | O12: 0 | P12: 0 | Q12: 0 | R12: 0 | U12: 0 | AA12: 0 | AE12: 0 | AH12: 0 | AL12: 0
A13: 2020-02-26 | D13: Wien | E13: 1911191 | F13: 0 | G13: 0 | H13: 1 | I13: 0 | J13: 0 | K13: 0 | L13: 1 | M13: 0 | N13: 0 | O13: 1 | P13: 0 | Q13: 0 | R13: 0 | U13: 0.1 | AA13: 0 | AE13: 0 | AH13: 0 | AL13: 0
A14: 2020-02-26 | D14: Österreich | E14: 8901064 | F14: 0 | G14: 0 | H14: 1 | I14: 1 | J14: =H24 -> 2 | K14: =I24 -> 1 | L14: 1 | M14: 0 | N14: 0 | O14: 1 | P14: 0 | Q14: 0 | R14: 0 | S14: 0 | T14: 0 | U14: 0 | V14: =U14 -> 0 | W14: =U24 -> 0 | X14: =U24 -> 0 | Y14: 0 | Z14: 0 | AA14: 0 | AB14: 0 | AC14: 0 | AD14: 0 | AE14: 0 | AF14: 0 | AG14: 0 | AH14: 0 | AI14: =AH14 -> 0 | AJ14: =AH24 -> 0 | AK14: =AH24 -> 0 | AL14: 0
A15: 2020-02-27 | D15: Burgenland | E15: 294436 | F15: =H5 -> 0 | G15: =H15-H5 -> 0 | H15: 0 | L15: 0 | O15: 0 | U15: 0 | AA15: 0 | AE15: 0 | AH15: 0 | AL15: 0
A16: 2020-02-27 | D16: Kärnten | E16: 561293 | F16: =H6 -> 0 | G16: =H16-H6 -> 0 | H16: 0 | L16: 0 | O16: 0 | U16: 0 | AA16: 0 | AE16: 0 | AH16: 0 | AL16: 0
A17: 2020-02-27 | D17: Niederösterreich | E17: 1684287 | F17: 0 | G17: 0 | H17: 0 | L17: 0 | O17: 0 | U17: 0 | AA17: 0 | AE17: 0 | AH17: 0 | AL17: 0
A18: 2020-02-27 | D18: Oberösterreich | E18: 1490279 | F18: 0 | G18: 0 | H18: 0 | L18: 0 | O18: 0 | U18: 0 | AA18: 0 | AE18: 0 | AH18: 0 | AL18: 0
A19: 2020-02-27 | D19: Salzburg | E19: 558410 | F19: 0 | G19: 0 | H19: 0 | L19: 0 | O19: 0 | U19: 0 | AA19: 0 | AE19: 0 | AH19: 0 | AL19: 0
A20: 2020-02-27 | D20: Steiermark | E20: 1246395 | F20: 0 | G20: 0 | H20: 0 | L20: 0 | O20: 0 | U20: 0 | AA20: 0 | AE20: 0 | AH20: 0 | AL20: 0
A21: 2020-02-27 | D21: Tirol | E21: 757634 | F21: 0 | G21: 0 | H21: 0 | L21: 0 | O21: 0 | U21: 0 | AA21: 0 | AE21: 0 | AH21: 0 | AL21: 0
A22: 2020-02-27 | D22: Vorarlberg | E22: 397139 | F22: 0 | G22: 0 | H22: 0 | L22: 0 | O22: 0 | U22: 0 | AA22: 0 | AE22: 0 | AH22: 0 | AL22: 0
A23: 2020-02-27 | D23: Wien | E23: 1911191 | F23: 1 | G23: 1 | H23: 2 | L23: 3 | O23: 3 | U23: 0.2 | AA23: 0 | AE23: 0 | AH23: 0 | AL23: 0
A24: 2020-02-27 | D24: Österreich | E24: 8901064 | F24: =H14 -> 1 | G24: =I14 -> 1 | H24: 2 | I24: =H24-H14 -> 1 | J24: =H34 -> 4 | K24: =I34 -> 2 | L24: 3 | M24: =O14 -> 1 | N24: =O14 -> 1 | O24: 3 | P24: =O24 -> 3 | Q24: =O34 -> 7 | R24: =Q24 -> 7 | S24: =U14 -> 0 | T24: =U14 -> 0 | U24: 0 | V24: =U24 -> 0 | W24: =U34 -> 0.1 | X24: =U34 -> 0.1 | Y24: =AA14 -> 0 | Z24: =AA14 -> 0 | AA24: 0 | AB24: =AA24 -> 0 | AC24: =AA34 -> 0 | AD24: =AA34 -> 0 | AE24: 0 | AF24: =AH14 -> 0 | AG24: =AH14 -> 0 | AH24: 0 | AI24: =AH24 -> 0 | AJ24: =AH34 -> 0 | AK24: =AH34 -> 0 | AL24: 0
A25: 2020-02-28 | D25: Burgenland | E25: 294436 | F25: 0 | G25: 0 | H25: 0 | L25: 0 | O25: 0 | U25: 0 | AA25: 0 | AE25: 0 | AH25: 0 | AL25: 0
A26: 2020-02-28 | D26: Kärnten | E26: 561293 | F26: 0 | G26: 0 | H26: 0 | L26: 0 | O26: 0 | U26: 0 | AA26: 0 | AE26: 0 | AH26: 0 | AL26: 0
A27: 2020-02-28 | D27: Niederösterreich | E27: 1684287 | F27: 0 | G27: 2 | H27: 2 | L27: 2 | O27: 2 | U27: 0.1 | AA27: 0 | AE27: 0 | AH27: 0 | AL27: 0
A28: 2020-02-28 | D28: Oberösterreich | E28: 1490279 | F28: 0 | G28: 0 | H28: 0 | L28: 0 | O28: 0 | U28: 0 | AA28: 0 | AE28: 0 | AH28: 0 | AL28: 0
A29: 2020-02-28 | D29: Salzburg | E29: 558410 | F29: 0 | G29: 0 | H29: 0 | L29: 0 | O29: 0 | U29: 0 | AA29: 0 | AE29: 0 | AH29: 0 | AL29: 0
A30: 2020-02-28 | D30: Steiermark | E30: 1246395 | F30: 0 | G30: 1 | H30: 1 | L30: 1 | O30: 1 | U30: 0.1 | AA30: 0 | AE30: 0 | AH30: 0 | AL30: 0
A31: 2020-02-28 | D31: Tirol | E31: 757634 | F31: 0 | G31: 0 | H31: 0 | L31: 0 | O31: 0 | U31: 0 | AA31: 0 | AE31: 0 | AH31: 0 | AL31: 0
A32: 2020-02-28 | D32: Vorarlberg | E32: 397139 | F32: =H22 -> 0 | G32: 0 | H32: 0 | L32: 0 | O32: 0 | U32: 0 | AA32: 0 | AE32: 0 | AH32: 0 | AL32: 0
A33: 2020-02-28 | D33: Wien | E33: 1911191 | F33: 2 | G33: -1 | H33: 1 | L33: 4 | O33: 4 | U33: 0.2 | AA33: 0 | AE33: 0 | AH33: 0 | AL33: 0
A34: 2020-02-28 | D34: Österreich | E34: 8901064 | F34: =H24 -> 2 | G34: =I24 -> 1 | H34: 4 | I34: =H34-H24 -> 2 | J34: =H44 -> 1 | K34: =I44 -> -3 | L34: 7 | M34: =O24 -> 3 | N34: =O24 -> 3 | O34: 7 | P34: =O34 -> 7 | Q34: =O44 -> 8 | R34: =Q34 -> 8 | S34: =U24 -> 0 | T34: =U24 -> 0 | U34: 0.1 | V34: =U34 -> 0.1 | W34: =U44 -> 0.1 | X34: =U44 -> 0.1 | Y34: =AA24 -> 0 | Z34: =AA24 -> 0 | AA34: 0 | AB34: =AA34 -> 0 | AC34: =AA44 -> 0 | AD34: =AA44 -> 0 | AE34: 0 | AF34: =AH24 -> 0 | AG34: =AH24 -> 0 | AH34: 0 | AI34: =AH34 -> 0 | AJ34: =AH44 -> 0 | AK34: =AH44 -> 0 | AL34: 0
A35: 2020-02-29 | D35: Burgenland | E35: 294436 | F35: 0 | G35: 0 | H35: 0 | L35: 0 | O35: 0 | U35: 0 | AA35: 0 | AE35: 0 | AH35: 0 | AL35: 0
A36: 2020-02-29 | D36: Kärnten | E36: 561293 | F36: 0 | G36: 0 | H36: 0 | L36: 0 | O36: 0 | U36: 0 | AA36: 0 | AE36: 0 | AH36: 0 | AL36: 0
A37: 2020-02-29 | D37: Niederösterreich | E37: 1684287 | F37: 2 | G37: -2 | H37: 0 | L37: 2 | O37: 2 | U37: 0.1 | AA37: 0 | AE37: 0 | AH37: 0 | AL37: 0
A38: 2020-02-29 | D38: Oberösterreich | E38: 1490279 | F38: 0 | G38: 0 | H38: 0 | L38: 0 | O38: 0 | U38: 0 | AA38: 0 | AE38: 0 | AH38: 0 | AL38: 0
A39: 2020-02-29 | D39: Salzburg | E39: 558410 | F39: 0 | G39: 0 | H39: 0 | L39: 0 | O39: 0 | U39: 0 | AA39: 0 | AE39: 0 | AH39: 0 | AL39: 0
A40: 2020-02-29 | D40: Steiermark | E40: 1246395 | F40: 1 | G40: -1 | H40: 0 | L40: 1 | O40: 1 | U40: 0.1 | AA40: 0 | AE40: 0 | AH40: 0 | AL40: 0
A41: 2020-02-29 | D41: Tirol | E41: 757634 | F41: 0 | G41: 0 | H41: 0 | L41: 0 | O41: 0 | U41: 0 | AA41: 0 | AE41: 0 | AH41: 0 | AL41: 0
A42: 2020-02-29 | D42: Vorarlberg | E42: 397139 | F42: 0 | G42: 0 | H42: 0 | L42: 0 | O42: 0 | U42: 0 | AA42: 0 | AE42: 0 | AH42: 0 | AL42: 0
A43: 2020-02-29 | D43: Wien | E43: 1911191 | F43: 1 | G43: 0 | H43: 1 | L43: 5 | O43: 5 | U43: 0.3 | AA43: 0 | AE43: 0 | AH43: 0 | AL43: 0
A44: 2020-02-29 | D44: Österreich | E44: 8901064 | F44: =H34 -> 4 | G44: =I34 -> 2 | H44: 1 | I44: =H44-H34 -> -3 | J44: =H54 -> 4 | K44: =I54 -> 3 | L44: 8 | M44: =O34 -> 7 | N44: =O34 -> 7 | O44: 8 | P44: =O44 -> 8 | Q44: =O54 -> 12 | R44: =Q44 -> 12 | S44: =U34 -> 0.1 | T44: =U34 -> 0.1 | U44: 0.1 | V44: =U44 -> 0.1 | W44: =U54 -> 0.1 | X44: =U54 -> 0.1 | Y44: =AA34 -> 0 | Z44: =AA34 -> 0 | AA44: 0 | AB44: =AA44 -> 0 | AC44: =AA54 -> 0 | AD44: =AA54 -> 0 | AE44: 0 | AF44: =AH34 -> 0 | AG44: =AH34 -> 0 | AH44: 0 | AI44: =AH44 -> 0 | AJ44: =AH54 -> 0 | AK44: =AH54 -> 0 | AL44: 0
A45: 2020-03-01 | D45: Burgenland | E45: 294436 | F45: 0 | G45: 0 | H45: 0 | L45: 0 | O45: 0 | U45: 0 | AA45: 0 | AE45: 0 | AH45: 0 | AL45: 0
A46: 2020-03-01 | D46: Kärnten | E46: 561293 | F46: 0 | G46: 0 | H46: 0 | L46: 0 | O46: 0 | U46: 0 | AA46: 0 | AE46: 0 | AH46: 0 | AL46: 0
A47: 2020-03-01 | D47: Niederösterreich | E47: 1684287 | F47: 0 | G47: 0 | H47: 0 | L47: 2 | O47: 2 | U47: 0.1 | AA47: 0 | AE47: 0 | AH47: 0 | AL47: 0
A48: 2020-03-01 | D48: Oberösterreich | E48: 1490279 | F48: 0 | G48: 0 | H48: 0 | L48: 0 | O48: 0 | U48: 0 | AA48: 0 | AE48: 0 | AH48: 0 | AL48: 0
A49: 2020-03-01 | D49: Salzburg | E49: 558410 | F49: 0 | G49: 0 | H49: 0 | L49: 0 | O49: 0 | U49: 0 | AA49: 0 | AE49: 0 | AH49: 0 | AL49: 0
A50: 2020-03-01 | D50: Steiermark | E50: 1246395 | F50: 0 | G50: 0 | H50: 0 | L50: 1 | O50: 1 | U50: 0.1 | AA50: 0 | AE50: 0 | AH50: 0 | AL50: 0
A51: 2020-03-01 | D51: Tirol | E51: 757634 | F51: 0 | G51: 0 | H51: 0 | L51: 0 | O51: 0 | U51: 0 | AA51: 0 | AE51: 0 | AH51: 0 | AL51: 0
A52: 2020-03-01 | D52: Vorarlberg | E52: 397139 | F52: 0 | G52: 0 | H52: 0 | L52: 0 | O52: 0 | U52: 0 | AA52: 0 | AE52: 0 | AH52: 0 | AL52: 0
A53: 2020-03-01 | D53: Wien | E53: 1911191 | F53: 1 | G53: 3 | H53: 4 | L53: 9 | O53: 9 | U53: 0.5 | AA53: 0 | AE53: 0 | AH53: 0 | AL53: 0
A54: 2020-03-01 | D54: Österreich | E54: 8901064 | F54: =H44 -> 1 | G54: =I44 -> -3 | H54: 4 | I54: =H54-H44 -> 3 | J54: =H64 -> 5 | K54: =I64 -> 1 | L54: 12 | M54: =O44 -> 8 | N54: =O44 -> 8 | O54: 12 | P54: =O54 -> 12 | Q54: =O64 -> 17 | R54: =Q54 -> 17 | S54: =U44 -> 0.1 | T54: =U44 -> 0.1 | U54: 0.1 | V54: =U54 -> 0.1 | W54: =U64 -> 0.2 | X54: =U64 -> 0.2 | Y54: =AA44 -> 0 | Z54: =AA44 -> 0 | AA54: 0 | AB54: =AA54 -> 0 | AC54: =AA64 -> 0 | AD54: =AA64 -> 0 | AE54: 0 | AF54: =AH44 -> 0 | AG54: =AH44 -> 0 | AH54: 0 | AI54: =AH54 -> 0 | AJ54: =AH64 -> 0 | AK54: =AH64 -> 0 | AL54: 0
A55: 2020-03-02 | D55: Burgenland | E55: 294436 | F55: 0 | G55: 0 | H55: 0 | L55: 0 | O55: 0 | U55: 0 | AA55: 0 | AE55: 0 | AH55: 0 | AL55: 0
A56: 2020-03-02 | D56: Kärnten | E56: 561293 | F56: 0 | G56: 0 | H56: 0 | L56: 0 | O56: 0 | U56: 0 | AA56: 0 | AE56: 0 | AH56: 0 | AL56: 0
A57: 2020-03-02 | D57: Niederösterreich | E57: 1684287 | F57: 0 | G57: 1 | H57: 1 | L57: 3 | O57: 3 | U57: 0.2 | AA57: 0 | AE57: 0 | AH57: 0 | AL57: 0
A58: 2020-03-02 | D58: Oberösterreich | E58: 1490279 | F58: 0 | G58: 0 | H58: 0 | L58: 0 | O58: 0 | U58: 0 | AA58: 0 | AE58: 0 | AH58: 0 | AL58: 0
A59: 2020-03-02 | D59: Salzburg | E59: 558410 | F59: 0 | G59: 1 | H59: 1 | L59: 1 | O59: 1 | U59: 0.2 | AA59: 0 | AE59: 0 | AH59: 0 | AL59: 0
A60: 2020-03-02 | D60: Steiermark | E60: 1246395 | F60: 0 | G60: 2 | H60: 2 | L60: 3 | O60: 3 | U60: 0.2 | AA60: 0 | AE60: 0 | AH60: 0 | AL60: 0
A61: 2020-03-02 | D61: Tirol | E61: 757634 | F61: 0 | G61: 0 | H61: 0 | L61: 0 | O61: 0 | U61: 0 | AA61: 0 | AE61: 0 | AH61: 0 | AL61: 0
A62: 2020-03-02 | D62: Vorarlberg | E62: 397139 | F62: 0 | G62: 0 | H62: 0 | L62: 0 | O62: 0 | U62: 0 | AA62: 0 | AE62: 0 | AH62: 0 | AL62: 0
A63: 2020-03-02 | D63: Wien | E63: 1911191 | F63: 4 | G63: -3 | H63: 1 | L63: 10 | O63: 10 | U63: 0.5 | AA63: 0 | AE63: 0 | AH63: 0 | AL63: 0
A64: 2020-03-02 | D64: Österreich | E64: 8901064 | F64: =H54 -> 4 | G64: =I54 -> 3 | H64: 5 | I64: =H64-H54 -> 1 | J64: =H74 -> 6 | K64: =I74 -> 1 | L64: 17 | M64: =O54 -> 12 | N64: =O54 -> 12 | O64: 17 | P64: =O64 -> 17 | Q64: =O74 -> 23 | R64: =Q64 -> 23 | S64: =U54 -> 0.1 | T64: =U54 -> 0.1 | U64: 0.2 | V64: =U64 -> 0.2 | W64: =U74 -> 0.3 | X64: =U74 -> 0.3 | Y64: =AA54 -> 0 | Z64: =AA54 -> 0 | AA64: 0 | AB64: =AA64 -> 0 | AC64: =AA74 -> 0 | AD64: =AA74 -> 0 | AE64: 0 | AF64: =AH54 -> 0 | AG64: =AH54 -> 0 | AH64: 0 | AI64: =AH64 -> 0 | AJ64: =AH74 -> 0 | AK64: =AH74 -> 0 | AL64: 0
A65: 2020-03-03 | D65: Burgenland | E65: 294436 | F65: 0 | G65: 0 | H65: 0 | L65: 0 | O65: 0 | U65: 0 | AA65: 0 | AE65: 0 | AH65: 0 | AL65: 0
A66: 2020-03-03 | D66: Kärnten | E66: 561293 | F66: 0 | G66: 0 | H66: 0 | L66: 0 | O66: 0 | U66: 0 | AA66: 0 | AE66: 0 | AH66: 0 | AL66: 0
A67: 2020-03-03 | D67: Niederösterreich | E67: 1684287 | F67: 1 | G67: 1 | H67: 2 | L67: 5 | O67: 5 | U67: 0.3 | AA67: 0 | AE67: 0 | AH67: 0 | AL67: 0
A68: 2020-03-03 | D68: Oberösterreich | E68: 1490279 | F68: 0 | G68: 0 | H68: 0 | L68: 0 | O68: 0 | U68: 0 | AA68: 0 | AE68: 0 | AH68: 0 | AL68: 0
A69: 2020-03-03 | D69: Salzburg | E69: 558410 | F69: 1 | G69: -1 | H69: 0 | L69: 1 | O69: 1 | U69: 0.2 | AA69: 0 | AE69: 0 | AH69: 0 | AL69: 0
A70: 2020-03-03 | D70: Steiermark | E70: 1246395 | F70: 2 | G70: -2 | H70: 0 | L70: 3 | O70: 3 | U70: 0.2 | AA70: 0 | AE70: 0 | AH70: 0 | AL70: 0
A71: 2020-03-03 | D71: Tirol | E71: 757634 | F71: 0 | G71: 0 | H71: 0 | L71: 0 | O71: 0 | U71: 0 | AA71: 0 | AE71: 0 | AH71: 0 | AL71: 0
A72: 2020-03-03 | D72: Vorarlberg | E72: 397139 | F72: 0 | G72: 0 | H72: 0 | L72: 0 | O72: 0 | U72: 0 | AA72: 0 | AE72: 0 | AH72: 0 | AL72: 0
A73: 2020-03-03 | D73: Wien | E73: 1911191 | F73: 1 | G73: 3 | H73: 4 | L73: 14 | O73: 14 | U73: 0.7 | AA73: 0 | AE73: 0 | AH73: 0 | AL73: 0
A74: 2020-03-03 | D74: Österreich | E74: 8901064 | F74: =H64 -> 5 | G74: =I64 -> 1 | H74: 6 | I74: =H74-H64 -> 1 | J74: =H84 -> 14 | K74: =I84 -> 8 | L74: 23 | M74: =O64 -> 17 | N74: =O64 -> 17 | O74: 23 | P74: =O74 -> 23 | Q74: =O84 -> 36 | R74: =Q74 -> 36 | S74: =U64 -> 0.2 | T74: =U64 -> 0.2 | U74: 0.3 | V74: =U74 -> 0.3 | W74: =U84 -> 0.4 | X74: =U84 -> 0.4 | Y74: =AA64 -> 0 | Z74: =AA64 -> 0 | AA74: 0 | AB74: =AA74 -> 0 | AC74: =AA84 -> 0 | AD74: =AA84 -> 0 | AE74: 0 | AF74: =AH64 -> 0 | AG74: =AH64 -> 0 | AH74: 0 | AI74: =AH74 -> 0 | AJ74: =AH84 -> 0 | AK74: =AH84 -> 0 | AL74: 0
A75: 2020-03-04 | D75: Burgenland | E75: 294436 | F75: 0 | G75: 0 | H75: 0 | L75: 0 | O75: 0 | U75: 0 | AA75: 0 | AE75: 0 | AH75: 0 | AL75: 0
A76: 2020-03-04 | D76: Kärnten | E76: 561293 | F76: 0 | G76: 1 | H76: 1 | L76: 1 | O76: 1 | U76: 0.2 | AA76: 0 | AE76: 0 | AH76: 0 | AL76: 0
A77: 2020-03-04 | D77: Niederösterreich | E77: 1684287 | F77: 2 | G77: 5 | H77: 7 | L77: 12 | O77: 12 | U77: 0.7 | AA77: 0 | AE77: 0 | AH77: 0 | AL77: 0
A78: 2020-03-04 | D78: Oberösterreich | E78: 1490279 | F78: 0 | G78: 0 | H78: 0 | L78: 0 | O78: 0 | U78: 0 | AA78: 0 | AE78: 0 | AH78: 0 | AL78: 0
A79: 2020-03-04 | D79: Salzburg | E79: 558410 | F79: 0 | G79: 1 | H79: 1 | L79: 2 | O79: 2 | U79: 0.4 | AA79: 0 | AE79: 0 | AH79: 0 | AL79: 0
A80: 2020-03-04 | D80: Steiermark | E80: 1246395 | F80: 0 | G80: =H80-H70 -> 1 | H80: 1 | L80: 4 | O80: 4 | U80: 0.3 | AA80: 0 | AE80: 0 | AH80: 0 | AL80: 0
A81: 2020-03-04 | D81: Tirol | E81: 757634 | F81: 0 | G81: 2 | H81: 2 | L81: 2 | O81: 2 | U81: 0.3 | AA81: 0 | AE81: 0 | AH81: 0 | AL81: 0
A82: 2020-03-04 | D82: Vorarlberg | E82: 397139 | F82: 0 | G82: 0 | H82: 0 | L82: 0 | O82: 0 | U82: 0 | AA82: 0 | AE82: 0 | AH82: 0 | AL82: 0
A83: 2020-03-04 | D83: Wien | E83: 1911191 | F83: 4 | G83: -2 | H83: 2 | L83: 16 | O83: 15 | U83: 0.8 | AA83: 0 | AE83: 0 | AH83: 0 | AL83: 0
A84: 2020-03-04 | D84: Österreich | E84: 8901064 | F84: =H74 -> 6 | G84: =I74 -> 1 | H84: 14 | I84: =H84-H74 -> 8 | J84: =H94 -> 9 | K84: =I94 -> -5 | L84: 37 | M84: =O74 -> 23 | N84: =O74 -> 23 | O84: 36 | P84: =O84 -> 36 | Q84: =O94 -> 43 | R84: =Q84 -> 43 | S84: =U74 -> 0.3 | T84: =U74 -> 0.3 | U84: 0.4 | V84: =U84 -> 0.4 | W84: =U94 -> 0.5 | X84: =U94 -> 0.5 | Y84: =AA74 -> 0 | Z84: =AA74 -> 0 | AA84: 0 | AB84: =AA84 -> 0 | AC84: =AA94 -> 0 | AD84: =AA94 -> 0 | AE84: 0 | AF84: =AH74 -> 0 | AG84: =AH74 -> 0 | AH84: 0 | AI84: =AH84 -> 0 | AJ84: =AH94 -> 2 | AK84: =AH94 -> 2 | AL84: 0
A85: 2020-03-05 | D85: Burgenland | E85: 294436 | F85: 0 | G85: 0 | H85: 0 | L85: 0 | O85: 0 | U85: 0 | AA85: 0 | AE85: 0 | AH85: 0 | AL85: 0
A86: 2020-03-05 | D86: Kärnten | E86: 561293 | F86: 1 | G86: 0 | H86: 1 | L86: 2 | O86: 2 | U86: 0.4 | AA86: 0 | AE86: 0 | AH86: 0 | AL86: 0
A87: 2020-03-05 | D87: Niederösterreich | E87: 1684287 | F87: 7 | G87: -4 | H87: 3 | L87: 15 | O87: 15 | U87: 0.9 | AA87: 0 | AE87: 0 | AH87: 0 | AL87: 0
A88: 2020-03-05 | D88: Oberösterreich | E88: 1490279 | F88: 0 | G88: 0 | H88: 0 | L88: 0 | O88: 0 | U88: 0 | AA88: 0 | AE88: 0 | AH88: 0 | AL88: 0
A89: 2020-03-05 | D89: Salzburg | E89: 558410 | F89: 1 | G89: 0 | H89: 1 | L89: 3 | O89: 3 | U89: 0.5 | AA89: 0 | AE89: 0 | AH89: 0 | AL89: 0
A90: 2020-03-05 | D90: Steiermark | E90: 1246395 | F90: 1 | G90: -1 | H90: 0 | L90: 4 | O90: 4 | U90: 0.3 | AA90: 0 | AE90: 0 | AH90: 0 | AL90: 0
A91: 2020-03-05 | D91: Tirol | E91: 757634 | F91: 2 | G91: 0 | H91: 2 | L91: 4 | O91: 4 | U91: 0.5 | AA91: 0 | AE91: 0 | AH91: 2 | AL91: 2
A92: 2020-03-05 | D92: Vorarlberg | E92: 397139 | F92: 0 | G92: 1 | H92: 1 | L92: 1 | O92: 1 | U92: 0.3 | AA92: 0 | AE92: 0 | AH92: 0 | AL92: 0
A93: 2020-03-05 | D93: Wien | E93: 1911191 | F93: 2 | G93: -1 | H93: 1 | L93: 17 | O93: 14 | U93: 0.7 | AA93: 0 | AE93: 0 | AH93: 0 | AL93: 0
A94: 2020-03-05 | D94: Österreich | E94: 8901064 | F94: =H84 -> 14 | G94: =I84 -> 8 | H94: 9 | I94: =H94-H84 -> -5 | J94: =H104 -> 29 | K94: =I104 -> 20 | L94: 46 | M94: =O84 -> 36 | N94: =O84 -> 36 | O94: 43 | P94: =O94 -> 43 | Q94: =O104 -> 68 | R94: =Q94 -> 68 | S94: =U84 -> 0.4 | T94: =U84 -> 0.4 | U94: 0.5 | V94: =U94 -> 0.5 | W94: =U104 -> 0.8 | X94: =U104 -> 0.8 | Y94: =AA84 -> 0 | Z94: =AA84 -> 0 | AA94: 0 | AB94: =AA94 -> 0 | AC94: =AA104 -> 0 | AD94: =AA104 -> 0 | AE94: 0 | AF94: =AH84 -> 0 | AG94: =AH84 -> 0 | AH94: 2 | AI94: =AH94 -> 2 | AJ94: =AH104 -> 0 | AK94: =AH104 -> 0 | AL94: 2
A95: 2020-03-06 | D95: Burgenland | E95: 294436 | F95: 0 | G95: 4 | H95: 4 | L95: 4 | O95: 4 | U95: 1.4 | AA95: 0 | AE95: 0 | AH95: 0 | AL95: 0
A96: 2020-03-06 | D96: Kärnten | E96: 561293 | F96: =H86 -> 1 | G96: -1 | H96: 0 | L96: 2 | O96: 2 | U96: 0.4 | AA96: 0 | AE96: 0 | AH96: 0 | AL96: 0
A97: 2020-03-06 | D97: Niederösterreich | E97: 1684287 | F97: 3 | G97: 4 | H97: 7 | L97: 22 | O97: 20 | U97: 1.2 | AA97: 0 | AE97: 0 | AH97: 0 | AL97: 0
A98: 2020-03-06 | D98: Oberösterreich | E98: 1490279 | F98: 0 | G98: 1 | H98: 1 | L98: 1 | O98: 1 | U98: 0.1 | AA98: 0 | AE98: 0 | AH98: 0 | AL98: 0
A99: 2020-03-06 | D99: Salzburg | E99: 558410 | F99: 1 | G99: -1 | H99: 0 | L99: 3 | O99: 3 | U99: 0.5 | AA99: 0 | AE99: 0 | AH99: 0 | AL99: 0
A100: 2020-03-06 | D100: Steiermark | E100: 1246395 | F100: 0 | G100: 2 | H100: 2 | L100: 6 | O100: 5 | U100: 0.4 | AA100: 0 | AE100: 0 | AH100: 0 | AL100: 0
A101: 2020-03-06 | D101: Tirol | E101: 757634 | F101: 2 | G101: 1 | H101: 3 | L101: 7 | O101: 7 | U101: 0.9 | AA101: 0 | AE101: 0 | AH101: 0 | AL101: 2
A102: 2020-03-06 | D102: Vorarlberg | E102: 397139 | F102: 1 | G102: 1 | H102: 2 | L102: 3 | O102: 3 | U102: 0.8 | AA102: 0 | AE102: 0 | AH102: 0 | AL102: 0
A103: 2020-03-06 | D103: Wien | E103: 1911191 | F103: 1 | G103: 9 | H103: 10 | L103: 27 | O103: 23 | U103: 1.2 | AA103: 0 | AE103: 0 | AH103: 0 | AL103: 0
A104: 2020-03-06 | D104: Österreich | E104: 8901064 | F104: =H94 -> 9 | G104: =I94 -> -5 | H104: 29 | I104: =H104-H94 -> 20 | J104: =H114 -> 23 | K104: =I114 -> -6 | L104: 75 | M104: =O94 -> 43 | N104: =O94 -> 43 | O104: 68 | P104: =O104 -> 68 | Q104: =O114 -> 90 | R104: =Q104 -> 90 | S104: =U94 -> 0.5 | T104: =U94 -> 0.5 | U104: 0.8 | V104: =U104 -> 0.8 | W104: =U114 -> 1 | X104: =U114 -> 1 | Y104: =AA94 -> 0 | Z104: =AA94 -> 0 | AA104: 0 | AB104: =AA104 -> 0 | AC104: =AA114 -> 0 | AD104: =AA114 -> 0 | AE104: 0 | AF104: =AH94 -> 2 | AG104: =AH94 -> 2 | AH104: 0 | AI104: =AH104 -> 0 | AJ104: =AH114 -> 0 | AK104: =AH114 -> 0 | AL104: 2
A105: 2020-03-07 | D105: Burgenland | E105: 294436 | F105: 4 | G105: -4 | H105: 0 | L105: 4 | O105: 4 | U105: 1.4 | AA105: 0 | AE105: 0 | AH105: 0 | AL105: 0
A106: 2020-03-07 | D106: Kärnten | E106: 561293 | F106: 0 | G106: 1 | H106: 1 | L106: 3 | O106: 3 | U106: 0.5 | AA106: 0 | AE106: 0 | AH106: 0 | AL106: 0
A107: 2020-03-07 | D107: Niederösterreich | E107: 1684287 | F107: 7 | G107: 0 | H107: 7 | L107: 29 | O107: 27 | U107: 1.6 | AA107: 0 | AE107: 0 | AH107: 0 | AL107: 0
A108: 2020-03-07 | D108: Oberösterreich | E108: 1490279 | F108: 1 | G108: 5 | H108: 6 | L108: 7 | O108: 7 | U108: 0.5 | AA108: 0 | AE108: 0 | AH108: 0 | AL108: 0
A109: 2020-03-07 | D109: Salzburg | E109: 558410 | F109: 0 | G109: 2 | H109: 2 | L109: 5 | O109: 5 | U109: 0.9 | AA109: 0 | AE109: 0 | AH109: 0 | AL109: 0
A110: 2020-03-07 | D110: Steiermark | E110: 1246395 | F110: 2 | G110: 0 | H110: 2 | L110: 8 | O110: 7 | U110: 0.6 | AA110: 0 | AE110: 0 | AH110: 0 | AL110: 0
A111: 2020-03-07 | D111: Tirol | E111: 757634 | F111: 3 | G111: -2 | H111: 1 | L111: 8 | O111: 8 | U111: 1.1 | AA111: 0 | AE111: 0 | AH111: 0 | AL111: 2
A112: 2020-03-07 | D112: Vorarlberg | E112: 397139 | F112: 2 | G112: -2 | H112: 0 | L112: 3 | O112: 3 | U112: 0.8 | AA112: 0 | AE112: 0 | AH112: 0 | AL112: 0
A113: 2020-03-07 | D113: Wien | E113: 1911191 | F113: 10 | G113: -6 | H113: 4 | L113: 31 | O113: 26 | U113: 1.4 | AA113: 0 | AE113: 0 | AH113: 0 | AL113: 0
A114: 2020-03-07 | D114: Österreich | E114: 8901064 | F114: =H104 -> 29 | G114: =I104 -> 20 | H114: 23 | I114: =H114-H104 -> -6 | J114: =H124 -> 28 | K114: =I124 -> 5 | L114: 98 | M114: =O104 -> 68 | N114: =O104 -> 68 | O114: 90 | P114: =O114 -> 90 | Q114: =O124 -> 114 | R114: =Q114 -> 114 | S114: =U104 -> 0.8 | T114: =U104 -> 0.8 | U114: 1 | V114: =U114 -> 1 | W114: =U124 -> 1.3 | X114: =U124 -> 1.3 | Y114: =AA104 -> 0 | Z114: =AA104 -> 0 | AA114: 0 | AB114: =AA114 -> 0 | AC114: =AA124 -> 0 | AD114: =AA124 -> 0 | AE114: 0 | AF114: =AH104 -> 0 | AG114: =AH104 -> 0 | AH114: 0 | AI114: =AH114 -> 0 | AJ114: =AH124 -> 0 | AK114: =AH124 -> 0 | AL114: 2
A115: 2020-03-08 | D115: Burgenland | E115: 294436 | F115: 0 | G115: 0 | H115: 0 | L115: 4 | O115: 4 | U115: 1.4 | AA115: 0 | AE115: 0 | AH115: 0 | AL115: 0
A116: 2020-03-08 | D116: Kärnten | E116: 561293 | F116: 1 | G116: -1 | H116: 0 | L116: 3 | O116: 3 | U116: 0.5 | AA116: 0 | AE116: 0 | AH116: 0 | AL116: 0
A117: 2020-03-08 | D117: Niederösterreich | E117: 1684287 | F117: 7 | G117: -2 | H117: 5 | L117: 34 | O117: 32 | U117: 1.9 | AA117: 0 | AE117: 0 | AH117: 0 | AL117: 0
A118: 2020-03-08 | D118: Oberösterreich | E118: 1490279 | F118: 6 | G118: -2 | H118: 4 | L118: 11 | O118: 11 | U118: 0.7 | AA118: 0 | AE118: 0 | AH118: 0 | AL118: 0
A119: 2020-03-08 | D119: Salzburg | E119: 558410 | F119: 2 | G119: -1 | H119: 1 | L119: 6 | O119: 6 | U119: 1.1 | AA119: 0 | AE119: 0 | AH119: 0 | AL119: 0
A120: 2020-03-08 | D120: Steiermark | E120: 1246395 | F120: 2 | G120: 1 | H120: 3 | L120: 11 | O120: 10 | U120: 0.8 | AA120: 0 | AE120: 0 | AH120: 0 | AL120: 0
A121: 2020-03-08 | D121: Tirol | E121: 757634 | F121: 1 | G121: 12 | H121: 13 | L121: 21 | O121: 21 | U121: 2.8 | AA121: 0 | AE121: 0 | AH121: 0 | AL121: 2
A122: 2020-03-08 | D122: Vorarlberg | E122: 397139 | F122: 0 | G122: 1 | H122: 1 | L122: 4 | O122: 4 | U122: 1 | AA122: 0 | AE122: 0 | AH122: 0 | AL122: 0
A123: 2020-03-08 | D123: Wien | E123: 1911191 | F123: 4 | G123: -3 | H123: 1 | L123: 32 | O123: 23 | U123: 1.2 | AA123: 0 | AE123: 0 | AH123: 0 | AL123: 0
A124: 2020-03-08 | D124: Österreich | E124: 8901064 | F124: =H114 -> 23 | G124: =I114 -> -6 | H124: 28 | I124: =H124-H114 -> 5 | J124: =H134 -> 22 | K124: =I134 -> -6 | L124: 126 | M124: =O114 -> 90 | N124: =O114 -> 90 | O124: 114 | P124: =O124 -> 114 | Q124: =O134 -> 131 | R124: =Q124 -> 131 | S124: =U114 -> 1 | T124: =U114 -> 1 | U124: 1.3 | V124: =U124 -> 1.3 | W124: =U134 -> 1.5 | X124: =U134 -> 1.5 | Y124: =AA114 -> 0 | Z124: =AA114 -> 0 | AA124: 0 | AB124: =AA124 -> 0 | AC124: =AA134 -> 0 | AD124: =AA134 -> 0 | AE124: 0 | AF124: =AH114 -> 0 | AG124: =AH114 -> 0 | AH124: 0 | AI124: =AH124 -> 0 | AJ124: =AH134 -> 0 | AK124: =AH134 -> 0 | AL124: 2
A125: 2020-03-09 | D125: Burgenland | E125: 294436 | F125: 0 | G125: 0 | H125: 0 | L125: 4 | O125: 4 | U125: 1.4 | AA125: 0 | AE125: 0 | AH125: 0 | AL125: 0
A126: 2020-03-09 | D126: Kärnten | E126: 561293 | F126: 0 | G126: 0 | H126: 0 | L126: 3 | O126: 3 | U126: 0.5 | AA126: 0 | AE126: 0 | AH126: 0 | AL126: 0
A127: 2020-03-09 | D127: Niederösterreich | E127: 1684287 | F127: 5 | G127: -2 | H127: 3 | L127: 37 | O127: 34 | U127: 2 | AA127: 0 | AE127: 0 | AH127: 0 | AL127: 0
A128: 2020-03-09 | D128: Oberösterreich | E128: 1490279 | F128: 4 | G128: -1 | H128: 3 | L128: 14 | O128: 14 | U128: 0.9 | AA128: 0 | AE128: 0 | AH128: 0 | AL128: 0
A129: 2020-03-09 | D129: Salzburg | E129: 558410 | F129: 1 | G129: 2 | H129: 3 | L129: 9 | O129: 8 | U129: 1.4 | AA129: 0 | AE129: 0 | AH129: 0 | AL129: 0
A130: 2020-03-09 | D130: Steiermark | E130: 1246395 | F130: 3 | G130: 4 | H130: 7 | L130: 18 | O130: 15 | U130: 1.2 | AA130: 0 | AE130: 0 | AH130: 0 | AL130: 0
A131: 2020-03-09 | D131: Tirol | E131: 757634 | F131: 13 | G131: -11 | H131: 2 | L131: 23 | O131: 23 | U131: 3 | AA131: 0 | AE131: 0 | AH131: 0 | AL131: 2
A132: 2020-03-09 | D132: Vorarlberg | E132: 397139 | F132: 1 | G132: 0 | H132: 1 | L132: 5 | O132: 5 | U132: 1.3 | AA132: 0 | AE132: 0 | AH132: 0 | AL132: 0
A133: 2020-03-09 | D133: Wien | E133: 1911191 | F133: 1 | G133: 2 | H133: 3 | L133: 35 | O133: 25 | U133: 1.3 | AA133: 0 | AE133: 0 | AH133: 0 | AL133: 0
A134: 2020-03-09 | D134: Österreich | E134: 8901064 | F134: =H124 -> 28 | G134: =I124 -> 5 | H134: 22 | I134: =H134-H124 -> -6 | J134: =H144 -> 55 | K134: =I144 -> 33 | L134: 148 | M134: =O124 -> 114 | N134: =O124 -> 114 | O134: 131 | P134: =O134 -> 131 | Q134: =O144 -> 180 | R134: =Q134 -> 180 | S134: =U124 -> 1.3 | T134: =U124 -> 1.3 | U134: 1.5 | V134: =U134 -> 1.5 | W134: =U144 -> 2 | X134: =U144 -> 2 | Y134: =AA124 -> 0 | Z134: =AA124 -> 0 | AA134: 0 | AB134: =AA134 -> 0 | AC134: =AA144 -> 0 | AD134: =AA144 -> 0 | AE134: 0 | AF134: =AH124 -> 0 | AG134: =AH124 -> 0 | AH134: 0 | AI134: =AH134 -> 0 | AJ134: =AH144 -> 2 | AK134: =AH144 -> 2 | AL134: 2
A135: 2020-03-10 | D135: Burgenland | E135: 294436 | F135: 0 | G135: 0 | H135: 0 | L135: 4 | O135: 4 | U135: 1.4 | AA135: 0 | AE135: 0 | AH135: 0 | AL135: 0
A136: 2020-03-10 | D136: Kärnten | E136: 561293 | F136: 0 | G136: 0 | H136: 0 | L136: 3 | O136: 3 | U136: 0.5 | AA136: 0 | AE136: 0 | AH136: 0 | AL136: 0
A137: 2020-03-10 | D137: Niederösterreich | E137: 1684287 | F137: 3 | G137: 3 | H137: 6 | L137: 43 | O137: 38 | U137: 2.3 | AA137: 0 | AE137: 0 | AH137: 0 | AL137: 0
A138: 2020-03-10 | D138: Oberösterreich | E138: 1490279 | F138: 3 | G138: 13 | H138: 16 | L138: 30 | O138: 30 | U138: 2 | AA138: 0 | AE138: 0 | AH138: 0 | AL138: 0
A139: 2020-03-10 | D139: Salzburg | E139: 558410 | F139: 3 | G139: -1 | H139: 2 | L139: 11 | O139: 10 | U139: 1.8 | AA139: 0 | AE139: 0 | AH139: 1 | AL139: 1
A140: 2020-03-10 | D140: Steiermark | E140: 1246395 | F140: 7 | G140: -6 | H140: 1 | L140: 19 | O140: 16 | U140: 1.3 | AA140: 0 | AE140: 0 | AH140: 0 | AL140: 0
A141: 2020-03-10 | D141: Tirol | E141: 757634 | F141: 2 | G141: 10 | H141: 12 | L141: 35 | O141: 35 | U141: 4.6 | AA141: 0 | AE141: 0 | AH141: 0 | AL141: 2
A142: 2020-03-10 | D142: Vorarlberg | E142: 397139 | F142: 1 | G142: 8 | H142: 9 | L142: 14 | O142: 14 | U142: 3.5 | AA142: 0 | AE142: 0 | AH142: 0 | AL142: 0
A143: 2020-03-10 | D143: Wien | E143: 1911191 | F143: 3 | G143: 6 | H143: 9 | L143: 44 | O143: 30 | U143: 1.6 | AA143: 0 | AE143: 0 | AH143: 1 | AL143: 1
A144: 2020-03-10 | D144: Österreich | E144: 8901064 | F144: =H134 -> 22 | G144: =I134 -> -6 | H144: 55 | I144: =H144-H134 -> 33 | J144: =H154 -> 109 | K144: =I154 -> 54 | L144: 203 | M144: =O134 -> 131 | N144: =O134 -> 131 | O144: 180 | P144: =O144 -> 180 | Q144: =O154 -> 275 | R144: =Q144 -> 275 | S144: =U134 -> 1.5 | T144: =U134 -> 1.5 | U144: 2 | V144: =U144 -> 2 | W144: =U154 -> 3.1 | X144: =U154 -> 3.1 | Y144: =AA134 -> 0 | Z144: =AA134 -> 0 | AA144: 0 | AB144: =AA144 -> 0 | AC144: =AA154 -> 0 | AD144: =AA154 -> 0 | AE144: 0 | AF144: =AH134 -> 0 | AG144: =AH134 -> 0 | AH144: 2 | AI144: =AH144 -> 2 | AJ144: =AH154 -> 2 | AK144: =AH154 -> 2 | AL144: 4
A145: 2020-03-11 | D145: Burgenland | E145: 294436 | F145: 0 | G145: =H145-H135 -> 2 | H145: 2 | L145: 6 | O145: 6 | U145: 2 | AA145: 0 | AE145: 0 | AH145: 0 | AL145: 0
A146: 2020-03-11 | D146: Kärnten | E146: 561293 | F146: 0 | G146: 2 | H146: 2 | L146: 5 | O146: 4 | U146: 0.7 | AA146: 0 | AE146: 0 | AH146: 0 | AL146: 0
A147: 2020-03-11 | D147: Niederösterreich | E147: 1684287 | F147: 6 | G147: 2 | H147: 8 | L147: 51 | O147: 39 | U147: 2.3 | AA147: 0 | AE147: 0 | AH147: 1 | AL147: 1
A148: 2020-03-11 | D148: Oberösterreich | E148: 1490279 | F148: 16 | G148: 11 | H148: 27 | L148: 57 | O148: 57 | U148: 3.8 | AA148: 0 | AE148: 0 | AH148: 0 | AL148: 0
A149: 2020-03-11 | D149: Salzburg | E149: 558410 | F149: 2 | G149: -1 | H149: 1 | L149: 12 | O149: 10 | U149: 1.8 | AA149: 0 | AE149: 0 | AH149: 0 | AL149: 1
A150: 2020-03-11 | D150: Steiermark | E150: 1246395 | F150: 1 | G150: 8 | H150: 9 | L150: 28 | O150: 24 | U150: 1.9 | AA150: 0 | AE150: 0 | AH150: 0 | AL150: 0
A151: 2020-03-11 | D151: Tirol | E151: 757634 | F151: 12 | G151: 25 | H151: 37 | L151: 72 | O151: 70 | U151: 9.2 | AA151: 0 | AE151: 0 | AH151: 0 | AL151: 2
A152: 2020-03-11 | D152: Vorarlberg | E152: 397139 | F152: 9 | G152: -6 | H152: 3 | L152: 17 | O152: 17 | U152: 4.3 | AA152: 0 | AE152: 0 | AH152: 0 | AL152: 0
A153: 2020-03-11 | D153: Wien | E153: 1911191 | F153: 9 | G153: 11 | H153: 20 | L153: 64 | O153: 48 | U153: 2.5 | AA153: 0 | AE153: 0 | AH153: 1 | AL153: 2
A154: 2020-03-11 | D154: Österreich | E154: 8901064 | F154: =H144 -> 55 | G154: =I144 -> 33 | H154: 109 | I154: =H154-H144 -> 54 | J154: =H164 -> 98 | K154: =I164 -> -11 | L154: 312 | M154: =O144 -> 180 | N154: =O144 -> 180 | O154: 275 | P154: =O154 -> 275 | Q154: =O164 -> 364 | R154: =Q154 -> 364 | S154: =U144 -> 2 | T154: =U144 -> 2 | U154: 3.1 | V154: =U154 -> 3.1 | W154: =U164 -> 4.1 | X154: =U164 -> 4.1 | Y154: =AA144 -> 0 | Z154: =AA144 -> 0 | AA154: 0 | AB154: =AA154 -> 0 | AC154: =AA164 -> 1 | AD154: =AA164 -> 1 | AE154: 0 | AF154: =AH144 -> 2 | AG154: =AH144 -> 2 | AH154: 2 | AI154: =AH154 -> 2 | AJ154: =AH164 -> 3 | AK154: =AH164 -> 3 | AL154: 6
A155: 2020-03-12 | D155: Burgenland | E155: 294436 | F155: 2 | G155: -1 | H155: 1 | L155: 7 | O155: 7 | U155: 2.4 | AA155: 0 | AE155: 0 | AH155: 0 | AL155: 0
A156: 2020-03-12 | D156: Kärnten | E156: 561293 | F156: 2 | G156: -1 | H156: 1 | L156: 6 | O156: 4 | U156: 0.7 | AA156: 0 | AE156: 0 | AH156: 0 | AL156: 0
A157: 2020-03-12 | D157: Niederösterreich | E157: 1684287 | F157: 8 | G157: -4 | H157: 4 | L157: 55 | O157: 40 | U157: 2.4 | AA157: 0 | AE157: 0 | AH157: 0 | AL157: 1
A158: 2020-03-12 | D158: Oberösterreich | E158: 1490279 | F158: 27 | G158: -11 | H158: 16 | L158: 73 | O158: 73 | U158: 4.9 | AA158: 0 | AE158: 0 | AH158: 0 | AL158: 0
A159: 2020-03-12 | D159: Salzburg | E159: 558410 | F159: 1 | G159: 7 | H159: 8 | L159: 20 | O159: 17 | U159: 3 | AA159: 0 | AE159: 0 | AH159: 1 | AL159: 2
A160: 2020-03-12 | D160: Steiermark | E160: 1246395 | F160: =H150 -> 9 | G160: 4 | H160: 13 | L160: 41 | O160: 37 | U160: 3 | AA160: 0 | AE160: 0 | AH160: 0 | AL160: 0
A161: 2020-03-12 | D161: Tirol | E161: 757634 | F161: 37 | G161: 13 | H161: 50 | L161: 122 | O161: 118 | U161: 15.6 | AA161: 0 | AE161: 0 | AH161: 0 | AL161: 2
A162: 2020-03-12 | D162: Vorarlberg | E162: 397139 | F162: 3 | G162: -1 | H162: 2 | L162: 19 | O162: 18 | U162: 4.5 | AA162: 0 | AE162: 0 | AH162: 0 | AL162: 0
A163: 2020-03-12 | D163: Wien | E163: 1911191 | F163: 20 | G163: -17 | H163: 3 | L163: 67 | O163: 50 | U163: 2.6 | AA163: 1 | AE163: 1 | AH163: 2 | AL163: 4
A164: 2020-03-12 | D164: Österreich | E164: 8901064 | F164: =H154 -> 109 | G164: =I154 -> 54 | H164: 98 | I164: =H164-H154 -> -11 | J164: =H174 -> 182 | K164: =I174 -> 84 | L164: 410 | M164: =O154 -> 275 | N164: =O154 -> 275 | O164: 364 | P164: =O164 -> 364 | Q164: =O174 -> 517 | R164: =Q164 -> 517 | S164: =U154 -> 3.1 | T164: =U154 -> 3.1 | U164: 4.1 | V164: =U164 -> 4.1 | W164: =U174 -> 5.8 | X164: =U174 -> 5.8 | Y164: =AA154 -> 0 | Z164: =AA154 -> 0 | AA164: 1 | AB164: =AA164 -> 1 | AC164: =AA174 -> 0 | AD164: =AA174 -> 0 | AE164: 1 | AF164: =AH154 -> 2 | AG164: =AH154 -> 2 | AH164: 3 | AI164: =AH164 -> 3 | AJ164: =AH174 -> 0 | AK164: =AH174 -> 0 | AL164: 9
A165: 2020-03-13 | D165: Burgenland | E165: 294436 | F165: 1 | G165: 2 | H165: 3 | L165: 10 | O165: 6 | U165: 2 | AA165: 0 | AE165: 0 | AH165: 0 | AL165: 0
A166: 2020-03-13 | D166: Kärnten | E166: 561293 | F166: 1 | G166: -1 | H166: 0 | L166: 6 | O166: 4 | U166: 0.7 | AA166: 0 | AE166: 0 | AH166: 0 | AL166: 0
A167: 2020-03-13 | D167: Niederösterreich | E167: 1684287 | F167: 4 | G167: 20 | H167: 24 | L167: 79 | O167: 57 | U167: 3.4 | AA167: 0 | AE167: 0 | AH167: 0 | AL167: 1
A168: 2020-03-13 | D168: Oberösterreich | E168: 1490279 | F168: 16 | G168: 18 | H168: 34 | L168: 107 | O168: 106 | U168: 7.1 | AA168: 0 | AE168: 0 | AH168: 0 | AL168: 0
A169: 2020-03-13 | D169: Salzburg | E169: 558410 | F169: 8 | G169: -5 | H169: 3 | L169: 23 | O169: 20 | U169: 3.6 | AA169: 0 | AE169: 0 | AH169: 0 | AL169: 2
A170: 2020-03-13 | D170: Steiermark | E170: 1246395 | F170: 13 | G170: 11 | H170: 24 | L170: 65 | O170: 59 | U170: 4.7 | AA170: 0 | AE170: 0 | AH170: 0 | AL170: 0
A171: 2020-03-13 | D171: Tirol | E171: 757634 | F171: 50 | G171: 19 | H171: 69 | L171: 191 | O171: 184 | U171: 24.3 | AA171: 0 | AE171: 0 | AH171: 0 | AL171: 2
A172: 2020-03-13 | D172: Vorarlberg | E172: 397139 | F172: 2 | G172: 7 | H172: 9 | L172: 28 | O172: 25 | U172: 6.3 | AA172: 0 | AE172: 0 | AH172: 0 | AL172: 0
A173: 2020-03-13 | D173: Wien | E173: 1911191 | F173: 3 | G173: 13 | H173: 16 | L173: 83 | O173: 56 | U173: 2.9 | AA173: 0 | AE173: 1 | AH173: 0 | AL173: 4
A174: 2020-03-13 | D174: Österreich | E174: 8901064 | F174: =H164 -> 98 | G174: =I164 -> -11 | H174: 182 | I174: =H174-H164 -> 84 | J174: =H184 -> 210 | K174: =I184 -> 28 | L174: 592 | M174: =O164 -> 364 | N174: =O164 -> 364 | O174: 517 | P174: =O174 -> 517 | Q174: =O184 -> 704 | R174: =Q174 -> 704 | S174: =U164 -> 4.1 | T174: =U164 -> 4.1 | U174: 5.8 | V174: =U174 -> 5.8 | W174: =U184 -> 7.9 | X174: =U184 -> 7.9 | Y174: =AA164 -> 1 | Z174: =AA164 -> 1 | AA174: 0 | AB174: =AA174 -> 0 | AC174: =AA184 -> 1 | AD174: =AA184 -> 1 | AE174: 1 | AF174: =AH164 -> 3 | AG174: =AH164 -> 3 | AH174: 0 | AI174: =AH174 -> 0 | AJ174: =AH184 -> 2 | AK174: =AH184 -> 2 | AL174: 9
A175: 2020-03-14 | D175: Burgenland | E175: 294436 | F175: 3 | G175: -3 | H175: 0 | L175: 10 | O175: 6 | U175: 2 | AA175: 0 | AE175: 0 | AH175: 0 | AL175: 0
A176: 2020-03-14 | D176: Kärnten | E176: 561293 | F176: 0 | G176: 2 | H176: 2 | L176: 8 | O176: 5 | U176: 0.9 | AA176: 0 | AE176: 0 | AH176: 1 | AL176: 1
A177: 2020-03-14 | D177: Niederösterreich | E177: 1684287 | F177: 24 | G177: 8 | H177: 32 | L177: 111 | O177: 82 | U177: 4.9 | AA177: 0 | AE177: 0 | AH177: 0 | AL177: 1
A178: 2020-03-14 | D178: Oberösterreich | E178: 1490279 | F178: 34 | G178: 18 | H178: 52 | L178: 159 | O178: 152 | U178: 10.2 | AA178: 0 | AE178: 0 | AH178: 1 | AL178: 1
A179: 2020-03-14 | D179: Salzburg | E179: 558410 | F179: 3 | G179: 12 | H179: 15 | L179: 38 | O179: 33 | U179: 5.9 | AA179: 0 | AE179: 0 | AH179: 0 | AL179: 2
A180: 2020-03-14 | D180: Steiermark | E180: 1246395 | F180: 24 | G180: -4 | H180: 20 | L180: 85 | O180: 77 | U180: 6.2 | AA180: 0 | AE180: 0 | AH180: 0 | AL180: 0
A181: 2020-03-14 | D181: Tirol | E181: 757634 | F181: 69 | G181: -21 | H181: 48 | L181: 239 | O181: 231 | U181: 30.5 | AA181: 0 | AE181: 0 | AH181: 0 | AL181: 2
A182: 2020-03-14 | D182: Vorarlberg | E182: 397139 | F182: 9 | G182: 17 | H182: 26 | L182: 54 | O182: 51 | U182: 12.8 | AA182: 0 | AE182: 0 | AH182: 0 | AL182: 0
A183: 2020-03-14 | D183: Wien | E183: 1911191 | F183: 16 | G183: -1 | H183: 15 | L183: 98 | O183: 67 | U183: 3.5 | AA183: 1 | AE183: 2 | AH183: 0 | AL183: 4
A184: 2020-03-14 | D184: Österreich | E184: 8901064 | F184: =H174 -> 182 | G184: =I174 -> 84 | H184: 210 | I184: =H184-H174 -> 28 | J184: =H194 -> 198 | K184: =I194 -> -12 | L184: 802 | M184: =O174 -> 517 | N184: =O174 -> 517 | O184: 704 | P184: =O184 -> 704 | Q184: =O194 -> 874 | R184: =Q184 -> 874 | S184: =U174 -> 5.8 | T184: =U174 -> 5.8 | U184: 7.9 | V184: =U184 -> 7.9 | W184: =U194 -> 9.8 | X184: =U194 -> 9.8 | Y184: =AA174 -> 0 | Z184: =AA174 -> 0 | AA184: 1 | AB184: =AA184 -> 1 | AC184: =AA194 -> 1 | AD184: =AA194 -> 1 | AE184: 2 | AF184: =AH174 -> 0 | AG184: =AH174 -> 0 | AH184: 2 | AI184: =AH184 -> 2 | AJ184: =AH194 -> 4 | AK184: =AH194 -> 4 | AL184: 11
A185: 2020-03-15 | D185: Burgenland | E185: 294436 | F185: 0 | G185: 0 | H185: 0 | L185: 10 | O185: 6 | U185: 2 | AA185: 0 | AE185: 0 | AH185: 0 | AL185: 0
A186: 2020-03-15 | D186: Kärnten | E186: 561293 | F186: 2 | G186: 0 | H186: 2 | L186: 10 | O186: 7 | U186: 1.2 | AA186: 0 | AE186: 0 | AH186: 0 | AL186: 1
A187: 2020-03-15 | D187: Niederösterreich | E187: 1684287 | F187: 32 | G187: 9 | H187: 41 | L187: 152 | O187: 118 | U187: 7 | AA187: 0 | AE187: 0 | AH187: 1 | AL187: 2
A188: 2020-03-15 | D188: Oberösterreich | E188: 1490279 | F188: 52 | G188: -6 | H188: 46 | L188: 205 | O188: 194 | U188: 13 | AA188: 0 | AE188: 0 | AH188: 1 | AL188: 2
A189: 2020-03-15 | D189: Salzburg | E189: 558410 | F189: 15 | G189: 0 | H189: 15 | L189: 53 | O189: 47 | U189: 8.4 | AA189: 0 | AE189: 0 | AH189: 0 | AL189: 2
A190: 2020-03-15 | D190: Steiermark | E190: 1246395 | F190: 20 | G190: 9 | H190: 29 | L190: 114 | O190: 103 | U190: 8.3 | AA190: 0 | AE190: 0 | AH190: 0 | AL190: 0
A191: 2020-03-15 | D191: Tirol | E191: 757634 | F191: 48 | G191: -18 | H191: 30 | L191: 269 | O191: 248 | U191: 32.7 | AA191: 0 | AE191: 0 | AH191: 0 | AL191: 2
A192: 2020-03-15 | D192: Vorarlberg | E192: 397139 | F192: 26 | G192: -20 | H192: 6 | L192: 60 | O192: 56 | U192: 14.1 | AA192: 0 | AE192: 0 | AH192: 0 | AL192: 0
A193: 2020-03-15 | D193: Wien | E193: 1911191 | F193: 15 | G193: 14 | H193: 29 | L193: 127 | O193: 95 | U193: 5 | AA193: 1 | AE193: 3 | AH193: 2 | AL193: 6
A194: 2020-03-15 | D194: Österreich | E194: 8901064 | F194: =H184 -> 210 | G194: =I184 -> 28 | H194: 198 | I194: =H194-H184 -> -12 | J194: =H204 -> 226 | K194: =I204 -> 28 | L194: 1000 | M194: =O184 -> 704 | N194: =O184 -> 704 | O194: 874 | P194: =O194 -> 874 | Q194: =O204 -> 1078 | R194: =Q194 -> 1078 | S194: =U184 -> 7.9 | T194: =U184 -> 7.9 | U194: 9.8 | V194: =U194 -> 9.8 | W194: =U204 -> 12.1 | X194: =U204 -> 12.1 | Y194: =AA184 -> 1 | Z194: =AA184 -> 1 | AA194: 1 | AB194: =AA194 -> 1 | AC194: =AA204 -> 2 | AD194: =AA204 -> 2 | AE194: 3 | AF194: =AH184 -> 2 | AG194: =AH184 -> 2 | AH194: 4 | AI194: =AH194 -> 4 | AJ194: =AH204 -> 12 | AK194: =AH204 -> 12 | AL194: 15
A195: 2020-03-16 | D195: Burgenland | E195: 294436 | F195: 0 | G195: 1 | H195: 1 | L195: 11 | O195: 7 | U195: 2.4 | AA195: 0 | AE195: 0 | AH195: 0 | AL195: 0
A196: 2020-03-16 | D196: Kärnten | E196: 561293 | F196: 2 | G196: 12 | H196: 14 | L196: 24 | O196: 21 | U196: 3.7 | AA196: 0 | AE196: 0 | AH196: 0 | AL196: 1
A197: 2020-03-16 | D197: Niederösterreich | E197: 1684287 | F197: 41 | G197: -26 | H197: 15 | L197: 167 | O197: 130 | U197: 7.7 | AA197: 0 | AE197: 0 | AH197: 1 | AL197: 3
A198: 2020-03-16 | D198: Oberösterreich | E198: 1490279 | F198: 46 | G198: -10 | H198: 36 | L198: 241 | O198: 227 | U198: 15.2 | AA198: 0 | AE198: 0 | AH198: 0 | AL198: 2
A199: 2020-03-16 | D199: Salzburg | E199: 558410 | F199: 15 | G199: -11 | H199: 4 | L199: 57 | O199: 48 | U199: 8.6 | AA199: 0 | AE199: 0 | AH199: 0 | AL199: 2
A200: 2020-03-16 | D200: Steiermark | E200: 1246395 | F200: 29 | G200: 4 | H200: 33 | L200: 147 | O200: 129 | U200: 10.3 | AA200: 1 | AE200: 1 | AH200: 0 | AL200: 0
... 2050 more rows

Sheet A1test
A1: Time | B1: Bundesland | C1: AnzEinwohner | D1: AnzahlFaelle | E1: AnzahlFaelleSum | F1: AnzahlFaelle7Tage | G1: SiebenTageInzidenzFaelle | H1: AnzahlTotTaeglich | I1: AnzahlTotSum | J1: AnzahlGeheiltTaeglich | K1: AnzahlGeheiltSum
A2: 2020-02-26 | B2: Burgenland | C2: 294436 | D2: 0 | E2: 0 | F2: 0 | G2: 0 | H2: 0 | I2: 0 | J2: 0 | K2: 0
A3: 2020-02-26 | B3: Kärnten | C3: 561293 | D3: 0 | E3: 0 | F3: 0 | G3: 0 | H3: 0 | I3: 0 | J3: 0 | K3: 0
A4: 2020-02-26 | B4: Niederösterreich | C4: 1684287 | D4: 0 | E4: 0 | F4: 0 | G4: 0 | H4: 0 | I4: 0 | J4: 0 | K4: 0
A5: 2020-02-26 | B5: Oberösterreich | C5: 1490279 | D5: 0 | E5: 0 | F5: 0 | G5: 0 | H5: 0 | I5: 0 | J5: 0 | K5: 0
A6: 2020-02-26 | B6: Salzburg | C6: 558410 | D6: 0 | E6: 0 | F6: 0 | G6: 0 | H6: 0 | I6: 0 | J6: 0 | K6: 0
A7: 2020-02-26 | B7: Steiermark | C7: 1246395 | D7: 0 | E7: 0 | F7: 0 | G7: 0 | H7: 0 | I7: 0 | J7: 0 | K7: 0
A8: 2020-02-26 | B8: Tirol | C8: 757634 | D8: 0 | E8: 0 | F8: 0 | G8: 0 | H8: 0 | I8: 0 | J8: 0 | K8: 0
A9: 2020-02-26 | B9: Vorarlberg | C9: 397139 | D9: 0 | E9: 0 | F9: 0 | G9: 0 | H9: 0 | I9: 0 | J9: 0 | K9: 0
A10: 2020-02-26 | B10: Wien | C10: 1911191 | D10: 1 | E10: 1 | F10: 1 | G10: 0.1 | H10: 0 | I10: 0 | J10: 0 | K10: 0
A11: 2020-02-26 | B11: Österreich | C11: 8901064 | D11: 1 | E11: 1 | F11: 1 | G11: 0 | H11: 0 | I11: 0 | J11: 0 | K11: 0
A12: 2020-02-27 | B12: Burgenland | C12: 294436 | D12: 0 | E12: 0 | F12: 0 | G12: 0 | H12: 0 | I12: 0 | J12: 0 | K12: 0
A13: 2020-02-27 | B13: Kärnten | C13: 561293 | D13: 0 | E13: 0 | F13: 0 | G13: 0 | H13: 0 | I13: 0 | J13: 0 | K13: 0
A14: 2020-02-27 | B14: Niederösterreich | C14: 1684287 | D14: 0 | E14: 0 | F14: 0 | G14: 0 | H14: 0 | I14: 0 | J14: 0 | K14: 0
A15: 2020-02-27 | B15: Oberösterreich | C15: 1490279 | D15: 0 | E15: 0 | F15: 0 | G15: 0 | H15: 0 | I15: 0 | J15: 0 | K15: 0
A16: 2020-02-27 | B16: Salzburg | C16: 558410 | D16: 0 | E16: 0 | F16: 0 | G16: 0 | H16: 0 | I16: 0 | J16: 0 | K16: 0
A17: 2020-02-27 | B17: Steiermark | C17: 1246395 | D17: 0 | E17: 0 | F17: 0 | G17: 0 | H17: 0 | I17: 0 | J17: 0 | K17: 0
A18: 2020-02-27 | B18: Tirol | C18: 757634 | D18: 0 | E18: 0 | F18: 0 | G18: 0 | H18: 0 | I18: 0 | J18: 0 | K18: 0
A19: 2020-02-27 | B19: Vorarlberg | C19: 397139 | D19: 0 | E19: 0 | F19: 0 | G19: 0 | H19: 0 | I19: 0 | J19: 0 | K19: 0
A20: 2020-02-27 | B20: Wien | C20: 1911191 | D20: 2 | E20: 3 | F20: 3 | G20: 0.2 | H20: 0 | I20: 0 | J20: 0 | K20: 0
A21: 2020-02-27 | B21: Österreich | C21: 8901064 | D21: 2 | E21: 3 | F21: 3 | G21: 0 | H21: 0 | I21: 0 | J21: 0 | K21: 0
A22: 2020-02-28 | B22: Burgenland | C22: 294436 | D22: 0 | E22: 0 | F22: 0 | G22: 0 | H22: 0 | I22: 0 | J22: 0 | K22: 0
A23: 2020-02-28 | B23: Kärnten | C23: 561293 | D23: 0 | E23: 0 | F23: 0 | G23: 0 | H23: 0 | I23: 0 | J23: 0 | K23: 0
A24: 2020-02-28 | B24: Niederösterreich | C24: 1684287 | D24: 2 | E24: 2 | F24: 2 | G24: 0.1 | H24: 0 | I24: 0 | J24: 0 | K24: 0
A25: 2020-02-28 | B25: Oberösterreich | C25: 1490279 | D25: 0 | E25: 0 | F25: 0 | G25: 0 | H25: 0 | I25: 0 | J25: 0 | K25: 0
A26: 2020-02-28 | B26: Salzburg | C26: 558410 | D26: 0 | E26: 0 | F26: 0 | G26: 0 | H26: 0 | I26: 0 | J26: 0 | K26: 0
A27: 2020-02-28 | B27: Steiermark | C27: 1246395 | D27: 1 | E27: 1 | F27: 1 | G27: 0.1 | H27: 0 | I27: 0 | J27: 0 | K27: 0
A28: 2020-02-28 | B28: Tirol | C28: 757634 | D28: 0 | E28: 0 | F28: 0 | G28: 0 | H28: 0 | I28: 0 | J28: 0 | K28: 0
A29: 2020-02-28 | B29: Vorarlberg | C29: 397139 | D29: 0 | E29: 0 | F29: 0 | G29: 0 | H29: 0 | I29: 0 | J29: 0 | K29: 0
A30: 2020-02-28 | B30: Wien | C30: 1911191 | D30: 1 | E30: 4 | F30: 4 | G30: 0.2 | H30: 0 | I30: 0 | J30: 0 | K30: 0
A31: 2020-02-28 | B31: Österreich | C31: 8901064 | D31: 4 | E31: 7 | F31: 7 | G31: 0.1 | H31: 0 | I31: 0 | J31: 0 | K31: 0
A32: 2020-02-29 | B32: Burgenland | C32: 294436 | D32: 0 | E32: 0 | F32: 0 | G32: 0 | H32: 0 | I32: 0 | J32: 0 | K32: 0
A33: 2020-02-29 | B33: Kärnten | C33: 561293 | D33: 0 | E33: 0 | F33: 0 | G33: 0 | H33: 0 | I33: 0 | J33: 0 | K33: 0
A34: 2020-02-29 | B34: Niederösterreich | C34: 1684287 | D34: 0 | E34: 2 | F34: 2 | G34: 0.1 | H34: 0 | I34: 0 | J34: 0 | K34: 0
A35: 2020-02-29 | B35: Oberösterreich | C35: 1490279 | D35: 0 | E35: 0 | F35: 0 | G35: 0 | H35: 0 | I35: 0 | J35: 0 | K35: 0
A36: 2020-02-29 | B36: Salzburg | C36: 558410 | D36: 0 | E36: 0 | F36: 0 | G36: 0 | H36: 0 | I36: 0 | J36: 0 | K36: 0
A37: 2020-02-29 | B37: Steiermark | C37: 1246395 | D37: 0 | E37: 1 | F37: 1 | G37: 0.1 | H37: 0 | I37: 0 | J37: 0 | K37: 0
A38: 2020-02-29 | B38: Tirol | C38: 757634 | D38: 0 | E38: 0 | F38: 0 | G38: 0 | H38: 0 | I38: 0 | J38: 0 | K38: 0
A39: 2020-02-29 | B39: Vorarlberg | C39: 397139 | D39: 0 | E39: 0 | F39: 0 | G39: 0 | H39: 0 | I39: 0 | J39: 0 | K39: 0
A40: 2020-02-29 | B40: Wien | C40: 1911191 | D40: 1 | E40: 5 | F40: 5 | G40: 0.3 | H40: 0 | I40: 0 | J40: 0 | K40: 0
A41: 2020-02-29 | B41: Österreich | C41: 8901064 | D41: 1 | E41: 8 | F41: 8 | G41: 0.1 | H41: 0 | I41: 0 | J41: 0 | K41: 0
A42: 2020-03-01 | B42: Burgenland | C42: 294436 | D42: 0 | E42: 0 | F42: 0 | G42: 0 | H42: 0 | I42: 0 | J42: 0 | K42: 0
A43: 2020-03-01 | B43: Kärnten | C43: 561293 | D43: 0 | E43: 0 | F43: 0 | G43: 0 | H43: 0 | I43: 0 | J43: 0 | K43: 0
A44: 2020-03-01 | B44: Niederösterreich | C44: 1684287 | D44: 0 | E44: 2 | F44: 2 | G44: 0.1 | H44: 0 | I44: 0 | J44: 0 | K44: 0
A45: 2020-03-01 | B45: Oberösterreich | C45: 1490279 | D45: 0 | E45: 0 | F45: 0 | G45: 0 | H45: 0 | I45: 0 | J45: 0 | K45: 0
A46: 2020-03-01 | B46: Salzburg | C46: 558410 | D46: 0 | E46: 0 | F46: 0 | G46: 0 | H46: 0 | I46: 0 | J46: 0 | K46: 0
A47: 2020-03-01 | B47: Steiermark | C47: 1246395 | D47: 0 | E47: 1 | F47: 1 | G47: 0.1 | H47: 0 | I47: 0 | J47: 0 | K47: 0
A48: 2020-03-01 | B48: Tirol | C48: 757634 | D48: 0 | E48: 0 | F48: 0 | G48: 0 | H48: 0 | I48: 0 | J48: 0 | K48: 0
A49: 2020-03-01 | B49: Vorarlberg | C49: 397139 | D49: 0 | E49: 0 | F49: 0 | G49: 0 | H49: 0 | I49: 0 | J49: 0 | K49: 0
A50: 2020-03-01 | B50: Wien | C50: 1911191 | D50: 4 | E50: 9 | F50: 9 | G50: 0.5 | H50: 0 | I50: 0 | J50: 0 | K50: 0
A51: 2020-03-01 | B51: Österreich | C51: 8901064 | D51: 4 | E51: 12 | F51: 12 | G51: 0.1 | H51: 0 | I51: 0 | J51: 0 | K51: 0
A52: 2020-03-02 | B52: Burgenland | C52: 294436 | D52: 0 | E52: 0 | F52: 0 | G52: 0 | H52: 0 | I52: 0 | J52: 0 | K52: 0
A53: 2020-03-02 | B53: Kärnten | C53: 561293 | D53: 0 | E53: 0 | F53: 0 | G53: 0 | H53: 0 | I53: 0 | J53: 0 | K53: 0
A54: 2020-03-02 | B54: Niederösterreich | C54: 1684287 | D54: 1 | E54: 3 | F54: 3 | G54: 0.2 | H54: 0 | I54: 0 | J54: 0 | K54: 0
A55: 2020-03-02 | B55: Oberösterreich | C55: 1490279 | D55: 0 | E55: 0 | F55: 0 | G55: 0 | H55: 0 | I55: 0 | J55: 0 | K55: 0
A56: 2020-03-02 | B56: Salzburg | C56: 558410 | D56: 1 | E56: 1 | F56: 1 | G56: 0.2 | H56: 0 | I56: 0 | J56: 0 | K56: 0
A57: 2020-03-02 | B57: Steiermark | C57: 1246395 | D57: 2 | E57: 3 | F57: 3 | G57: 0.2 | H57: 0 | I57: 0 | J57: 0 | K57: 0
A58: 2020-03-02 | B58: Tirol | C58: 757634 | D58: 0 | E58: 0 | F58: 0 | G58: 0 | H58: 0 | I58: 0 | J58: 0 | K58: 0
A59: 2020-03-02 | B59: Vorarlberg | C59: 397139 | D59: 0 | E59: 0 | F59: 0 | G59: 0 | H59: 0 | I59: 0 | J59: 0 | K59: 0
A60: 2020-03-02 | B60: Wien | C60: 1911191 | D60: 1 | E60: 10 | F60: 10 | G60: 0.5 | H60: 0 | I60: 0 | J60: 0 | K60: 0
A61: 2020-03-02 | B61: Österreich | C61: 8901064 | D61: 5 | E61: 17 | F61: 17 | G61: 0.2 | H61: 0 | I61: 0 | J61: 0 | K61: 0
A62: 2020-03-03 | B62: Burgenland | C62: 294436 | D62: 0 | E62: 0 | F62: 0 | G62: 0 | H62: 0 | I62: 0 | J62: 0 | K62: 0
A63: 2020-03-03 | B63: Kärnten | C63: 561293 | D63: 0 | E63: 0 | F63: 0 | G63: 0 | H63: 0 | I63: 0 | J63: 0 | K63: 0
A64: 2020-03-03 | B64: Niederösterreich | C64: 1684287 | D64: 2 | E64: 5 | F64: 5 | G64: 0.3 | H64: 0 | I64: 0 | J64: 0 | K64: 0
A65: 2020-03-03 | B65: Oberösterreich | C65: 1490279 | D65: 0 | E65: 0 | F65: 0 | G65: 0 | H65: 0 | I65: 0 | J65: 0 | K65: 0
A66: 2020-03-03 | B66: Salzburg | C66: 558410 | D66: 0 | E66: 1 | F66: 1 | G66: 0.2 | H66: 0 | I66: 0 | J66: 0 | K66: 0
A67: 2020-03-03 | B67: Steiermark | C67: 1246395 | D67: 0 | E67: 3 | F67: 3 | G67: 0.2 | H67: 0 | I67: 0 | J67: 0 | K67: 0
A68: 2020-03-03 | B68: Tirol | C68: 757634 | D68: 0 | E68: 0 | F68: 0 | G68: 0 | H68: 0 | I68: 0 | J68: 0 | K68: 0
A69: 2020-03-03 | B69: Vorarlberg | C69: 397139 | D69: 0 | E69: 0 | F69: 0 | G69: 0 | H69: 0 | I69: 0 | J69: 0 | K69: 0
A70: 2020-03-03 | B70: Wien | C70: 1911191 | D70: 4 | E70: 14 | F70: 14 | G70: 0.7 | H70: 0 | I70: 0 | J70: 0 | K70: 0
A71: 2020-03-03 | B71: Österreich | C71: 8901064 | D71: 6 | E71: 23 | F71: 23 | G71: 0.3 | H71: 0 | I71: 0 | J71: 0 | K71: 0
A72: 2020-03-04 | B72: Burgenland | C72: 294436 | D72: 0 | E72: 0 | F72: 0 | G72: 0 | H72: 0 | I72: 0 | J72: 0 | K72: 0
A73: 2020-03-04 | B73: Kärnten | C73: 561293 | D73: 1 | E73: 1 | F73: 1 | G73: 0.2 | H73: 0 | I73: 0 | J73: 0 | K73: 0
A74: 2020-03-04 | B74: Niederösterreich | C74: 1684287 | D74: 7 | E74: 12 | F74: 12 | G74: 0.7 | H74: 0 | I74: 0 | J74: 0 | K74: 0
A75: 2020-03-04 | B75: Oberösterreich | C75: 1490279 | D75: 0 | E75: 0 | F75: 0 | G75: 0 | H75: 0 | I75: 0 | J75: 0 | K75: 0
A76: 2020-03-04 | B76: Salzburg | C76: 558410 | D76: 1 | E76: 2 | F76: 2 | G76: 0.4 | H76: 0 | I76: 0 | J76: 0 | K76: 0
A77: 2020-03-04 | B77: Steiermark | C77: 1246395 | D77: 1 | E77: 4 | F77: 4 | G77: 0.3 | H77: 0 | I77: 0 | J77: 0 | K77: 0
A78: 2020-03-04 | B78: Tirol | C78: 757634 | D78: 2 | E78: 2 | F78: 2 | G78: 0.3 | H78: 0 | I78: 0 | J78: 0 | K78: 0
A79: 2020-03-04 | B79: Vorarlberg | C79: 397139 | D79: 0 | E79: 0 | F79: 0 | G79: 0 | H79: 0 | I79: 0 | J79: 0 | K79: 0
A80: 2020-03-04 | B80: Wien | C80: 1911191 | D80: 2 | E80: 16 | F80: 15 | G80: 0.8 | H80: 0 | I80: 0 | J80: 0 | K80: 0
A81: 2020-03-04 | B81: Österreich | C81: 8901064 | D81: 14 | E81: 37 | F81: 36 | G81: 0.4 | H81: 0 | I81: 0 | J81: 0 | K81: 0
A82: 2020-03-05 | B82: Burgenland | C82: 294436 | D82: 0 | E82: 0 | F82: 0 | G82: 0 | H82: 0 | I82: 0 | J82: 0 | K82: 0
A83: 2020-03-05 | B83: Kärnten | C83: 561293 | D83: 1 | E83: 2 | F83: 2 | G83: 0.4 | H83: 0 | I83: 0 | J83: 0 | K83: 0
A84: 2020-03-05 | B84: Niederösterreich | C84: 1684287 | D84: 3 | E84: 15 | F84: 15 | G84: 0.9 | H84: 0 | I84: 0 | J84: 0 | K84: 0
A85: 2020-03-05 | B85: Oberösterreich | C85: 1490279 | D85: 0 | E85: 0 | F85: 0 | G85: 0 | H85: 0 | I85: 0 | J85: 0 | K85: 0
A86: 2020-03-05 | B86: Salzburg | C86: 558410 | D86: 1 | E86: 3 | F86: 3 | G86: 0.5 | H86: 0 | I86: 0 | J86: 0 | K86: 0
A87: 2020-03-05 | B87: Steiermark | C87: 1246395 | D87: 0 | E87: 4 | F87: 4 | G87: 0.3 | H87: 0 | I87: 0 | J87: 0 | K87: 0
A88: 2020-03-05 | B88: Tirol | C88: 757634 | D88: 2 | E88: 4 | F88: 4 | G88: 0.5 | H88: 0 | I88: 0 | J88: 2 | K88: 2
A89: 2020-03-05 | B89: Vorarlberg | C89: 397139 | D89: 1 | E89: 1 | F89: 1 | G89: 0.3 | H89: 0 | I89: 0 | J89: 0 | K89: 0
A90: 2020-03-05 | B90: Wien | C90: 1911191 | D90: 1 | E90: 17 | F90: 14 | G90: 0.7 | H90: 0 | I90: 0 | J90: 0 | K90: 0
A91: 2020-03-05 | B91: Österreich | C91: 8901064 | D91: 9 | E91: 46 | F91: 43 | G91: 0.5 | H91: 0 | I91: 0 | J91: 2 | K91: 2
A92: 2020-03-06 | B92: Burgenland | C92: 294436 | D92: 4 | E92: 4 | F92: 4 | G92: 1.4 | H92: 0 | I92: 0 | J92: 0 | K92: 0
A93: 2020-03-06 | B93: Kärnten | C93: 561293 | D93: 0 | E93: 2 | F93: 2 | G93: 0.4 | H93: 0 | I93: 0 | J93: 0 | K93: 0
A94: 2020-03-06 | B94: Niederösterreich | C94: 1684287 | D94: 7 | E94: 22 | F94: 20 | G94: 1.2 | H94: 0 | I94: 0 | J94: 0 | K94: 0
A95: 2020-03-06 | B95: Oberösterreich | C95: 1490279 | D95: 1 | E95: 1 | F95: 1 | G95: 0.1 | H95: 0 | I95: 0 | J95: 0 | K95: 0
A96: 2020-03-06 | B96: Salzburg | C96: 558410 | D96: 0 | E96: 3 | F96: 3 | G96: 0.5 | H96: 0 | I96: 0 | J96: 0 | K96: 0
A97: 2020-03-06 | B97: Steiermark | C97: 1246395 | D97: 2 | E97: 6 | F97: 5 | G97: 0.4 | H97: 0 | I97: 0 | J97: 0 | K97: 0
A98: 2020-03-06 | B98: Tirol | C98: 757634 | D98: 3 | E98: 7 | F98: 7 | G98: 0.9 | H98: 0 | I98: 0 | J98: 0 | K98: 2
A99: 2020-03-06 | B99: Vorarlberg | C99: 397139 | D99: 2 | E99: 3 | F99: 3 | G99: 0.8 | H99: 0 | I99: 0 | J99: 0 | K99: 0
A100: 2020-03-06 | B100: Wien | C100: 1911191 | D100: 10 | E100: 27 | F100: 23 | G100: 1.2 | H100: 0 | I100: 0 | J100: 0 | K100: 0
A101: 2020-03-06 | B101: Österreich | C101: 8901064 | D101: 29 | E101: 75 | F101: 68 | G101: 0.8 | H101: 0 | I101: 0 | J101: 0 | K101: 2
A102: 2020-03-07 | B102: Burgenland | C102: 294436 | D102: 0 | E102: 4 | F102: 4 | G102: 1.4 | H102: 0 | I102: 0 | J102: 0 | K102: 0
A103: 2020-03-07 | B103: Kärnten | C103: 561293 | D103: 1 | E103: 3 | F103: 3 | G103: 0.5 | H103: 0 | I103: 0 | J103: 0 | K103: 0
A104: 2020-03-07 | B104: Niederösterreich | C104: 1684287 | D104: 7 | E104: 29 | F104: 27 | G104: 1.6 | H104: 0 | I104: 0 | J104: 0 | K104: 0
A105: 2020-03-07 | B105: Oberösterreich | C105: 1490279 | D105: 6 | E105: 7 | F105: 7 | G105: 0.5 | H105: 0 | I105: 0 | J105: 0 | K105: 0
A106: 2020-03-07 | B106: Salzburg | C106: 558410 | D106: 2 | E106: 5 | F106: 5 | G106: 0.9 | H106: 0 | I106: 0 | J106: 0 | K106: 0
A107: 2020-03-07 | B107: Steiermark | C107: 1246395 | D107: 2 | E107: 8 | F107: 7 | G107: 0.6 | H107: 0 | I107: 0 | J107: 0 | K107: 0
A108: 2020-03-07 | B108: Tirol | C108: 757634 | D108: 1 | E108: 8 | F108: 8 | G108: 1.1 | H108: 0 | I108: 0 | J108: 0 | K108: 2
A109: 2020-03-07 | B109: Vorarlberg | C109: 397139 | D109: 0 | E109: 3 | F109: 3 | G109: 0.8 | H109: 0 | I109: 0 | J109: 0 | K109: 0
A110: 2020-03-07 | B110: Wien | C110: 1911191 | D110: 4 | E110: 31 | F110: 26 | G110: 1.4 | H110: 0 | I110: 0 | J110: 0 | K110: 0
A111: 2020-03-07 | B111: Österreich | C111: 8901064 | D111: 23 | E111: 98 | F111: 90 | G111: 1 | H111: 0 | I111: 0 | J111: 0 | K111: 2
A112: 2020-03-08 | B112: Burgenland | C112: 294436 | D112: 0 | E112: 4 | F112: 4 | G112: 1.4 | H112: 0 | I112: 0 | J112: 0 | K112: 0
A113: 2020-03-08 | B113: Kärnten | C113: 561293 | D113: 0 | E113: 3 | F113: 3 | G113: 0.5 | H113: 0 | I113: 0 | J113: 0 | K113: 0
A114: 2020-03-08 | B114: Niederösterreich | C114: 1684287 | D114: 5 | E114: 34 | F114: 32 | G114: 1.9 | H114: 0 | I114: 0 | J114: 0 | K114: 0
A115: 2020-03-08 | B115: Oberösterreich | C115: 1490279 | D115: 4 | E115: 11 | F115: 11 | G115: 0.7 | H115: 0 | I115: 0 | J115: 0 | K115: 0
A116: 2020-03-08 | B116: Salzburg | C116: 558410 | D116: 1 | E116: 6 | F116: 6 | G116: 1.1 | H116: 0 | I116: 0 | J116: 0 | K116: 0
A117: 2020-03-08 | B117: Steiermark | C117: 1246395 | D117: 3 | E117: 11 | F117: 10 | G117: 0.8 | H117: 0 | I117: 0 | J117: 0 | K117: 0
A118: 2020-03-08 | B118: Tirol | C118: 757634 | D118: 13 | E118: 21 | F118: 21 | G118: 2.8 | H118: 0 | I118: 0 | J118: 0 | K118: 2
A119: 2020-03-08 | B119: Vorarlberg | C119: 397139 | D119: 1 | E119: 4 | F119: 4 | G119: 1 | H119: 0 | I119: 0 | J119: 0 | K119: 0
A120: 2020-03-08 | B120: Wien | C120: 1911191 | D120: 1 | E120: 32 | F120: 23 | G120: 1.2 | H120: 0 | I120: 0 | J120: 0 | K120: 0
A121: 2020-03-08 | B121: Österreich | C121: 8901064 | D121: 28 | E121: 126 | F121: 114 | G121: 1.3 | H121: 0 | I121: 0 | J121: 0 | K121: 2
A122: 2020-03-09 | B122: Burgenland | C122: 294436 | D122: 0 | E122: 4 | F122: 4 | G122: 1.4 | H122: 0 | I122: 0 | J122: 0 | K122: 0
A123: 2020-03-09 | B123: Kärnten | C123: 561293 | D123: 0 | E123: 3 | F123: 3 | G123: 0.5 | H123: 0 | I123: 0 | J123: 0 | K123: 0
A124: 2020-03-09 | B124: Niederösterreich | C124: 1684287 | D124: 3 | E124: 37 | F124: 34 | G124: 2 | H124: 0 | I124: 0 | J124: 0 | K124: 0
A125: 2020-03-09 | B125: Oberösterreich | C125: 1490279 | D125: 3 | E125: 14 | F125: 14 | G125: 0.9 | H125: 0 | I125: 0 | J125: 0 | K125: 0
A126: 2020-03-09 | B126: Salzburg | C126: 558410 | D126: 3 | E126: 9 | F126: 8 | G126: 1.4 | H126: 0 | I126: 0 | J126: 0 | K126: 0
A127: 2020-03-09 | B127: Steiermark | C127: 1246395 | D127: 7 | E127: 18 | F127: 15 | G127: 1.2 | H127: 0 | I127: 0 | J127: 0 | K127: 0
A128: 2020-03-09 | B128: Tirol | C128: 757634 | D128: 2 | E128: 23 | F128: 23 | G128: 3 | H128: 0 | I128: 0 | J128: 0 | K128: 2
A129: 2020-03-09 | B129: Vorarlberg | C129: 397139 | D129: 1 | E129: 5 | F129: 5 | G129: 1.3 | H129: 0 | I129: 0 | J129: 0 | K129: 0
A130: 2020-03-09 | B130: Wien | C130: 1911191 | D130: 3 | E130: 35 | F130: 25 | G130: 1.3 | H130: 0 | I130: 0 | J130: 0 | K130: 0
A131: 2020-03-09 | B131: Österreich | C131: 8901064 | D131: 22 | E131: 148 | F131: 131 | G131: 1.5 | H131: 0 | I131: 0 | J131: 0 | K131: 2
A132: 2020-03-10 | B132: Burgenland | C132: 294436 | D132: 0 | E132: 4 | F132: 4 | G132: 1.4 | H132: 0 | I132: 0 | J132: 0 | K132: 0
A133: 2020-03-10 | B133: Kärnten | C133: 561293 | D133: 0 | E133: 3 | F133: 3 | G133: 0.5 | H133: 0 | I133: 0 | J133: 0 | K133: 0
A134: 2020-03-10 | B134: Niederösterreich | C134: 1684287 | D134: 6 | E134: 43 | F134: 38 | G134: 2.3 | H134: 0 | I134: 0 | J134: 0 | K134: 0
A135: 2020-03-10 | B135: Oberösterreich | C135: 1490279 | D135: 16 | E135: 30 | F135: 30 | G135: 2 | H135: 0 | I135: 0 | J135: 0 | K135: 0
A136: 2020-03-10 | B136: Salzburg | C136: 558410 | D136: 2 | E136: 11 | F136: 10 | G136: 1.8 | H136: 0 | I136: 0 | J136: 1 | K136: 1
A137: 2020-03-10 | B137: Steiermark | C137: 1246395 | D137: 1 | E137: 19 | F137: 16 | G137: 1.3 | H137: 0 | I137: 0 | J137: 0 | K137: 0
A138: 2020-03-10 | B138: Tirol | C138: 757634 | D138: 12 | E138: 35 | F138: 35 | G138: 4.6 | H138: 0 | I138: 0 | J138: 0 | K138: 2
A139: 2020-03-10 | B139: Vorarlberg | C139: 397139 | D139: 9 | E139: 14 | F139: 14 | G139: 3.5 | H139: 0 | I139: 0 | J139: 0 | K139: 0
A140: 2020-03-10 | B140: Wien | C140: 1911191 | D140: 9 | E140: 44 | F140: 30 | G140: 1.6 | H140: 0 | I140: 0 | J140: 1 | K140: 1
A141: 2020-03-10 | B141: Österreich | C141: 8901064 | D141: 55 | E141: 203 | F141: 180 | G141: 2 | H141: 0 | I141: 0 | J141: 2 | K141: 4
A142: 2020-03-11 | B142: Burgenland | C142: 294436 | D142: 2 | E142: 6 | F142: 6 | G142: 2 | H142: 0 | I142: 0 | J142: 0 | K142: 0
A143: 2020-03-11 | B143: Kärnten | C143: 561293 | D143: 2 | E143: 5 | F143: 4 | G143: 0.7 | H143: 0 | I143: 0 | J143: 0 | K143: 0
A144: 2020-03-11 | B144: Niederösterreich | C144: 1684287 | D144: 8 | E144: 51 | F144: 39 | G144: 2.3 | H144: 0 | I144: 0 | J144: 1 | K144: 1
A145: 2020-03-11 | B145: Oberösterreich | C145: 1490279 | D145: 27 | E145: 57 | F145: 57 | G145: 3.8 | H145: 0 | I145: 0 | J145: 0 | K145: 0
A146: 2020-03-11 | B146: Salzburg | C146: 558410 | D146: 1 | E146: 12 | F146: 10 | G146: 1.8 | H146: 0 | I146: 0 | J146: 0 | K146: 1
A147: 2020-03-11 | B147: Steiermark | C147: 1246395 | D147: 9 | E147: 28 | F147: 24 | G147: 1.9 | H147: 0 | I147: 0 | J147: 0 | K147: 0
A148: 2020-03-11 | B148: Tirol | C148: 757634 | D148: 37 | E148: 72 | F148: 70 | G148: 9.2 | H148: 0 | I148: 0 | J148: 0 | K148: 2
A149: 2020-03-11 | B149: Vorarlberg | C149: 397139 | D149: 3 | E149: 17 | F149: 17 | G149: 4.3 | H149: 0 | I149: 0 | J149: 0 | K149: 0
A150: 2020-03-11 | B150: Wien | C150: 1911191 | D150: 20 | E150: 64 | F150: 48 | G150: 2.5 | H150: 0 | I150: 0 | J150: 1 | K150: 2
A151: 2020-03-11 | B151: Österreich | C151: 8901064 | D151: 109 | E151: 312 | F151: 275 | G151: 3.1 | H151: 0 | I151: 0 | J151: 2 | K151: 6
A152: 2020-03-12 | B152: Burgenland | C152: 294436 | D152: 1 | E152: 7 | F152: 7 | G152: 2.4 | H152: 0 | I152: 0 | J152: 0 | K152: 0
A153: 2020-03-12 | B153: Kärnten | C153: 561293 | D153: 1 | E153: 6 | F153: 4 | G153: 0.7 | H153: 0 | I153: 0 | J153: 0 | K153: 0
A154: 2020-03-12 | B154: Niederösterreich | C154: 1684287 | D154: 4 | E154: 55 | F154: 40 | G154: 2.4 | H154: 0 | I154: 0 | J154: 0 | K154: 1
A155: 2020-03-12 | B155: Oberösterreich | C155: 1490279 | D155: 16 | E155: 73 | F155: 73 | G155: 4.9 | H155: 0 | I155: 0 | J155: 0 | K155: 0
A156: 2020-03-12 | B156: Salzburg | C156: 558410 | D156: 8 | E156: 20 | F156: 17 | G156: 3 | H156: 0 | I156: 0 | J156: 1 | K156: 2
A157: 2020-03-12 | B157: Steiermark | C157: 1246395 | D157: 13 | E157: 41 | F157: 37 | G157: 3 | H157: 0 | I157: 0 | J157: 0 | K157: 0
A158: 2020-03-12 | B158: Tirol | C158: 757634 | D158: 50 | E158: 122 | F158: 118 | G158: 15.6 | H158: 0 | I158: 0 | J158: 0 | K158: 2
A159: 2020-03-12 | B159: Vorarlberg | C159: 397139 | D159: 2 | E159: 19 | F159: 18 | G159: 4.5 | H159: 0 | I159: 0 | J159: 0 | K159: 0
A160: 2020-03-12 | B160: Wien | C160: 1911191 | D160: 3 | E160: 67 | F160: 50 | G160: 2.6 | H160: 1 | I160: 1 | J160: 2 | K160: 4
A161: 2020-03-12 | B161: Österreich | C161: 8901064 | D161: 98 | E161: 410 | F161: 364 | G161: 4.1 | H161: 1 | I161: 1 | J161: 3 | K161: 9
A162: 2020-03-13 | B162: Burgenland | C162: 294436 | D162: 3 | E162: 10 | F162: 6 | G162: 2 | H162: 0 | I162: 0 | J162: 0 | K162: 0
A163: 2020-03-13 | B163: Kärnten | C163: 561293 | D163: 0 | E163: 6 | F163: 4 | G163: 0.7 | H163: 0 | I163: 0 | J163: 0 | K163: 0
A164: 2020-03-13 | B164: Niederösterreich | C164: 1684287 | D164: 24 | E164: 79 | F164: 57 | G164: 3.4 | H164: 0 | I164: 0 | J164: 0 | K164: 1
A165: 2020-03-13 | B165: Oberösterreich | C165: 1490279 | D165: 34 | E165: 107 | F165: 106 | G165: 7.1 | H165: 0 | I165: 0 | J165: 0 | K165: 0
A166: 2020-03-13 | B166: Salzburg | C166: 558410 | D166: 3 | E166: 23 | F166: 20 | G166: 3.6 | H166: 0 | I166: 0 | J166: 0 | K166: 2
A167: 2020-03-13 | B167: Steiermark | C167: 1246395 | D167: 24 | E167: 65 | F167: 59 | G167: 4.7 | H167: 0 | I167: 0 | J167: 0 | K167: 0
A168: 2020-03-13 | B168: Tirol | C168: 757634 | D168: 69 | E168: 191 | F168: 184 | G168: 24.3 | H168: 0 | I168: 0 | J168: 0 | K168: 2
A169: 2020-03-13 | B169: Vorarlberg | C169: 397139 | D169: 9 | E169: 28 | F169: 25 | G169: 6.3 | H169: 0 | I169: 0 | J169: 0 | K169: 0
A170: 2020-03-13 | B170: Wien | C170: 1911191 | D170: 16 | E170: 83 | F170: 56 | G170: 2.9 | H170: 0 | I170: 1 | J170: 0 | K170: 4
A171: 2020-03-13 | B171: Österreich | C171: 8901064 | D171: 182 | E171: 592 | F171: 517 | G171: 5.8 | H171: 0 | I171: 1 | J171: 0 | K171: 9
A172: 2020-03-14 | B172: Burgenland | C172: 294436 | D172: 0 | E172: 10 | F172: 6 | G172: 2 | H172: 0 | I172: 0 | J172: 0 | K172: 0
A173: 2020-03-14 | B173: Kärnten | C173: 561293 | D173: 2 | E173: 8 | F173: 5 | G173: 0.9 | H173: 0 | I173: 0 | J173: 1 | K173: 1
A174: 2020-03-14 | B174: Niederösterreich | C174: 1684287 | D174: 32 | E174: 111 | F174: 82 | G174: 4.9 | H174: 0 | I174: 0 | J174: 0 | K174: 1
A175: 2020-03-14 | B175: Oberösterreich | C175: 1490279 | D175: 52 | E175: 159 | F175: 152 | G175: 10.2 | H175: 0 | I175: 0 | J175: 1 | K175: 1
A176: 2020-03-14 | B176: Salzburg | C176: 558410 | D176: 15 | E176: 38 | F176: 33 | G176: 5.9 | H176: 0 | I176: 0 | J176: 0 | K176: 2
A177: 2020-03-14 | B177: Steiermark | C177: 1246395 | D177: 20 | E177: 85 | F177: 77 | G177: 6.2 | H177: 0 | I177: 0 | J177: 0 | K177: 0
A178: 2020-03-14 | B178: Tirol | C178: 757634 | D178: 48 | E178: 239 | F178: 231 | G178: 30.5 | H178: 0 | I178: 0 | J178: 0 | K178: 2
A179: 2020-03-14 | B179: Vorarlberg | C179: 397139 | D179: 26 | E179: 54 | F179: 51 | G179: 12.8 | H179: 0 | I179: 0 | J179: 0 | K179: 0
A180: 2020-03-14 | B180: Wien | C180: 1911191 | D180: 15 | E180: 98 | F180: 67 | G180: 3.5 | H180: 1 | I180: 2 | J180: 0 | K180: 4
A181: 2020-03-14 | B181: Österreich | C181: 8901064 | D181: 210 | E181: 802 | F181: 704 | G181: 7.9 | H181: 1 | I181: 2 | J181: 2 | K181: 11
A182: 2020-03-15 | B182: Burgenland | C182: 294436 | D182: 0 | E182: 10 | F182: 6 | G182: 2 | H182: 0 | I182: 0 | J182: 0 | K182: 0
A183: 2020-03-15 | B183: Kärnten | C183: 561293 | D183: 2 | E183: 10 | F183: 7 | G183: 1.2 | H183: 0 | I183: 0 | J183: 0 | K183: 1
A184: 2020-03-15 | B184: Niederösterreich | C184: 1684287 | D184: 41 | E184: 152 | F184: 118 | G184: 7 | H184: 0 | I184: 0 | J184: 1 | K184: 2
A185: 2020-03-15 | B185: Oberösterreich | C185: 1490279 | D185: 46 | E185: 205 | F185: 194 | G185: 13 | H185: 0 | I185: 0 | J185: 1 | K185: 2
A186: 2020-03-15 | B186: Salzburg | C186: 558410 | D186: 15 | E186: 53 | F186: 47 | G186: 8.4 | H186: 0 | I186: 0 | J186: 0 | K186: 2
A187: 2020-03-15 | B187: Steiermark | C187: 1246395 | D187: 29 | E187: 114 | F187: 103 | G187: 8.3 | H187: 0 | I187: 0 | J187: 0 | K187: 0
A188: 2020-03-15 | B188: Tirol | C188: 757634 | D188: 30 | E188: 269 | F188: 248 | G188: 32.7 | H188: 0 | I188: 0 | J188: 0 | K188: 2
A189: 2020-03-15 | B189: Vorarlberg | C189: 397139 | D189: 6 | E189: 60 | F189: 56 | G189: 14.1 | H189: 0 | I189: 0 | J189: 0 | K189: 0
A190: 2020-03-15 | B190: Wien | C190: 1911191 | D190: 29 | E190: 127 | F190: 95 | G190: 5 | H190: 1 | I190: 3 | J190: 2 | K190: 6
A191: 2020-03-15 | B191: Österreich | C191: 8901064 | D191: 198 | E191: 1000 | F191: 874 | G191: 9.8 | H191: 1 | I191: 3 | J191: 4 | K191: 15
A192: 2020-03-16 | B192: Burgenland | C192: 294436 | D192: 1 | E192: 11 | F192: 7 | G192: 2.4 | H192: 0 | I192: 0 | J192: 0 | K192: 0
A193: 2020-03-16 | B193: Kärnten | C193: 561293 | D193: 14 | E193: 24 | F193: 21 | G193: 3.7 | H193: 0 | I193: 0 | J193: 0 | K193: 1
A194: 2020-03-16 | B194: Niederösterreich | C194: 1684287 | D194: 15 | E194: 167 | F194: 130 | G194: 7.7 | H194: 0 | I194: 0 | J194: 1 | K194: 3
A195: 2020-03-16 | B195: Oberösterreich | C195: 1490279 | D195: 36 | E195: 241 | F195: 227 | G195: 15.2 | H195: 0 | I195: 0 | J195: 0 | K195: 2
A196: 2020-03-16 | B196: Salzburg | C196: 558410 | D196: 4 | E196: 57 | F196: 48 | G196: 8.6 | H196: 0 | I196: 0 | J196: 0 | K196: 2
A197: 2020-03-16 | B197: Steiermark | C197: 1246395 | D197: 33 | E197: 147 | F197: 129 | G197: 10.3 | H197: 1 | I197: 1 | J197: 0 | K197: 0
A198: 2020-03-16 | B198: Tirol | C198: 757634 | D198: 62 | E198: 331 | F198: 308 | G198: 40.7 | H198: 0 | I198: 0 | J198: 1 | K198: 3
A199: 2020-03-16 | B199: Vorarlberg | C199: 397139 | D199: 39 | E199: 99 | F199: 94 | G199: 23.7 | H199: 0 | I199: 0 | J199: 0 | K199: 0
A200: 2020-03-16 | B200: Wien | C200: 1911191 | D200: 22 | E200: 149 | F200: 114 | G200: 6 | H200: 1 | I200: 4 | J200: 10 | K200: 16
... 3951 more rows

Sheet öa1
A1: 1 | B1: 2 | C1: 3 | D1: =C1+1 -> 4 | E1: 5 | F1: 6 | G1: 7 | H1: 8 | I1: 9 | J1: 10 | K1: 11 | L1: 12 | M1: 13 | N1: 14 | O1: 15 | P1: 16 | Q1: 17 | R1: 18 | S1: 19 | T1: 20 | U1: 21 | V1: 22 | W1: 23 | X1: 24 | Y1: 25 | Z1: 26 | AA1: 27 | AB1: 28 | AC1: 29 | AD1: 30 | AE1: 31 | AF1: 32 | AG1: 33 | AH1: 34 | AI1: 35 | AJ1: =AI1+1 -> 36 | AK1: 37 | AL1: 38 | AO1: =AL1+1 -> 39 | AP1: 40 | AQ1: 41 | AR1: 42 | AS1: 43 | AT1: 44 | AU1: 45 | AV1: 46 | AW1: 47 | AX1: 48 | AY1: 49 | AZ1: 50 | BA1: 51 | BB1: 52 | BC1: 53 | BD1: 54 | BE1: 55 | BF1: 56 | BG1: 57 | BH1: 58 | BI1: 59 | BJ1: 60 | BK1: 61 | BL1: 62 | BM1: 63 | BN1: 64 | BO1: 65 | BP1: 66 | BQ1: 67 | BR1: =BQ1+1 -> 68 | BS1: 69 | BT1: 70 | BU1: 71 | BV1: 72 | BW1: 73 | BX1: 74 | BY1: 75 | BZ1: 76 | CA1: 77 | CB1: 78 | CC1: 79 | CD1: 80 | CE1: =CD1+1 -> 81 | CF1: 82 | CG1: 83 | CH1: 84 | CI1: 85 | CJ1: 86 | CK1: 87 | CL1: 88 | CM1: 89 | CN1: 90 | CO1: 91 | CR1: =CO1+1 -> 92
A2: Fälle- Inzidenz - Tote - Genesene | F2: Fälle pro Tag | M2: 7 Tages Zahl täglicher Durchschnitt | S2: 7 Tage Inzidens - Wert | Y2: Tote pro Tag | AF2: Genesene | AO2: Tests | AU2: KH Normalstation besetzt | BD2: KH Intensivstation besetzt | BM2: KH Normalstation frei | BV2: KH Intensivstation frei | CG2: PCR 2 | CM2: Antigen | CQ2: Tests alle
A3: x | D3: Österreich | F3: gestern | G3: gestern +- | H3: heute | I3: heute +- | J3: morgen | K3: morgen +- | L3: heute Summe | M3: gestern | N3: gestern +- | O3: heute | P3: heute +- | Q3: morgen | R3: morgen +- | S3: gestern | T3: gestern +- | U3: heute | V3: heute +- | W3: morgen | X3: morgen +- | Y3: gestern | Z3: gestern +- | AA3: heute | AB3: heute +- | AC3: morgen | AD3: morgen +- | AE3: heute Summe | AF3: gestern | AG3: gestern +- | AH3: heute | AI3: heute +- | AJ3: morgen | AK3: morgen +- | AL3: heute Summe | AO3: gestern | AP3: gestern +- | AQ3: heute | AR3: heute +- | AS3: morgen | AT3: morgen +- | AU3: gestern | AV3: gestern +- | AW3: gestern % | AX3: heute | AY3: heute +- | AZ3: heute % | BA3: morgen | BB3: morgen +- | BC3: morgen % | BD3: gestern | BE3: gestern +- | BF3: gestern % | BG3: heute | BI3: heute % | BJ3: morgen | BK3: morgen +- | BL3: morgen % | BM3: gestern | BN3: gestern +- | BO3: gestern % | BP3: heute | BQ3: heute +- | BR3: heute % | BS3: morgen | BT3: morgen +- | BU3: morgen % | BV3: gestern | BW3: gestern +- | BX3: gestern % | BY3: heute | BZ3: heute +- | CA3: heute % | CB3: morgen | CC3: morgen +- | CD3: morgen % | CE3: gestern | CF3: gestern +- | CG3: heute | CH3: heute +- | CI3: morgen | CJ3: morgen +- | CK3: gestern | CL3: gestern +- | CM3: heute | CN3: heute +- | CO3: morgen | CR3: morgen +-
A4: Datum | B4: Spalte44 | C4: Spalte43 | D4: Spalte1 | E4: Spalte2 | F4: Bundesland | G4: Einwohner | H4: F T g | I4: F T g +- | J4: Fälle T h | K4: F T h +- | L4: F T m | M4: F T m +- | N4: Fälle Sum h | O4: 7d Z g | P4: 7d Z g +- | Q4: 7Tage Fälle h | R4: 7d Z h +- | S4: 7d Z m | T4: 7d Z m +- | U4: 7d W g | V4: 7d W g +- | W4: 7Tage Wert h | X4: 7d W h | Y4: 7d W m | Z4: 7d W m +- | AA4: Tote T g | AB4: Tote T g+- | AC4: Tote T h | AD4: Tote T h+- | AE4: Tote T m | AF4: Tote T m+-2 | AG4: Tote Sum h | AH4: Gen T g | AI4: Gen T g+- | AJ4: Gen T h | AK4: Gen T h+- | AL4: Gen T m | AM4: Gen T m+- | AN4: Gen Sum h | AO4: Spalte110 | AP4: Spalte211 | AQ4: Spalte3 | AR4: Spalte4 | AS4: Spalte5 | AT4: Spalte6 | AU4: Spalte7 | AV4: Spalte8 | AW4: Spalte9 | AX4: Spalte10 | AY4: Spalte11 | AZ4: Spalte12 | BA4: Spalte13 | BB4: Spalte14 | BC4: Spalte15 | BD4: Spalte16 | BE4: Spalte17 | BF4: Spalte18 | BG4: Spalte19 | BH4: Spalte20 | BI4: Spalte21 | BJ4: Spalte22 | BK4: Spalte23 | BL4: Spalte24 | BM4: Spalte25 | BN4: Spalte26 | BO4: Spalte27 | BP4: Spalte28 | BQ4: Spalte29 | BR4: Spalte30 | BS4: Spalte31 | BT4: Spalte32 | BU4: Spalte33 | BV4: Spalte34 | BW4: Spalte35 | BX4: Spalte36 | BY4: Spalte37 | BZ4: Spalte38 | CA4: Spalte39 | CB4: Spalte40 | CC4: Spalte41 | CD4: Spalte42 | CE4: Spalte427 | CF4: Spalte426 | CG4: Spalte425 | CH4: Spalte424 | CI4: Spalte422 | CJ4: Spalte4222 | CK4: Spalte423 | CL4: Spalte4236 | CM4: Spalte4235 | CN4: Spalte4234 | CO4: Spalte4233 | CP4: Spalte42333 | CQ4: Spalte42332 | CR4: Spalte4232
A5: 2020-02-26 | B5: =TEXT(A5,"TTTT") -> Mittwoch | C5: 1 | F5: Österreich | G5: 8901064 | H5: 0 | I5: 0 | J5: 1 | K5: 1 | L5: 2 | M5: 1 | N5: 1 | O5: 0 | P5: 0 | Q5: 1 | R5: 0 | S5: 0 | T5: 0 | U5: 0 | V5: 0 | W5: 0 | X5: 0 | Y5: 0 | Z5: 0 | AA5: 0 | AB5: 0 | AC5: 0 | AD5: 0 | AE5: 0 | AF5: 0 | AG5: 0 | AH5: 0 | AI5: 0 | AJ5: 0 | AK5: 0 | AL5: 0 | AM5: 0 | AN5: 0 | CG5: 321 | CM5: =#REF! -> 
A6: 2020-02-27 | B6: Donnerstag | C6: 2 | F6: Österreich | G6: 8901064 | H6: 1 | I6: 1 | J6: 2 | K6: 1 | L6: 4 | M6: 2 | N6: 3 | O6: 1 | P6: 1 | Q6: 3 | R6: 3 | S6: 7 | T6: 7 | U6: 0 | V6: 0 | W6: 0 | X6: 0 | Y6: 0 | Z6: 0 | AA6: 0 | AB6: 0 | AC6: 0 | AD6: 0 | AE6: 0 | AF6: 0 | AG6: 0 | AH6: 0 | AI6: 0 | AJ6: 0 | AK6: 0 | AL6: 0 | AM6: 0 | AN6: 0 | CG6: 445 | CM6: =#REF! -> 
A7: 2020-02-28 | B7: Freitag | C7: 3 | F7: Österreich | G7: 8901064 | H7: 2 | I7: 1 | J7: 4 | K7: 2 | L7: 1 | M7: -3 | N7: 7 | O7: 3 | P7: 3 | Q7: 7 | R7: 7 | S7: 8 | T7: 8 | U7: 0 | V7: 0 | W7: 0.1 | X7: 0 | Y7: 0 | Z7: 0 | AA7: 0 | AB7: 0 | AC7: 0 | AD7: 0 | AE7: 0 | AF7: 0 | AG7: 0 | AH7: 0 | AI7: 0 | AJ7: 0 | AK7: 0 | AL7: 0 | AM7: 0 | AN7: 0 | CG7: 763 | CM7: =#REF! -> 
A8: 2020-02-29 | B8: Samstag | C8: 4 | F8: Österreich | G8: 8901064 | H8: 4 | I8: 2 | J8: 1 | K8: -3 | L8: 4 | M8: 3 | N8: 8 | O8: 7 | P8: 7 | Q8: 8 | R8: 8 | S8: 12 | T8: 12 | U8: 0 | V8: 0 | W8: 0.1 | X8: 0 | Y8: 0 | Z8: 0 | AA8: 0 | AB8: 0 | AC8: 0 | AD8: 0 | AE8: 0 | AF8: 0 | AG8: 0 | AH8: 0 | AI8: 0 | AJ8: 0 | AK8: 0 | AL8: 0 | AM8: 0 | AN8: 0 | CG8: 1649 | CM8: =#REF! -> 
A9: 2020-03-01 | B9: Sonntag | C9: 5 | F9: Österreich | G9: 8901064 | H9: 1 | I9: -3 | J9: 4 | K9: 3 | L9: 5 | M9: 1 | N9: 12 | O9: 8 | P9: 8 | Q9: 12 | R9: 12 | S9: 17 | T9: 17 | U9: 0 | V9: 0 | W9: 0.1 | X9: 0 | Y9: 0 | Z9: 0 | AA9: 0 | AB9: 0 | AC9: 0 | AD9: 0 | AE9: 0 | AF9: 0 | AG9: 0 | AH9: 0 | AI9: 0 | AJ9: 0 | AK9: 0 | AL9: 0 | AM9: 0 | AN9: 0 | CG9: 1826 | CM9: =#REF! -> 
A10: 2020-03-02 | B10: Montag | C10: 6 | F10: Österreich | G10: 8901064 | H10: 4 | I10: 3 | J10: 5 | K10: 1 | L10: 6 | M10: 1 | N10: 17 | O10: 12 | P10: 12 | Q10: 17 | R10: 17 | S10: 23 | T10: 23 | U10: 0 | V10: 0 | W10: 0.2 | X10: 0 | Y10: 0 | Z10: 0 | AA10: 0 | AB10: 0 | AC10: 0 | AD10: 0 | AE10: 0 | AF10: 0 | AG10: 0 | AH10: 0 | AI10: 0 | AJ10: 0 | AK10: 0 | AL10: 0 | AM10: 0 | AN10: 0 | CG10: 2120 | CM10: =#REF! -> 
A11: 2020-03-03 | B11: Dienstag | C11: 7 | F11: Österreich | G11: 8901064 | H11: 5 | I11: 1 | J11: 6 | K11: 1 | L11: 14 | M11: 8 | N11: 23 | O11: 17 | P11: 17 | Q11: 23 | R11: 23 | S11: 36 | T11: 36 | U11: 0 | V11: 0 | W11: 0.3 | X11: 0 | Y11: 0 | Z11: 0 | AA11: 0 | AB11: 0 | AC11: 0 | AD11: 0 | AE11: 0 | AF11: 0 | AG11: 0 | AH11: 0 | AI11: 0 | AJ11: 0 | AK11: 0 | AL11: 0 | AM11: 0 | AN11: 0 | CG11: 2683 | CM11: =#REF! -> 
A12: 2020-03-04 | B12: Mittwoch | C12: 8 | F12: Österreich | G12: 8901064 | H12: 6 | I12: 1 | J12: 14 | K12: 8 | L12: 9 | M12: -5 | N12: 37 | O12: 23 | P12: 23 | Q12: 36 | R12: 36 | S12: 43 | T12: 43 | U12: 0 | V12: 0 | W12: 0.4 | X12: 0 | Y12: 0 | Z12: 0 | AA12: 0 | AB12: 0 | AC12: 0 | AD12: 0 | AE12: 0 | AF12: 0 | AG12: 0 | AH12: 0 | AI12: 0 | AJ12: 0 | AK12: 0 | AL12: 2 | AM12: 2 | AN12: 0 | CG12: 3138 | CM12: =#REF! -> 
A13: 2020-03-05 | B13: Donnerstag | C13: 9 | F13: Österreich | G13: 8901064 | H13: 14 | I13: 8 | J13: 9 | K13: -5 | L13: 29 | M13: 20 | N13: 46 | O13: 36 | P13: 36 | Q13: 43 | R13: 43 | S13: 68 | T13: 68 | U13: 0 | V13: 0 | W13: 0.5 | X13: 0 | Y13: 1 | Z13: 1 | AA13: 0 | AB13: 0 | AC13: 0 | AD13: 0 | AE13: 0 | AF13: 0 | AG13: 0 | AH13: 0 | AI13: 0 | AJ13: 2 | AK13: 2 | AL13: 0 | AM13: 0 | AN13: 2 | CG13: 3711 | CM13: =#REF! -> 
A14: 2020-03-06 | B14: Freitag | C14: 10 | F14: Österreich | G14: 8901064 | H14: 9 | I14: -5 | J14: 29 | K14: 20 | L14: 23 | M14: -6 | N14: 75 | O14: 43 | P14: 43 | Q14: 68 | R14: 68 | S14: 90 | T14: 90 | U14: 0 | V14: 0 | W14: 0.8 | X14: 1 | Y14: 1 | Z14: 1 | AA14: 0 | AB14: 0 | AC14: 0 | AD14: 0 | AE14: 0 | AF14: 0 | AG14: 0 | AH14: 2 | AI14: 2 | AJ14: 0 | AK14: 0 | AL14: 0 | AM14: 0 | AN14: 2 | CG14: 4000 | CM14: =#REF! -> 
A15: 2020-03-07 | B15: Samstag | C15: 11 | F15: Österreich | G15: 8901064 | H15: 29 | I15: 20 | J15: 23 | K15: -6 | L15: 28 | M15: 5 | N15: 98 | O15: 68 | P15: 68 | Q15: 90 | R15: 90 | S15: 114 | T15: 114 | U15: 1 | V15: 1 | W15: 1 | X15: 1 | Y15: 1 | Z15: 1 | AA15: 0 | AB15: 0 | AC15: 0 | AD15: 0 | AE15: 0 | AF15: 0 | AG15: 0 | AH15: 0 | AI15: 0 | AJ15: 0 | AK15: 0 | AL15: 0 | AM15: 0 | AN15: 2 | CG15: 4308 | CM15: =#REF! -> 
A16: 2020-03-08 | B16: Sonntag | C16: 12 | F16: Österreich | G16: 8901064 | H16: 23 | I16: -6 | J16: 28 | K16: 5 | L16: 22 | M16: -6 | N16: 126 | O16: 90 | P16: 90 | Q16: 114 | R16: 114 | S16: 131 | T16: 131 | U16: 1 | V16: 1 | W16: 1.3 | X16: 1 | Y16: 2 | Z16: 2 | AA16: 0 | AB16: 0 | AC16: 0 | AD16: 0 | AE16: 0 | AF16: 0 | AG16: 0 | AH16: 0 | AI16: 0 | AJ16: 0 | AK16: 0 | AL16: 0 | AM16: 0 | AN16: 2 | CG16: 4509 | CM16: =#REF! -> 
A17: 2020-03-09 | B17: Montag | C17: 13 | F17: Österreich | G17: 8901064 | H17: 28 | I17: 5 | J17: 22 | K17: -6 | L17: 55 | M17: 33 | N17: 148 | O17: 114 | P17: 114 | Q17: 131 | R17: 131 | S17: 180 | T17: 180 | U17: 1 | V17: 1 | W17: 1.5 | X17: 2 | Y17: 2 | Z17: 2 | AA17: 0 | AB17: 0 | AC17: 0 | AD17: 0 | AE17: 0 | AF17: 0 | AG17: 0 | AH17: 0 | AI17: 0 | AJ17: 0 | AK17: 0 | AL17: 2 | AM17: 2 | AN17: 2 | CG17: 4734 | CM17: =#REF! -> 
A18: 2020-03-10 | B18: Dienstag | C18: 14 | F18: Österreich | G18: 8901064 | H18: 22 | I18: -6 | J18: 55 | K18: 33 | L18: 109 | M18: 54 | N18: 203 | O18: 131 | P18: 131 | Q18: 180 | R18: 180 | S18: 275 | T18: 275 | U18: 2 | V18: 2 | W18: 2 | X18: 2 | Y18: 3 | Z18: 3 | AA18: 0 | AB18: 0 | AC18: 0 | AD18: 0 | AE18: 0 | AF18: 0 | AG18: 0 | AH18: 0 | AI18: 0 | AJ18: 2 | AK18: 2 | AL18: 2 | AM18: 2 | AN18: 4 | CG18: 5026 | CM18: =#REF! -> 
A19: 2020-03-11 | B19: Mittwoch | C19: 15 | F19: Österreich | G19: 8901064 | H19: 55 | I19: 33 | J19: 109 | K19: 54 | L19: 98 | M19: -11 | N19: 312 | O19: 180 | P19: 180 | Q19: 275 | R19: 275 | S19: 364 | T19: 364 | U19: 2 | V19: 2 | W19: 3.1 | X19: 3 | Y19: 4 | Z19: 4 | AA19: 0 | AB19: 0 | AC19: 0 | AD19: 0 | AE19: 1 | AF19: 1 | AG19: 0 | AH19: 2 | AI19: 2 | AJ19: 2 | AK19: 2 | AL19: 3 | AM19: 3 | AN19: 6 | CG19: 5362 | CM19: =#REF! -> 
A20: 2020-03-12 | B20: Donnerstag | C20: 16 | F20: Österreich | G20: 8901064 | H20: 109 | I20: 54 | J20: 98 | K20: -11 | L20: 182 | M20: 84 | N20: 410 | O20: 275 | P20: 275 | Q20: 364 | R20: 364 | S20: 517 | T20: 517 | U20: 3 | V20: 3 | W20: 4.1 | X20: 4 | Y20: 6 | Z20: 6 | AA20: 0 | AB20: 0 | AC20: 1 | AD20: 1 | AE20: 0 | AF20: 0 | AG20: 1 | AH20: 2 | AI20: 2 | AJ20: 3 | AK20: 3 | AL20: 0 | AM20: 0 | AN20: 9 | CG20: 5869 | CM20: =#REF! -> 
A21: 2020-03-13 | B21: Freitag | C21: 17 | F21: Österreich | G21: 8901064 | H21: 98 | I21: -11 | J21: 182 | K21: 84 | L21: 210 | M21: 28 | N21: 592 | O21: 364 | P21: 364 | Q21: 517 | R21: 517 | S21: 704 | T21: 704 | U21: 4 | V21: 4 | W21: 5.8 | X21: 6 | Y21: 8 | Z21: 8 | AA21: 1 | AB21: 1 | AC21: 0 | AD21: 0 | AE21: 1 | AF21: 1 | AG21: 1 | AH21: 3 | AI21: 3 | AJ21: 0 | AK21: 0 | AL21: 2 | AM21: 2 | AN21: 9 | CG21: 6582 | CM21: =#REF! -> 
A22: 2020-03-14 | B22: Samstag | C22: 18 | F22: Österreich | G22: 8901064 | H22: 182 | I22: 84 | J22: 210 | K22: 28 | L22: 198 | M22: -12 | N22: 802 | O22: 517 | P22: 517 | Q22: 704 | R22: 704 | S22: 874 | T22: 874 | U22: 6 | V22: 6 | W22: 7.9 | X22: 8 | Y22: 10 | Z22: 10 | AA22: 0 | AB22: 0 | AC22: 1 | AD22: 1 | AE22: 1 | AF22: 1 | AG22: 2 | AH22: 0 | AI22: 0 | AJ22: 2 | AK22: 2 | AL22: 4 | AM22: 4 | AN22: 11 | CG22: 7467 | CM22: =#REF! -> 
A23: 2020-03-15 | B23: Sonntag | C23: 19 | F23: Österreich | G23: 8901064 | H23: 210 | I23: 28 | J23: 198 | K23: -12 | L23: 226 | M23: 28 | N23: 1000 | O23: 704 | P23: 704 | Q23: 874 | R23: 874 | S23: 1078 | T23: 1078 | U23: 8 | V23: 8 | W23: 9.8 | X23: 10 | Y23: 12 | Z23: 12 | AA23: 1 | AB23: 1 | AC23: 1 | AD23: 1 | AE23: 2 | AF23: 2 | AG23: 3 | AH23: 2 | AI23: 2 | AJ23: 4 | AK23: 4 | AL23: 12 | AM23: 12 | AN23: 15 | CG23: 8167 | CM23: =#REF! -> 
A24: 2020-03-16 | B24: Montag | C24: 20 | F24: Österreich | G24: 8901064 | H24: 198 | I24: -12 | J24: 226 | K24: 28 | L24: 346 | M24: 120 | N24: 1226 | O24: 874 | P24: 874 | Q24: 1078 | R24: 1078 | S24: 1369 | T24: 1369 | U24: 10 | V24: 10 | W24: 12.1 | X24: 12 | Y24: 15 | Z24: 15 | AA24: 1 | AB24: 1 | AC24: 2 | AD24: 2 | AE24: 2 | AF24: 2 | AG24: 5 | AH24: 4 | AI24: 4 | AJ24: 12 | AK24: 12 | AL24: 2 | AM24: 2 | AN24: 27 | CG24: 8490 | CM24: =#REF! -> 
A25: 2020-03-17 | B25: Dienstag | C25: 21 | F25: Österreich | G25: 8901064 | H25: 226 | I25: 28 | J25: 346 | K25: 120 | L25: 372 | M25: 26 | N25: 1572 | O25: 1078 | P25: 1078 | Q25: 1369 | R25: 1369 | S25: 1632 | T25: 1632 | U25: 12 | V25: 12 | W25: 15.4 | X25: 15 | Y25: 18 | Z25: 18 | AA25: 2 | AB25: 2 | AC25: 2 | AD25: 2 | AE25: 5 | AF25: 5 | AG25: 7 | AH25: 12 | AI25: 12 | AJ25: 2 | AK25: 2 | AL25: 2 | AM25: 2 | AN25: 29 | CG25: 10278 | CM25: =#REF! -> 
A26: 2020-03-18 | B26: Mittwoch | C26: 22 | F26: Österreich | G26: 8901064 | H26: 346 | I26: 120 | J26: 372 | K26: 26 | L26: 455 | M26: 83 | N26: 1944 | O26: 1369 | P26: 1369 | Q26: 1632 | R26: 1632 | S26: 1989 | T26: 1989 | U26: 15 | V26: 15 | W26: 18.3 | X26: 18 | Y26: 22 | Z26: 22 | AA26: 2 | AB26: 2 | AC26: 5 | AD26: 5 | AE26: 3 | AF26: 3 | AG26: 12 | AH26: 2 | AI26: 2 | AJ26: 2 | AK26: 2 | AL26: 4 | AM26: 4 | AN26: 31 | CG26: 11977 | CM26: =#REF! -> 
A27: 2020-03-19 | B27: Donnerstag | C27: 23 | F27: Österreich | G27: 8901064 | H27: 372 | I27: 26 | J27: 455 | K27: 83 | L27: 509 | M27: 54 | N27: 2399 | O27: 1632 | P27: 1632 | Q27: 1989 | R27: 1989 | S27: 2316 | T27: 2316 | U27: 18 | V27: 18 | W27: 22.3 | X27: 22 | Y27: 26 | Z27: 26 | AA27: 5 | AB27: 5 | AC27: 3 | AD27: 3 | AE27: 5 | AF27: 5 | AG27: 15 | AH27: 2 | AI27: 2 | AJ27: 4 | AK27: 4 | AL27: 12 | AM27: 12 | AN27: 35 | CG27: 13724 | CM27: =#REF! -> 
A28: 2020-03-20 | B28: Freitag | C28: 24 | F28: Österreich | G28: 8901064 | H28: 455 | I28: 83 | J28: 509 | K28: 54 | L28: 546 | M28: 37 | N28: 2908 | O28: 1989 | P28: 1989 | Q28: 2316 | R28: 2316 | S28: 2652 | T28: 2652 | U28: 22 | V28: 22 | W28: 26 | X28: 26 | Y28: 30 | Z28: 30 | AA28: 3 | AB28: 3 | AC28: 5 | AD28: 5 | AE28: 6 | AF28: 6 | AG28: 20 | AH28: 4 | AI28: 4 | AJ28: 12 | AK28: 12 | AL28: 12 | AM28: 12 | AN28: 47 | CG28: 15613 | CM28: =#REF! -> 
A29: 2020-03-21 | B29: Samstag | C29: 25 | F29: Österreich | G29: 8901064 | H29: 509 | I29: 54 | J29: 546 | K29: 37 | L29: 618 | M29: 72 | N29: 3454 | O29: 2316 | P29: 2316 | Q29: 2652 | R29: 2652 | S29: 3072 | T29: 3072 | U29: 26 | V29: 26 | W29: 29.8 | X29: 30 | Y29: 34 | Z29: 34 | AA29: 5 | AB29: 5 | AC29: 6 | AD29: 6 | AE29: 8 | AF29: 8 | AG29: 26 | AH29: 12 | AI29: 12 | AJ29: 12 | AK29: 12 | AL29: 20 | AM29: 20 | AN29: 59 | CG29: 18545 | CM29: =#REF! -> 
A30: 2020-03-22 | B30: Sonntag | C30: 26 | F30: Österreich | G30: 8901064 | H30: 546 | I30: 37 | J30: 618 | K30: 72 | L30: 686 | M30: 68 | N30: 4072 | O30: 2652 | P30: 2652 | Q30: 3072 | R30: 3072 | S30: 3532 | T30: 3532 | U30: 30 | V30: 30 | W30: 34.5 | X30: 34 | Y30: 40 | Z30: 40 | AA30: 6 | AB30: 6 | AC30: 8 | AD30: 8 | AE30: 12 | AF30: 12 | AG30: 34 | AH30: 12 | AI30: 12 | AJ30: 20 | AK30: 20 | AL30: 56 | AM30: 56 | AN30: 79 | CG30: 21368 | CM30: =#REF! -> 
A31: 2020-03-23 | B31: Montag | C31: 27 | F31: Österreich | G31: 8901064 | H31: 618 | I31: 72 | J31: 686 | K31: 68 | L31: 725 | M31: 39 | N31: 4758 | O31: 3072 | P31: 3072 | Q31: 3532 | R31: 3532 | S31: 3911 | T31: 3911 | U31: 34 | V31: 34 | W31: 39.7 | X31: 40 | Y31: 44 | Z31: 44 | AA31: 8 | AB31: 8 | AC31: 12 | AD31: 12 | AE31: 10 | AF31: 10 | AG31: 46 | AH31: 20 | AI31: 20 | AJ31: 56 | AK31: 56 | AL31: 90 | AM31: 90 | AN31: 135 | CG31: 23429 | CM31: =#REF! -> 
A32: 2020-03-24 | B32: Dienstag | C32: 28 | F32: Österreich | G32: 8901064 | H32: 686 | I32: 68 | J32: 725 | K32: 39 | L32: 755 | M32: 30 | N32: 5483 | O32: 3532 | P32: 3532 | Q32: 3911 | R32: 3911 | S32: 4294 | T32: 4294 | U32: 40 | V32: 40 | W32: 43.9 | X32: 44 | Y32: 48 | Z32: 48 | AA32: 12 | AB32: 12 | AC32: 10 | AD32: 10 | AE32: 9 | AF32: 9 | AG32: 56 | AH32: 56 | AI32: 56 | AJ32: 90 | AK32: 90 | AL32: 95 | AM32: 95 | AN32: 225 | CG32: 28391 | CM32: =#REF! -> 
A33: 2020-03-25 | B33: Mittwoch | C33: 29 | F33: Österreich | G33: 8901064 | H33: 725 | I33: 39 | J33: 755 | K33: 30 | L33: 1057 | M33: 302 | N33: 6238 | O33: 3911 | P33: 3911 | Q33: 4294 | R33: 4294 | S33: 4896 | T33: 4896 | U33: 44 | V33: 44 | W33: 48.2 | X33: 48 | Y33: 55 | Z33: 55 | AA33: 10 | AB33: 10 | AC33: 9 | AD33: 9 | AE33: 16 | AF33: 16 | AG33: 65 | AH33: 90 | AI33: 90 | AJ33: 95 | AK33: 95 | AL33: 162 | AM33: 162 | AN33: 320 | CG33: 32407 | CM33: =#REF! -> 
A34: 2020-03-26 | B34: Donnerstag | C34: 30 | F34: Österreich | G34: 8901064 | H34: 755 | I34: 30 | J34: 1057 | K34: 302 | L34: 807 | M34: -250 | N34: 7295 | O34: 4294 | P34: 4294 | Q34: 4896 | R34: 4896 | S34: 5194 | T34: 5194 | U34: 48 | V34: 48 | W34: 55 | X34: 55 | Y34: 58 | Z34: 58 | AA34: 9 | AB34: 9 | AC34: 16 | AD34: 16 | AE34: 20 | AF34: 20 | AG34: 81 | AH34: 95 | AI34: 95 | AJ34: 162 | AK34: 162 | AL34: 221 | AM34: 221 | AN34: 482 | CG34: 35995 | CM34: =#REF! -> 
A35: 2020-03-27 | B35: Freitag | C35: 31 | F35: Österreich | G35: 8901064 | H35: 1057 | I35: 302 | J35: 807 | K35: -250 | L35: 617 | M35: -190 | N35: 8102 | O35: 4896 | P35: 4896 | Q35: 5194 | R35: 5194 | S35: 5265 | T35: 5265 | U35: 55 | V35: 55 | W35: 58.4 | X35: 58 | Y35: 59 | Z35: 59 | AA35: 16 | AB35: 16 | AC35: 20 | AD35: 20 | AE35: 19 | AF35: 19 | AG35: 101 | AH35: 162 | AI35: 162 | AJ35: 221 | AK35: 221 | AL35: 197 | AM35: 197 | AN35: 703 | CG35: 39552 | CM35: =#REF! -> 
A36: 2020-03-28 | B36: Samstag | C36: 32 | F36: Österreich | G36: 8901064 | H36: 807 | I36: -250 | J36: 617 | K36: -190 | L36: 547 | M36: -70 | N36: 8719 | O36: 5194 | P36: 5194 | Q36: 5265 | R36: 5265 | S36: 5194 | T36: 5194 | U36: 58 | V36: 58 | W36: 59.2 | X36: 59 | Y36: 58 | Z36: 58 | AA36: 20 | AB36: 20 | AC36: 19 | AD36: 19 | AE36: 14 | AF36: 14 | AG36: 120 | AH36: 221 | AI36: 221 | AJ36: 197 | AK36: 197 | AL36: 252 | AM36: 252 | AN36: 900 | CG36: 42750 | CM36: =#REF! -> 
A37: 2020-03-29 | B37: Sonntag | C37: 33 | F37: Österreich | G37: 8901064 | H37: 617 | I37: -190 | J37: 547 | K37: -70 | L37: 671 | M37: 124 | N37: 9266 | O37: 5265 | P37: 5265 | Q37: 5194 | R37: 5194 | S37: 5179 | T37: 5179 | U37: 59 | V37: 59 | W37: 58.4 | X37: 58 | Y37: 58 | Z37: 58 | AA37: 19 | AB37: 19 | AC37: 14 | AD37: 14 | AE37: 21 | AF37: 21 | AG37: 134 | AH37: 197 | AI37: 197 | AJ37: 252 | AK37: 252 | AL37: 372 | AM37: 372 | AN37: 1152 | CG37: 46441 | CM37: =#REF! -> 
A38: 2020-03-30 | B38: Montag | C38: 34 | F38: Österreich | G38: 8901064 | H38: 547 | I38: -70 | J38: 671 | K38: 124 | L38: 550 | M38: -121 | N38: 9937 | O38: 5194 | P38: 5194 | Q38: 5179 | R38: 5179 | S38: 5004 | T38: 5004 | U38: 58 | V38: 58 | W38: 58.2 | X38: 58 | Y38: 56 | Z38: 56 | AA38: 14 | AB38: 14 | AC38: 21 | AD38: 21 | AE38: 18 | AF38: 18 | AG38: 155 | AH38: 252 | AI38: 252 | AJ38: 372 | AK38: 372 | AL38: 376 | AM38: 376 | AN38: 1524 | CG38: 49455 | CM38: =#REF! -> 
A39: 2020-03-31 | B39: Dienstag | C39: 35 | F39: Österreich | G39: 8901064 | H39: 671 | I39: 124 | J39: 550 | K39: -121 | L39: 550 | M39: 0 | N39: 10487 | O39: 5179 | P39: 5179 | Q39: 5004 | R39: 5004 | S39: 4799 | T39: 4799 | U39: 58 | V39: 58 | W39: 56.2 | X39: 56 | Y39: 54 | Z39: 54 | AA39: 21 | AB39: 21 | AC39: 18 | AD39: 18 | AE39: 11 | AF39: 11 | AG39: 173 | AH39: 372 | AI39: 372 | AJ39: 376 | AK39: 376 | AL39: 344 | AM39: 344 | AN39: 1900 | CG39: 52344 | CM39: =#REF! -> 
A40: 2020-04-01 | B40: Mittwoch | C40: 36 | F40: Österreich | G40: 8901064 | H40: 550 | I40: -121 | J40: 550 | K40: 0 | L40: 439 | M40: -111 | N40: 11037 | O40: 5004 | P40: 5004 | Q40: 4799 | R40: 4799 | S40: 4181 | T40: 4181 | U40: 56 | V40: 56 | W40: 53.9 | X40: 54 | Y40: 47 | Z40: 47 | AA40: 18 | AB40: 18 | AC40: 11 | AD40: 11 | AE40: 20 | AF40: 20 | AG40: 184 | AH40: 376 | AI40: 376 | AJ40: 344 | AK40: 344 | AL40: 386 | AM40: 386 | AN40: 2244 | AO40: =öb1!F5 -> 0 | AP40: =öb1!G5 -> 0 | AQ40: =öb1!H5 -> 16834 | AR40: =öb1!I5 -> 16834 | AS40: =öb1!J5 -> 92190 | AT40: =öb1!K5 -> 75356 | AU40: =öb1!L5 -> 0 | AV40: =öb1!M5 -> 0 | AW40: =öb1!N5 -> 0 | AX40: =öb1!O5 -> 856 | AY40: =öb1!P5 -> 0 | AZ40: =öb1!Q5 -> 79.92530345 | BA40: =öb1!R5 -> 823 | BB40: =öb1!S5 -> 0 | BC40: =öb1!T5 -> 78.98272553 | BD40: =öb1!U5 -> 0 | BE40: =öb1!V5 -> 0 | BF40: =öb1!W5 -> 0 | BG40: =öb1!X5 -> 215 | BH40: =öb1!Y5 -> 0 | BI40: =öb1!Z5 -> 20.07469655 | BJ40: =öb1!AA5 -> 219 | BK40: =öb1!AB5 -> 4 | BL40: =öb1!AC5 -> 21.01727447 | BM40: =öb1!AD5 -> 0 | BN40: =öb1!AE5 -> 0 | BO40: =öb1!AF5 -> 0 | BP40: =öb1!AG5 -> 14713 | BQ40: =öb1!AH5 -> 0 | BR40: =öb1!AI5 -> 94.67215752 | BS40: =öb1!AJ5 -> 15131 | BT40: =öb1!AK5 -> 95.29537725 | BU40: =öb1!AL5 -> 418 | BV40: =öb1!AM5 -> 0 | BW40: =öb1!AN5 -> 0 | BX40: =öb1!AO5 -> 0 | BY40: =öb1!AP5 -> 828 | BZ40: =öb1!AQ5 -> 0 | CA40: =öb1!AR5 -> 5.327842481 | CB40: =öb1!AS5 -> 747 | CC40: =öb1!AT5 -> -81 | CD40: =öb1!AU5 -> 4.704622748 | CG40: 55883 | CM40: =#REF! -> 
